Workbook

Sheet 법정동(2013)
A1: 기준일자 : 2013. 12. 31. 단위 : 필지,㎡
A3: 구 분 | B3: 계 | D3: 전 | F3: 답 | H3: 과수원 | J3: 목장용지 | L3: 임야 | N3: 광천지 | P3: 염전 | R3: 대 | T3: 공장용지 | V3: 학교용지 | X3: 주차장 | Z3: 주유소용지 | AB3: 창고용지 | AD3: 도로 | AF3: 철도용지 | AH3: 제방 | AJ3: 하천 | AL3: 구거 | AN3: 유지 | AP3: 양어장 | AR3: 수도용지 | AT3: 공원 | AV3: 체육용지 | AX3: 유원지 | AZ3: 종교용지 | BB3: 사적지 | BD3: 묘지 | BF3: 잡종지
B4: 면 적 | C4: 지번수 | D4: 면 적 | E4: 지번수 | F4: 면 적 | G4: 지번수 | H4: 면 적 | I4: 지번수 | J4: 면 적 | K4: 지번수 | L4: 면 적 | M4: 지번수 | N4: 면 적 | O4: 지번수 | P4: 면 적 | Q4: 지번수 | R4: 면 적 | S4: 지번수 | T4: 면 적 | U4: 지번수 | V4: 면 적 | W4: 지번수 | X4: 면 적 | Y4: 지번수 | Z4: 면 적 | AA4: 지번수 | AB4: 면 적 | AC4: 지번수 | AD4: 면 적 | AE4: 지번수 | AF4: 면 적 | AG4: 지번수 | AH4: 면 적 | AI4: 지번수 | AJ4: 면 적 | AK4: 지번수 | AL4: 면 적 | AM4: 지번수 | AN4: 면 적 | AO4: 지번수 | AP4: 면 적 | AQ4: 지번수 | AR4: 면 적 | AS4: 지번수 | AT4: 면 적 | AU4: 지번수 | AV4: 면 적 | AW4: 지번수 | AX4: 면 적 | AY4: 지번수 | AZ4: 면 적 | BA4: 지번수 | BB4: 면 적 | BC4: 지번수 | BD4: 면 적 | BE4: 지번수 | BF4: 면 적 | BG4: 지번수
A5: 합 계 | B5: =SUM(B6:B119) -> 504,308,958.0 | C5: =SUM(C6:C119) -> 310,125 | D5: =SUM(D6:D119) -> 66,829,496.6 | E5: =SUM(E6:E119) -> 74,906 | F5: 41,689,757.7 | G5: 46,705 | H5: 564,671.0 | I5: 204 | J5: 1,855,559.0 | K5: 514 | L5: 306,283,875.2 | M5: 54,429 | N5: 0 | O5: 0 | P5: 10,562.0 | Q5: 6 | R5: 21,564,759.4 | S5: 65,811 | T5: 15,756,522.9 | U5: 1,190 | V5: 2,005,867.0 | W5: 376 | X5: 346,626.4 | Y5: 394 | Z5: 501,120.3 | AA5: 244 | AB5: 262,666.6 | AC5: 398 | AD5: 19,684,967.0 | AE5: 48,468 | AF5: 1,028,567.2 | AG5: 875 | AH5: 657,269.2 | AI5: 788 | AJ5: 2,414,211.7 | AK5: 942 | AL5: 4,612,411.3 | AM5: 4,741 | AN5: 2,910,786.9 | AO5: 1,438 | AP5: 227,613.1 | AQ5: 148 | AR5: 475,653.9 | AS5: 405 | AT5: 1,318,673.2 | AU5: 291 | AV5: 1,176,999.6 | AW5: 45 | AX5: 263,794.9 | AY5: 4 | AZ5: 417,357.6 | BA5: 445 | BB5: 20,795.0 | BC5: 15 | BD5: 1,820,471.0 | BE5: 1,928 | BF5: 9,607,902.3 | BG5: 4,415
A6: 종화동 | B6: =SUM(D6,F6,H6,J6,L6,N6,P6,R6,T6,V6,X6,Z6,AB6,AD6,AF6,AH6,AJ6,AL6,AN6,AP6,AR6,AT6,AV6,AX6,AZ6,BB6,BD6,BF6) -> 402,657.0 | C6: =SUM(E6,G6,I6,K6,M6,O6,Q6,S6,U6,W6,Y6,AA6,AC6,AE6,AG6,AI6,AK6,AM6,AO6,AQ6,AS6,AU6,AW6,AY6,BA6,BC6,BE6,BG6) -> 1,689 | D6: 72,717.0 | E6: 221 | F6: 1,267.0 | G6: 12 | H6: 0 | I6: 0 | J6: 0 | K6: 0 | L6: 22,714.0 | M6: 48 | N6: 0 | O6: 0 | P6: 0 | Q6: 0 | R6: 111,914.0 | S6: 1,059 | T6: 0 | U6: 0 | V6: 16,641.0 | W6: 1 | X6: 60.0 | Y6: 1 | Z6: 0 | AA6: 0 | AB6: 177.0 | AC6: 1 | AD6: 68,532.0 | AE6: 277 | AF6: 0 | AG6: 0 | AH6: 2,134.0 | AI6: 5 | AJ6: 0 | AK6: 0 | AL6: 2,501.0 | AM6: 12 | AN6: 0 | AO6: 0 | AP6: 0 | AQ6: 0 | AR6: 985.0 | AS6: 2 | AT6: 84,607.0 | AU6: 15 | AV6: 0 | AW6: 0 | AX6: 0 | AY6: 0 | AZ6: 1,094.0 | BA6: 4 | BB6: 0 | BC6: 0 | BD6: 4,334.0 | BE6: 15 | BF6: 12,980.0 | BG6: 16
A7: 수정동 | B7: =SUM(D7,F7,H7,J7,L7,N7,P7,R7,T7,V7,X7,Z7,AB7,AD7,AF7,AH7,AJ7,AL7,AN7,AP7,AR7,AT7,AV7,AX7,AZ7,BB7,BD7,BF7) -> 636,365.5 | C7: =SUM(E7,G7,I7,K7,M7,O7,Q7,S7,U7,W7,Y7,AA7,AC7,AE7,AG7,AI7,AK7,AM7,AO7,AQ7,AS7,AU7,AW7,AY7,BA7,BC7,BE7,BG7) -> 1,406 | D7: 39,143.0 | E7: 216 | F7: 0 | G7: 0 | H7: 0 | I7: 0 | J7: 0 | K7: 0 | L7: 131,491.0 | M7: 50 | N7: 0 | O7: 0 | P7: 0 | Q7: 0 | R7: 183,484.3 | S7: 828 | T7: 0 | U7: 0 | V7: 37,527.0 | W7: 2 | X7: 12,269.8 | Y7: 6 | Z7: 0 | AA7: 0 | AB7: 0 | AC7: 0 | AD7: 120,751.9 | AE7: 266 | AF7: 22.0 | AG7: 2 | AH7: 11,759.0 | AI7: 4 | AJ7: 0 | AK7: 0 | AL7: 0 | AM7: 0 | AN7: 0 | AO7: 0 | AP7: 0 | AQ7: 0 | AR7: 0 | AS7: 0 | AT7: 69,680.8 | AU7: 6 | AV7: 0 | AW7: 0 | AX7: 0 | AY7: 0 | AZ7: 0 | BA7: 0 | BB7: 0 | BC7: 0 | BD7: 1,128.0 | BE7: 5 | BF7: 29,108.7 | BG7: 21
A8: 공화동 | B8: 313,483.2 | C8: 1,744 | D8: 3,371.0 | E8: 35 | F8: 0 | G8: 0 | H8: 0 | I8: 0 | J8: 0 | K8: 0 | L8: 388.0 | M8: 1 | N8: 0 | O8: 0 | P8: 0 | Q8: 0 | R8: 140,350.5 | S8: 1,393 | T8: 0 | U8: 0 | V8: 51,531.0 | W8: 6 | X8: 2,236.0 | Y8: 5 | Z8: 1,141.0 | AA8: 4 | AB8: 0 | AC8: 0 | AD8: 91,602.4 | AE8: 238 | AF8: 3,836.0 | AG8: 26 | AH8: 0 | AI8: 0 | AJ8: 0 | AK8: 0 | AL8: 3,480.0 | AM8: 22 | AN8: 0 | AO8: 0 | AP8: 0 | AQ8: 0 | AR8: 0 | AS8: 0 | AT8: 4,034.8 | AU8: 2 | AV8: 0 | AW8: 0 | AX8: 0 | AY8: 0 | AZ8: 6,337.0 | BA8: 9 | BB8: 0 | BC8: 0 | BD8: 0 | BE8: 0 | BF8: 5,175.5 | BG8: 3
A9: 관문동 | B9: 248,473.0 | C9: 1,617 | D9: 4,579.0 | E9: 60 | F9: 221.0 | G9: 5 | H9: 0 | I9: 0 | J9: 0 | K9: 0 | L9: 5,774.0 | M9: 32 | N9: 0 | O9: 0 | P9: 0 | Q9: 0 | R9: 145,698.0 | S9: 1,254 | T9: 0 | U9: 0 | V9: 48,901.0 | W9: 6 | X9: 631.0 | Y9: 5 | Z9: 0 | AA9: 0 | AB9: 0 | AC9: 0 | AD9: 40,557.0 | AE9: 243 | AF9: 0 | AG9: 0 | AH9: 0 | AI9: 0 | AJ9: 0 | AK9: 0 | AL9: 139.0 | AM9: 5 | AN9: 0 | AO9: 0 | AP9: 0 | AQ9: 0 | AR9: 0 | AS9: 0 | AT9: 0 | AU9: 0 | AV9: 0 | AW9: 0 | AX9: 0 | AY9: 0 | AZ9: 1,704.0 | BA9: 4 | BB9: 0 | BC9: 0 | BD9: 0 | BE9: 0 | BF9: 269.0 | BG9: 3
A10: 고소동 | B10: 176,568.0 | C10: 1,322 | D10: 16,553.0 | E10: 100 | F10: 0 | G10: 0 | H10: 0 | I10: 0 | J10: 0 | K10: 0 | L10: 496.0 | M10: 7 | N10: 0 | O10: 0 | P10: 0 | Q10: 0 | R10: 117,007.0 | S10: 893 | T10: 0 | U10: 0 | V10: 0 | W10: 0 | X10: 324.0 | Y10: 2 | Z10: 0 | AA10: 0 | AB10: 0 | AC10: 0 | AD10: 35,745.0 | AE10: 306 | AF10: 0 | AG10: 0 | AH10: 0 | AI10: 0 | AJ10: 0 | AK10: 0 | AL10: 0 | AM10: 0 | AN10: 0 | AO10: 0 | AP10: 0 | AQ10: 0 | AR10: 671.0 | AS10: 1 | AT10: 0 | AU10: 0 | AV10: 0 | AW10: 0 | AX10: 0 | AY10: 0 | AZ10: 3,526.0 | BA10: 4 | BB10: 1,583.0 | BC10: 1 | BD10: 78.0 | BE10: 3 | BF10: 585.0 | BG10: 5
A11: 동산동 | B11: 279,543.0 | C11: 1,227 | D11: 32,423.0 | E11: 77 | F11: 2,765.0 | G11: 6 | H11: 0 | I11: 0 | J11: 0 | K11: 0 | L11: 125,534.0 | M11: 27 | N11: 0 | O11: 0 | P11: 0 | Q11: 0 | R11: 85,831.0 | S11: 928 | T11: 0 | U11: 0 | V11: 10,782.0 | W11: 1 | X11: 556.0 | Y11: 3 | Z11: 0 | AA11: 0 | AB11: 0 | AC11: 0 | AD11: 13,199.0 | AE11: 173 | AF11: 0 | AG11: 0 | AH11: 0 | AI11: 0 | AJ11: 0 | AK11: 0 | AL11: 2,688.0 | AM11: 4 | AN11: 0 | AO11: 0 | AP11: 0 | AQ11: 0 | AR11: 4,960.0 | AS11: 4 | AT11: 0 | AU11: 0 | AV11: 0 | AW11: 0 | AX11: 0 | AY11: 0 | AZ11: 769.0 | BA11: 3 | BB11: 0 | BC11: 0 | BD11: 0 | BE11: 0 | BF11: 36.0 | BG11: 1
A12: 중앙동 | B12: 159,282.0 | C12: 795 | D12: 52.0 | E12: 4 | F12: 0 | G12: 0 | H12: 0 | I12: 0 | J12: 0 | K12: 0 | L12: 20,706.0 | M12: 17 | N12: 0 | O12: 0 | P12: 0 | Q12: 0 | R12: 65,873.0 | S12: 582 | T12: 0 | U12: 0 | V12: 0 | W12: 0 | X12: 1,679.0 | Y12: 1 | Z12: 0 | AA12: 0 | AB12: 0 | AC12: 0 | AD12: 49,487.0 | AE12: 180 | AF12: 0 | AG12: 0 | AH12: 0 | AI12: 0 | AJ12: 0 | AK12: 0 | AL12: 0 | AM12: 0 | AN12: 0 | AO12: 0 | AP12: 0 | AQ12: 0 | AR12: 0 | AS12: 0 | AT12: 9,732.0 | AU12: 1 | AV12: 0 | AW12: 0 | AX12: 0 | AY12: 0 | AZ12: 0 | BA12: 0 | BB12: 0 | BC12: 0 | BD12: 0 | BE12: 0 | BF12: 11,753.0 | BG12: 10
A13: 교동 | B13: 166,086.2 | C13: 1,171 | D13: 0 | E13: 0 | F13: 0 | G13: 0 | H13: 0 | I13: 0 | J13: 0 | K13: 0 | L13: 0 | M13: 0 | N13: 0 | O13: 0 | P13: 0 | Q13: 0 | R13: 96,868.0 | S13: 1,080 | T13: 0 | U13: 0 | V13: 0 | W13: 0 | X13: 4,238.2 | Y13: 4 | Z13: 0 | AA13: 0 | AB13: 0 | AC13: 0 | AD13: 50,034.0 | AE13: 76 | AF13: 0 | AG13: 0 | AH13: 800.0 | AI13: 2 | AJ13: 9,005.0 | AK13: 1 | AL13: 445.0 | AM13: 5 | AN13: 0 | AO13: 0 | AP13: 0 | AQ13: 0 | AR13: 0 | AS13: 0 | AT13: 0 | AU13: 0 | AV13: 0 | AW13: 0 | AX13: 0 | AY13: 0 | AZ13: 0 | BA13: 0 | BB13: 0 | BC13: 0 | BD13: 0 | BE13: 0 | BF13: 4,696.0 | BG13: 3
A14: 군자동 | B14: 121,235.0 | C14: 642 | D14: 34,418.0 | E14: 77 | F14: 0 | G14: 0 | H14: 0 | I14: 0 | J14: 0 | K14: 0 | L14: 0 | M14: 0 | N14: 0 | O14: 0 | P14: 0 | Q14: 0 | R14: 53,813.0 | S14: 490 | T14: 0 | U14: 0 | V14: 7,308.0 | W14: 1 | X14: 827.0 | Y14: 4 | Z14: 0 | AA14: 0 | AB14: 0 | AC14: 0 | AD14: 14,973.0 | AE14: 57 | AF14: 0 | AG14: 0 | AH14: 0 | AI14: 0 | AJ14: 0 | AK14: 0 | AL14: 1,068.0 | AM14: 3 | AN14: 0 | AO14: 0 | AP14: 0 | AQ14: 0 | AR14: 363.0 | AS14: 2 | AT14: 0 | AU14: 0 | AV14: 0 | AW14: 0 | AX14: 0 | AY14: 0 | AZ14: 2,650.0 | BA14: 2 | BB14: 5,642.0 | BC14: 4 | BD14: 0 | BE14: 0 | BF14: 173.0 | BG14: 2
A15: 충무동 | B15: 144,556.0 | C15: 997 | D15: 2,822.0 | E15: 21 | F15: 2,141.0 | G15: 12 | H15: 0 | I15: 0 | J15: 0 | K15: 0 | L15: 0 | M15: 0 | N15: 0 | O15: 0 | P15: 0 | Q15: 0 | R15: 93,681.0 | S15: 835 | T15: 0 | U15: 0 | V15: 0 | W15: 0 | X15: 1,690.0 | Y15: 7 | Z15: 0 | AA15: 0 | AB15: 0 | AC15: 0 | AD15: 36,048.0 | AE15: 103 | AF15: 0 | AG15: 0 | AH15: 0 | AI15: 0 | AJ15: 5,576.0 | AK15: 2 | AL15: 271.0 | AM15: 1 | AN15: 0 | AO15: 0 | AP15: 0 | AQ15: 0 | AR15: 0 | AS15: 0 | AT15: 0 | AU15: 0 | AV15: 0 | AW15: 0 | AX15: 0 | AY15: 0 | AZ15: 1,799.0 | BA15: 10 | BB15: 0 | BC15: 0 | BD15: 0 | BE15: 0 | BF15: 528.0 | BG15: 6
A16: 연등동 | B16: 1,083,737.5 | C16: 2,150 | D16: 194,030.0 | E16: 416 | F16: 43,758.0 | G16: 70 | H16: 0 | I16: 0 | J16: 0 | K16: 0 | L16: 447,669.8 | M16: 157 | N16: 0 | O16: 0 | P16: 0 | Q16: 0 | R16: 160,949.1 | S16: 1,137 | T16: 696.7 | U16: 1 | V16: 14,194.0 | W16: 2 | X16: 321.0 | Y16: 1 | Z16: 1,946.1 | AA16: 7 | AB16: 2,638.4 | AC16: 3 | AD16: 150,899.0 | AE16: 285 | AF16: 0 | AG16: 0 | AH16: 0 | AI16: 0 | AJ16: 14,522.0 | AK16: 21 | AL16: 32,734.4 | AM16: 22 | AN16: 0 | AO16: 0 | AP16: 0 | AQ16: 0 | AR16: 1,826.1 | AS16: 2 | AT16: 991.9 | AU16: 1 | AV16: 0 | AW16: 0 | AX16: 0 | AY16: 0 | AZ16: 4,986.0 | BA16: 5 | BB16: 76.0 | BC16: 1 | BD16: 5,021.0 | BE16: 9 | BF16: 6,478.0 | BG16: 10
A17: 광무동 | B17: 1,266,051.4 | C17: 2,924 | D17: 224,167.0 | E17: 432 | F17: 6,722.0 | G17: 36 | H17: 0 | I17: 0 | J17: 0 | K17: 0 | L17: 624,287.0 | M17: 95 | N17: 0 | O17: 0 | P17: 0 | Q17: 0 | R17: 233,793.4 | S17: 1,800 | T17: 0 | U17: 0 | V17: 19,814.0 | W17: 5 | X17: 2,331.0 | Y17: 4 | Z17: 695.8 | AA17: 1 | AB17: 0 | AC17: 0 | AD17: 121,915.7 | AE17: 477 | AF17: 0 | AG17: 0 | AH17: 0 | AI17: 0 | AJ17: 8,810.0 | AK17: 10 | AL17: 3,739.9 | AM17: 10 | AN17: 0 | AO17: 0 | AP17: 0 | AQ17: 0 | AR17: 3,837.0 | AS17: 11 | AT17: 616.0 | AU17: 1 | AV17: 0 | AW17: 0 | AX17: 0 | AY17: 0 | AZ17: 5,548.0 | BA17: 9 | BB17: 0 | BC17: 0 | BD17: 4,347.0 | BE17: 16 | BF17: 5,427.6 | BG17: 17
A18: 서교동 | B18: 169,257.0 | C18: 1,159 | D18: 136.0 | E18: 2 | F18: 378.0 | G18: 7 | H18: 0 | I18: 0 | J18: 0 | K18: 0 | L18: 0 | M18: 0 | N18: 0 | O18: 0 | P18: 0 | Q18: 0 | R18: 85,205.0 | S18: 861 | T18: 0 | U18: 0 | V18: 19,165.0 | W18: 1 | X18: 6,734.0 | Y18: 4 | Z18: 0 | AA18: 0 | AB18: 0 | AC18: 0 | AD18: 43,024.0 | AE18: 263 | AF18: 0 | AG18: 0 | AH18: 0 | AI18: 0 | AJ18: 8,724.0 | AK18: 4 | AL18: 753.0 | AM18: 13 | AN18: 0 | AO18: 0 | AP18: 0 | AQ18: 0 | AR18: 0 | AS18: 0 | AT18: 143.0 | AU18: 1 | AV18: 0 | AW18: 0 | AX18: 0 | AY18: 0 | AZ18: 4,598.0 | BA18: 2 | BB18: 0 | BC18: 0 | BD18: 0 | BE18: 0 | BF18: 397.0 | BG18: 1
A19: 봉강동 | B19: 486,137.5 | C19: 1,608 | D19: 79,459.0 | E19: 170 | F19: 26,972.0 | G19: 51 | H19: 0 | I19: 0 | J19: 0 | K19: 0 | L19: 156,344.0 | M19: 55 | N19: 0 | O19: 0 | P19: 0 | Q19: 0 | R19: 122,522.2 | S19: 922 | T19: 0 | U19: 0 | V19: 35,979.0 | W19: 2 | X19: 578.0 | Y19: 2 | Z19: 0 | AA19: 0 | AB19: 0 | AC19: 0 | AD19: 52,156.7 | AE19: 364 | AF19: 0 | AG19: 0 | AH19: 0 | AI19: 0 | AJ19: 0 | AK19: 0 | AL19: 3,404.0 | AM19: 13 | AN19: 0 | AO19: 0 | AP19: 0 | AQ19: 0 | AR19: 0 | AS19: 0 | AT19: 1,906.9 | AU19: 1 | AV19: 0 | AW19: 0 | AX19: 0 | AY19: 0 | AZ19: 3,652.0 | BA19: 5 | BB19: 0 | BC19: 0 | BD19: 0 | BE19: 0 | BF19: 3,163.7 | BG19: 23
A20: 봉산동 | B20: 1,213,833.7 | C20: 2,914 | D20: 147,128.0 | E20: 308 | F20: 42,957.0 | G20: 99 | H20: 0 | I20: 0 | J20: 0 | K20: 0 | L20: 352,775.0 | M20: 63 | N20: 0 | O20: 0 | P20: 0 | Q20: 0 | R20: 413,843.1 | S20: 1,943 | T20: 353.1 | U20: 1 | V20: 29,460.0 | W20: 6 | X20: 216.1 | Y20: 2 | Z20: 2,234.6 | AA20: 4 | AB20: 1,297.1 | AC20: 4 | AD20: 185,076.7 | AE20: 450 | AF20: 0 | AG20: 0 | AH20: 0 | AI20: 0 | AJ20: 0 | AK20: 0 | AL20: 3,904.0 | AM20: 10 | AN20: 27.0 | AO20: 2 | AP20: 0 | AQ20: 0 | AR20: 0 | AS20: 0 | AT20: 0 | AU20: 0 | AV20: 0 | AW20: 0 | AX20: 0 | AY20: 0 | AZ20: 7,586.0 | BA20: 6 | BB20: 0 | BC20: 0 | BD20: 2,507.0 | BE20: 9 | BF20: 24,469.0 | BG20: 7
A21: 남산동 | B21: 400,336.0 | C21: 1,893 | D21: 95,799.0 | E21: 219 | F21: 83.0 | G21: 3 | H21: 0 | I21: 0 | J21: 0 | K21: 0 | L21: 32,758.0 | M21: 32 | N21: 0 | O21: 0 | P21: 0 | Q21: 0 | R21: 132,332.0 | S21: 1,244 | T21: 0 | U21: 0 | V21: 4,469.0 | W21: 2 | X21: 3,477.0 | Y21: 5 | Z21: 0 | AA21: 0 | AB21: 0 | AC21: 0 | AD21: 99,594.0 | AE21: 343 | AF21: 0 | AG21: 0 | AH21: 273.0 | AI21: 4 | AJ21: 9,140.0 | AK21: 1 | AL21: 595.0 | AM21: 6 | AN21: 0 | AO21: 0 | AP21: 0 | AQ21: 0 | AR21: 283.0 | AS21: 2 | AT21: 0 | AU21: 0 | AV21: 0 | AW21: 0 | AX21: 0 | AY21: 0 | AZ21: 0 | BA21: 0 | BB21: 0 | BC21: 0 | BD21: 58.0 | BE21: 2 | BF21: 21,475.0 | BG21: 30
A22: 국동 | B22: 1,533,342.3 | C22: 3,253 | D22: 98,672.0 | E22: 452 | F22: 15,592.0 | G22: 83 | H22: 815.0 | I22: 1 | J22: 0 | K22: 0 | L22: 486,239.0 | M22: 91 | N22: 0 | O22: 0 | P22: 0 | Q22: 0 | R22: 527,745.2 | S22: 1,887 | T22: 5,044.0 | U22: 9 | V22: 126,054.2 | W22: 32 | X22: 5,577.0 | Y22: 5 | Z22: 1,291.0 | AA22: 2 | AB22: 609.0 | AC22: 4 | AD22: 174,089.6 | AE22: 583 | AF22: 0 | AG22: 0 | AH22: 2,006.0 | AI22: 1 | AJ22: 0 | AK22: 0 | AL22: 15,931.0 | AM22: 14 | AN22: 0 | AO22: 0 | AP22: 0 | AQ22: 0 | AR22: 3,092.0 | AS22: 6 | AT22: 0 | AU22: 0 | AV22: 0 | AW22: 0 | AX22: 0 | AY22: 0 | AZ22: 7,538.5 | BA22: 17 | BB22: 0 | BC22: 0 | BD22: 1,035.0 | BE22: 10 | BF22: 62,011.8 | BG22: 56
A23: 신월동 | B23: 3,714,986.5 | C23: 2,534 | D23: 612,489.0 | E23: 850 | F23: 119,530.0 | G23: 194 | H23: 0 | I23: 0 | J23: 0 | K23: 0 | L23: 1,403,150.0 | M23: 326 | N23: 0 | O23: 0 | P23: 0 | Q23: 0 | R23: 242,009.5 | S23: 510 | T23: 849,314.0 | U23: 124 | V23: 7,970.0 | W23: 1 | X23: 1,587.0 | Y23: 1 | Z23: 2,571.0 | AA23: 10 | AB23: 1,810.0 | AC23: 2 | AD23: 203,508.0 | AE23: 326 | AF23: 0 | AG23: 0 | AH23: 5,881.0 | AI23: 19 | AJ23: 0 | AK23: 0 | AL23: 45,454.0 | AM23: 20 | AN23: 0 | AO23: 0 | AP23: 0 | AQ23: 0 | AR23: 0 | AS23: 0 | AT23: 0 | AU23: 0 | AV23: 0 | AW23: 0 | AX23: 0 | AY23: 0 | AZ23: 9,241.0 | BA23: 9 | BB23: 0 | BC23: 0 | BD23: 6,008.0 | BE23: 26 | BF23: 204,464.0 | BG23: 116
A24: 여서동 | B24: 2,575,399.9 | C24: 1,920 | D24: 204,480.0 | E24: 278 | F24: 116,419.0 | G24: 189 | H24: 0 | I24: 0 | J24: 0 | K24: 0 | L24: 1,223,736.0 | M24: 291 | N24: 0 | O24: 0 | P24: 0 | Q24: 0 | R24: 562,622.2 | S24: 751 | T24: 0 | U24: 0 | V24: 58,011.0 | W24: 4 | X24: 15,531.6 | Y24: 15 | Z24: 1,488.0 | AA24: 1 | AB24: 884.0 | AC24: 1 | AD24: 291,248.5 | AE24: 281 | AF24: 0 | AG24: 0 | AH24: 0 | AI24: 0 | AJ24: 0 | AK24: 0 | AL24: 15,119.9 | AM24: 20 | AN24: 958.0 | AO24: 2 | AP24: 0 | AQ24: 0 | AR24: 11,855.0 | AS24: 5 | AT24: 19,406.8 | AU24: 7 | AV24: 9,361.0 | AW24: 5 | AX24: 0 | AY24: 0 | AZ24: 15,908.4 | BA24: 22 | BB24: 0 | BC24: 0 | BD24: 2,630.0 | BE24: 8 | BF24: 25,740.5 | BG24: 40
A25: 문수동 | B25: 2,244,118.3 | C25: 3,187 | D25: 175,919.0 | E25: 321 | F25: 34,182.0 | G25: 95 | H25: 0 | I25: 0 | J25: 0 | K25: 0 | L25: 836,075.7 | M25: 325 | N25: 0 | O25: 0 | P25: 0 | Q25: 0 | R25: 715,330.5 | S25: 1,891 | T25: 0 | U25: 0 | V25: 122,894.6 | W25: 10 | X25: 13,515.4 | Y25: 44 | Z25: 1,109.1 | AA25: 2 | AB25: 205.0 | AC25: 1 | AD25: 225,509.9 | AE25: 367 | AF25: 0 | AG25: 0 | AH25: 0 | AI25: 0 | AJ25: 8,513.0 | AK25: 5 | AL25: 9,438.4 | AM25: 13 | AN25: 0 | AO25: 0 | AP25: 0 | AQ25: 0 | AR25: 31.0 | AS25: 1 | AT25: 54,362.1 | AU25: 21 | AV25: 0 | AW25: 0 | AX25: 0 | AY25: 0 | AZ25: 25,861.0 | BA25: 15 | BB25: 0 | BC25: 0 | BD25: 3,861.0 | BE25: 19 | BF25: 17,310.6 | BG25: 57
A26: 오림동 | B26: 2,129,905.7 | C26: 1,646 | D26: 150,571.0 | E26: 266 | F26: 58,336.0 | G26: 113 | H26: 0 | I26: 0 | J26: 0 | K26: 0 | L26: 1,139,109.0 | M26: 294 | N26: 0 | O26: 0 | P26: 0 | Q26: 0 | R26: 176,766.6 | S26: 554 | T26: 895.0 | U26: 1 | V26: 25,821.0 | W26: 2 | X26: 65.3 | Y26: 1 | Z26: 2,939.8 | AA26: 8 | AB26: 894.0 | AC26: 2 | AD26: 143,222.1 | AE26: 287 | AF26: 33,331.0 | AG26: 33 | AH26: 0 | AI26: 0 | AJ26: 17,042.4 | AK26: 6 | AL26: 15,312.2 | AM26: 33 | AN26: 10.0 | AO26: 1 | AP26: 0 | AQ26: 0 | AR26: 9,101.0 | AS26: 5 | AT26: 1,699.4 | AU26: 1 | AV26: 310,227.0 | AW26: 14 | AX26: 0 | AY26: 0 | AZ26: 3,107.9 | BA26: 3 | BB26: 0 | BC26: 0 | BD26: 35,291.0 | BE26: 10 | BF26: 6,164.0 | BG26: 12
A27: 미평동 | B27: 3,089,016.9 | C27: 2,688 | D27: 142,659.0 | E27: 329 | F27: 97,075.0 | G27: 235 | H27: 0 | I27: 0 | J27: 0 | K27: 0 | L27: 1,767,325.0 | M27: 209 | N27: 0 | O27: 0 | P27: 0 | Q27: 0 | R27: 470,726.1 | S27: 1,169 | T27: 1,501.0 | U27: 3 | V27: 64,631.1 | W27: 10 | X27: 5,010.8 | Y27: 14 | Z27: 1,804.2 | AA27: 3 | AB27: 177.4 | AC27: 1 | AD27: 284,889.4 | AE27: 528 | AF27: 53,203.0 | AG27: 33 | AH27: 0 | AI27: 0 | AJ27: 9,529.4 | AK27: 3 | AL27: 25,651.0 | AM27: 50 | AN27: 0 | AO27: 0 | AP27: 0 | AQ27: 0 | AR27: 91,230.5 | AS27: 57 | AT27: 16,700.4 | AU27: 10 | AV27: 0 | AW27: 0 | AX27: 0 | AY27: 0 | AZ27: 8,992.4 | BA27: 9 | BB27: 0 | BC27: 0 | BD27: 5,712.0 | BE27: 7 | BF27: 42,199.2 | BG27: 18
A28: 둔덕동 | B28: 4,076,115.1 | C28: 2,323 | D28: 178,315.0 | E28: 288 | F28: 425,547.0 | G28: 481 | H28: 0 | I28: 0 | J28: 0 | K28: 0 | L28: 2,181,263.0 | M28: 332 | N28: 0 | O28: 0 | P28: 0 | Q28: 0 | R28: 475,434.9 | S28: 648 | T28: 362.0 | U28: 1 | V28: 722.0 | W28: 1 | X28: 2,599.7 | Y28: 11 | Z28: 10,143.9 | AA28: 8 | AB28: 6,380.7 | AC28: 9 | AD28: 383,843.6 | AE28: 414 | AF28: 22,933.0 | AG28: 33 | AH28: 0 | AI28: 0 | AJ28: 9,119.1 | AK28: 3 | AL28: 21,254.0 | AM28: 11 | AN28: 0 | AO28: 0 | AP28: 0 | AQ28: 0 | AR28: 72,838.0 | AS28: 4 | AT28: 18,073.4 | AU28: 8 | AV28: 166,279.0 | AW28: 6 | AX28: 0 | AY28: 0 | AZ28: 14,763.3 | BA28: 10 | BB28: 0 | BC28: 0 | BD28: 2,675.0 | BE28: 8 | BF28: 83,568.5 | BG28: 47
A29: 오천동 | B29: 5,624,952.8 | C29: 1,848 | D29: 459,787.0 | E29: 546 | F29: 231,554.0 | G29: 299 | H29: 0 | I29: 0 | J29: 0 | K29: 0 | L29: 4,444,894.0 | M29: 309 | N29: 0 | O29: 0 | P29: 0 | Q29: 0 | R29: 77,559.0 | S29: 269 | T29: 91,590.6 | U29: 55 | V29: 0 | W29: 0 | X29: 25.0 | Y29: 1 | Z29: 0 | AA29: 0 | AB29: 288.0 | AC29: 1 | AD29: 116,641.0 | AE29: 254 | AF29: 0 | AG29: 0 | AH29: 18,477.0 | AI29: 13 | AJ29: 5,346.3 | AK29: 3 | AL29: 52,699.9 | AM29: 36 | AN29: 104,581.0 | AO29: 21 | AP29: 0 | AQ29: 0 | AR29: 12,219.0 | AS29: 23 | AT29: 0 | AU29: 0 | AV29: 0 | AW29: 0 | AX29: 0 | AY29: 0 | AZ29: 1,566.0 | BA29: 1 | BB29: 0 | BC29: 0 | BD29: 3,628.0 | BE29: 10 | BF29: 4,097.0 | BG29: 7
A30: 만흥동 | B30: 7,434,343.5 | C30: 3,919 | D30: 832,481.0 | E30: 1,042 | F30: 628,408.0 | G30: 717 | H30: 0 | I30: 0 | J30: 0 | K30: 0 | L30: 5,048,933.0 | M30: 685 | N30: 0 | O30: 0 | P30: 0 | Q30: 0 | R30: 137,794.0 | S30: 414 | T30: 45,135.0 | U30: 22 | V30: 11,073.0 | W30: 1 | X30: 2,793.0 | Y30: 3 | Z30: 1,185.0 | AA30: 3 | AB30: 3,536.0 | AC30: 7 | AD30: 367,782.6 | AE30: 732 | AF30: 107,838.0 | AG30: 71 | AH30: 927.0 | AI30: 3 | AJ30: 7,761.0 | AK30: 5 | AL30: 71,514.9 | AM30: 56 | AN30: 0 | AO30: 0 | AP30: 0 | AQ30: 0 | AR30: 8,882.0 | AS30: 33 | AT30: 0 | AU30: 0 | AV30: 0 | AW30: 0 | AX30: 0 | AY30: 0 | AZ30: 3,841.0 | BA30: 3 | BB30: 0 | BC30: 0 | BD30: 21,068.0 | BE30: 48 | BF30: 133,391.0 | BG30: 74
A31: 덕충동 | B31: 2,921,780.3 | C31: 3,006 | D31: 351,110.0 | E31: 709 | F31: 71,183.0 | G31: 146 | H31: 0 | I31: 0 | J31: 0 | K31: 0 | L31: 1,125,311.0 | M31: 368 | N31: 0 | O31: 0 | P31: 0 | Q31: 0 | R31: 572,085.2 | S31: 1,044 | T31: 17,722.0 | U31: 9 | V31: 55,772.0 | W31: 7 | X31: 32,177.8 | Y31: 5 | Z31: 0 | AA31: 0 | AB31: 429.0 | AC31: 2 | AD31: 250,768.7 | AE31: 460 | AF31: 63,034.0 | AG31: 108 | AH31: 12,306.4 | AI31: 6 | AJ31: 6,663.6 | AK31: 1 | AL31: 21,495.0 | AM31: 22 | AN31: 0 | AO31: 0 | AP31: 0 | AQ31: 0 | AR31: 9,638.7 | AS31: 13 | AT31: 128,954.6 | AU31: 26 | AV31: 400.0 | AW31: 3 | AX31: 0 | AY31: 0 | AZ31: 14,477.8 | BA31: 16 | BB31: 0 | BC31: 0 | BD31: 21,363.0 | BE31: 34 | BF31: 166,888.5 | BG31: 27
A32: 경호동 | B32: 3,082,577.0 | C32: 3,896 | D32: 1,125,433.0 | E32: 1,368 | F32: 158,586.0 | G32: 264 | H32: 0 | I32: 0 | J32: 0 | K32: 0 | L32: 1,527,349.0 | M32: 896 | N32: 0 | O32: 0 | P32: 0 | Q32: 0 | R32: 145,262.7 | S32: 721 | T32: 0 | U32: 0 | V32: 11,350.0 | W32: 2 | X32: 821.6 | Y32: 8 | Z32: 0 | AA32: 0 | AB32: 0 | AC32: 0 | AD32: 55,796.1 | AE32: 515 | AF32: 0 | AG32: 0 | AH32: 11,391.0 | AI32: 27 | AJ32: 1,220.0 | AK32: 5 | AL32: 107.0 | AM32: 1 | AN32: 2,473.0 | AO32: 2 | AP32: 1,601.0 | AQ32: 1 | AR32: 0 | AS32: 0 | AT32: 7,918.6 | AU32: 11 | AV32: 0 | AW32: 0 | AX32: 0 | AY32: 0 | AZ32: 1,145.0 | BA32: 2 | BB32: 0 | BC32: 0 | BD32: 12,358.0 | BE32: 27 | BF32: 19,765.0 | BG32: 46
A33: 학동 | B33: 1,429,258.9 | C33: 1,768 | D33: 7,488.0 | E33: 30 | F33: 646.0 | G33: 8 | H33: 0 | I33: 0 | J33: 0 | K33: 0 | L33: 79,011.2 | M33: 34 | N33: 0 | O33: 0 | P33: 0 | Q33: 0 | R33: 802,698.6 | S33: 1,495 | T33: 0 | U33: 0 | V33: 23,943.0 | W33: 2 | X33: 10,098.3 | Y33: 15 | Z33: 2,423.0 | AA33: 4 | AB33: 299.0 | AC33: 1 | AD33: 360,485.9 | AE33: 148 | AF33: 0 | AG33: 0 | AH33: 0 | AI33: 0 | AJ33: 0 | AK33: 0 | AL33: 830.7 | AM33: 9 | AN33: 7,506.5 | AO33: 1 | AP33: 0 | AQ33: 0 | AR33: 0 | AS33: 0 | AT33: 119,956.8 | AU33: 14 | AV33: 10,945.6 | AW33: 1 | AX33: 66.0 | AY33: 1 | AZ33: 1,125.0 | BA33: 1 | BB33: 0 | BC33: 0 | BD33: 0 | BE33: 0 | BF33: 1,735.3 | BG33: 4
A34: 학용동 | B34: 966,619.0 | C34: 574 | D34: 129,040.0 | E34: 235 | F34: 11,542.0 | G34: 26 | H34: 3,486.0 | I34: 3 | J34: 0 | K34: 0 | L34: 672,245.0 | M34: 145 | N34: 0 | O34: 0 | P34: 0 | Q34: 0 | R34: 2,737.0 | S34: 6 | T34: 0 | U34: 0 | V34: 0 | W34: 0 | X34: 0 | Y34: 0 | Z34: 3,215.0 | AA34: 3 | AB34: 0 | AC34: 0 | AD34: 21,192.0 | AE34: 35 | AF34: 73,480.0 | AG34: 71 | AH34: 0 | AI34: 0 | AJ34: 5,158.0 | AK34: 12 | AL34: 3,960.0 | AM34: 9 | AN34: 0 | AO34: 0 | AP34: 0 | AQ34: 0 | AR34: 20,058.0 | AS34: 3 | AT34: 2,489.0 | AU34: 5 | AV34: 0 | AW34: 0 | AX34: 0 | AY34: 0 | AZ34: 0 | BA34: 0 | BB34: 0 | BC34: 0 | BD34: 18,017.0 | BE34: 21 | BF34: 0 | BG34: 0
A35: 안산동 | B35: 1,468,379.8 | C35: 1,540 | D35: 53,240.0 | E35: 124 | F35: 23,047.0 | G35: 46 | H35: 0 | I35: 0 | J35: 0 | K35: 0 | L35: 523,049.6 | M35: 156 | N35: 0 | O35: 0 | P35: 0 | Q35: 0 | R35: 587,516.5 | S35: 1,036 | T35: 0 | U35: 0 | V35: 38,644.1 | W35: 4 | X35: 2,124.9 | Y35: 5 | Z35: 440.2 | AA35: 2 | AB35: 363.0 | AC35: 1 | AD35: 196,504.1 | AE35: 133 | AF35: 0 | AG35: 0 | AH35: 1,296.4 | AI35: 1 | AJ35: 1,060.0 | AK35: 2 | AL35: 4,498.8 | AM35: 10 | AN35: 0 | AO35: 0 | AP35: 0 | AQ35: 0 | AR35: 0 | AS35: 0 | AT35: 21,255.1 | AU35: 3 | AV35: 0 | AW35: 0 | AX35: 0 | AY35: 0 | AZ35: 14,502.1 | BA35: 12 | BB35: 0 | BC35: 0 | BD35: 317.0 | BE35: 2 | BF35: 521.0 | BG35: 3
A36: 소호동 | B36: 3,301,703.2 | C36: 2,299 | D36: 327,322.0 | E36: 420 | F36: 340,750.0 | G36: 374 | H36: 340.0 | I36: 1 | J36: 0 | K36: 0 | L36: 1,526,891.4 | M36: 331 | N36: 0 | O36: 0 | P36: 0 | Q36: 0 | R36: 681,777.5 | S36: 688 | T36: 12,954.0 | U36: 11 | V36: 30,757.4 | W36: 3 | X36: 14,374.8 | Y36: 13 | Z36: 1,526.0 | AA36: 1 | AB36: 2,480.0 | AC36: 2 | AD36: 224,912.1 | AE36: 352 | AF36: 0 | AG36: 0 | AH36: 5,785.8 | AI36: 6 | AJ36: 144.0 | AK36: 2 | AL36: 17,152.0 | AM36: 10 | AN36: 4,182.0 | AO36: 3 | AP36: 0 | AQ36: 0 | AR36: 0 | AS36: 0 | AT36: 4,193.0 | AU36: 2 | AV36: 0 | AW36: 0 | AX36: 49,588.3 | AY36: 1 | AZ36: 6,488.0 | BA36: 6 | BB36: 0 | BC36: 0 | BD36: 15,047.0 | BE36: 33 | BF36: 35,037.9 | BG36: 40
A37: 시전동 | B37: 1,851,919.4 | C37: 964 | D37: 272,258.0 | E37: 317 | F37: 89,758.0 | G37: 114 | H37: 0 | I37: 0 | J37: 0 | K37: 0 | L37: 1,206,490.0 | M37: 318 | N37: 0 | O37: 0 | P37: 0 | Q37: 0 | R37: 38,328.4 | S37: 58 | T37: 0 | U37: 0 | V37: 0 | W37: 0 | X37: 0 | Y37: 0 | Z37: 3,904.0 | AA37: 4 | AB37: 0 | AC37: 0 | AD37: 41,468.0 | AE37: 93 | AF37: 0 | AG37: 0 | AH37: 0 | AI37: 0 | AJ37: 177.0 | AK37: 2 | AL37: 13,583.0 | AM37: 23 | AN37: 0 | AO37: 0 | AP37: 0 | AQ37: 0 | AR37: 9.0 | AS37: 1 | AT37: 0 | AU37: 0 | AV37: 157,345.0 | AW37: 4 | AX37: 0 | AY37: 0 | AZ37: 13,946.0 | BA37: 3 | BB37: 0 | BC37: 0 | BD37: 8,810.0 | BE37: 22 | BF37: 5,843.0 | BG37: 5
A38: 신기동 | B38: 984,004.0 | C38: 1,488 | D38: 0 | E38: 0 | F38: 0 | G38: 0 | H38: 0 | I38: 0 | J38: 0 | K38: 0 | L38: 43,922.6 | M38: 15 | N38: 0 | O38: 0 | P38: 0 | Q38: 0 | R38: 615,853.8 | S38: 1,402 | T38: 0 | U38: 0 | V38: 34,096.3 | W38: 2 | X38: 2,812.0 | Y38: 10 | Z38: 661.2 | AA38: 1 | AB38: 0 | AC38: 0 | AD38: 261,986.2 | AE38: 42 | AF38: 0 | AG38: 0 | AH38: 0 | AI38: 0 | AJ38: 0 | AK38: 0 | AL38: 0 | AM38: 0 | AN38: 0 | AO38: 0 | AP38: 0 | AQ38: 0 | AR38: 0 | AS38: 0 | AT38: 19,675.2 | AU38: 11 | AV38: 0 | AW38: 0 | AX38: 0 | AY38: 0 | AZ38: 4,996.7 | BA38: 5 | BB38: 0 | BC38: 0 | BD38: 0 | BE38: 0 | BF38: 0 | BG38: 0
A39: 웅천동 | B39: 3,422,392.4 | C39: 3,841 | D39: 800,327.0 | E39: 1,030 | F39: 386,914.0 | G39: 632 | H39: 4,119.0 | I39: 4 | J39: 0 | K39: 0 | L39: 1,169,459.0 | M39: 621 | N39: 0 | O39: 0 | P39: 0 | Q39: 0 | R39: 430,614.5 | S39: 844 | T39: 0 | U39: 0 | V39: 30,448.7 | W39: 2 | X39: 22,037.3 | Y39: 10 | Z39: 0 | AA39: 0 | AB39: 350.0 | AC39: 1 | AD39: 281,731.1 | AE39: 559 | AF39: 0 | AG39: 0 | AH39: 1,881.6 | AI39: 6 | AJ39: 378.0 | AK39: 2 | AL39: 35,326.0 | AM39: 16 | AN39: 22,484.0 | AO39: 30 | AP39: 0 | AQ39: 0 | AR39: 3,733.1 | AS39: 12 | AT39: 155,520.9 | AU39: 29 | AV39: 0 | AW39: 0 | AX39: 0 | AY39: 0 | AZ39: 1,541.0 | BA39: 2 | BB39: 0 | BC39: 0 | BD39: 15,558.0 | BE39: 29 | BF39: 59,969.2 | BG39: 12
A40: 선원동 | B40: 2,552,238.3 | C40: 2,823 | D40: 279,286.0 | E40: 376 | F40: 327,487.0 | G40: 389 | H40: 5,341.0 | I40: 4 | J40: 0 | K40: 0 | L40: 720,399.0 | M40: 298 | N40: 0 | O40: 0 | P40: 0 | Q40: 0 | R40: 659,164.2 | S40: 1,349 | T40: 2,149.0 | U40: 1 | V40: 79,321.7 | W40: 4 | X40: 14,013.8 | Y40: 16 | Z40: 2,654.1 | AA40: 7 | AB40: 7,924.0 | AC40: 4 | AD40: 328,823.4 | AE40: 258 | AF40: 46,158.0 | AG40: 33 | AH40: 0 | AI40: 0 | AJ40: 23,299.0 | AK40: 5 | AL40: 29,266.8 | AM40: 49 | AN40: 20.0 | AO40: 1 | AP40: 0 | AQ40: 0 | AR40: 0 | AS40: 0 | AT40: 5,252.0 | AU40: 5 | AV40: 0 | AW40: 0 | AX40: 0 | AY40: 0 | AZ40: 10,177.2 | BA40: 6 | BB40: 0 | BC40: 0 | BD40: 8,373.0 | BE40: 13 | BF40: 3,129.1 | BG40: 5
A41: 여천동 | B41: 2,390,634.0 | C41: 1,897 | D41: 322,359.0 | E41: 368 | F41: 715,338.0 | G41: 714 | H41: 0 | I41: 0 | J41: 1,905.0 | K41: 4 | L41: 912,524.0 | M41: 97 | N41: 0 | O41: 0 | P41: 0 | Q41: 0 | R41: 80,143.0 | S41: 182 | T41: 3,097.0 | U41: 2 | V41: 0 | W41: 0 | X41: 6,568.0 | Y41: 12 | Z41: 6,626.0 | AA41: 9 | AB41: 5,314.0 | AC41: 11 | AD41: 149,642.0 | AE41: 312 | AF41: 0 | AG41: 0 | AH41: 0 | AI41: 0 | AJ41: 49,578.0 | AK41: 41 | AL41: 51,312.0 | AM41: 83 | AN41: 23,868.0 | AO41: 16 | AP41: 1,016.0 | AQ41: 1 | AR41: 30,576.0 | AS41: 9 | AT41: 0 | AU41: 0 | AV41: 0 | AW41: 0 | AX41: 0 | AY41: 0 | AZ41: 9,967.0 | BA41: 6 | BB41: 6,450.0 | BC41: 2 | BD41: 2,113.0 | BE41: 9 | BF41: 12,238.0 | BG41: 19
A42: 화장동 | B42: 2,588,217.3 | C42: 2,707 | D42: 211,979.0 | E42: 251 | F42: 205,911.0 | G42: 238 | H42: 12,103.0 | I42: 1 | J42: 1,758.0 | K42: 2 | L42: 839,054.5 | M42: 210 | N42: 0 | O42: 0 | P42: 0 | Q42: 0 | R42: 579,342.6 | S42: 1,653 | T42: 0 | U42: 0 | V42: 83,225.7 | W42: 4 | X42: 20,608.1 | Y42: 20 | Z42: 5,317.7 | AA42: 3 | AB42: 2,156.0 | AC42: 3 | AD42: 386,809.0 | AE42: 220 | AF42: 28,780.0 | AG42: 22 | AH42: 0 | AI42: 0 | AJ42: 14,754.0 | AK42: 7 | AL42: 9,251.1 | AM42: 32 | AN42: 0 | AO42: 0 | AP42: 0 | AQ42: 0 | AR42: 2,005.0 | AS42: 4 | AT42: 171,055.4 | AU42: 22 | AV42: 0 | AW42: 0 | AX42: 0 | AY42: 0 | AZ42: 490.2 | BA42: 2 | BB42: 0 | BC42: 0 | BD42: 4,377.0 | BE42: 6 | BF42: 9,240.0 | BG42: 7
A43: 주삼동 | B43: 3,678,263.4 | C43: 3,228 | D43: 424,542.0 | E43: 480 | F43: 995,544.0 | G43: 940 | H43: 0 | I43: 0 | J43: 3,794.0 | K43: 6 | L43: 1,342,143.0 | M43: 364 | N43: 0 | O43: 0 | P43: 0 | Q43: 0 | R43: 178,356.0 | S43: 371 | T43: 118,934.0 | U43: 43 | V43: 22,025.0 | W43: 2 | X43: 16,336.0 | Y43: 8 | Z43: 13,248.0 | AA43: 8 | AB43: 2,222.0 | AC43: 5 | AD43: 382,702.8 | AE43: 848 | AF43: 11,899.0 | AG43: 14 | AH43: 4,129.0 | AI43: 7 | AJ43: 10,347.0 | AK43: 9 | AL43: 83,853.0 | AM43: 56 | AN43: 4,734.0 | AO43: 9 | AP43: 0 | AQ43: 0 | AR43: 0 | AS43: 0 | AT43: 0 | AU43: 0 | AV43: 6,682.0 | AW43: 1 | AX43: 0 | AY43: 0 | AZ43: 0 | BA43: 0 | BB43: 0 | BC43: 0 | BD43: 7,583.0 | BE43: 5 | BF43: 49,189.6 | BG43: 52
A44: 봉계동 | B44: 5,348,415.0 | C44: 2,665 | D44: 361,828.0 | E44: 473 | F44: 375,494.0 | G44: 412 | H44: 0 | I44: 0 | J44: 993.0 | K44: 1 | L44: 3,292,902.0 | M44: 510 | N44: 0 | O44: 0 | P44: 0 | Q44: 0 | R44: 301,879.0 | S44: 414 | T44: 10,163.0 | U44: 5 | V44: 62,850.0 | W44: 1 | X44: 5,386.0 | Y44: 5 | Z44: 5,879.0 | AA44: 7 | AB44: 8,281.0 | AC44: 15 | AD44: 211,889.0 | AE44: 678 | AF44: 0 | AG44: 0 | AH44: 536.0 | AI44: 1 | AJ44: 5,447.0 | AK44: 8 | AL44: 68,612.0 | AM44: 51 | AN44: 92,036.0 | AO44: 35 | AP44: 0 | AQ44: 0 | AR44: 0 | AS44: 0 | AT44: 0 | AU44: 0 | AV44: 508,106.0 | AW44: 1 | AX44: 0 | AY44: 0 | AZ44: 9,549.0 | BA44: 7 | BB44: 0 | BC44: 0 | BD44: 1,452.0 | BE44: 3 | BF44: 25,133.0 | BG44: 38
A45: 해산동 | B45: 2,501,433.0 | C45: 2,660 | D45: 293,204.0 | E45: 439 | F45: 674,902.4 | G45: 748 | H45: 3,307.0 | I45: 1 | J45: 1,746.0 | K45: 3 | L45: 844,762.0 | M45: 237 | N45: 0 | O45: 0 | P45: 0 | Q45: 0 | R45: 90,586.7 | S45: 209 | T45: 1,380.0 | U45: 1 | V45: 0 | W45: 0 | X45: 4,614.0 | Y45: 4 | Z45: 7,963.0 | AA45: 12 | AB45: 5,300.0 | AC45: 6 | AD45: 321,577.7 | AE45: 693 | AF45: 48,430.2 | AG45: 64 | AH45: 4,536.0 | AI45: 3 | AJ45: 93,230.0 | AK45: 41 | AL45: 49,375.0 | AM45: 124 | AN45: 23,174.0 | AO45: 14 | AP45: 0 | AQ45: 0 | AR45: 3,567.0 | AS45: 7 | AT45: 0 | AU45: 0 | AV45: 0 | AW45: 0 | AX45: 0 | AY45: 0 | AZ45: 0 | BA45: 0 | BB45: 0 | BC45: 0 | BD45: 2,891.0 | BE45: 10 | BF45: 26,887.0 | BG45: 44
A46: 화치동 | B46: 5,909,274.2 | C46: 876 | D46: 108,739.0 | E46: 100 | F46: 129,529.5 | G46: 128 | H46: 0 | I46: 0 | J46: 0 | K46: 0 | L46: 1,627,953.6 | M46: 253 | N46: 0 | O46: 0 | P46: 0 | Q46: 0 | R46: 180,722.9 | S46: 42 | T46: 2,960,876.7 | U46: 148 | V46: 0 | W46: 0 | X46: 3,683.0 | Y46: 1 | Z46: 769.9 | AA46: 1 | AB46: 11,159.4 | AC46: 2 | AD46: 379,397.2 | AE46: 74 | AF46: 4,905.0 | AG46: 4 | AH46: 15,948.8 | AI46: 13 | AJ46: 349,539.6 | AK46: 13 | AL46: 27,892.6 | AM46: 52 | AN46: 2,313.0 | AO46: 5 | AP46: 0 | AQ46: 0 | AR46: 13,143.0 | AS46: 10 | AT46: 0 | AU46: 0 | AV46: 0 | AW46: 0 | AX46: 0 | AY46: 0 | AZ46: 0 | BA46: 0 | BB46: 0 | BC46: 0 | BD46: 11,217.0 | BE46: 3 | BF46: 81,484.0 | BG46: 27
A47: 월하동 | B47: 2,833,857.4 | C47: 616 | D47: 33,732.0 | E47: 58 | F47: 6,152.0 | G47: 18 | H47: 0 | I47: 0 | J47: 0 | K47: 0 | L47: 782,238.3 | M47: 80 | N47: 0 | O47: 0 | P47: 0 | Q47: 0 | R47: 59,451.8 | S47: 47 | T47: 1,491,409.6 | U47: 76 | V47: 0 | W47: 0 | X47: 999.9 | Y47: 1 | Z47: 3,085.0 | AA47: 10 | AB47: 4,004.0 | AC47: 2 | AD47: 253,147.5 | AE47: 229 | AF47: 29,456.0 | AG47: 6 | AH47: 0 | AI47: 0 | AJ47: 44,367.0 | AK47: 13 | AL47: 29,379.9 | AM47: 25 | AN47: 0 | AO47: 0 | AP47: 0 | AQ47: 0 | AR47: 7,282.0 | AS47: 2 | AT47: 0 | AU47: 0 | AV47: 0 | AW47: 0 | AX47: 0 | AY47: 0 | AZ47: 0 | BA47: 0 | BB47: 0 | BC47: 0 | BD47: 0 | BE47: 0 | BF47: 89,152.4 | BG47: 49
A48: 평여동 | B48: 6,851,431.4 | C48: 719 | D48: 42,045.0 | E48: 61 | F48: 28,288.0 | G48: 59 | H48: 0 | I48: 0 | J48: 0 | K48: 0 | L48: 4,317,786.1 | M48: 316 | N48: 0 | O48: 0 | P48: 0 | Q48: 0 | R48: 16,392.7 | S48: 32 | T48: 1,860,078.2 | U48: 47 | V48: 0 | W48: 0 | X48: 0 | Y48: 0 | Z48: 2,739.0 | AA48: 2 | AB48: 0 | AC48: 0 | AD48: 250,447.0 | AE48: 73 | AF48: 69,282.0 | AG48: 13 | AH48: 0 | AI48: 0 | AJ48: 52,523.4 | AK48: 13 | AL48: 33,233.8 | AM48: 24 | AN48: 64,841.0 | AO48: 30 | AP48: 0 | AQ48: 0 | AR48: 28,134.0 | AS48: 4 | AT48: 4,556.2 | AU48: 1 | AV48: 0 | AW48: 0 | AX48: 0 | AY48: 0 | AZ48: 0 | BA48: 0 | BB48: 0 | BC48: 0 | BD48: 24.0 | BE48: 1 | BF48: 81,061.0 | BG48: 43
A49: 중흥동 | B49: 10,557,703.4 | C49: 2,830 | D49: 190,101.0 | E49: 388 | F49: 102,085.0 | G49: 197 | H49: 8,766.0 | I49: 3 | J49: 250.0 | K49: 1 | L49: 5,873,394.4 | M49: 442 | N49: 0 | O49: 0 | P49: 0 | Q49: 0 | R49: 416,450.7 | S49: 655 | T49: 2,774,231.4 | U49: 150 | V49: 27,075.0 | W49: 6 | X49: 4,867.8 | Y49: 2 | Z49: 9,239.0 | AA49: 7 | AB49: 5,826.0 | AC49: 3 | AD49: 450,640.5 | AE49: 598 | AF49: 94,802.0 | AG49: 99 | AH49: 15,591.9 | AI49: 11 | AJ49: 109,471.0 | AK49: 54 | AL49: 30,519.0 | AM49: 41 | AN49: 10,299.0 | AO49: 14 | AP49: 0 | AQ49: 0 | AR49: 10,112.2 | AS49: 7 | AT49: 2,216.8 | AU49: 1 | AV49: 1,544.0 | AW49: 2 | AX49: 0 | AY49: 0 | AZ49: 29,235.0 | BA49: 16 | BB49: 0 | BC49: 0 | BD49: 24,262.0 | BE49: 18 | BF49: 366,723.7 | BG49: 115
A50: 적량동 | B50: 4,922,794.0 | C50: 1,175 | D50: 271,545.0 | E50: 290 | F50: 184,490.0 | G50: 228 | H50: 5,808.0 | I50: 3 | J50: 0 | K50: 0 | L50: 2,181,333.8 | M50: 315 | N50: 0 | O50: 0 | P50: 0 | Q50: 0 | R50: 18,697.0 | S50: 62 | T50: 1,956,874.0 | U50: 38 | V50: 9,924.0 | W50: 2 | X50: 0 | Y50: 0 | Z50: 0 | AA50: 0 | AB50: 0 | AC50: 0 | AD50: 120,166.0 | AE50: 103 | AF50: 29,159.0 | AG50: 14 | AH50: 5,315.7 | AI50: 2 | AJ50: 25,378.0 | AK50: 15 | AL50: 25,658.7 | AM50: 23 | AN50: 42,003.0 | AO50: 37 | AP50: 0 | AQ50: 0 | AR50: 0 | AS50: 0 | AT50: 0 | AU50: 0 | AV50: 0 | AW50: 0 | AX50: 0 | AY50: 0 | AZ50: 290.0 | BA50: 1 | BB50: 0 | BC50: 0 | BD50: 3,358.0 | BE50: 5 | BF50: 42,793.8 | BG50: 37
A51: 월내동 | B51: 5,490,316.9 | C51: 1,194 | D51: 208,839.0 | E51: 207 | F51: 185,570.0 | G51: 202 | H51: 0 | I51: 0 | J51: 0 | K51: 0 | L51: 2,169,828.9 | M51: 272 | N51: 0 | O51: 0 | P51: 0 | Q51: 0 | R51: 105,304.0 | S51: 24 | T51: 1,883,537.6 | U51: 51 | V51: 1,103.0 | W51: 1 | X51: 0 | Y51: 0 | Z51: 0 | AA51: 0 | AB51: 0 | AC51: 0 | AD51: 191,450.2 | AE51: 171 | AF51: 44,995.0 | AG51: 54 | AH51: 14,333.0 | AI51: 7 | AJ51: 10,172.0 | AK51: 23 | AL51: 37,258.4 | AM51: 54 | AN51: 11,926.0 | AO51: 15 | AP51: 0 | AQ51: 0 | AR51: 0 | AS51: 0 | AT51: 0 | AU51: 0 | AV51: 0 | AW51: 0 | AX51: 0 | AY51: 0 | AZ51: 0 | BA51: 0 | BB51: 0 | BC51: 0 | BD51: 3,705.0 | BE51: 18 | BF51: 622,294.8 | BG51: 95
A52: 묘도동 | B52: 11,515,440.6 | C52: 5,824 | D52: 1,323,015.0 | E52: 1,328 | F52: 935,425.0 | G52: 1,081 | H52: 3,155.0 | I52: 3 | J52: 1,592.0 | K52: 4 | L52: 5,653,600.0 | M52: 1,680 | N52: 0 | O52: 0 | P52: 0 | Q52: 0 | R52: 180,663.0 | S52: 663 | T52: 0 | U52: 0 | V52: 18,801.0 | W52: 4 | X52: 28.0 | Y52: 1 | Z52: 589.0 | AA52: 1 | AB52: 3,651.0 | AC52: 6 | AD52: 137,561.0 | AE52: 895 | AF52: 0 | AG52: 0 | AH52: 113,398.6 | AI52: 13 | AJ52: 15,454.0 | AK52: 2 | AL52: 63,958.0 | AM52: 27 | AN52: 22,036.0 | AO52: 27 | AP52: 0 | AQ52: 0 | AR52: 0 | AS52: 0 | AT52: 0 | AU52: 0 | AV52: 0 | AW52: 0 | AX52: 0 | AY52: 0 | AZ52: 3,681.0 | BA52: 2 | BB52: 0 | BC52: 0 | BD52: 29,108.0 | BE52: 39 | BF52: 3,009,725.0 | BG52: 48
A53: 낙포동 | B53: 8,403,883.1 | C53: 1,834 | D53: 343,422.0 | E53: 386 | F53: 164,211.0 | G53: 216 | H53: 0 | I53: 0 | J53: 0 | K53: 0 | L53: 4,611,110.6 | M53: 365 | N53: 0 | O53: 0 | P53: 0 | Q53: 0 | R53: 119,017.4 | S53: 40 | T53: 1,103,012.4 | U53: 192 | V53: 0 | W53: 0 | X53: 0 | Y53: 0 | Z53: 180,944.8 | AA53: 18 | AB53: 0 | AC53: 0 | AD53: 300,375.8 | AE53: 197 | AF53: 2,969.0 | AG53: 1 | AH53: 55,471.0 | AI53: 31 | AJ53: 101,731.0 | AK53: 33 | AL53: 21,570.0 | AM53: 50 | AN53: 8,417.0 | AO53: 1 | AP53: 0 | AQ53: 0 | AR53: 6,417.5 | AS53: 5 | AT53: 0 | AU53: 0 | AV53: 0 | AW53: 0 | AX53: 0 | AY53: 0 | AZ53: 264.0 | BA53: 1 | BB53: 0 | BC53: 0 | BD53: 3,588.0 | BE53: 10 | BF53: 1,381,361.6 | BG53: 288
A54: 신덕동 | B54: 5,668,176.4 | C54: 1,815 | D54: 254,426.0 | E54: 364 | F54: 172,515.0 | G54: 240 | H54: 11,302.0 | I54: 4 | J54: 0 | K54: 0 | L54: 4,560,715.0 | M54: 403 | N54: 0 | O54: 0 | P54: 0 | Q54: 0 | R54: 65,526.0 | S54: 250 | T54: 0 | U54: 0 | V54: 4,555.0 | W54: 1 | X54: 2,843.0 | Y54: 2 | Z54: 141,181.2 | AA54: 2 | AB54: 0 | AC54: 0 | AD54: 242,164.4 | AE54: 462 | AF54: 0 | AG54: 0 | AH54: 1,518.1 | AI54: 2 | AJ54: 51,435.0 | AK54: 33 | AL54: 1,084.0 | AM54: 5 | AN54: 7,634.0 | AO54: 17 | AP54: 0 | AQ54: 0 | AR54: 0 | AS54: 0 | AT54: 2,677.7 | AU54: 3 | AV54: 0 | AW54: 0 | AX54: 0 | AY54: 0 | AZ54: 1,185.0 | BA54: 1 | BB54: 0 | BC54: 0 | BD54: 6,720.0 | BE54: 11 | BF54: 140,695.0 | BG54: 15
A55: 상암동 | B55: 6,715,329.0 | C55: 4,322 | D55: 710,149.0 | E55: 840 | F55: 1,135,795.0 | G55: 1,240 | H55: 2,815.0 | I55: 3 | J55: 0 | K55: 0 | L55: 4,209,198.0 | M55: 410 | N55: 0 | O55: 0 | P55: 0 | Q55: 0 | R55: 216,780.0 | S55: 582 | T55: 6,181.0 | U55: 7 | V55: 19,951.0 | W55: 2 | X55: 4,614.0 | Y55: 9 | Z55: 3,690.0 | AA55: 3 | AB55: 1,511.0 | AC55: 4 | AD55: 198,306.0 | AE55: 998 | AF55: 0 | AG55: 0 | AH55: 149.0 | AI55: 1 | AJ55: 78,697.0 | AK55: 65 | AL55: 55,493.0 | AM55: 52 | AN55: 28,805.0 | AO55: 39 | AP55: 0 | AQ55: 0 | AR55: 0 | AS55: 0 | AT55: 0 | AU55: 0 | AV55: 0 | AW55: 0 | AX55: 0 | AY55: 0 | AZ55: 3,487.0 | BA55: 7 | BB55: 0 | BC55: 0 | BD55: 11,711.0 | BE55: 22 | BF55: 27,997.0 | BG55: 38
A56: 호명동 | B56: 10,859,013.0 | C56: 3,804 | D56: 682,902.0 | E56: 763 | F56: 1,080,004.0 | G56: 1,007 | H56: 7,648.0 | I56: 1 | J56: 7,221.0 | K56: 4 | L56: 8,417,886.0 | M56: 665 | N56: 0 | O56: 0 | P56: 0 | Q56: 0 | R56: 170,391.0 | S56: 376 | T56: 0 | U56: 0 | V56: 0 | W56: 0 | X56: 0 | Y56: 0 | Z56: 2,457.0 | AA56: 5 | AB56: 1,322.0 | AC56: 1 | AD56: 269,852.0 | AE56: 825 | AF56: 0 | AG56: 0 | AH56: 0 | AI56: 0 | AJ56: 79,117.0 | AK56: 65 | AL56: 70,219.0 | AM56: 25 | AN56: 25,005.0 | AO56: 29 | AP56: 0 | AQ56: 0 | AR56: 0 | AS56: 0 | AT56: 0 | AU56: 0 | AV56: 0 | AW56: 0 | AX56: 0 | AY56: 0 | AZ56: 2,634.0 | BA56: 3 | BB56: 0 | BC56: 0 | BD56: 22,113.0 | BE56: 20 | BF56: 20,242.0 | BG56: 15
A57: 돌산읍 군내리 | B57: 3,829,862.0 | C57: 3,521 | D57: 1,071,186.0 | E57: 1,301 | F57: 68,824.0 | G57: 137 | H57: 3,389.0 | I57: 2 | J57: 0 | K57: 0 | L57: 2,255,085.0 | M57: 643 | N57: 0 | O57: 0 | P57: 0 | Q57: 0 | R57: 134,136.0 | S57: 732 | T57: 3,276.0 | U57: 3 | V57: 50,877.0 | W57: 9 | X57: 0 | Y57: 0 | Z57: 947.0 | AA57: 4 | AB57: 840.0 | AC57: 4 | AD57: 114,207.0 | AE57: 444 | AF57: 0 | AG57: 0 | AH57: 3,736.0 | AI57: 19 | AJ57: 3,154.0 | AK57: 4 | AL57: 33,389.0 | AM57: 48 | AN57: 4,553.0 | AO57: 13 | AP57: 18,436.0 | AQ57: 7 | AR57: 0 | AS57: 0 | AT57: 0 | AU57: 0 | AV57: 0 | AW57: 0 | AX57: 0 | AY57: 0 | AZ57: 6,538.0 | BA57: 10 | BB57: 883.0 | BC57: 4 | BD57: 19,273.0 | BE57: 39 | BF57: 37,133.0 | BG57: 98
A58: 돌산읍 신복리 | B58: 8,278,753.4 | C58: 4,199 | D58: 1,003,284.0 | E58: 911 | F58: 607,213.0 | G58: 750 | H58: 0 | I58: 0 | J58: 16,201.0 | K58: 8 | L58: 5,963,184.0 | M58: 759 | N58: 0 | O58: 0 | P58: 0 | Q58: 0 | R58: 113,366.0 | S58: 494 | T58: 10,525.0 | U58: 5 | V58: 11,467.0 | W58: 1 | X58: 0 | Y58: 0 | Z58: 0 | AA58: 0 | AB58: 5,694.0 | AC58: 11 | AD58: 170,821.7 | AE58: 858 | AF58: 0 | AG58: 0 | AH58: 23,510.9 | AI58: 38 | AJ58: 3,568.0 | AK58: 16 | AL58: 73,212.0 | AM58: 79 | AN58: 113,200.0 | AO58: 160 | AP58: 37,282.0 | AQ58: 19 | AR58: 99.0 | AS58: 1 | AT58: 0 | AU58: 0 | AV58: 0 | AW58: 0 | AX58: 0 | AY58: 0 | AZ58: 7,667.0 | BA58: 4 | BB58: 0 | BC58: 0 | BD58: 66,315.0 | BE58: 22 | BF58: 52,143.8 | BG58: 63
A59: 돌산읍 금성리 | B59: 5,508,147.0 | C59: 2,430 | D59: 836,079.0 | E59: 871 | F59: 55,012.0 | G59: 132 | H59: 0 | I59: 0 | J59: 0 | K59: 0 | L59: 4,330,530.0 | M59: 608 | N59: 0 | O59: 0 | P59: 0 | Q59: 0 | R59: 79,434.0 | S59: 343 | T59: 0 | U59: 0 | V59: 6,963.0 | W59: 1 | X59: 0 | Y59: 0 | Z59: 0 | AA59: 0 | AB59: 740.0 | AC59: 2 | AD59: 151,455.0 | AE59: 400 | AF59: 0 | AG59: 0 | AH59: 2,067.0 | AI59: 5 | AJ59: 1,852.0 | AK59: 11 | AL59: 14,698.0 | AM59: 10 | AN59: 149.0 | AO59: 1 | AP59: 3,627.0 | AQ59: 6 | AR59: 0 | AS59: 0 | AT59: 0 | AU59: 0 | AV59: 0 | AW59: 0 | AX59: 0 | AY59: 0 | AZ59: 796.0 | BA59: 2 | BB59: 0 | BC59: 0 | BD59: 7,022.0 | BE59: 12 | BF59: 17,723.0 | BG59: 26
A60: 돌산읍 율림리 | B60: 7,064,808.0 | C60: 2,980 | D60: 760,890.0 | E60: 887 | F60: 69,585.0 | G60: 132 | H60: 0 | I60: 0 | J60: 1,140.0 | K60: 1 | L60: 5,739,631.0 | M60: 701 | N60: 0 | O60: 0 | P60: 0 | Q60: 0 | R60: 124,390.0 | S60: 410 | T60: 0 | U60: 0 | V60: 6,136.0 | W60: 8 | X60: 435.0 | Y60: 2 | Z60: 796.0 | AA60: 1 | AB60: 6,325.0 | AC60: 5 | AD60: 216,877.0 | AE60: 726 | AF60: 0 | AG60: 0 | AH60: 1,292.0 | AI60: 4 | AJ60: 442.0 | AK60: 7 | AL60: 51,592.0 | AM60: 38 | AN60: 0 | AO60: 0 | AP60: 23,086.0 | AQ60: 6 | AR60: 0 | AS60: 0 | AT60: 0 | AU60: 0 | AV60: 0 | AW60: 0 | AX60: 0 | AY60: 0 | AZ60: 860.0 | BA60: 2 | BB60: 0 | BC60: 0 | BD60: 8,182.0 | BE60: 9 | BF60: 53,149.0 | BG60: 41
A61: 돌산읍 죽포리 | B61: 5,934,440.0 | C61: 4,918 | D61: 1,069,778.0 | E61: 1,236 | F61: 795,109.0 | G61: 1,066 | H61: 0 | I61: 0 | J61: 11,612.0 | K61: 3 | L61: 3,514,080.0 | M61: 519 | N61: 0 | O61: 0 | P61: 0 | Q61: 0 | R61: 174,416.0 | S61: 621 | T61: 3,760.0 | U61: 2 | V61: 16,300.0 | W61: 3 | X61: 0 | Y61: 0 | Z61: 1,221.0 | AA61: 4 | AB61: 5,017.0 | AC61: 10 | AD61: 172,475.0 | AE61: 1,187 | AF61: 0 | AG61: 0 | AH61: 4,534.0 | AI61: 12 | AJ61: 14,195.0 | AK61: 9 | AL61: 72,158.0 | AM61: 134 | AN61: 2,083.0 | AO61: 2 | AP61: 4,713.0 | AQ61: 5 | AR61: 0 | AS61: 0 | AT61: 0 | AU61: 0 | AV61: 0 | AW61: 0 | AX61: 0 | AY61: 0 | AZ61: 1,781.0 | BA61: 2 | BB61: 0 | BC61: 0 | BD61: 25,252.0 | BE61: 51 | BF61: 45,956.0 | BG61: 52
A62: 돌산읍 서덕리 | B62: 4,661,900.0 | C62: 3,253 | D62: 734,021.0 | E62: 851 | F62: 492,849.0 | G62: 718 | H62: 0 | I62: 0 | J62: 119,707.0 | K62: 12 | L62: 2,954,588.0 | M62: 573 | N62: 0 | O62: 0 | P62: 0 | Q62: 0 | R62: 64,623.0 | S62: 261 | T62: 2,118.0 | U62: 1 | V62: 0 | W62: 0 | X62: 0 | Y62: 0 | Z62: 0 | AA62: 0 | AB62: 1,020.0 | AC62: 2 | AD62: 69,794.0 | AE62: 585 | AF62: 0 | AG62: 0 | AH62: 25,372.0 | AI62: 69 | AJ62: 105.0 | AK62: 4 | AL62: 39,026.0 | AM62: 69 | AN62: 125,530.0 | AO62: 61 | AP62: 0 | AQ62: 0 | AR62: 734.0 | AS62: 1 | AT62: 0 | AU62: 0 | AV62: 0 | AW62: 0 | AX62: 0 | AY62: 0 | AZ62: 632.0 | BA62: 2 | BB62: 0 | BC62: 0 | BD62: 25,844.0 | BE62: 28 | BF62: 5,937.0 | BG62: 16
A63: 돌산읍 금봉리 | B63: 8,262,721.0 | C63: 5,101 | D63: 1,255,510.0 | E63: 1,345 | F63: 760,093.0 | G63: 976 | H63: 5,767.0 | I63: 4 | J63: 10,002.0 | K63: 2 | L63: 5,662,803.0 | M63: 973 | N63: 0 | O63: 0 | P63: 0 | Q63: 0 | R63: 163,508.0 | S63: 521 | T63: 5,255.0 | U63: 6 | V63: 3,285.0 | W63: 5 | X63: 0 | Y63: 0 | Z63: 0 | AA63: 0 | AB63: 4,720.0 | AC63: 10 | AD63: 167,236.0 | AE63: 876 | AF63: 0 | AG63: 0 | AH63: 2,744.0 | AI63: 4 | AJ63: 771.0 | AK63: 9 | AL63: 83,341.0 | AM63: 64 | AN63: 15,733.0 | AO63: 36 | AP63: 21,622.0 | AQ63: 14 | AR63: 0 | AS63: 0 | AT63: 0 | AU63: 0 | AV63: 0 | AW63: 0 | AX63: 0 | AY63: 0 | AZ63: 3,791.0 | BA63: 4 | BB63: 0 | BC63: 0 | BD63: 26,883.0 | BE63: 27 | BF63: 69,657.0 | BG63: 225
A64: 돌산읍 둔전리 | B64: 5,390,743.2 | C64: 3,731 | D64: 684,072.0 | E64: 830 | F64: 913,730.0 | G64: 872 | H64: 6,852.0 | I64: 2 | J64: 33,087.0 | K64: 10 | L64: 3,270,817.0 | M64: 599 | N64: 0 | O64: 0 | P64: 0 | Q64: 0 | R64: 108,253.0 | S64: 327 | T64: 4,188.0 | U64: 3 | V64: 26,614.0 | W64: 9 | X64: 0 | Y64: 0 | Z64: 0 | AA64: 0 | AB64: 2,748.0 | AC64: 8 | AD64: 173,249.9 | AE64: 896 | AF64: 0 | AG64: 0 | AH64: 0 | AI64: 0 | AJ64: 545.0 | AK64: 3 | AL64: 113,591.2 | AM64: 93 | AN64: 27,550.0 | AO64: 36 | AP64: 3,253.1 | AQ64: 4 | AR64: 0 | AS64: 0 | AT64: 0 | AU64: 0 | AV64: 0 | AW64: 0 | AX64: 0 | AY64: 0 | AZ64: 980.0 | BA64: 2 | BB64: 0 | BC64: 0 | BD64: 5,621.0 | BE64: 16 | BF64: 15,592.0 | BG64: 21
A65: 돌산읍 평사리 | B65: 15,228,758.9 | C65: 8,209 | D65: 1,796,685.0 | E65: 1,840 | F65: 740,804.2 | G65: 963 | H65: 75,756.0 | I65: 14 | J65: 813,335.0 | K65: 26 | L65: 10,484,450.0 | M65: 2,003 | N65: 0 | O65: 0 | P65: 0 | Q65: 0 | R65: 362,179.0 | S65: 970 | T65: 9,434.0 | U65: 15 | V65: 13,092.0 | W65: 3 | X65: 2,297.0 | Y65: 6 | Z65: 2,939.0 | AA65: 4 | AB65: 8,523.0 | AC65: 15 | AD65: 493,404.0 | AE65: 1,857 | AF65: 0 | AG65: 0 | AH65: 18,673.0 | AI65: 24 | AJ65: 34,879.3 | AK65: 24 | AL65: 58,965.8 | AM65: 117 | AN65: 116,024.0 | AO65: 19 | AP65: 0 | AQ65: 0 | AR65: 0 | AS65: 0 | AT65: 0 | AU65: 0 | AV65: 0 | AW65: 0 | AX65: 38,544.6 | AY65: 1 | AZ65: 19,021.0 | BA65: 10 | BB65: 0 | BC65: 0 | BD65: 26,916.0 | BE65: 26 | BF65: 112,837.0 | BG65: 272
A66: 돌산읍 우두리 | B66: 7,762,177.1 | C66: 6,897 | D66: 1,288,874.7 | E66: 1,400 | F66: 510,600.0 | G66: 631 | H66: 3,347.0 | I66: 3 | J66: 2,124.0 | K66: 2 | L66: 4,006,684.0 | M66: 1,534 | N66: 0 | O66: 0 | P66: 0 | Q66: 0 | R66: 874,351.9 | S66: 2,313 | T66: 16,882.0 | U66: 14 | V66: 37,447.5 | W66: 4 | X66: 4,358.6 | Y66: 5 | Z66: 1,981.0 | AA66: 4 | AB66: 12,489.6 | AC66: 16 | AD66: 514,508.1 | AE66: 630 | AF66: 0 | AG66: 0 | AH66: 12,894.4 | AI66: 16 | AJ66: 0 | AK66: 0 | AL66: 36,651.0 | AM66: 37 | AN66: 22,150.0 | AO66: 24 | AP66: 6,892.0 | AQ66: 7 | AR66: 0 | AS66: 0 | AT66: 56,646.3 | AU66: 12 | AV66: 0 | AW66: 0 | AX66: 175,596.0 | AY66: 1 | AZ66: 16,061.8 | BA66: 10 | BB66: 0 | BC66: 0 | BD66: 8,479.0 | BE66: 21 | BF66: 153,158.2 | BG66: 213
A67: 소라면 덕양리 | B67: 6,256,493.3 | C67: 5,486 | D67: 873,106.0 | E67: 1,240 | F67: 906,221.8 | G67: 1,062 | H67: 0 | I67: 0 | J67: 5,926.0 | K67: 12 | L67: 3,194,021.0 | M67: 530 | N67: 0 | O67: 0 | P67: 0 | Q67: 0 | R67: 365,254.0 | S67: 1,238 | T67: 10,468.0 | U67: 6 | V67: 35,902.0 | W67: 8 | X67: 5,398.0 | Y67: 7 | Z67: 12,478.0 | AA67: 16 | AB67: 14,582.0 | AC67: 18 | AD67: 415,590.7 | AE67: 1,030 | AF67: 64,766.0 | AG67: 32 | AH67: 7,630.0 | AI67: 3 | AJ67: 124,055.0 | AK67: 26 | AL67: 120,189.8 | AM67: 127 | AN67: 21,372.0 | AO67: 1 | AP67: 0 | AQ67: 0 | AR67: 3,552.0 | AS67: 25 | AT67: 1,111.0 | AU67: 1 | AV67: 0 | AW67: 0 | AX67: 0 | AY67: 0 | AZ67: 7,592.0 | BA67: 11 | BB67: 0 | BC67: 0 | BD67: 11,159.0 | BE67: 14 | BF67: 56,119.0 | BG67: 79
A68: 소라면 죽림리 | B68: 4,051,514.8 | C68: 3,363 | D68: 518,570.0 | E68: 723 | F68: 586,873.8 | G68: 696 | H68: 1,653.0 | I68: 5 | J68: 6,724.0 | K68: 3 | L68: 1,735,829.0 | M68: 920 | N68: 0 | O68: 0 | P68: 0 | Q68: 0 | R68: 366,949.1 | S68: 478 | T68: 229.0 | U68: 1 | V68: 19,658.7 | W68: 2 | X68: 7,168.1 | Y68: 11 | Z68: 675.7 | AA68: 1 | AB68: 200.0 | AC68: 1 | AD68: 309,146.5 | AE68: 382 | AF68: 0 | AG68: 0 | AH68: 0 | AI68: 0 | AJ68: 14,425.0 | AK68: 8 | AL68: 39,893.8 | AM68: 24 | AN68: 263,646.0 | AO68: 18 | AP68: 0 | AQ68: 0 | AR68: 0 | AS68: 0 | AT68: 144,569.8 | AU68: 51 | AV68: 6,110.0 | AW68: 8 | AX68: 0 | AY68: 0 | AZ68: 6,224.3 | BA68: 3 | BB68: 0 | BC68: 0 | BD68: 13,542.0 | BE68: 21 | BF68: 9,427.0 | BG68: 7
A69: 소라면 관기리 | B69: 4,106,636.9 | C69: 4,063 | D69: 625,952.2 | E69: 803 | F69: 1,809,874.7 | G69: 1,489 | H69: 0 | I69: 0 | J69: 0 | K69: 0 | L69: 1,118,100.0 | M69: 715 | N69: 0 | O69: 0 | P69: 0 | Q69: 0 | R69: 128,547.0 | S69: 339 | T69: 0 | U69: 0 | V69: 10,598.0 | W69: 2 | X69: 3,451.0 | Y69: 3 | Z69: 3,407.0 | AA69: 2 | AB69: 2,230.0 | AC69: 3 | AD69: 191,189.4 | AE69: 583 | AF69: 0 | AG69: 0 | AH69: 8,113.4 | AI69: 3 | AJ69: 63,689.5 | AK69: 18 | AL69: 99,370.7 | AM69: 67 | AN69: 14,736.0 | AO69: 1 | AP69: 0 | AQ69: 0 | AR69: 0 | AS69: 0 | AT69: 0 | AU69: 0 | AV69: 0 | AW69: 0 | AX69: 0 | AY69: 0 | AZ69: 2,112.0 | BA69: 2 | BB69: 0 | BC69: 0 | BD69: 14,832.0 | BE69: 25 | BF69: 10,434.0 | BG69: 8
A70: 소라면 현천리 | B70: 5,576,890.6 | C70: 2,991 | D70: 757,195.0 | E70: 759 | F70: 1,257,972.4 | G70: 734 | H70: 0 | I70: 0 | J70: 9,881.0 | K70: 11 | L70: 2,770,972.0 | M70: 478 | N70: 0 | O70: 0 | P70: 0 | Q70: 0 | R70: 171,671.0 | S70: 332 | T70: 2,736.0 | U70: 2 | V70: 9,141.0 | W70: 1 | X70: 0 | Y70: 0 | Z70: 0 | AA70: 0 | AB70: 3,790.0 | AC70: 10 | AD70: 184,875.2 | AE70: 508 | AF70: 0 | AG70: 0 | AH70: 19,477.2 | AI70: 7 | AJ70: 38,076.0 | AK70: 8 | AL70: 107,108.2 | AM70: 81 | AN70: 211,411.6 | AO70: 9 | AP70: 0 | AQ70: 0 | AR70: 0 | AS70: 0 | AT70: 0 | AU70: 0 | AV70: 0 | AW70: 0 | AX70: 0 | AY70: 0 | AZ70: 2,258.0 | BA70: 5 | BB70: 0 | BC70: 0 | BD70: 14,807.0 | BE70: 17 | BF70: 15,519.0 | BG70: 29
A71: 소라면 복산리 | B71: =SUM(D71,F71,H71,J71,L71,N71,P71,R71,T71,V71,X71,Z71,AB71,AD71,AF71,AH71,AJ71,AL71,AN71,AP71,AR71,AT71,AV71,AX71,AZ71,BB71,BD71,BF71) -> 10,087,580.4 | C71: =SUM(E71,G71,I71,K71,M71,O71,Q71,S71,U71,W71,Y71,AA71,AC71,AE71,AG71,AI71,AK71,AM71,AO71,AQ71,AS71,AU71,AW71,AY71,BA71,BC71,BE71,BG71) -> 6,085 | D71: 1,650,818.0 | E71: 1,553 | F71: 1,416,254.9 | G71: 1,153 | H71: 22,480.0 | I71: 3 | J71: 89,388.0 | K71: 35 | L71: 5,712,549.0 | M71: 1,184 | N71: 0 | O71: 0 | P71: 0 | Q71: 0 | R71: 237,545.0 | S71: 563 | T71: 20,996.0 | U71: 7 | V71: 14,027.0 | W71: 2 | X71: 10,816.0 | Y71: 11 | Z71: 4,120.0 | AA71: 3 | AB71: 18,407.0 | AC71: 18 | AD71: 427,243.1 | AE71: 1,256 | AF71: 0 | AG71: 0 | AH71: 11,412.0 | AI71: 16 | AJ71: 52,341.0 | AK71: 1 | AL71: 158,626.4 | AM71: 104 | AN71: 114,331.0 | AO71: 62 | AP71: 1,375.0 | AQ71: 1 | AR71: 0 | AS71: 0 | AT71: 0 | AU71: 0 | AV71: 0 | AW71: 0 | AX71: 0 | AY71: 0 | AZ71: 4,486.0 | BA71: 6 | BB71: 0 | BC71: 0 | BD71: 55,922.0 | BE71: 53 | BF71: 64,443.0 | BG71: 54
A72: 소라면 사곡리 | B72: 6,381,070.0 | C72: 3,482 | D72: 1,014,806.0 | E72: 988 | F72: 487,462.0 | G72: 603 | H72: 0 | I72: 0 | J72: 42,091.0 | K72: 22 | L72: 4,243,704.0 | M72: 648 | N72: 0 | O72: 0 | P72: 0 | Q72: 0 | R72: 157,644.0 | S72: 409 | T72: 2,082.0 | U72: 2 | V72: 6,591.0 | W72: 1 | X72: 1,096.0 | Y72: 2 | Z72: 2,599.0 | AA72: 4 | AB72: 1,621.0 | AC72: 4 | AD72: 273,923.0 | AE72: 682 | AF72: 0 | AG72: 0 | AH72: 3,338.0 | AI72: 6 | AJ72: 0 | AK72: 0 | AL72: 91,805.0 | AM72: 44 | AN72: 19,679.0 | AO72: 22 | AP72: 0 | AQ72: 0 | AR72: 0 | AS72: 0 | AT72: 0 | AU72: 0 | AV72: 0 | AW72: 0 | AX72: 0 | AY72: 0 | AZ72: 821.0 | BA72: 2 | BB72: 0 | BC72: 0 | BD72: 9,582.0 | BE72: 12 | BF72: 22,226.0 | BG72: 31
A73: 소라면 봉두리 | B73: 13,498,860.0 | C73: 3,412 | D73: 668,993.0 | E73: 637 | F73: 833,659.0 | G73: 750 | H73: 11,874.0 | I73: 4 | J73: 6,946.0 | K73: 7 | L73: 11,089,041.0 | M73: 852 | N73: 0 | O73: 0 | P73: 0 | Q73: 0 | R73: 105,559.0 | S73: 278 | T73: 10,965.0 | U73: 4 | V73: 6,193.0 | W73: 1 | X73: 1,445.0 | Y73: 3 | Z73: 0 | AA73: 0 | AB73: 5,331.0 | AC73: 11 | AD73: 230,527.0 | AE73: 684 | AF73: 0 | AG73: 0 | AH73: 0 | AI73: 0 | AJ73: 116,321.0 | AK73: 10 | AL73: 99,855.0 | AM73: 78 | AN73: 41,516.0 | AO73: 11 | AP73: 0 | AQ73: 0 | AR73: 0 | AS73: 0 | AT73: 0 | AU73: 0 | AV73: 0 | AW73: 0 | AX73: 0 | AY73: 0 | AZ73: 1,154.0 | BA73: 3 | BB73: 0 | BC73: 0 | BD73: 221,487.0 | BE73: 27 | BF73: 47,994.0 | BG73: 52
A74: 소라면 대포리 | B74: 10,603,295.2 | C74: 5,728 | D74: 746,679.0 | E74: 1,165 | F74: 2,444,020.8 | G74: 1,707 | H74: 0 | I74: 0 | J74: 378.0 | K74: 2 | L74: 5,681,318.0 | M74: 582 | N74: 0 | O74: 0 | P74: 0 | Q74: 0 | R74: 249,388.0 | S74: 700 | T74: 14,121.0 | U74: 13 | V74: 0 | W74: 0 | X74: 10,656.0 | Y74: 8 | Z74: 8,162.0 | AA74: 10 | AB74: 13,994.0 | AC74: 21 | AD74: 341,748.4 | AE74: 907 | AF74: 30,277.0 | AG74: 26 | AH74: 13,561.0 | AI74: 5 | AJ74: 384,368.0 | AK74: 49 | AL74: 232,086.2 | AM74: 334 | AN74: 264,724.0 | AO74: 64 | AP74: 0 | AQ74: 0 | AR74: 21,162.8 | AS74: 34 | AT74: 0 | AU74: 0 | AV74: 0 | AW74: 0 | AX74: 0 | AY74: 0 | AZ74: 4,225.0 | BA74: 7 | BB74: 0 | BC74: 0 | BD74: 7,437.0 | BE74: 15 | BF74: 134,989.0 | BG74: 79
A75: 율촌면 조화리 | B75: 3,209,412.7 | C75: 3,650 | D75: 377,332.0 | E75: 560 | F75: 929,200.0 | G75: 1,217 | H75: 30,833.0 | I75: 18 | J75: 2,898.0 | K75: 2 | L75: 235,380.0 | M75: 138 | N75: 0 | O75: 0 | P75: 0 | Q75: 0 | R75: 211,035.0 | S75: 744 | T75: 158,390.4 | U75: 8 | V75: 30,492.0 | W75: 3 | X75: 20,263.8 | Y75: 5 | Z75: 7,590.0 | AA75: 10 | AB75: 7,017.0 | AC75: 11 | AD75: 405,130.0 | AE75: 658 | AF75: 60,135.0 | AG75: 31 | AH75: 15,512.0 | AI75: 6 | AJ75: 31,101.0 | AK75: 4 | AL75: 74,960.3 | AM75: 89 | AN75: 72,259.0 | AO75: 17 | AP75: 2,992.0 | AQ75: 2 | AR75: 28,082.0 | AS75: 47 | AT75: 177,938.1 | AU75: 15 | AV75: 0 | AW75: 0 | AX75: 0 | AY75: 0 | AZ75: 7,727.0 | BA75: 4 | BB75: 0 | BC75: 0 | BD75: 14,765.0 | BE75: 11 | BF75: 308,380.1 | BG75: 50
A76: 율촌면 월산리 | B76: 4,433,164.7 | C76: 4,134 | D76: 494,382.0 | E76: 588 | F76: 863,141.0 | G76: 1,080 | H76: 58,546.0 | I76: 21 | J76: 4,665.0 | K76: 4 | L76: 2,283,241.7 | M76: 896 | N76: 0 | O76: 0 | P76: 0 | Q76: 0 | R76: 264,664.6 | S76: 543 | T76: 10,477.0 | U76: 5 | V76: 7,621.0 | W76: 2 | X76: 6,740.7 | Y76: 9 | Z76: 1,445.0 | AA76: 3 | AB76: 7,048.0 | AC76: 4 | AD76: 302,347.8 | AE76: 770 | AF76: 0 | AG76: 0 | AH76: 0 | AI76: 0 | AJ76: 18,988.0 | AK76: 10 | AL76: 71,366.0 | AM76: 132 | AN76: 1,528.0 | AO76: 6 | AP76: 0 | AQ76: 0 | AR76: 0 | AS76: 0 | AT76: 9,716.8 | AU76: 3 | AV76: 0 | AW76: 0 | AX76: 0 | AY76: 0 | AZ76: 4,634.0 | BA76: 6 | BB76: 0 | BC76: 0 | BD76: 2,184.0 | BE76: 10 | BF76: 20,428.1 | BG76: 42
A77: 율촌면 산수리 | B77: 5,323,247.0 | C77: 3,821 | D77: 497,206.0 | E77: 606 | F77: 1,068,212.0 | G77: 1,085 | H77: 9,349.0 | I77: 2 | J77: 18,129.0 | K77: 17 | L77: 3,252,762.0 | M77: 942 | N77: 0 | O77: 0 | P77: 0 | Q77: 0 | R77: 151,196.0 | S77: 399 | T77: 1,200.0 | U77: 1 | V77: 8,387.0 | W77: 3 | X77: 0 | Y77: 0 | Z77: 0 | AA77: 0 | AB77: 0 | AC77: 0 | AD77: 141,411.0 | AE77: 625 | AF77: 0 | AG77: 0 | AH77: 0 | AI77: 0 | AJ77: 10,955.0 | AK77: 4 | AL77: 112,127.0 | AM77: 71 | AN77: 25,680.0 | AO77: 25 | AP77: 0 | AQ77: 0 | AR77: 549.0 | AS77: 1 | AT77: 0 | AU77: 0 | AV77: 0 | AW77: 0 | AX77: 0 | AY77: 0 | AZ77: 2,870.0 | BA77: 4 | BB77: 0 | BC77: 0 | BD77: 5,314.0 | BE77: 13 | BF77: 17,900.0 | BG77: 23
A78: 율촌면 가장리 | B78: 9,705,370.7 | C78: 4,420 | D78: 816,045.0 | E78: 725 | F78: 1,564,818.0 | G78: 1,262 | H78: 32,100.0 | I78: 5 | J78: 212,239.0 | K78: 36 | L78: 6,335,180.4 | M78: 1,021 | N78: 0 | O78: 0 | P78: 0 | Q78: 0 | R78: 181,742.9 | S78: 393 | T78: 0 | U78: 0 | V78: 0 | W78: 0 | X78: 3,412.0 | Y78: 2 | Z78: 0 | AA78: 0 | AB78: 516.0 | AC78: 1 | AD78: 208,160.0 | AE78: 700 | AF78: 0 | AG78: 0 | AH78: 0 | AI78: 0 | AJ78: 61,605.0 | AK78: 18 | AL78: 198,676.0 | AM78: 181 | AN78: 51,340.0 | AO78: 34 | AP78: 0 | AQ78: 0 | AR78: 0 | AS78: 0 | AT78: 1,015.4 | AU78: 1 | AV78: 0 | AW78: 0 | AX78: 0 | AY78: 0 | AZ78: 3,845.0 | BA78: 5 | BB78: 0 | BC78: 0 | BD78: 16,248.0 | BE78: 17 | BF78: 18,428.0 | BG78: 19
A79: 율촌면 봉전리 | B79: 4,094,175.0 | C79: 2,191 | D79: 613,001.0 | E79: 640 | F79: 388,689.0 | G79: 361 | H79: 0 | I79: 0 | J79: 2,789.0 | K79: 2 | L79: 2,791,751.0 | M79: 496 | N79: 0 | O79: 0 | P79: 1,937.0 | Q79: 4 | R79: 66,893.0 | S79: 183 | T79: 7,693.0 | U79: 2 | V79: 0 | W79: 0 | X79: 0 | Y79: 0 | Z79: 0 | AA79: 0 | AB79: 1,166.0 | AC79: 3 | AD79: 94,657.0 | AE79: 397 | AF79: 0 | AG79: 0 | AH79: 4,488.0 | AI79: 6 | AJ79: 777.0 | AK79: 1 | AL79: 34,686.0 | AM79: 20 | AN79: 16,514.0 | AO79: 9 | AP79: 0 | AQ79: 0 | AR79: 0 | AS79: 0 | AT79: 0 | AU79: 0 | AV79: 0 | AW79: 0 | AX79: 0 | AY79: 0 | AZ79: 1,740.0 | BA79: 5 | BB79: 0 | BC79: 0 | BD79: 17,603.0 | BE79: 40 | BF79: 49,791.0 | BG79: 22
A80: 율촌면 반월리 | B80: 2,277,936.0 | C80: 1,309 | D80: 320,434.0 | E80: 337 | F80: 306,616.0 | G80: 290 | H80: 0 | I80: 0 | J80: 5,573.0 | K80: 2 | L80: 1,450,667.0 | M80: 243 | N80: 0 | O80: 0 | P80: 0 | Q80: 0 | R80: 45,965.0 | S80: 147 | T80: 0 | U80: 0 | V80: 0 | W80: 0 | X80: 0 | Y80: 0 | Z80: 618.0 | AA80: 1 | AB80: 306.0 | AC80: 2 | AD80: 56,906.0 | AE80: 215 | AF80: 0 | AG80: 0 | AH80: 1,679.0 | AI80: 2 | AJ80: 0 | AK80: 0 | AL80: 53,541.0 | AM80: 22 | AN80: 23,227.0 | AO80: 18 | AP80: 0 | AQ80: 0 | AR80: 0 | AS80: 0 | AT80: 0 | AU80: 0 | AV80: 0 | AW80: 0 | AX80: 0 | AY80: 0 | AZ80: 607.0 | BA80: 1 | BB80: 0 | BC80: 0 | BD80: 6,884.0 | BE80: 17 | BF80: 4,913.0 | BG80: 12
A81: 율촌면 취적리 | B81: 7,664,474.0 | C81: 4,221 | D81: 790,866.0 | E81: 862 | F81: 979,665.0 | G81: 1,056 | H81: 4,732.0 | I81: 1 | J81: 601.0 | K81: 1 | L81: 5,025,748.0 | M81: 698 | N81: 0 | O81: 0 | P81: 0 | Q81: 0 | R81: 212,130.0 | S81: 451 | T81: 15,602.0 | U81: 6 | V81: 0 | W81: 0 | X81: 3,780.0 | Y81: 7 | Z81: 11,117.0 | AA81: 5 | AB81: 1,403.0 | AC81: 2 | AD81: 256,549.0 | AE81: 779 | AF81: 50,854.0 | AG81: 54 | AH81: 3,356.0 | AI81: 4 | AJ81: 7,481.0 | AK81: 12 | AL81: 121,532.0 | AM81: 124 | AN81: 41,915.0 | AO81: 41 | AP81: 0 | AQ81: 0 | AR81: 36,531.0 | AS81: 34 | AT81: 0 | AU81: 0 | AV81: 0 | AW81: 0 | AX81: 0 | AY81: 0 | AZ81: 0 | BA81: 0 | BB81: 0 | BC81: 0 | BD81: 28,898.0 | BE81: 31 | BF81: 71,714.0 | BG81: 53
A82: 율촌면 신풍리 | B82: 6,263,260.6 | C82: 4,940 | D82: 571,475.0 | E82: 761 | F82: 1,408,602.0 | G82: 1,352 | H82: 79,424.0 | I82: 31 | J82: 91,478.0 | K82: 158 | L82: 2,537,235.8 | M82: 488 | N82: 0 | O82: 0 | P82: 0 | Q82: 0 | R82: 408,104.6 | S82: 800 | T82: 20,943.0 | U82: 11 | V82: 15,992.0 | W82: 3 | X82: 3,368.0 | Y82: 4 | Z82: 1,840.0 | AA82: 1 | AB82: 4,952.0 | AC82: 8 | AD82: 226,660.8 | AE82: 881 | AF82: 54,023.0 | AG82: 31 | AH82: 7,354.0 | AI82: 7 | AJ82: 52,152.0 | AK82: 13 | AL82: 163,272.0 | AM82: 134 | AN82: 108,889.0 | AO82: 41 | AP82: 0 | AQ82: 0 | AR82: 25,685.0 | AS82: 22 | AT82: 0 | AU82: 0 | AV82: 0 | AW82: 0 | AX82: 0 | AY82: 0 | AZ82: 3,814.0 | BA82: 4 | BB82: 0 | BC82: 0 | BD82: 18,554.0 | BE82: 19 | BF82: 459,442.4 | BG82: 171
A83: 율촌면 상봉리 | B83: 3,343,442.0 | C83: 1,921 | D83: 442,590.0 | E83: 443 | F83: 358,629.0 | G83: 361 | H83: 1,693.0 | I83: 1 | J83: 27,928.0 | K83: 16 | L83: 2,175,694.0 | M83: 363 | N83: 0 | O83: 0 | P83: 0 | Q83: 0 | R83: 79,608.0 | S83: 187 | T83: 7,369.0 | U83: 2 | V83: 12,729.0 | W83: 2 | X83: 1,358.0 | Y83: 1 | Z83: 331.0 | AA83: 1 | AB83: 7,942.0 | AC83: 10 | AD83: 143,055.0 | AE83: 462 | AF83: 0 | AG83: 0 | AH83: 1,263.0 | AI83: 2 | AJ83: 869.0 | AK83: 1 | AL83: 61,606.0 | AM83: 48 | AN83: 0 | AO83: 0 | AP83: 0 | AQ83: 0 | AR83: 0 | AS83: 0 | AT83: 0 | AU83: 0 | AV83: 0 | AW83: 0 | AX83: 0 | AY83: 0 | AZ83: 3,436.0 | BA83: 2 | BB83: 0 | BC83: 0 | BD83: 11,675.0 | BE83: 6 | BF83: 5,667.0 | BG83: 13
A84: 율촌면 여동리 | B84: 1,038,472.0 | C84: 846 | D84: 226,722.0 | E84: 332 | F84: 16,175.0 | G84: 45 | H84: 14,883.0 | I84: 2 | J84: 1,011.0 | K84: 1 | L84: 723,461.0 | M84: 241 | N84: 0 | O84: 0 | P84: 0 | Q84: 0 | R84: 28,318.0 | S84: 161 | T84: 0 | U84: 0 | V84: 7,128.0 | W84: 5 | X84: 0 | Y84: 0 | Z84: 0 | AA84: 0 | AB84: 0 | AC84: 0 | AD84: 14,908.0 | AE84: 45 | AF84: 0 | AG84: 0 | AH84: 483.0 | AI84: 5 | AJ84: 0 | AK84: 0 | AL84: 836.0 | AM84: 1 | AN84: 0 | AO84: 0 | AP84: 0 | AQ84: 0 | AR84: 0 | AS84: 0 | AT84: 0 | AU84: 0 | AV84: 0 | AW84: 0 | AX84: 0 | AY84: 0 | AZ84: 0 | BA84: 0 | BB84: 0 | BC84: 0 | BD84: 2,585.0 | BE84: 1 | BF84: 1,962.0 | BG84: 7
A85: 화양면 나진리 | B85: 5,832,098.8 | C85: 3,049 | D85: 588,403.0 | E85: 607 | F85: 433,438.4 | G85: 417 | H85: 9,693.0 | I85: 3 | J85: 6,456.0 | K85: 8 | L85: 4,248,387.0 | M85: 836 | N85: 0 | O85: 0 | P85: 0 | Q85: 0 | R85: 143,972.0 | S85: 356 | T85: 46,586.0 | U85: 17 | V85: 30,464.0 | W85: 11 | X85: 647.0 | Y85: 2 | Z85: 0 | AA85: 0 | AB85: 2,886.0 | AC85: 3 | AD85: 187,850.7 | AE85: 643 | AF85: 0 | AG85: 0 | AH85: 2,307.0 | AI85: 12 | AJ85: 393.0 | AK85: 1 | AL85: 66,371.9 | AM85: 74 | AN85: 11,023.8 | AO85: 10 | AP85: 654.0 | AQ85: 1 | AR85: 0 | AS85: 0 | AT85: 0 | AU85: 0 | AV85: 0 | AW85: 0 | AX85: 0 | AY85: 0 | AZ85: 6,314.0 | BA85: 9 | BB85: 0 | BC85: 0 | BD85: 6,108.0 | BE85: 8 | BF85: 40,144.0 | BG85: 31
A86: 화양면 용주리 | B86: 4,529,423.0 | C86: 3,561 | D86: 1,247,767.0 | E86: 1,151 | F86: 520,059.0 | G86: 381 | H86: 14,075.0 | I86: 24 | J86: 26,913.0 | K86: 5 | L86: 2,104,361.0 | M86: 545 | N86: 0 | O86: 0 | P86: 0 | Q86: 0 | R86: 170,984.0 | S86: 544 | T86: 39,150.0 | U86: 17 | V86: 10,482.0 | W86: 2 | X86: 0 | Y86: 0 | Z86: 1,123.0 | AA86: 1 | AB86: 9,566.0 | AC86: 13 | AD86: 197,423.0 | AE86: 725 | AF86: 0 | AG86: 0 | AH86: 8,892.0 | AI86: 11 | AJ86: 8,213.0 | AK86: 8 | AL86: 47,340.0 | AM86: 21 | AN86: 19,287.0 | AO86: 12 | AP86: 10,905.0 | AQ86: 5 | AR86: 0 | AS86: 0 | AT86: 0 | AU86: 0 | AV86: 0 | AW86: 0 | AX86: 0 | AY86: 0 | AZ86: 4,604.0 | BA86: 5 | BB86: 6,161.0 | BC86: 3 | BD86: 26,285.0 | BE86: 31 | BF86: 55,833.0 | BG86: 57
A87: 화양면 창무리 | B87: 3,958,859.3 | C87: 2,455 | D87: 813,478.0 | E87: 758 | F87: 388,941.0 | G87: 325 | H87: 0 | I87: 0 | J87: 10,950.0 | K87: 3 | L87: 2,226,205.0 | M87: 384 | N87: 0 | O87: 0 | P87: 0 | Q87: 0 | R87: 98,965.0 | S87: 280 | T87: 9,573.0 | U87: 5 | V87: 0 | W87: 0 | X87: 1,164.0 | Y87: 2 | Z87: 7,189.0 | AA87: 4 | AB87: 5,053.0 | AC87: 10 | AD87: 104,317.7 | AE87: 584 | AF87: 0 | AG87: 0 | AH87: 3,438.0 | AI87: 1 | AJ87: 28,449.7 | AK87: 20 | AL87: 47,551.4 | AM87: 41 | AN87: 194,774.0 | AO87: 4 | AP87: 0 | AQ87: 0 | AR87: 0 | AS87: 0 | AT87: 0 | AU87: 0 | AV87: 0 | AW87: 0 | AX87: 0 | AY87: 0 | AZ87: 1,103.0 | BA87: 5 | BB87: 0 | BC87: 0 | BD87: 5,902.0 | BE87: 3 | BF87: 11,805.5 | BG87: 26
A88: 화양면 이천리 | B88: 3,554,284.0 | C88: 2,082 | D88: 779,726.0 | E88: 770 | F88: 111,021.0 | G88: 172 | H88: 5,849.0 | I88: 3 | J88: 1,761.0 | K88: 1 | L88: 2,342,264.0 | M88: 425 | N88: 0 | O88: 0 | P88: 0 | Q88: 0 | R88: 112,988.0 | S88: 304 | T88: 444.0 | U88: 1 | V88: 9,352.0 | W88: 6 | X88: 1,265.0 | Y88: 2 | Z88: 0 | AA88: 0 | AB88: 1,054.0 | AC88: 2 | AD88: 146,025.0 | AE88: 333 | AF88: 0 | AG88: 0 | AH88: 4,742.0 | AI88: 14 | AJ88: 0 | AK88: 0 | AL88: 19,164.0 | AM88: 22 | AN88: 3,481.0 | AO88: 2 | AP88: 0 | AQ88: 0 | AR88: 0 | AS88: 0 | AT88: 0 | AU88: 0 | AV88: 0 | AW88: 0 | AX88: 0 | AY88: 0 | AZ88: 992.0 | BA88: 1 | BB88: 0 | BC88: 0 | BD88: 1,478.0 | BE88: 4 | BF88: 12,678.0 | BG88: 20
A89: 화양면 옥적리 | B89: 11,946,182.3 | C89: 4,837 | D89: 1,447,009.0 | E89: 1,359 | F89: 1,290,801.6 | G89: 1,170 | H89: 56,059.0 | I89: 9 | J89: 31,798.0 | K89: 6 | L89: 8,302,382.0 | M89: 937 | N89: 0 | O89: 0 | P89: 0 | Q89: 0 | R89: 123,974.0 | S89: 339 | T89: 13,000.0 | U89: 9 | V89: 30.0 | W89: 1 | X89: 2,538.0 | Y89: 3 | Z89: 0 | AA89: 0 | AB89: 4,276.0 | AC89: 9 | AD89: 246,155.2 | AE89: 711 | AF89: 0 | AG89: 0 | AH89: 8,921.0 | AI89: 5 | AJ89: 60,004.4 | AK89: 16 | AL89: 165,909.1 | AM89: 129 | AN89: 161,919.0 | AO89: 100 | AP89: 0 | AQ89: 0 | AR89: 0 | AS89: 0 | AT89: 0 | AU89: 0 | AV89: 0 | AW89: 0 | AX89: 0 | AY89: 0 | AZ89: 1,692.0 | BA89: 2 | BB89: 0 | BC89: 0 | BD89: 16,448.0 | BE89: 11 | BF89: 13,266.0 | BG89: 21
A90: 화양면 화동리 | B90: 7,418,353.7 | C90: 4,091 | D90: 1,065,748.7 | E90: 1,037 | F90: 866,095.7 | G90: 824 | H90: 1,850.0 | I90: 2 | J90: 12,543.0 | K90: 4 | L90: 4,741,096.8 | M90: 745 | N90: 0 | O90: 0 | P90: 0 | Q90: 0 | R90: 124,587.5 | S90: 420 | T90: 101,598.2 | U90: 22 | V90: 33,365.0 | W90: 4 | X90: 1,088.0 | Y90: 1 | Z90: 1,811.0 | AA90: 1 | AB90: 5,578.0 | AC90: 11 | AD90: 204,075.5 | AE90: 679 | AF90: 0 | AG90: 0 | AH90: 0 | AI90: 0 | AJ90: 3,568.0 | AK90: 10 | AL90: 132,195.1 | AM90: 244 | AN90: 79,538.0 | AO90: 36 | AP90: 0 | AQ90: 0 | AR90: 0 | AS90: 0 | AT90: 0 | AU90: 0 | AV90: 0 | AW90: 0 | AX90: 0 | AY90: 0 | AZ90: 2,095.0 | BA90: 5 | BB90: 0 | BC90: 0 | BD90: 22,954.0 | BE90: 17 | BF90: 18,566.2 | BG90: 29
A91: 화양면 서촌리 | B91: 6,225,081.7 | C91: 3,234 | D91: 953,709.0 | E91: 875 | F91: 710,973.0 | G91: 693 | H91: 10,611.0 | I91: 2 | J91: 16,806.0 | K91: 12 | L91: 4,163,729.0 | M91: 556 | N91: 0 | O91: 0 | P91: 0 | Q91: 0 | R91: 88,371.0 | S91: 320 | T91: 2,921.0 | U91: 1 | V91: 0 | W91: 0 | X91: 0 | Y91: 0 | Z91: 0 | AA91: 0 | AB91: 1,029.0 | AC91: 3 | AD91: 116,568.6 | AE91: 579 | AF91: 0 | AG91: 0 | AH91: 2,298.0 | AI91: 1 | AJ91: 1,736.0 | AK91: 10 | AL91: 105,848.1 | AM91: 137 | AN91: 18,192.0 | AO91: 14 | AP91: 0 | AQ91: 0 | AR91: 0 | AS91: 0 | AT91: 0 | AU91: 0 | AV91: 0 | AW91: 0 | AX91: 0 | AY91: 0 | AZ91: 1,718.0 | BA91: 5 | BB91: 0 | BC91: 0 | BD91: 12,032.0 | BE91: 12 | BF91: 18,540.0 | BG91: 14
A92: 화양면 이목리 | B92: 8,996,418.0 | C92: 4,871 | D92: 1,076,490.0 | E92: 1,015 | F92: 640,637.0 | G92: 988 | H92: 0 | I92: 0 | J92: 44,312.0 | K92: 8 | L92: 6,727,626.0 | M92: 1,530 | N92: 0 | O92: 0 | P92: 0 | Q92: 0 | R92: 151,807.0 | S92: 426 | T92: 0 | U92: 0 | V92: 5,586.0 | W92: 7 | X92: 0 | Y92: 0 | Z92: 0 | AA92: 0 | AB92: 958.0 | AC92: 3 | AD92: 238,395.0 | AE92: 780 | AF92: 0 | AG92: 0 | AH92: 2,730.0 | AI92: 16 | AJ92: 205.0 | AK92: 2 | AL92: 67,408.0 | AM92: 35 | AN92: 10,156.0 | AO92: 8 | AP92: 0 | AQ92: 0 | AR92: 0 | AS92: 0 | AT92: 0 | AU92: 0 | AV92: 0 | AW92: 0 | AX92: 0 | AY92: 0 | AZ92: 1,344.0 | BA92: 3 | BB92: 0 | BC92: 0 | BD92: 13,686.0 | BE92: 20 | BF92: 15,078.0 | BG92: 30
A93: 화양면 장수리 | B93: 5,244,685.0 | C93: 3,667 | D93: 1,163,843.0 | E93: 1,170 | F93: 302,255.0 | G93: 515 | H93: 2,420.0 | I93: 1 | J93: 12,255.0 | K93: 10 | L93: 3,354,556.0 | M93: 824 | N93: 0 | O93: 0 | P93: 0 | Q93: 0 | R93: 129,714.0 | S93: 428 | T93: 0 | U93: 0 | V93: 21,516.0 | W93: 5 | X93: 0 | Y93: 0 | Z93: 0 | AA93: 0 | AB93: 1,209.0 | AC93: 5 | AD93: 194,753.0 | AE93: 597 | AF93: 0 | AG93: 0 | AH93: 7,575.0 | AI93: 18 | AJ93: 0 | AK93: 0 | AL93: 22,526.0 | AM93: 30 | AN93: 0 | AO93: 0 | AP93: 1,524.0 | AQ93: 2 | AR93: 0 | AS93: 0 | AT93: 0 | AU93: 0 | AV93: 0 | AW93: 0 | AX93: 0 | AY93: 0 | AZ93: 0 | BA93: 0 | BB93: 0 | BC93: 0 | BD93: 14,373.0 | BE93: 24 | BF93: 16,166.0 | BG93: 38
A94: 화양면 안포리 | B94: 12,415,737.3 | C94: 6,843 | D94: 1,559,859.0 | E94: 1,755 | F94: 795,687.5 | G94: 1,140 | H94: 29,555.0 | I94: 7 | J94: 51,637.0 | K94: 27 | L94: 9,134,361.0 | M94: 1,798 | N94: 0 | O94: 0 | P94: 0 | Q94: 0 | R94: 206,004.0 | S94: 627 | T94: 7,050.0 | U94: 1 | V94: 6,792.0 | W94: 2 | X94: 0 | Y94: 0 | Z94: 1,629.0 | AA94: 1 | AB94: 8,885.0 | AC94: 15 | AD94: 359,440.9 | AE94: 1,111 | AF94: 0 | AG94: 0 | AH94: 7,422.0 | AI94: 19 | AJ94: 393.0 | AK94: 2 | AL94: 95,720.9 | AM94: 108 | AN94: 66,302.0 | AO94: 85 | AP94: 20,344.0 | AQ94: 13 | AR94: 0 | AS94: 0 | AT94: 0 | AU94: 0 | AV94: 0 | AW94: 0 | AX94: 0 | AY94: 0 | AZ94: 3,533.0 | BA94: 5 | BB94: 0 | BC94: 0 | BD94: 16,871.0 | BE94: 31 | BF94: 44,251.0 | BG94: 96
A95: 남면 우학리 | B95: 4,513,342.0 | C95: 2,764 | D95: 1,231,831.0 | E95: 930 | F95: 235,752.0 | G95: 480 | H95: 0 | I95: 0 | J95: 0 | K95: 0 | L95: 2,686,018.0 | M95: 522 | N95: 0 | O95: 0 | P95: 0 | Q95: 0 | R95: 89,683.0 | S95: 339 | T95: 0 | U95: 0 | V95: 33,393.0 | W95: 6 | X95: 0 | Y95: 0 | Z95: 0 | AA95: 0 | AB95: 0 | AC95: 0 | AD95: 152,033.0 | AE95: 417 | AF95: 0 | AG95: 0 | AH95: 1,925.0 | AI95: 8 | AJ95: 0 | AK95: 0 | AL95: 26,106.0 | AM95: 20 | AN95: 0 | AO95: 0 | AP95: 4,524.0 | AQ95: 3 | AR95: 926.0 | AS95: 3 | AT95: 0 | AU95: 0 | AV95: 0 | AW95: 0 | AX95: 0 | AY95: 0 | AZ95: 1,523.0 | BA95: 3 | BB95: 0 | BC95: 0 | BD95: 27,528.0 | BE95: 5 | BF95: 22,100.0 | BG95: 28
A96: 남면 심장리 | B96: 4,435,606.0 | C96: 2,514 | D96: 1,418,086.0 | E96: 954 | F96: 123,199.0 | G96: 308 | H96: 0 | I96: 0 | J96: 0 | K96: 0 | L96: 2,625,292.0 | M96: 423 | N96: 0 | O96: 0 | P96: 0 | Q96: 0 | R96: 95,032.0 | S96: 399 | T96: 0 | U96: 0 | V96: 4,663.0 | W96: 2 | X96: 0 | Y96: 0 | Z96: 0 | AA96: 0 | AB96: 243.0 | AC96: 1 | AD96: 113,254.0 | AE96: 315 | AF96: 0 | AG96: 0 | AH96: 4,234.0 | AI96: 15 | AJ96: 403.0 | AK96: 1 | AL96: 15,465.0 | AM96: 15 | AN96: 582.0 | AO96: 1 | AP96: 8,684.0 | AQ96: 10 | AR96: 0 | AS96: 0 | AT96: 0 | AU96: 0 | AV96: 0 | AW96: 0 | AX96: 0 | AY96: 0 | AZ96: 232.0 | BA96: 1 | BB96: 0 | BC96: 0 | BD96: 16,265.0 | BE96: 15 | BF96: 9,972.0 | BG96: 54
A97: 남면 두모리 | B97: 11,121,400.0 | C97: 3,554 | D97: 1,266,397.0 | E97: 1,067 | F97: 438,169.0 | G97: 918 | H97: 0 | I97: 0 | J97: 0 | K97: 0 | L97: 9,092,302.0 | M97: 693 | N97: 0 | O97: 0 | P97: 0 | Q97: 0 | R97: 67,377.0 | S97: 254 | T97: 0 | U97: 0 | V97: 5,557.0 | W97: 5 | X97: 0 | Y97: 0 | Z97: 0 | AA97: 0 | AB97: 465.0 | AC97: 2 | AD97: 174,689.0 | AE97: 471 | AF97: 0 | AG97: 0 | AH97: 3,155.0 | AI97: 9 | AJ97: 12,780.0 | AK97: 43 | AL97: 18,015.0 | AM97: 17 | AN97: 29,746.0 | AO97: 40 | AP97: 400.0 | AQ97: 1 | AR97: 1,484.0 | AS97: 2 | AT97: 0 | AU97: 0 | AV97: 0 | AW97: 0 | AX97: 0 | AY97: 0 | AZ97: 694.0 | BA97: 1 | BB97: 0 | BC97: 0 | BD97: 1,200.0 | BE97: 3 | BF97: 8,970.0 | BG97: 28
A98: 남면 유송리 | B98: 7,687,371.0 | C98: 3,235 | D98: 1,653,381.0 | E98: 1,370 | F98: 166,070.0 | G98: 423 | H98: 0 | I98: 0 | J98: 0 | K98: 0 | L98: 5,615,712.0 | M98: 717 | N98: 0 | O98: 0 | P98: 0 | Q98: 0 | R98: 86,509.0 | S98: 366 | T98: 0 | U98: 0 | V98: 12,875.0 | W98: 5 | X98: 0 | Y98: 0 | Z98: 0 | AA98: 0 | AB98: 192.0 | AC98: 1 | AD98: 94,124.0 | AE98: 265 | AF98: 0 | AG98: 0 | AH98: 7,454.0 | AI98: 20 | AJ98: 1,015.0 | AK98: 3 | AL98: 23,784.0 | AM98: 29 | AN98: 0 | AO98: 0 | AP98: 0 | AQ98: 0 | AR98: 0 | AS98: 0 | AT98: 0 | AU98: 0 | AV98: 0 | AW98: 0 | AX98: 0 | AY98: 0 | AZ98: 317.0 | BA98: 2 | BB98: 0 | BC98: 0 | BD98: 12,476.0 | BE98: 3 | BF98: 13,462.0 | BG98: 31
A99: 남면 안도리 | B99: 3,744,761.0 | C99: 2,544 | D99: 1,132,053.0 | E99: 1,213 | F99: 55,180.0 | G99: 151 | H99: 0 | I99: 0 | J99: 0 | K99: 0 | L99: 2,339,157.0 | M99: 565 | N99: 0 | O99: 0 | P99: 0 | Q99: 0 | R99: 89,868.0 | S99: 379 | T99: 0 | U99: 0 | V99: 5,182.0 | W99: 6 | X99: 0 | Y99: 0 | Z99: 0 | AA99: 0 | AB99: 0 | AC99: 0 | AD99: 43,878.0 | AE99: 142 | AF99: 0 | AG99: 0 | AH99: 4,513.0 | AI99: 5 | AJ99: 390.0 | AK99: 1 | AL99: 17,466.0 | AM99: 17 | AN99: 0 | AO99: 0 | AP99: 0 | AQ99: 0 | AR99: 0 | AS99: 0 | AT99: 0 | AU99: 0 | AV99: 0 | AW99: 0 | AX99: 0 | AY99: 0 | AZ99: 231.0 | BA99: 1 | BB99: 0 | BC99: 0 | BD99: 20,261.0 | BE99: 40 | BF99: 36,582.0 | BG99: 24
A100: 남면 연도리 | B100: 7,098,200.0 | C100: 3,447 | D100: 1,147,203.0 | E100: 1,365 | F100: 267,794.0 | G100: 618 | H100: 0 | I100: 0 | J100: 598.0 | K100: 1 | L100: 5,317,225.0 | M100: 708 | N100: 0 | O100: 0 | P100: 0 | Q100: 0 | R100: 102,517.0 | S100: 466 | T100: 0 | U100: 0 | V100: 11,875.0 | W100: 9 | X100: 0 | Y100: 0 | Z100: 0 | AA100: 0 | AB100: 0 | AC100: 0 | AD100: 108,587.0 | AE100: 147 | AF100: 0 | AG100: 0 | AH100: 3,309.0 | AI100: 16 | AJ100: 0 | AK100: 0 | AL100: 21,744.0 | AM100: 30 | AN100: 0 | AO100: 0 | AP100: 9,734.0 | AQ100: 3 | AR100: 0 | AS100: 0 | AT100: 0 | AU100: 0 | AV100: 0 | AW100: 0 | AX100: 0 | AY100: 0 | AZ100: 0 | BA100: 0 | BB100: 0 | BC100: 0 | BD100: 38,318.0 | BE100: 36 | BF100: 69,296.0 | BG100: 48
A101: 남면 두라리 | B101: 1,328,121.0 | C101: 925 | D101: 400,815.0 | E101: 471 | F101: 19,540.0 | G101: 59 | H101: 0 | I101: 0 | J101: 0 | K101: 0 | L101: 844,388.0 | M101: 210 | N101: 0 | O101: 0 | P101: 0 | Q101: 0 | R101: 29,790.0 | S101: 120 | T101: 0 | U101: 0 | V101: 6,844.0 | W101: 4 | X101: 0 | Y101: 0 | Z101: 0 | AA101: 0 | AB101: 0 | AC101: 0 | AD101: 18,156.0 | AE101: 31 | AF101: 0 | AG101: 0 | AH101: 1,233.0 | AI101: 5 | AJ101: 0 | AK101: 0 | AL101: 886.0 | AM101: 2 | AN101: 1,025.0 | AO101: 3 | AP101: 195.0 | AQ101: 1 | AR101: 0 | AS101: 0 | AT101: 0 | AU101: 0 | AV101: 0 | AW101: 0 | AX101: 0 | AY101: 0 | AZ101: 1,037.0 | BA101: 1 | BB101: 0 | BC101: 0 | BD101: 1,164.0 | BE101: 4 | BF101: 3,048.0 | BG101: 14
A102: 남면 화태리 | B102: 2,189,331.0 | C102: 1,801 | D102: 646,913.0 | E102: 701 | F102: 116,502.0 | G102: 227 | H102: 0 | I102: 0 | J102: 0 | K102: 0 | L102: 1,263,594.0 | M102: 448 | N102: 0 | O102: 0 | P102: 0 | Q102: 0 | R102: 59,062.0 | S102: 240 | T102: 0 | U102: 0 | V102: 12,637.0 | W102: 4 | X102: 0 | Y102: 0 | Z102: 0 | AA102: 0 | AB102: 0 | AC102: 0 | AD102: 52,653.0 | AE102: 110 | AF102: 0 | AG102: 0 | AH102: 6,159.0 | AI102: 19 | AJ102: 0 | AK102: 0 | AL102: 4,965.0 | AM102: 9 | AN102: 6,712.0 | AO102: 9 | AP102: 2,923.0 | AQ102: 3 | AR102: 0 | AS102: 0 | AT102: 0 | AU102: 0 | AV102: 0 | AW102: 0 | AX102: 0 | AY102: 0 | AZ102: 544.0 | BA102: 4 | BB102: 0 | BC102: 0 | BD102: 6,354.0 | BE102: 8 | BF102: 10,313.0 | BG102: 19
A103: 남면 횡간리 | B103: 431,660.0 | C103: 526 | D103: 263,932.0 | E103: 308 | F103: 7,482.0 | G103: 21 | H103: 0 | I103: 0 | J103: 0 | K103: 0 | L103: 114,747.0 | M103: 32 | N103: 0 | O103: 0 | P103: 0 | Q103: 0 | R103: 19,294.0 | S103: 104 | T103: 0 | U103: 0 | V103: 4,408.0 | W103: 4 | X103: 0 | Y103: 0 | Z103: 0 | AA103: 0 | AB103: 0 | AC103: 0 | AD103: 8,244.0 | AE103: 9 | AF103: 0 | AG103: 0 | AH103: 1,599.0 | AI103: 7 | AJ103: 129.0 | AK103: 1 | AL103: 254.0 | AM103: 1 | AN103: 43.0 | AO103: 1 | AP103: 0 | AQ103: 0 | AR103: 0 | AS103: 0 | AT103: 0 | AU103: 0 | AV103: 0 | AW103: 0 | AX103: 0 | AY103: 0 | AZ103: 128.0 | BA103: 1 | BB103: 0 | BC103: 0 | BD103: 2,942.0 | BE103: 13 | BF103: 8,458.0 | BG103: 24
A104: 화정면 백야리 | B104: 3,057,979.0 | C104: 2,088 | D104: 880,084.0 | E104: 853 | F104: 157,507.0 | G104: 212 | H104: 0 | I104: 0 | J104: 1,208.0 | K104: 1 | L104: 1,836,412.0 | M104: 465 | N104: 0 | O104: 0 | P104: 0 | Q104: 0 | R104: 83,291.0 | S104: 265 | T104: 0 | U104: 0 | V104: 16,874.0 | W104: 4 | X104: 0 | Y104: 0 | Z104: 0 | AA104: 0 | AB104: 0 | AC104: 0 | AD104: 46,984.0 | AE104: 247 | AF104: 0 | AG104: 0 | AH104: 3,313.0 | AI104: 11 | AJ104: 0 | AK104: 0 | AL104: 1,706.0 | AM104: 2 | AN104: 1,513.0 | AO104: 2 | AP104: 9,763.0 | AQ104: 3 | AR104: 0 | AS104: 0 | AT104: 0 | AU104: 0 | AV104: 0 | AW104: 0 | AX104: 0 | AY104: 0 | AZ104: 1,892.0 | BA104: 4 | BB104: 0 | BC104: 0 | BD104: 4,530.0 | BE104: 4 | BF104: 12,902.0 | BG104: 15
A105: 화정면 월호리 | B105: 2,023,140.0 | C105: 1,046 | D105: 639,572.0 | E105: 516 | F105: 41,547.0 | G105: 80 | H105: 0 | I105: 0 | J105: 0 | K105: 0 | L105: 1,254,387.0 | M105: 240 | N105: 0 | O105: 0 | P105: 0 | Q105: 0 | R105: 36,971.0 | S105: 135 | T105: 0 | U105: 0 | V105: 7,999.0 | W105: 3 | X105: 0 | Y105: 0 | Z105: 0 | AA105: 0 | AB105: 0 | AC105: 0 | AD105: 21,946.0 | AE105: 34 | AF105: 0 | AG105: 0 | AH105: 1,909.0 | AI105: 10 | AJ105: 0 | AK105: 0 | AL105: 2,956.0 | AM105: 6 | AN105: 40.0 | AO105: 1 | AP105: 1,561.0 | AQ105: 3 | AR105: 0 | AS105: 0 | AT105: 0 | AU105: 0 | AV105: 0 | AW105: 0 | AX105: 0 | AY105: 0 | AZ105: 0 | BA105: 0 | BB105: 0 | BC105: 0 | BD105: 1,818.0 | BE105: 4 | BF105: 12,434.0 | BG105: 14
A106: 화정면 개도리 | B106: 9,728,737.0 | C106: 4,572 | D106: 1,575,181.0 | E106: 1,500 | F106: 463,100.0 | G106: 464 | H106: 0 | I106: 0 | J106: 0 | K106: 0 | L106: 7,082,662.0 | M106: 1,358 | N106: 0 | O106: 0 | P106: 0 | Q106: 0 | R106: 135,869.0 | S106: 512 | T106: 0 | U106: 0 | V106: 19,803.0 | W106: 4 | X106: 0 | Y106: 0 | Z106: 0 | AA106: 0 | AB106: 0 | AC106: 0 | AD106: 214,861.0 | AE106: 574 | AF106: 0 | AG106: 0 | AH106: 21,970.0 | AI106: 17 | AJ106: 0 | AK106: 0 | AL106: 86,466.0 | AM106: 50 | AN106: 63,652.0 | AO106: 19 | AP106: 19,921.0 | AQ106: 17 | AR106: 0 | AS106: 0 | AT106: 0 | AU106: 0 | AV106: 0 | AW106: 0 | AX106: 0 | AY106: 0 | AZ106: 1,336.0 | BA106: 4 | BB106: 0 | BC106: 0 | BD106: 12,085.0 | BE106: 11 | BF106: 31,831.0 | BG106: 42
A107: 화정면 제도리 | B107: 1,098,088.0 | C107: 809 | D107: 366,730.0 | E107: 307 | F107: 51,007.0 | G107: 80 | H107: 0 | I107: 0 | J107: 1,719.0 | K107: 2 | L107: 603,017.0 | M107: 164 | N107: 0 | O107: 0 | P107: 0 | Q107: 0 | R107: 34,418.0 | S107: 105 | T107: 0 | U107: 0 | V107: 81.0 | W107: 3 | X107: 0 | Y107: 0 | Z107: 0 | AA107: 0 | AB107: 0 | AC107: 0 | AD107: 16,816.0 | AE107: 109 | AF107: 0 | AG107: 0 | AH107: 2,932.0 | AI107: 9 | AJ107: 0 | AK107: 0 | AL107: 4,572.0 | AM107: 3 | AN107: 1,842.0 | AO107: 1 | AP107: 0 | AQ107: 0 | AR107: 0 | AS107: 0 | AT107: 0 | AU107: 0 | AV107: 0 | AW107: 0 | AX107: 0 | AY107: 0 | AZ107: 0 | BA107: 0 | BB107: 0 | BC107: 0 | BD107: 3,114.0 | BE107: 10 | BF107: 11,840.0 | BG107: 16
A108: 화정면 상화리 | B108: 672,426.0 | C108: 578 | D108: 301,408.0 | E108: 342 | F108: 5,980.0 | G108: 17 | H108: 0 | I108: 0 | J108: 0 | K108: 0 | L108: 325,737.0 | M108: 109 | N108: 0 | O108: 0 | P108: 0 | Q108: 0 | R108: 20,999.0 | S108: 83 | T108: 0 | U108: 0 | V108: 54.0 | W108: 1 | X108: 0 | Y108: 0 | Z108: 0 | AA108: 0 | AB108: 0 | AC108: 0 | AD108: 11,087.0 | AE108: 10 | AF108: 0 | AG108: 0 | AH108: 1,519.0 | AI108: 4 | AJ108: 0 | AK108: 0 | AL108: 0 | AM108: 0 | AN108: 0 | AO108: 0 | AP108: 0 | AQ108: 0 | AR108: 0 | AS108: 0 | AT108: 0 | AU108: 0 | AV108: 0 | AW108: 0 | AX108: 0 | AY108: 0 | AZ108: 1,117.0 | BA108: 1 | BB108: 0 | BC108: 0 | BD108: 2,446.0 | BE108: 8 | BF108: 2,079.0 | BG108: 3
A109: 화정면 하화리 | B109: 673,278.0 | C109: 535 | D109: 256,512.0 | E109: 289 | F109: 2,435.0 | G109: 15 | H109: 0 | I109: 0 | J109: 0 | K109: 0 | L109: 369,876.0 | M109: 116 | N109: 0 | O109: 0 | P109: 0 | Q109: 0 | R109: 17,319.0 | S109: 65 | T109: 0 | U109: 0 | V109: 1,908.0 | W109: 3 | X109: 0 | Y109: 0 | Z109: 0 | AA109: 0 | AB109: 0 | AC109: 0 | AD109: 4,531.0 | AE109: 12 | AF109: 0 | AG109: 0 | AH109: 606.0 | AI109: 5 | AJ109: 0 | AK109: 0 | AL109: 9,045.0 | AM109: 8 | AN109: 0 | AO109: 0 | AP109: 0 | AQ109: 0 | AR109: 0 | AS109: 0 | AT109: 0 | AU109: 0 | AV109: 0 | AW109: 0 | AX109: 0 | AY109: 0 | AZ109: 0 | BA109: 0 | BB109: 0 | BC109: 0 | BD109: 7,061.0 | BE109: 13 | BF109: 3,985.0 | BG109: 9
A110: 화정면 낭도리 | B110: 5,608,745.0 | C110: 3,252 | D110: 1,443,180.0 | E110: 1,573 | F110: 155,524.0 | G110: 209 | H110: 1,895.0 | I110: 2 | J110: 0 | K110: 0 | L110: 3,708,952.0 | M110: 745 | N110: 0 | O110: 0 | P110: 8,625.0 | Q110: 2 | R110: 72,869.0 | S110: 361 | T110: 0 | U110: 0 | V110: 33,324.0 | W110: 13 | X110: 0 | Y110: 0 | Z110: 0 | AA110: 0 | AB110: 395.0 | AC110: 1 | AD110: 57,290.0 | AE110: 212 | AF110: 0 | AG110: 0 | AH110: 10,962.0 | AI110: 17 | AJ110: 11,323.0 | AK110: 5 | AL110: 25,833.0 | AM110: 27 | AN110: 7,590.0 | AO110: 3 | AP110: 0 | AQ110: 0 | AR110: 0 | AS110: 0 | AT110: 0 | AU110: 0 | AV110: 0 | AW110: 0 | AX110: 0 | AY110: 0 | AZ110: 753.0 | BA110: 2 | BB110: 0 | BC110: 0 | BD110: 20,087.0 | BE110: 37 | BF110: 50,143.0 | BG110: 43
A111: 화정면 조발리 | B111: 1,940,570.0 | C111: 956 | D111: 344,423.0 | E111: 409 | F111: 17,238.0 | G111: 32 | H111: 0 | I111: 0 | J111: 0 | K111: 0 | L111: 1,531,543.0 | M111: 333 | N111: 0 | O111: 0 | P111: 0 | Q111: 0 | R111: 23,495.0 | S111: 120 | T111: 0 | U111: 0 | V111: 2,465.0 | W111: 5 | X111: 0 | Y111: 0 | Z111: 0 | AA111: 0 | AB111: 0 | AC111: 0 | AD111: 13,072.0 | AE111: 26 | AF111: 0 | AG111: 0 | AH111: 616.0 | AI111: 6 | AJ111: 0 | AK111: 0 | AL111: 1,074.0 | AM111: 5 | AN111: 0 | AO111: 0 | AP111: 0 | AQ111: 0 | AR111: 0 | AS111: 0 | AT111: 0 | AU111: 0 | AV111: 0 | AW111: 0 | AX111: 0 | AY111: 0 | AZ111: 0 | BA111: 0 | BB111: 0 | BC111: 0 | BD111: 3,829.0 | BE111: 10 | BF111: 2,815.0 | BG111: 10
A112: 화정면 적금리 | B112: 855,046.0 | C112: 1,187 | D112: 556,292.0 | E112: 789 | F112: 17,487.0 | G112: 24 | H112: 0 | I112: 0 | J112: 0 | K112: 0 | L112: 157,636.0 | M112: 66 | N112: 0 | O112: 0 | P112: 0 | Q112: 0 | R112: 48,700.0 | S112: 189 | T112: 0 | U112: 0 | V112: 4,543.0 | W112: 5 | X112: 0 | Y112: 0 | Z112: 0 | AA112: 0 | AB112: 0 | AC112: 0 | AD112: 18,639.0 | AE112: 11 | AF112: 0 | AG112: 0 | AH112: 1,318.0 | AI112: 5 | AJ112: 4,642.0 | AK112: 11 | AL112: 790.0 | AM112: 1 | AN112: 0 | AO112: 0 | AP112: 0 | AQ112: 0 | AR112: 0 | AS112: 0 | AT112: 0 | AU112: 0 | AV112: 0 | AW112: 0 | AX112: 0 | AY112: 0 | AZ112: 0 | BA112: 0 | BB112: 0 | BC112: 0 | BD112: 40,152.0 | BE112: 72 | BF112: 4,847.0 | BG112: 14
A113: 화정면 여자리 | B113: 694,152.0 | C113: 857 | D113: 366,860.0 | E113: 421 | F113: 7,848.0 | G113: 10 | H113: 0 | I113: 0 | J113: 0 | K113: 0 | L113: 213,234.0 | M113: 108 | N113: 0 | O113: 0 | P113: 0 | Q113: 0 | R113: 44,730.0 | S113: 187 | T113: 0 | U113: 0 | V113: 8,451.0 | W113: 4 | X113: 0 | Y113: 0 | Z113: 0 | AA113: 0 | AB113: 0 | AC113: 0 | AD113: 25,108.0 | AE113: 52 | AF113: 0 | AG113: 0 | AH113: 2,998.0 | AI113: 10 | AJ113: 0 | AK113: 0 | AL113: 1,656.0 | AM113: 1 | AN113: 0 | AO113: 0 | AP113: 662.0 | AQ113: 1 | AR113: 0 | AS113: 0 | AT113: 0 | AU113: 0 | AV113: 0 | AW113: 0 | AX113: 0 | AY113: 0 | AZ113: 2,273.0 | BA113: 2 | BB113: 0 | BC113: 0 | BD113: 13,993.0 | BE113: 45 | BF113: 6,339.0 | BG113: 16
A114: 삼산면 거문리 | B114: 932,449.0 | C114: 679 | D114: 106,524.0 | E114: 157 | F114: 0 | G114: 0 | H114: 0 | I114: 0 | J114: 0 | K114: 0 | L114: 737,137.0 | M114: 123 | N114: 0 | O114: 0 | P114: 0 | Q114: 0 | R114: 44,025.0 | S114: 347 | T114: 0 | U114: 0 | V114: 6,338.0 | W114: 2 | X114: 0 | Y114: 0 | Z114: 0 | AA114: 0 | AB114: 0 | AC114: 0 | AD114: 14,267.0 | AE114: 30 | AF114: 0 | AG114: 0 | AH114: 4,275.0 | AI114: 5 | AJ114: 0 | AK114: 0 | AL114: 0 | AM114: 0 | AN114: 0 | AO114: 0 | AP114: 0 | AQ114: 0 | AR114: 0 | AS114: 0 | AT114: 0 | AU114: 0 | AV114: 0 | AW114: 0 | AX114: 0 | AY114: 0 | AZ114: 208.0 | BA114: 1 | BB114: 0 | BC114: 0 | BD114: 641.0 | BE114: 2 | BF114: 19,034.0 | BG114: 12
A115: 삼산면 덕촌리 | B115: 3,849,842.0 | C115: 2,535 | D115: 571,632.0 | E115: 801 | F115: 22,013.0 | G115: 89 | H115: 981.0 | I115: 1 | J115: 0 | K115: 0 | L115: 2,795,389.0 | M115: 1,101 | N115: 0 | O115: 0 | P115: 0 | Q115: 0 | R115: 89,867.0 | S115: 381 | T115: 0 | U115: 0 | V115: 17,072.0 | W115: 3 | X115: 0 | Y115: 0 | Z115: 0 | AA115: 0 | AB115: 612.0 | AC115: 3 | AD115: 52,240.0 | AE115: 93 | AF115: 0 | AG115: 0 | AH115: 1,687.0 | AI115: 3 | AJ115: 1,127.0 | AK115: 6 | AL115: 6,576.0 | AM115: 5 | AN115: 1,404.0 | AO115: 2 | AP115: 0 | AQ115: 0 | AR115: 0 | AS115: 0 | AT115: 0 | AU115: 0 | AV115: 0 | AW115: 0 | AX115: 0 | AY115: 0 | AZ115: 0 | BA115: 0 | BB115: 0 | BC115: 0 | BD115: 268,109.0 | BE115: 37 | BF115: 21,133.0 | BG115: 10
A116: 삼산면 서도리 | B116: 3,430,497.0 | C116: 2,499 | D116: 705,438.0 | E116: 1,030 | F116: 28,626.0 | G116: 93 | H116: 0 | I116: 0 | J116: 0 | K116: 0 | L116: 2,426,864.0 | M116: 691 | N116: 0 | O116: 0 | P116: 0 | Q116: 0 | R116: 71,026.0 | S116: 374 | T116: 0 | U116: 0 | V116: 7,708.0 | W116: 6 | X116: 0 | Y116: 0 | Z116: 0 | AA116: 0 | AB116: 0 | AC116: 0 | AD116: 52,908.0 | AE116: 103 | AF116: 0 | AG116: 0 | AH116: 2,707.0 | AI116: 6 | AJ116: 0 | AK116: 0 | AL116: 6,271.0 | AM116: 5 | AN116: 122.0 | AO116: 1 | AP116: 3,702.0 | AQ116: 4 | AR116: 0 | AS116: 0 | AT116: 0 | AU116: 0 | AV116: 0 | AW116: 0 | AX116: 0 | AY116: 0 | AZ116: 539.0 | BA116: 4 | BB116: 0 | BC116: 0 | BD116: 55,427.0 | BE116: 111 | BF116: 69,159.0 | BG116: 71
A117: 삼산면 동도리 | B117: 4,565,912.0 | C117: 2,617 | D117: 874,710.0 | E117: 1,130 | F117: 6,382.0 | G117: 27 | H117: 0 | I117: 0 | J117: 0 | K117: 0 | L117: 3,447,411.0 | M117: 910 | N117: 0 | O117: 0 | P117: 0 | Q117: 0 | R117: 65,212.0 | S117: 335 | T117: 0 | U117: 0 | V117: 7,242.0 | W117: 5 | X117: 0 | Y117: 0 | Z117: 0 | AA117: 0 | AB117: 0 | AC117: 0 | AD117: 34,630.0 | AE117: 44 | AF117: 0 | AG117: 0 | AH117: 11,599.0 | AI117: 10 | AJ117: 0 | AK117: 0 | AL117: 12,089.0 | AM117: 9 | AN117: 1,878.0 | AO117: 1 | AP117: 6,222.0 | AQ117: 5 | AR117: 0 | AS117: 0 | AT117: 0 | AU117: 0 | AV117: 0 | AW117: 0 | AX117: 0 | AY117: 0 | AZ117: 225.0 | BA117: 1 | BB117: 0 | BC117: 0 | BD117: 81,359.0 | BE117: 105 | BF117: 16,953.0 | BG117: 35
A118: 삼산면 초도리 | B118: 8,557,524.0 | C118: 3,722 | D118: 1,643,354.0 | E118: 1,571 | F118: 186,959.0 | G118: 350 | H118: 0 | I118: 0 | J118: 61,489.0 | K118: 5 | L118: 6,270,624.0 | M118: 968 | N118: 0 | O118: 0 | P118: 0 | Q118: 0 | R118: 124,363.0 | S118: 417 | T118: 0 | U118: 0 | V118: 23,337.0 | W118: 5 | X118: 0 | Y118: 0 | Z118: 0 | AA118: 0 | AB118: 156.0 | AC118: 1 | AD118: 177,356.0 | AE118: 359 | AF118: 0 | AG118: 0 | AH118: 7,593.0 | AI118: 13 | AJ118: 0 | AK118: 0 | AL118: 10,019.0 | AM118: 8 | AN118: 0 | AO118: 0 | AP118: 0 | AQ118: 0 | AR118: 0 | AS118: 0 | AT118: 0 | AU118: 0 | AV118: 0 | AW118: 0 | AX118: 0 | AY118: 0 | AZ118: 793.0 | BA118: 2 | BB118: 0 | BC118: 0 | BD118: 12,496.0 | BE118: 1 | BF118: 38,985.0 | BG118: 22
A119: 삼산면 손죽리 | B119: 6,207,214.0 | C119: 1,950 | D119: 903,900.0 | E119: 1,013 | F119: 41,528.0 | G119: 119 | H119: 0 | I119: 0 | J119: 20,002.0 | K119: 1 | L119: 5,058,865.0 | M119: 440 | N119: 0 | O119: 0 | P119: 0 | Q119: 0 | R119: 85,341.0 | S119: 300 | T119: 0 | U119: 0 | V119: 10,215.0 | W119: 4 | X119: 0 | Y119: 0 | Z119: 0 | AA119: 0 | AB119: 0 | AC119: 0 | AD119: 60,428.0 | AE119: 36 | AF119: 0 | AG119: 0 | AH119: 1,024.0 | AI119: 5 | AJ119: 297.0 | AK119: 2 | AL119: 13,491.0 | AM119: 8 | AN119: 893.0 | AO119: 1 | AP119: 0 | AQ119: 0 | AR119: 0 | AS119: 0 | AT119: 0 | AU119: 0 | AV119: 0 | AW119: 0 | AX119: 0 | AY119: 0 | AZ119: 198.0 | BA119: 1 | BB119: 0 | BC119: 0 | BD119: 3,968.0 | BE119: 4 | BF119: 7,064.0 | BG119: 16

Sheet 행정동(2013)
A1: 구 분 | B1: 합 계 | D1: 전 | F1: 답 | H1: 과수원 | J1: 목장용지 | L1: 임야 | N1: 광천지 | P1: 염전 | R1: 대 | T1: 공장용지 | V1: 학교용지 | X1: 주차장 | Z1: 주유소용지 | AB1: 창고용지 | AD1: 도로 | AF1: 철도용지 | AH1: 제방 | AJ1: 하천 | AL1: 구거 | AN1: 유지 | AP1: 양어장 | AR1: 수도용지 | AT1: 공원 | AV1: 체육용지 | AX1: 유원지 | AZ1: 종교용지 | BB1: 사적지 | BD1: 묘지 | BF1: 잡종지
B2: 면 적 | C2: 지번수 | D2: 면 적 | E2: 지번수 | F2: 면 적 | G2: 지번수 | H2: 면 적 | I2: 지번수 | J2: 면 적 | K2: 지번수 | L2: 면 적 | M2: 지번수 | N2: 면 적 | O2: 지번수 | P2: 면 적 | Q2: 지번수 | R2: 면 적 | S2: 지번수 | T2: 면 적 | U2: 지번수 | V2: 면 적 | W2: 지번수 | X2: 면 적 | Y2: 지번수 | Z2: 면 적 | AA2: 지번수 | AB2: 면 적 | AC2: 지번수 | AD2: 면 적 | AE2: 지번수 | AF2: 면 적 | AG2: 지번수 | AH2: 면 적 | AI2: 지번수 | AJ2: 면 적 | AK2: 지번수 | AL2: 면 적 | AM2: 지번수 | AN2: 면 적 | AO2: 지번수 | AP2: 면 적 | AQ2: 지번수 | AR2: 면 적 | AS2: 지번수 | AT2: 면 적 | AU2: 지번수 | AV2: 면 적 | AW2: 지번수 | AX2: 면 적 | AY2: 지번수 | AZ2: 면 적 | BA2: 지번수 | BB2: 면 적 | BC2: 지번수 | BD2: 면 적 | BE2: 지번수 | BF2: 면 적 | BG2: 지번수
A3: 합 계 | B3: =SUM(B4:B30) -> 504,308,958.0 | C3: =SUM(C4:C30) -> 310,125 | D3: 66,829,496.60 | E3: 74,906 | F3: 41,689,757.70 | G3: 46,705 | H3: 564,671.00 | I3: 204 | J3: 1,855,559.00 | K3: 514 | L3: 306,283,875.20 | M3: 54,429 | N3: 0 | O3: 0 | P3: 10,562.00 | Q3: 6 | R3: 21,564,759.40 | S3: 65,811 | T3: 15,756,522.90 | U3: 1,190 | V3: 2,005,867.00 | W3: 376 | X3: 346,626.40 | Y3: 394 | Z3: 501,120.30 | AA3: 244 | AB3: 262,666.60 | AC3: 398 | AD3: 19,684,967.00 | AE3: 48,468 | AF3: 1,028,567.20 | AG3: 875 | AH3: =SUM(AH4:AH30) -> 657,269.20 | AI3: 788 | AJ3: 2,414,211.70 | AK3: 942 | AL3: 4,612,411.30 | AM3: 4,741 | AN3: 2,910,786.90 | AO3: 1,438 | AP3: 227,613.10 | AQ3: 148 | AR3: 475,653.90 | AS3: 405 | AT3: 1,318,673.20 | AU3: 291 | AV3: 1,176,999.60 | AW3: 45 | AX3: 263,794.90 | AY3: 4 | AZ3: 417,357.60 | BA3: 445 | BB3: 20,795.00 | BC3: 15 | BD3: 1,820,471.00 | BE3: 1,928 | BF3: 9,607,902.30 | BG3: 4,415
A4: 돌산읍 | B4: =SUM('법정동(2013)'!B57:B66) -> 71,922,310.6 | C4: =SUM('법정동(2013)'!C57:C66) -> 45,239 | D4: =SUM('법정동(2013)'!D57:D66) -> 10,500,379.70 | E4: =SUM('법정동(2013)'!E57:E66) -> 11,472 | F4: =SUM('법정동(2013)'!F57:F66) -> 5,013,819.20 | G4: =SUM('법정동(2013)'!G57:G66) -> 6,377 | H4: =SUM('법정동(2013)'!H57:H66) -> 95,111.00 | I4: =SUM('법정동(2013)'!I57:I66) -> 25 | J4: =SUM('법정동(2013)'!J57:J66) -> 1,007,208.00 | K4: =SUM('법정동(2013)'!K57:K66) -> 64 | L4: =SUM('법정동(2013)'!L57:L66) -> 48,181,852.00 | M4: =SUM('법정동(2013)'!M57:M66) -> 8,912 | N4: =SUM('법정동(2013)'!N57:N66) -> 0 | O4: =SUM('법정동(2013)'!O57:O66) -> 0 | P4: =SUM('법정동(2013)'!P57:P66) -> 0 | Q4: =SUM('법정동(2013)'!Q57:Q66) -> 0 | R4: =SUM('법정동(2013)'!R57:R66) -> 2,198,656.90 | S4: =SUM('법정동(2013)'!S57:S66) -> 6,992 | T4: =SUM('법정동(2013)'!T57:T66) -> 55,438.00 | U4: =SUM('법정동(2013)'!U57:U66) -> 49 | V4: =SUM('법정동(2013)'!V57:V66) -> 172,181.50 | W4: =SUM('법정동(2013)'!W57:W66) -> 43 | X4: =SUM('법정동(2013)'!X57:X66) -> 7,090.60 | Y4: =SUM('법정동(2013)'!Y57:Y66) -> 13 | Z4: =SUM('법정동(2013)'!Z57:Z66) -> 7,884.00 | AA4: =SUM('법정동(2013)'!AA57:AA66) -> 17 | AB4: =SUM('법정동(2013)'!AB57:AB66) -> 48,116.60 | AC4: =SUM('법정동(2013)'!AC57:AC66) -> 83 | AD4: =SUM('법정동(2013)'!AD57:AD66) -> 2,244,027.70 | AE4: =SUM('법정동(2013)'!AE57:AE66) -> 8,459 | AF4: =SUM('법정동(2013)'!AF57:AF66) -> 0 | AG4: =SUM('법정동(2013)'!AG57:AG66) -> 0 | AH4: =SUM('법정동(2013)'!AH57:AH66) -> 94,823.30 | AI4: =SUM('법정동(2013)'!AI57:AI66) -> 191 | AJ4: =SUM('법정동(2013)'!AJ57:AJ66) -> 59,511.30 | AK4: =SUM('법정동(2013)'!AK57:AK66) -> 87 | AL4: =SUM('법정동(2013)'!AL57:AL66) -> 576,624.00 | AM4: =SUM('법정동(2013)'!AM57:AM66) -> 689 | AN4: =SUM('법정동(2013)'!AN57:AN66) -> 426,972.00 | AO4: =SUM('법정동(2013)'!AO57:AO66) -> 352 | AP4: =SUM('법정동(2013)'!AP57:AP66) -> 118,911.10 | AQ4: =SUM('법정동(2013)'!AQ57:AQ66) -> 68 | AR4: =SUM('법정동(2013)'!AR57:AR66) -> 833.00 | AS4: =SUM('법정동(2013)'!AS57:AS66) -> 2 | AT4: =SUM('법정동(2013)'!AT57:AT66) -> 56,646.30 | AU4: =SUM('법정동(2013)'!AU57:AU66) -> 12 | AV4: =SUM('법정동(2013)'!AV57:AV66) -> 0 | AW4: =SUM('법정동(2013)'!AW57:AW66) -> 0 | AX4: =SUM('법정동(2013)'!AX57:AX66) -> 214,140.60 | AY4: =SUM('법정동(2013)'!AY57:AY66) -> 2 | AZ4: =SUM('법정동(2013)'!AZ57:AZ66) -> 58,127.80 | BA4: =SUM('법정동(2013)'!BA57:BA66) -> 48 | BB4: =SUM('법정동(2013)'!BB57:BB66) -> 883.00 | BC4: =SUM('법정동(2013)'!BC57:BC66) -> 4 | BD4: =SUM('법정동(2013)'!BD57:BD66) -> 219,787.00 | BE4: =SUM('법정동(2013)'!BE57:BE66) -> 251 | BF4: =SUM('법정동(2013)'!BF57:BF66) -> 563,286.00 | BG4: =SUM('법정동(2013)'!BG57:BG66) -> 1,027
A5: 소라면 | B5: =SUM('법정동(2013)'!B67:B74) -> 60,562,341.2 | C5: =SUM('법정동(2013)'!C67:C74) -> 34,610 | D5: =SUM('법정동(2013)'!D67:D74) -> 6,856,119.20 | E5: =SUM('법정동(2013)'!E67:E74) -> 7,868 | F5: =SUM('법정동(2013)'!F67:F74) -> 9,742,339.40 | G5: =SUM('법정동(2013)'!G67:G74) -> 8,194 | H5: =SUM('법정동(2013)'!H67:H74) -> 36,007.00 | I5: =SUM('법정동(2013)'!I67:I74) -> 12 | J5: =SUM('법정동(2013)'!J67:J74) -> 161,334.00 | K5: =SUM('법정동(2013)'!K67:K74) -> 92 | L5: =SUM('법정동(2013)'!L67:L74) -> 35,545,534.00 | M5: =SUM('법정동(2013)'!M67:M74) -> 5,909 | N5: =SUM('법정동(2013)'!N67:N74) -> 0 | O5: =SUM('법정동(2013)'!O67:O74) -> 0 | P5: =SUM('법정동(2013)'!P67:P74) -> 0 | Q5: =SUM('법정동(2013)'!Q67:Q74) -> 0 | R5: =SUM('법정동(2013)'!R67:R74) -> 1,782,557.10 | S5: =SUM('법정동(2013)'!S67:S74) -> 4,337 | T5: =SUM('법정동(2013)'!T67:T74) -> 61,597.00 | U5: =SUM('법정동(2013)'!U67:U74) -> 35 | V5: =SUM('법정동(2013)'!V67:V74) -> 102,110.70 | W5: =SUM('법정동(2013)'!W67:W74) -> 17 | X5: =SUM('법정동(2013)'!X67:X74) -> 40,030.10 | Y5: =SUM('법정동(2013)'!Y67:Y74) -> 45 | Z5: =SUM('법정동(2013)'!Z67:Z74) -> 31,441.70 | AA5: =SUM('법정동(2013)'!AA67:AA74) -> 36 | AB5: =SUM('법정동(2013)'!AB67:AB74) -> 60,155.00 | AC5: =SUM('법정동(2013)'!AC67:AC74) -> 86 | AD5: =SUM('법정동(2013)'!AD67:AD74) -> 2,374,243.30 | AE5: =SUM('법정동(2013)'!AE67:AE74) -> 6,032 | AF5: =SUM('법정동(2013)'!AF67:AF74) -> 95,043.00 | AG5: =SUM('법정동(2013)'!AG67:AG74) -> 58 | AH5: =SUM('법정동(2013)'!AH67:AH74) -> 63,531.60 | AI5: =SUM('법정동(2013)'!AI67:AI74) -> 40 | AJ5: =SUM('법정동(2013)'!AJ67:AJ74) -> 793,275.50 | AK5: =SUM('법정동(2013)'!AK67:AK74) -> 120 | AL5: =SUM('법정동(2013)'!AL67:AL74) -> 948,935.10 | AM5: =SUM('법정동(2013)'!AM67:AM74) -> 859 | AN5: =SUM('법정동(2013)'!AN67:AN74) -> 951,415.60 | AO5: =SUM('법정동(2013)'!AO67:AO74) -> 188 | AP5: =SUM('법정동(2013)'!AP67:AP74) -> 1,375.00 | AQ5: =SUM('법정동(2013)'!AQ67:AQ74) -> 1 | AR5: =SUM('법정동(2013)'!AR67:AR74) -> 24,714.80 | AS5: =SUM('법정동(2013)'!AS67:AS74) -> 59 | AT5: =SUM('법정동(2013)'!AT67:AT74) -> 145,680.80 | AU5: =SUM('법정동(2013)'!AU67:AU74) -> 52 | AV5: =SUM('법정동(2013)'!AV67:AV74) -> 6,110.00 | AW5: =SUM('법정동(2013)'!AW67:AW74) -> 8 | AX5: =SUM('법정동(2013)'!AX67:AX74) -> 0 | AY5: =SUM('법정동(2013)'!AY67:AY74) -> 0 | AZ5: =SUM('법정동(2013)'!AZ67:AZ74) -> 28,872.30 | BA5: =SUM('법정동(2013)'!BA67:BA74) -> 39 | BB5: =SUM('법정동(2013)'!BB67:BB74) -> 0 | BC5: =SUM('법정동(2013)'!BC67:BC74) -> 0 | BD5: =SUM('법정동(2013)'!BD67:BD74) -> 348,768.00 | BE5: =SUM('법정동(2013)'!BE67:BE74) -> 184 | BF5: =SUM('법정동(2013)'!BF67:BF74) -> 361,151.00 | BG5: =SUM('법정동(2013)'!BG67:BG74) -> 339
A6: 율촌면 | B6: =SUM('법정동(2013)'!B75:B84) -> 47,352,954.7 | C6: =SUM('법정동(2013)'!C75:C84) -> 31,453 | D6: =SUM('법정동(2013)'!D75:D84) -> 5,150,053.00 | E6: =SUM('법정동(2013)'!E75:E84) -> 5,854 | F6: =SUM('법정동(2013)'!F75:F84) -> 7,883,747.00 | G6: =SUM('법정동(2013)'!G75:G84) -> 8,109 | H6: =SUM('법정동(2013)'!H75:H84) -> 231,560.00 | I6: =SUM('법정동(2013)'!I75:I84) -> 81 | J6: =SUM('법정동(2013)'!J75:J84) -> 367,311.00 | K6: =SUM('법정동(2013)'!K75:K84) -> 239 | L6: =SUM('법정동(2013)'!L75:L84) -> 26,811,120.90 | M6: =SUM('법정동(2013)'!M75:M84) -> 5,526 | N6: =SUM('법정동(2013)'!N75:N84) -> 0 | O6: =SUM('법정동(2013)'!O75:O84) -> 0 | P6: =SUM('법정동(2013)'!P75:P84) -> 1,937.00 | Q6: =SUM('법정동(2013)'!Q75:Q84) -> 4 | R6: =SUM('법정동(2013)'!R75:R84) -> 1,649,657.10 | S6: =SUM('법정동(2013)'!S75:S84) -> 4,008 | T6: =SUM('법정동(2013)'!T75:T84) -> 221,674.40 | U6: =SUM('법정동(2013)'!U75:U84) -> 35 | V6: =SUM('법정동(2013)'!V75:V84) -> 82,349.00 | W6: =SUM('법정동(2013)'!W75:W84) -> 18 | X6: =SUM('법정동(2013)'!X75:X84) -> 38,922.50 | Y6: =SUM('법정동(2013)'!Y75:Y84) -> 28 | Z6: =SUM('법정동(2013)'!Z75:Z84) -> 22,941.00 | AA6: =SUM('법정동(2013)'!AA75:AA84) -> 21 | AB6: =SUM('법정동(2013)'!AB75:AB84) -> 30,350.00 | AC6: =SUM('법정동(2013)'!AC75:AC84) -> 41 | AD6: =SUM('법정동(2013)'!AD75:AD84) -> 1,849,784.60 | AE6: =SUM('법정동(2013)'!AE75:AE84) -> 5,532 | AF6: =SUM('법정동(2013)'!AF75:AF84) -> 165,012.00 | AG6: =SUM('법정동(2013)'!AG75:AG84) -> 116 | AH6: =SUM('법정동(2013)'!AH75:AH84) -> 34,135.00 | AI6: =SUM('법정동(2013)'!AI75:AI84) -> 32 | AJ6: =SUM('법정동(2013)'!AJ75:AJ84) -> 183,928.00 | AK6: =SUM('법정동(2013)'!AK75:AK84) -> 63 | AL6: =SUM('법정동(2013)'!AL75:AL84) -> 892,602.30 | AM6: =SUM('법정동(2013)'!AM75:AM84) -> 822 | AN6: =SUM('법정동(2013)'!AN75:AN84) -> 341,352.00 | AO6: =SUM('법정동(2013)'!AO75:AO84) -> 191 | AP6: =SUM('법정동(2013)'!AP75:AP84) -> 2,992.00 | AQ6: =SUM('법정동(2013)'!AQ75:AQ84) -> 2 | AR6: =SUM('법정동(2013)'!AR75:AR84) -> 90,847.00 | AS6: =SUM('법정동(2013)'!AS75:AS84) -> 104 | AT6: =SUM('법정동(2013)'!AT75:AT84) -> 188,670.30 | AU6: =SUM('법정동(2013)'!AU75:AU84) -> 19 | AV6: =SUM('법정동(2013)'!AV75:AV84) -> 0 | AW6: =SUM('법정동(2013)'!AW75:AW84) -> 0 | AX6: =SUM('법정동(2013)'!AX75:AX84) -> 0 | AY6: =SUM('법정동(2013)'!AY75:AY84) -> 0 | AZ6: =SUM('법정동(2013)'!AZ75:AZ84) -> 28,673.00 | BA6: =SUM('법정동(2013)'!BA75:BA84) -> 31 | BB6: =SUM('법정동(2013)'!BB75:BB84) -> 0 | BC6: =SUM('법정동(2013)'!BC75:BC84) -> 0 | BD6: =SUM('법정동(2013)'!BD75:BD84) -> 124,710.00 | BE6: =SUM('법정동(2013)'!BE75:BE84) -> 165 | BF6: =SUM('법정동(2013)'!BF75:BF84) -> 958,625.60 | BG6: =SUM('법정동(2013)'!BG75:BG84) -> 412
A7: 화양면 | B7: =SUM('법정동(2013)'!B85:B94) -> 70,121,123.1 | C7: =SUM('법정동(2013)'!C85:C94) -> 38,690 | D7: =SUM('법정동(2013)'!D85:D94) -> 10,696,032.70 | E7: =SUM('법정동(2013)'!E85:E94) -> 10,497 | F7: =SUM('법정동(2013)'!F85:F94) -> 6,059,909.20 | G7: =SUM('법정동(2013)'!G85:G94) -> 6,625 | H7: =SUM('법정동(2013)'!H85:H94) -> 130,112.00 | I7: =SUM('법정동(2013)'!I85:I94) -> 51 | J7: =SUM('법정동(2013)'!J85:J94) -> 215,431.00 | K7: =SUM('법정동(2013)'!K85:K94) -> 84 | L7: =SUM('법정동(2013)'!L85:L94) -> 47,344,967.80 | M7: =SUM('법정동(2013)'!M85:M94) -> 8,580 | N7: =SUM('법정동(2013)'!N85:N94) -> 0 | O7: =SUM('법정동(2013)'!O85:O94) -> 0 | P7: =SUM('법정동(2013)'!P85:P94) -> 0 | Q7: =SUM('법정동(2013)'!Q85:Q94) -> 0 | R7: =SUM('법정동(2013)'!R85:R94) -> 1,351,366.50 | S7: =SUM('법정동(2013)'!S85:S94) -> 4,044 | T7: =SUM('법정동(2013)'!T85:T94) -> 220,322.20 | U7: =SUM('법정동(2013)'!U85:U94) -> 73 | V7: =SUM('법정동(2013)'!V85:V94) -> 117,587.00 | W7: =SUM('법정동(2013)'!W85:W94) -> 38 | X7: =SUM('법정동(2013)'!X85:X94) -> 6,702.00 | Y7: =SUM('법정동(2013)'!Y85:Y94) -> 10 | Z7: =SUM('법정동(2013)'!Z85:Z94) -> 11,752.00 | AA7: =SUM('법정동(2013)'!AA85:AA94) -> 7 | AB7: =SUM('법정동(2013)'!AB85:AB94) -> 40,494.00 | AC7: =SUM('법정동(2013)'!AC85:AC94) -> 74 | AD7: =SUM('법정동(2013)'!AD85:AD94) -> 1,995,004.60 | AE7: =SUM('법정동(2013)'!AE85:AE94) -> 6,742 | AF7: =SUM('법정동(2013)'!AF85:AF94) -> 0 | AG7: =SUM('법정동(2013)'!AG85:AG94) -> 0 | AH7: =SUM('법정동(2013)'!AH85:AH94) -> 48,325.00 | AI7: =SUM('법정동(2013)'!AI85:AI94) -> 97 | AJ7: =SUM('법정동(2013)'!AJ85:AJ94) -> 102,962.10 | AK7: =SUM('법정동(2013)'!AK85:AK94) -> 69 | AL7: =SUM('법정동(2013)'!AL85:AL94) -> 770,034.50 | AM7: =SUM('법정동(2013)'!AM85:AM94) -> 841 | AN7: =SUM('법정동(2013)'!AN85:AN94) -> 564,672.80 | AO7: =SUM('법정동(2013)'!AO85:AO94) -> 271 | AP7: =SUM('법정동(2013)'!AP85:AP94) -> 33,427.00 | AQ7: =SUM('법정동(2013)'!AQ85:AQ94) -> 21 | AR7: =SUM('법정동(2013)'!AR85:AR94) -> 0 | AS7: =SUM('법정동(2013)'!AS85:AS94) -> 0 | AT7: =SUM('법정동(2013)'!AT85:AT94) -> 0 | AU7: =SUM('법정동(2013)'!AU85:AU94) -> 0 | AV7: =SUM('법정동(2013)'!AV85:AV94) -> 0 | AW7: =SUM('법정동(2013)'!AW85:AW94) -> 0 | AX7: =SUM('법정동(2013)'!AX85:AX94) -> 0 | AY7: =SUM('법정동(2013)'!AY85:AY94) -> 0 | AZ7: =SUM('법정동(2013)'!AZ85:AZ94) -> 23,395.00 | BA7: =SUM('법정동(2013)'!BA85:BA94) -> 40 | BB7: =SUM('법정동(2013)'!BB85:BB94) -> 6,161.00 | BC7: =SUM('법정동(2013)'!BC85:BC94) -> 3 | BD7: =SUM('법정동(2013)'!BD85:BD94) -> 136,137.00 | BE7: =SUM('법정동(2013)'!BE85:BE94) -> 161 | BF7: =SUM('법정동(2013)'!BF85:BF94) -> 246,327.70 | BG7: =SUM('법정동(2013)'!BG85:BG94) -> 362
A8: 남 면 | B8: =SUM('법정동(2013)'!B95:B103) -> 42,549,792.0 | C8: =SUM('법정동(2013)'!C95:C103) -> 21,310 | D8: =SUM('법정동(2013)'!D95:D103) -> 9,160,611.00 | E8: =SUM('법정동(2013)'!E95:E103) -> 8,379 | F8: =SUM('법정동(2013)'!F95:F103) -> 1,429,688.00 | G8: =SUM('법정동(2013)'!G95:G103) -> 3,205 | H8: =SUM('법정동(2013)'!H95:H103) -> 0 | I8: =SUM('법정동(2013)'!I95:I103) -> 0 | J8: =SUM('법정동(2013)'!J95:J103) -> 598.00 | K8: =SUM('법정동(2013)'!K95:K103) -> 1 | L8: =SUM('법정동(2013)'!L95:L103) -> 29,898,435.00 | M8: =SUM('법정동(2013)'!M95:M103) -> 4,318 | N8: =SUM('법정동(2013)'!N95:N103) -> 0 | O8: =SUM('법정동(2013)'!O95:O103) -> 0 | P8: =SUM('법정동(2013)'!P95:P103) -> 0 | Q8: =SUM('법정동(2013)'!Q95:Q103) -> 0 | R8: =SUM('법정동(2013)'!R95:R103) -> 639,132.00 | S8: =SUM('법정동(2013)'!S95:S103) -> 2,667 | T8: =SUM('법정동(2013)'!T95:T103) -> 0 | U8: =SUM('법정동(2013)'!U95:U103) -> 0 | V8: =SUM('법정동(2013)'!V95:V103) -> 97,434.00 | W8: =SUM('법정동(2013)'!W95:W103) -> 45 | X8: =SUM('법정동(2013)'!X95:X103) -> 0 | Y8: =SUM('법정동(2013)'!Y95:Y103) -> 0 | Z8: =SUM('법정동(2013)'!Z95:Z103) -> 0 | AA8: =SUM('법정동(2013)'!AA95:AA103) -> 0 | AB8: =SUM('법정동(2013)'!AB95:AB103) -> 900.00 | AC8: =SUM('법정동(2013)'!AC95:AC103) -> 4 | AD8: =SUM('법정동(2013)'!AD95:AD103) -> 765,618.00 | AE8: =SUM('법정동(2013)'!AE95:AE103) -> 1,907 | AF8: =SUM('법정동(2013)'!AF95:AF103) -> 0 | AG8: =SUM('법정동(2013)'!AG95:AG103) -> 0 | AH8: =SUM('법정동(2013)'!AH95:AH103) -> 33,581.00 | AI8: =SUM('법정동(2013)'!AI95:AI103) -> 104 | AJ8: =SUM('법정동(2013)'!AJ95:AJ103) -> 14,717.00 | AK8: =SUM('법정동(2013)'!AK95:AK103) -> 49 | AL8: =SUM('법정동(2013)'!AL95:AL103) -> 128,685.00 | AM8: =SUM('법정동(2013)'!AM95:AM103) -> 140 | AN8: =SUM('법정동(2013)'!AN95:AN103) -> 38,108.00 | AO8: =SUM('법정동(2013)'!AO95:AO103) -> 54 | AP8: =SUM('법정동(2013)'!AP95:AP103) -> 26,460.00 | AQ8: =SUM('법정동(2013)'!AQ95:AQ103) -> 21 | AR8: =SUM('법정동(2013)'!AR95:AR103) -> 2,410.00 | AS8: =SUM('법정동(2013)'!AS95:AS103) -> 5 | AT8: =SUM('법정동(2013)'!AT95:AT103) -> 0 | AU8: =SUM('법정동(2013)'!AU95:AU103) -> 0 | AV8: =SUM('법정동(2013)'!AV95:AV103) -> 0 | AW8: =SUM('법정동(2013)'!AW95:AW103) -> 0 | AX8: =SUM('법정동(2013)'!AX95:AX103) -> 0 | AY8: =SUM('법정동(2013)'!AY95:AY103) -> 0 | AZ8: =SUM('법정동(2013)'!AZ95:AZ103) -> 4,706.00 | BA8: =SUM('법정동(2013)'!BA95:BA103) -> 14 | BB8: =SUM('법정동(2013)'!BB95:BB103) -> 0 | BC8: =SUM('법정동(2013)'!BC95:BC103) -> 0 | BD8: =SUM('법정동(2013)'!BD95:BD103) -> 126,508.00 | BE8: =SUM('법정동(2013)'!BE95:BE103) -> 127 | BF8: =SUM('법정동(2013)'!BF95:BF103) -> 182,201.00 | BG8: =SUM('법정동(2013)'!BG95:BG103) -> 270
A9: 화정면 | B9: =SUM('법정동(2013)'!B104:B113) -> 26,352,161.0 | C9: =SUM('법정동(2013)'!C104:C113) -> 15,880 | D9: =SUM('법정동(2013)'!D104:D113) -> 6,730,242.00 | E9: =SUM('법정동(2013)'!E104:E113) -> 6,999 | F9: =SUM('법정동(2013)'!F104:F113) -> 919,673.00 | G9: =SUM('법정동(2013)'!G104:G113) -> 1,143 | H9: =SUM('법정동(2013)'!H104:H113) -> 1,895.00 | I9: =SUM('법정동(2013)'!I104:I113) -> 2 | J9: =SUM('법정동(2013)'!J104:J113) -> 2,927.00 | K9: =SUM('법정동(2013)'!K104:K113) -> 3 | L9: =SUM('법정동(2013)'!L104:L113) -> 17,083,456.00 | M9: =SUM('법정동(2013)'!M104:M113) -> 3,704 | N9: =SUM('법정동(2013)'!N104:N113) -> 0 | O9: =SUM('법정동(2013)'!O104:O113) -> 0 | P9: =SUM('법정동(2013)'!P104:P113) -> 8,625.00 | Q9: =SUM('법정동(2013)'!Q104:Q113) -> 2 | R9: =SUM('법정동(2013)'!R104:R113) -> 518,661.00 | S9: =SUM('법정동(2013)'!S104:S113) -> 2,022 | T9: =SUM('법정동(2013)'!T104:T113) -> 0 | U9: =SUM('법정동(2013)'!U104:U113) -> 0 | V9: =SUM('법정동(2013)'!V104:V113) -> 95,502.00 | W9: =SUM('법정동(2013)'!W104:W113) -> 45 | X9: =SUM('법정동(2013)'!X104:X113) -> 0 | Y9: =SUM('법정동(2013)'!Y104:Y113) -> 0 | Z9: =SUM('법정동(2013)'!Z104:Z113) -> 0 | AA9: =SUM('법정동(2013)'!AA104:AA113) -> 0 | AB9: =SUM('법정동(2013)'!AB104:AB113) -> 395.00 | AC9: =SUM('법정동(2013)'!AC104:AC113) -> 1 | AD9: =SUM('법정동(2013)'!AD104:AD113) -> 430,334.00 | AE9: =SUM('법정동(2013)'!AE104:AE113) -> 1,287 | AF9: =SUM('법정동(2013)'!AF104:AF113) -> 0 | AG9: =SUM('법정동(2013)'!AG104:AG113) -> 0 | AH9: =SUM('법정동(2013)'!AH104:AH113) -> 48,143.00 | AI9: =SUM('법정동(2013)'!AI104:AI113) -> 94 | AJ9: =SUM('법정동(2013)'!AJ104:AJ113) -> 15,965.00 | AK9: =SUM('법정동(2013)'!AK104:AK113) -> 16 | AL9: =SUM('법정동(2013)'!AL104:AL113) -> 134,098.00 | AM9: =SUM('법정동(2013)'!AM104:AM113) -> 103 | AN9: =SUM('법정동(2013)'!AN104:AN113) -> 74,637.00 | AO9: =SUM('법정동(2013)'!AO104:AO113) -> 26 | AP9: =SUM('법정동(2013)'!AP104:AP113) -> 31,907.00 | AQ9: =SUM('법정동(2013)'!AQ104:AQ113) -> 24 | AR9: =SUM('법정동(2013)'!AR104:AR113) -> 0 | AS9: =SUM('법정동(2013)'!AS104:AS113) -> 0 | AT9: =SUM('법정동(2013)'!AT104:AT113) -> 0 | AU9: =SUM('법정동(2013)'!AU104:AU113) -> 0 | AV9: =SUM('법정동(2013)'!AV104:AV113) -> 0 | AW9: =SUM('법정동(2013)'!AW104:AW113) -> 0 | AX9: =SUM('법정동(2013)'!AX104:AX113) -> 0 | AY9: =SUM('법정동(2013)'!AY104:AY113) -> 0 | AZ9: =SUM('법정동(2013)'!AZ104:AZ113) -> 7,371.00 | BA9: =SUM('법정동(2013)'!BA104:BA113) -> 13 | BB9: =SUM('법정동(2013)'!BB104:BB113) -> 0 | BC9: =SUM('법정동(2013)'!BC104:BC113) -> 0 | BD9: =SUM('법정동(2013)'!BD104:BD113) -> 109,115.00 | BE9: =SUM('법정동(2013)'!BE104:BE113) -> 214 | BF9: =SUM('법정동(2013)'!BF104:BF113) -> 139,215.00 | BG9: =SUM('법정동(2013)'!BG104:BG113) -> 182
A10: 삼산면 | B10: =SUM('법정동(2013)'!B114:B119) -> 27,543,438.0 | C10: =SUM('법정동(2013)'!C114:C119) -> 14,002 | D10: =SUM('법정동(2013)'!D114:D119) -> 4,805,558.00 | E10: =SUM('법정동(2013)'!E114:E119) -> 5,702 | F10: =SUM('법정동(2013)'!F114:F119) -> 285,508.00 | G10: =SUM('법정동(2013)'!G114:G119) -> 678 | H10: =SUM('법정동(2013)'!H114:H119) -> 981.00 | I10: =SUM('법정동(2013)'!I114:I119) -> 1 | J10: =SUM('법정동(2013)'!J114:J119) -> 81,491.00 | K10: =SUM('법정동(2013)'!K114:K119) -> 6 | L10: =SUM('법정동(2013)'!L114:L119) -> 20,736,290.00 | M10: =SUM('법정동(2013)'!M114:M119) -> 4,233 | N10: =SUM('법정동(2013)'!N114:N119) -> 0 | O10: =SUM('법정동(2013)'!O114:O119) -> 0 | P10: =SUM('법정동(2013)'!P114:P119) -> 0 | Q10: =SUM('법정동(2013)'!Q114:Q119) -> 0 | R10: =SUM('법정동(2013)'!R114:R119) -> 479,834.00 | S10: =SUM('법정동(2013)'!S114:S119) -> 2,154 | T10: =SUM('법정동(2013)'!T114:T119) -> 0 | U10: =SUM('법정동(2013)'!U114:U119) -> 0 | V10: =SUM('법정동(2013)'!V114:V119) -> 71,912.00 | W10: =SUM('법정동(2013)'!W114:W119) -> 25 | X10: =SUM('법정동(2013)'!X114:X119) -> 0 | Y10: =SUM('법정동(2013)'!Y114:Y119) -> 0 | Z10: =SUM('법정동(2013)'!Z114:Z119) -> 0 | AA10: =SUM('법정동(2013)'!AA114:AA119) -> 0 | AB10: =SUM('법정동(2013)'!AB114:AB119) -> 768.00 | AC10: =SUM('법정동(2013)'!AC114:AC119) -> 4 | AD10: =SUM('법정동(2013)'!AD114:AD119) -> 391,829.00 | AE10: =SUM('법정동(2013)'!AE114:AE119) -> 665 | AF10: =SUM('법정동(2013)'!AF114:AF119) -> 0 | AG10: =SUM('법정동(2013)'!AG114:AG119) -> 0 | AH10: =SUM('법정동(2013)'!AH114:AH119) -> 28,885.00 | AI10: =SUM('법정동(2013)'!AI114:AI119) -> 42 | AJ10: =SUM('법정동(2013)'!AJ114:AJ119) -> 1,424.00 | AK10: =SUM('법정동(2013)'!AK114:AK119) -> 8 | AL10: =SUM('법정동(2013)'!AL114:AL119) -> 48,446.00 | AM10: =SUM('법정동(2013)'!AM114:AM119) -> 35 | AN10: =SUM('법정동(2013)'!AN114:AN119) -> 4,297.00 | AO10: =SUM('법정동(2013)'!AO114:AO119) -> 5 | AP10: =SUM('법정동(2013)'!AP114:AP119) -> 9,924.00 | AQ10: =SUM('법정동(2013)'!AQ114:AQ119) -> 9 | AR10: =SUM('법정동(2013)'!AR114:AR119) -> 0 | AS10: =SUM('법정동(2013)'!AS114:AS119) -> 0 | AT10: =SUM('법정동(2013)'!AT114:AT119) -> 0 | AU10: =SUM('법정동(2013)'!AU114:AU119) -> 0 | AV10: =SUM('법정동(2013)'!AV114:AV119) -> 0 | AW10: =SUM('법정동(2013)'!AW114:AW119) -> 0 | AX10: =SUM('법정동(2013)'!AX114:AX119) -> 0 | AY10: =SUM('법정동(2013)'!AY114:AY119) -> 0 | AZ10: =SUM('법정동(2013)'!AZ114:AZ119) -> 1,963.00 | BA10: =SUM('법정동(2013)'!BA114:BA119) -> 9 | BB10: =SUM('법정동(2013)'!BB114:BB119) -> 0 | BC10: =SUM('법정동(2013)'!BC114:BC119) -> 0 | BD10: =SUM('법정동(2013)'!BD114:BD119) -> 422,000.00 | BE10: =SUM('법정동(2013)'!BE114:BE119) -> 260 | BF10: =SUM('법정동(2013)'!BF114:BF119) -> 172,328.00 | BG10: =SUM('법정동(2013)'!BG114:BG119) -> 166
A11: 동문동 | B11: =SUM('법정동(2013)'!B6,'법정동(2013)'!B9,'법정동(2013)'!B11) -> 930,673.0 | C11: =SUM('법정동(2013)'!C6,'법정동(2013)'!C9,'법정동(2013)'!C11) -> 4,533 | D11: =SUM('법정동(2013)'!D6,'법정동(2013)'!D9,'법정동(2013)'!D11) -> 109,719.00 | E11: =SUM('법정동(2013)'!E6,'법정동(2013)'!E9,'법정동(2013)'!E11) -> 358 | F11: =SUM('법정동(2013)'!F6,'법정동(2013)'!F9,'법정동(2013)'!F11) -> 4,253.00 | G11: =SUM('법정동(2013)'!G6,'법정동(2013)'!G9,'법정동(2013)'!G11) -> 23 | H11: =SUM('법정동(2013)'!H6,'법정동(2013)'!H9,'법정동(2013)'!H11) -> 0 | I11: =SUM('법정동(2013)'!I6,'법정동(2013)'!I9,'법정동(2013)'!I11) -> 0 | J11: =SUM('법정동(2013)'!J6,'법정동(2013)'!J9,'법정동(2013)'!J11) -> 0 | K11: =SUM('법정동(2013)'!K6,'법정동(2013)'!K9,'법정동(2013)'!K11) -> 0 | L11: =SUM('법정동(2013)'!L6,'법정동(2013)'!L9,'법정동(2013)'!L11) -> 154,022.00 | M11: =SUM('법정동(2013)'!M6,'법정동(2013)'!M9,'법정동(2013)'!M11) -> 107 | N11: =SUM('법정동(2013)'!N6,'법정동(2013)'!N9,'법정동(2013)'!N11) -> 0 | O11: =SUM('법정동(2013)'!O6,'법정동(2013)'!O9,'법정동(2013)'!O11) -> 0 | P11: =SUM('법정동(2013)'!P6,'법정동(2013)'!P9,'법정동(2013)'!P11) -> 0 | Q11: =SUM('법정동(2013)'!Q6,'법정동(2013)'!Q9,'법정동(2013)'!Q11) -> 0 | R11: =SUM('법정동(2013)'!R6,'법정동(2013)'!R9,'법정동(2013)'!R11) -> 343,443.00 | S11: =SUM('법정동(2013)'!S6,'법정동(2013)'!S9,'법정동(2013)'!S11) -> 3,241 | T11: =SUM('법정동(2013)'!T6,'법정동(2013)'!T9,'법정동(2013)'!T11) -> 0 | U11: =SUM('법정동(2013)'!U6,'법정동(2013)'!U9,'법정동(2013)'!U11) -> 0 | V11: =SUM('법정동(2013)'!V6,'법정동(2013)'!V9,'법정동(2013)'!V11) -> 76,324.00 | W11: =SUM('법정동(2013)'!W6,'법정동(2013)'!W9,'법정동(2013)'!W11) -> 8 | X11: =SUM('법정동(2013)'!X6,'법정동(2013)'!X9,'법정동(2013)'!X11) -> 1,247.00 | Y11: =SUM('법정동(2013)'!Y6,'법정동(2013)'!Y9,'법정동(2013)'!Y11) -> 9 | Z11: =SUM('법정동(2013)'!Z6,'법정동(2013)'!Z9,'법정동(2013)'!Z11) -> 0 | AA11: =SUM('법정동(2013)'!AA6,'법정동(2013)'!AA9,'법정동(2013)'!AA11) -> 0 | AB11: =SUM('법정동(2013)'!AB6,'법정동(2013)'!AB9,'법정동(2013)'!AB11) -> 177.00 | AC11: =SUM('법정동(2013)'!AC6,'법정동(2013)'!AC9,'법정동(2013)'!AC11) -> 1 | AD11: =SUM('법정동(2013)'!AD6,'법정동(2013)'!AD9,'법정동(2013)'!AD11) -> 122,288.00 | AE11: =SUM('법정동(2013)'!AE6,'법정동(2013)'!AE9,'법정동(2013)'!AE11) -> 693 | AF11: =SUM('법정동(2013)'!AF6,'법정동(2013)'!AF9,'법정동(2013)'!AF11) -> 0 | AG11: =SUM('법정동(2013)'!AG6,'법정동(2013)'!AG9,'법정동(2013)'!AG11) -> 0 | AH11: =SUM('법정동(2013)'!AH6,'법정동(2013)'!AH9,'법정동(2013)'!AH11) -> 2,134.00 | AI11: =SUM('법정동(2013)'!AI6,'법정동(2013)'!AI9,'법정동(2013)'!AI11) -> 5 | AJ11: =SUM('법정동(2013)'!AJ6,'법정동(2013)'!AJ9,'법정동(2013)'!AJ11) -> 0 | AK11: =SUM('법정동(2013)'!AK6,'법정동(2013)'!AK9,'법정동(2013)'!AK11) -> 0 | AL11: =SUM('법정동(2013)'!AL6,'법정동(2013)'!AL9,'법정동(2013)'!AL11) -> 5,328.00 | AM11: =SUM('법정동(2013)'!AM6,'법정동(2013)'!AM9,'법정동(2013)'!AM11) -> 21 | AN11: =SUM('법정동(2013)'!AN6,'법정동(2013)'!AN9,'법정동(2013)'!AN11) -> 0 | AO11: =SUM('법정동(2013)'!AO6,'법정동(2013)'!AO9,'법정동(2013)'!AO11) -> 0 | AP11: =SUM('법정동(2013)'!AP6,'법정동(2013)'!AP9,'법정동(2013)'!AP11) -> 0 | AQ11: =SUM('법정동(2013)'!AQ6,'법정동(2013)'!AQ9,'법정동(2013)'!AQ11) -> 0 | AR11: =SUM('법정동(2013)'!AR6,'법정동(2013)'!AR9,'법정동(2013)'!AR11) -> 5,945.00 | AS11: =SUM('법정동(2013)'!AS6,'법정동(2013)'!AS9,'법정동(2013)'!AS11) -> 6 | AT11: =SUM('법정동(2013)'!AT6,'법정동(2013)'!AT9,'법정동(2013)'!AT11) -> 84,607.00 | AU11: =SUM('법정동(2013)'!AU6,'법정동(2013)'!AU9,'법정동(2013)'!AU11) -> 15 | AV11: =SUM('법정동(2013)'!AV6,'법정동(2013)'!AV9,'법정동(2013)'!AV11) -> 0 | AW11: =SUM('법정동(2013)'!AW6,'법정동(2013)'!AW9,'법정동(2013)'!AW11) -> 0 | AX11: =SUM('법정동(2013)'!AX6,'법정동(2013)'!AX9,'법정동(2013)'!AX11) -> 0 | AY11: =SUM('법정동(2013)'!AY6,'법정동(2013)'!AY9,'법정동(2013)'!AY11) -> 0 | AZ11: =SUM('법정동(2013)'!AZ6,'법정동(2013)'!AZ9,'법정동(2013)'!AZ11) -> 3,567.00 | BA11: =SUM('법정동(2013)'!BA6,'법정동(2013)'!BA9,'법정동(2013)'!BA11) -> 11 | BB11: =SUM('법정동(2013)'!BB6,'법정동(2013)'!BB9,'법정동(2013)'!BB11) -> 0 | BC11: =SUM('법정동(2013)'!BC6,'법정동(2013)'!BC9,'법정동(2013)'!BC11) -> 0 | BD11: =SUM('법정동(2013)'!BD6,'법정동(2013)'!BD9,'법정동(2013)'!BD11) -> 4,334.00 | BE11: =SUM('법정동(2013)'!BE6,'법정동(2013)'!BE9,'법정동(2013)'!BE11) -> 15 | BF11: =SUM('법정동(2013)'!BF6,'법정동(2013)'!BF9,'법정동(2013)'!BF11) -> 13,285.00 | BG11: =SUM('법정동(2013)'!BG6,'법정동(2013)'!BG9,'법정동(2013)'!BG11) -> 20
A12: 한려동 | B12: =SUM('법정동(2013)'!B7:B8) -> 949,848.7 | C12: =SUM('법정동(2013)'!C7:C8) -> 3,150 | D12: =SUM('법정동(2013)'!D7:D8) -> 42,514.00 | E12: =SUM('법정동(2013)'!E7:E8) -> 251 | F12: =SUM('법정동(2013)'!F7:F8) -> 0 | G12: =SUM('법정동(2013)'!G7:G8) -> 0 | H12: =SUM('법정동(2013)'!H7:H8) -> 0 | I12: =SUM('법정동(2013)'!I7:I8) -> 0 | J12: =SUM('법정동(2013)'!J7:J8) -> 0 | K12: =SUM('법정동(2013)'!K7:K8) -> 0 | L12: =SUM('법정동(2013)'!L7:L8) -> 131,879.00 | M12: =SUM('법정동(2013)'!M7:M8) -> 51 | N12: =SUM('법정동(2013)'!N7:N8) -> 0 | O12: =SUM('법정동(2013)'!O7:O8) -> 0 | P12: =SUM('법정동(2013)'!P7:P8) -> 0 | Q12: =SUM('법정동(2013)'!Q7:Q8) -> 0 | R12: =SUM('법정동(2013)'!R7:R8) -> 323,834.80 | S12: =SUM('법정동(2013)'!S7:S8) -> 2,221 | T12: =SUM('법정동(2013)'!T7:T8) -> 0 | U12: =SUM('법정동(2013)'!U7:U8) -> 0 | V12: =SUM('법정동(2013)'!V7:V8) -> 89,058.00 | W12: =SUM('법정동(2013)'!W7:W8) -> 8 | X12: =SUM('법정동(2013)'!X7:X8) -> 14,505.80 | Y12: =SUM('법정동(2013)'!Y7:Y8) -> 11 | Z12: =SUM('법정동(2013)'!Z7:Z8) -> 1,141.00 | AA12: =SUM('법정동(2013)'!AA7:AA8) -> 4 | AB12: =SUM('법정동(2013)'!AB7:AB8) -> 0 | AC12: =SUM('법정동(2013)'!AC7:AC8) -> 0 | AD12: =SUM('법정동(2013)'!AD7:AD8) -> 212,354.30 | AE12: =SUM('법정동(2013)'!AE7:AE8) -> 504 | AF12: =SUM('법정동(2013)'!AF7:AF8) -> 3,858.00 | AG12: =SUM('법정동(2013)'!AG7:AG8) -> 28 | AH12: =SUM('법정동(2013)'!AH7:AH8) -> 11,759.00 | AI12: =SUM('법정동(2013)'!AI7:AI8) -> 4 | AJ12: =SUM('법정동(2013)'!AJ7:AJ8) -> 0 | AK12: =SUM('법정동(2013)'!AK7:AK8) -> 0 | AL12: =SUM('법정동(2013)'!AL7:AL8) -> 3,480.00 | AM12: =SUM('법정동(2013)'!AM7:AM8) -> 22 | AN12: =SUM('법정동(2013)'!AN7:AN8) -> 0 | AO12: =SUM('법정동(2013)'!AO7:AO8) -> 0 | AP12: =SUM('법정동(2013)'!AP7:AP8) -> 0 | AQ12: =SUM('법정동(2013)'!AQ7:AQ8) -> 0 | AR12: =SUM('법정동(2013)'!AR7:AR8) -> 0 | AS12: =SUM('법정동(2013)'!AS7:AS8) -> 0 | AT12: =SUM('법정동(2013)'!AT7:AT8) -> 73,715.60 | AU12: =SUM('법정동(2013)'!AU7:AU8) -> 8 | AV12: =SUM('법정동(2013)'!AV7:AV8) -> 0 | AW12: =SUM('법정동(2013)'!AW7:AW8) -> 0 | AX12: =SUM('법정동(2013)'!AX7:AX8) -> 0 | AY12: =SUM('법정동(2013)'!AY7:AY8) -> 0 | AZ12: =SUM('법정동(2013)'!AZ7:AZ8) -> 6,337.00 | BA12: =SUM('법정동(2013)'!BA7:BA8) -> 9 | BB12: =SUM('법정동(2013)'!BB7:BB8) -> 0 | BC12: =SUM('법정동(2013)'!BC7:BC8) -> 0 | BD12: =SUM('법정동(2013)'!BD7:BD8) -> 1,128.00 | BE12: =SUM('법정동(2013)'!BE7:BE8) -> 5 | BF12: =SUM('법정동(2013)'!BF7:BF8) -> 34,284.20 | BG12: =SUM('법정동(2013)'!BG7:BG8) -> 24
A13: 중앙동 | B13: =SUM('법정동(2013)'!B10,'법정동(2013)'!B12:B13) -> 501,936.2 | C13: =SUM('법정동(2013)'!C10,'법정동(2013)'!C12:C13) -> 3,288 | D13: =SUM('법정동(2013)'!D10,'법정동(2013)'!D12:D13) -> 16,605.00 | E13: =SUM('법정동(2013)'!E10,'법정동(2013)'!E12:E13) -> 104 | F13: =SUM('법정동(2013)'!F10,'법정동(2013)'!F12:F13) -> 0 | G13: =SUM('법정동(2013)'!G10,'법정동(2013)'!G12:G13) -> 0 | H13: =SUM('법정동(2013)'!H10,'법정동(2013)'!H12:H13) -> 0 | I13: =SUM('법정동(2013)'!I10,'법정동(2013)'!I12:I13) -> 0 | J13: =SUM('법정동(2013)'!J10,'법정동(2013)'!J12:J13) -> 0 | K13: =SUM('법정동(2013)'!K10,'법정동(2013)'!K12:K13) -> 0 | L13: =SUM('법정동(2013)'!L10,'법정동(2013)'!L12:L13) -> 21,202.00 | M13: =SUM('법정동(2013)'!M10,'법정동(2013)'!M12:M13) -> 24 | N13: =SUM('법정동(2013)'!N10,'법정동(2013)'!N12:N13) -> 0 | O13: =SUM('법정동(2013)'!O10,'법정동(2013)'!O12:O13) -> 0 | P13: =SUM('법정동(2013)'!P10,'법정동(2013)'!P12:P13) -> 0 | Q13: =SUM('법정동(2013)'!Q10,'법정동(2013)'!Q12:Q13) -> 0 | R13: =SUM('법정동(2013)'!R10,'법정동(2013)'!R12:R13) -> 279,748.00 | S13: =SUM('법정동(2013)'!S10,'법정동(2013)'!S12:S13) -> 2,555 | T13: =SUM('법정동(2013)'!T10,'법정동(2013)'!T12:T13) -> 0 | U13: =SUM('법정동(2013)'!U10,'법정동(2013)'!U12:U13) -> 0 | V13: =SUM('법정동(2013)'!V10,'법정동(2013)'!V12:V13) -> 0 | W13: =SUM('법정동(2013)'!W10,'법정동(2013)'!W12:W13) -> 0 | X13: =SUM('법정동(2013)'!X10,'법정동(2013)'!X12:X13) -> 6,241.20 | Y13: =SUM('법정동(2013)'!Y10,'법정동(2013)'!Y12:Y13) -> 7 | Z13: =SUM('법정동(2013)'!Z10,'법정동(2013)'!Z12:Z13) -> 0 | AA13: =SUM('법정동(2013)'!AA10,'법정동(2013)'!AA12:AA13) -> 0 | AB13: =SUM('법정동(2013)'!AB10,'법정동(2013)'!AB12:AB13) -> 0 | AC13: =SUM('법정동(2013)'!AC10,'법정동(2013)'!AC12:AC13) -> 0 | AD13: =SUM('법정동(2013)'!AD10,'법정동(2013)'!AD12:AD13) -> 135,266.00 | AE13: =SUM('법정동(2013)'!AE10,'법정동(2013)'!AE12:AE13) -> 562 | AF13: =SUM('법정동(2013)'!AF10,'법정동(2013)'!AF12:AF13) -> 0 | AG13: =SUM('법정동(2013)'!AG10,'법정동(2013)'!AG12:AG13) -> 0 | AH13: =SUM('법정동(2013)'!AH10,'법정동(2013)'!AH12:AH13) -> 800.00 | AI13: =SUM('법정동(2013)'!AI10,'법정동(2013)'!AI12:AI13) -> 2 | AJ13: =SUM('법정동(2013)'!AJ10,'법정동(2013)'!AJ12:AJ13) -> 9,005.00 | AK13: =SUM('법정동(2013)'!AK10,'법정동(2013)'!AK12:AK13) -> 1 | AL13: =SUM('법정동(2013)'!AL10,'법정동(2013)'!AL12:AL13) -> 445.00 | AM13: =SUM('법정동(2013)'!AM10,'법정동(2013)'!AM12:AM13) -> 5 | AN13: =SUM('법정동(2013)'!AN10,'법정동(2013)'!AN12:AN13) -> 0 | AO13: =SUM('법정동(2013)'!AO10,'법정동(2013)'!AO12:AO13) -> 0 | AP13: =SUM('법정동(2013)'!AP10,'법정동(2013)'!AP12:AP13) -> 0 | AQ13: =SUM('법정동(2013)'!AQ10,'법정동(2013)'!AQ12:AQ13) -> 0 | AR13: =SUM('법정동(2013)'!AR10,'법정동(2013)'!AR12:AR13) -> 671.00 | AS13: =SUM('법정동(2013)'!AS10,'법정동(2013)'!AS12:AS13) -> 1 | AT13: =SUM('법정동(2013)'!AT10,'법정동(2013)'!AT12:AT13) -> 9,732.00 | AU13: =SUM('법정동(2013)'!AU10,'법정동(2013)'!AU12:AU13) -> 1 | AV13: =SUM('법정동(2013)'!AV10,'법정동(2013)'!AV12:AV13) -> 0 | AW13: =SUM('법정동(2013)'!AW10,'법정동(2013)'!AW12:AW13) -> 0 | AX13: =SUM('법정동(2013)'!AX10,'법정동(2013)'!AX12:AX13) -> 0 | AY13: =SUM('법정동(2013)'!AY10,'법정동(2013)'!AY12:AY13) -> 0 | AZ13: =SUM('법정동(2013)'!AZ10,'법정동(2013)'!AZ12:AZ13) -> 3,526.00 | BA13: =SUM('법정동(2013)'!BA10,'법정동(2013)'!BA12:BA13) -> 4 | BB13: =SUM('법정동(2013)'!BB10,'법정동(2013)'!BB12:BB13) -> 1,583.00 | BC13: =SUM('법정동(2013)'!BC10,'법정동(2013)'!BC12:BC13) -> 1 | BD13: =SUM('법정동(2013)'!BD10,'법정동(2013)'!BD12:BD13) -> 78.00 | BE13: =SUM('법정동(2013)'!BE10,'법정동(2013)'!BE12:BE13) -> 3 | BF13: =SUM('법정동(2013)'!BF10,'법정동(2013)'!BF12:BF13) -> 17,034.00 | BG13: =SUM('법정동(2013)'!BG10,'법정동(2013)'!BG12:BG13) -> 18
A14: 충무동 | B14: =SUM('법정동(2013)'!B14:B16) -> 1,349,528.5 | C14: =SUM('법정동(2013)'!C14:C16) -> 3,789 | D14: =SUM('법정동(2013)'!D14:D16) -> 231,270.00 | E14: =SUM('법정동(2013)'!E14:E16) -> 514 | F14: =SUM('법정동(2013)'!F14:F16) -> 45,899.00 | G14: =SUM('법정동(2013)'!G14:G16) -> 82 | H14: =SUM('법정동(2013)'!H14:H16) -> 0 | I14: =SUM('법정동(2013)'!I14:I16) -> 0 | J14: =SUM('법정동(2013)'!J14:J16) -> 0 | K14: =SUM('법정동(2013)'!K14:K16) -> 0 | L14: =SUM('법정동(2013)'!L14:L16) -> 447,669.80 | M14: =SUM('법정동(2013)'!M14:M16) -> 157 | N14: =SUM('법정동(2013)'!N14:N16) -> 0 | O14: =SUM('법정동(2013)'!O14:O16) -> 0 | P14: =SUM('법정동(2013)'!P14:P16) -> 0 | Q14: =SUM('법정동(2013)'!Q14:Q16) -> 0 | R14: =SUM('법정동(2013)'!R14:R16) -> 308,443.10 | S14: =SUM('법정동(2013)'!S14:S16) -> 2,462 | T14: =SUM('법정동(2013)'!T14:T16) -> 696.70 | U14: =SUM('법정동(2013)'!U14:U16) -> 1 | V14: =SUM('법정동(2013)'!V14:V16) -> 21,502.00 | W14: =SUM('법정동(2013)'!W14:W16) -> 3 | X14: =SUM('법정동(2013)'!X14:X16) -> 2,838.00 | Y14: =SUM('법정동(2013)'!Y14:Y16) -> 12 | Z14: =SUM('법정동(2013)'!Z14:Z16) -> 1,946.10 | AA14: =SUM('법정동(2013)'!AA14:AA16) -> 7 | AB14: =SUM('법정동(2013)'!AB14:AB16) -> 2,638.40 | AC14: =SUM('법정동(2013)'!AC14:AC16) -> 3 | AD14: =SUM('법정동(2013)'!AD14:AD16) -> 201,920.00 | AE14: =SUM('법정동(2013)'!AE14:AE16) -> 445 | AF14: =SUM('법정동(2013)'!AF14:AF16) -> 0 | AG14: =SUM('법정동(2013)'!AG14:AG16) -> 0 | AH14: =SUM('법정동(2013)'!AH14:AH16) -> 0 | AI14: =SUM('법정동(2013)'!AI14:AI16) -> 0 | AJ14: =SUM('법정동(2013)'!AJ14:AJ16) -> 20,098.00 | AK14: =SUM('법정동(2013)'!AK14:AK16) -> 23 | AL14: =SUM('법정동(2013)'!AL14:AL16) -> 34,073.40 | AM14: =SUM('법정동(2013)'!AM14:AM16) -> 26 | AN14: =SUM('법정동(2013)'!AN14:AN16) -> 0 | AO14: =SUM('법정동(2013)'!AO14:AO16) -> 0 | AP14: =SUM('법정동(2013)'!AP14:AP16) -> 0 | AQ14: =SUM('법정동(2013)'!AQ14:AQ16) -> 0 | AR14: =SUM('법정동(2013)'!AR14:AR16) -> 2,189.10 | AS14: =SUM('법정동(2013)'!AS14:AS16) -> 4 | AT14: =SUM('법정동(2013)'!AT14:AT16) -> 991.90 | AU14: =SUM('법정동(2013)'!AU14:AU16) -> 1 | AV14: =SUM('법정동(2013)'!AV14:AV16) -> 0 | AW14: =SUM('법정동(2013)'!AW14:AW16) -> 0 | AX14: =SUM('법정동(2013)'!AX14:AX16) -> 0 | AY14: =SUM('법정동(2013)'!AY14:AY16) -> 0 | AZ14: =SUM('법정동(2013)'!AZ14:AZ16) -> 9,435.00 | BA14: =SUM('법정동(2013)'!BA14:BA16) -> 17 | BB14: =SUM('법정동(2013)'!BB14:BB16) -> 5,718.00 | BC14: =SUM('법정동(2013)'!BC14:BC16) -> 5 | BD14: =SUM('법정동(2013)'!BD14:BD16) -> 5,021.00 | BE14: =SUM('법정동(2013)'!BE14:BE16) -> 9 | BF14: =SUM('법정동(2013)'!BF14:BF16) -> 7,179.00 | BG14: =SUM('법정동(2013)'!BG14:BG16) -> 18
A15: 광림동 | B15: =SUM('법정동(2013)'!B17,'법정동(2013)'!B26) -> 3,395,957.1 | C15: =SUM('법정동(2013)'!C17,'법정동(2013)'!C26) -> 4,570 | D15: =SUM('법정동(2013)'!D17,'법정동(2013)'!D26) -> 374,738.00 | E15: =SUM('법정동(2013)'!E17,'법정동(2013)'!E26) -> 698 | F15: =SUM('법정동(2013)'!F17,'법정동(2013)'!F26) -> 65,058.00 | G15: =SUM('법정동(2013)'!G17,'법정동(2013)'!G26) -> 149 | H15: =SUM('법정동(2013)'!H17,'법정동(2013)'!H26) -> 0 | I15: =SUM('법정동(2013)'!I17,'법정동(2013)'!I26) -> 0 | J15: =SUM('법정동(2013)'!J17,'법정동(2013)'!J26) -> 0 | K15: =SUM('법정동(2013)'!K17,'법정동(2013)'!K26) -> 0 | L15: =SUM('법정동(2013)'!L17,'법정동(2013)'!L26) -> 1,763,396.00 | M15: =SUM('법정동(2013)'!M17,'법정동(2013)'!M26) -> 389 | N15: =SUM('법정동(2013)'!N17,'법정동(2013)'!N26) -> 0 | O15: =SUM('법정동(2013)'!O17,'법정동(2013)'!O26) -> 0 | P15: =SUM('법정동(2013)'!P17,'법정동(2013)'!P26) -> 0 | Q15: =SUM('법정동(2013)'!Q17,'법정동(2013)'!Q26) -> 0 | R15: =SUM('법정동(2013)'!R17,'법정동(2013)'!R26) -> 410,560.00 | S15: =SUM('법정동(2013)'!S17,'법정동(2013)'!S26) -> 2,354 | T15: =SUM('법정동(2013)'!T17,'법정동(2013)'!T26) -> 895.00 | U15: =SUM('법정동(2013)'!U17,'법정동(2013)'!U26) -> 1 | V15: =SUM('법정동(2013)'!V17,'법정동(2013)'!V26) -> 45,635.00 | W15: =SUM('법정동(2013)'!W17,'법정동(2013)'!W26) -> 7 | X15: =SUM('법정동(2013)'!X17,'법정동(2013)'!X26) -> 2,396.30 | Y15: =SUM('법정동(2013)'!Y17,'법정동(2013)'!Y26) -> 5 | Z15: =SUM('법정동(2013)'!Z17,'법정동(2013)'!Z26) -> 3,635.60 | AA15: =SUM('법정동(2013)'!AA17,'법정동(2013)'!AA26) -> 9 | AB15: =SUM('법정동(2013)'!AB17,'법정동(2013)'!AB26) -> 894.00 | AC15: =SUM('법정동(2013)'!AC17,'법정동(2013)'!AC26) -> 2 | AD15: =SUM('법정동(2013)'!AD17,'법정동(2013)'!AD26) -> 265,137.80 | AE15: =SUM('법정동(2013)'!AE17,'법정동(2013)'!AE26) -> 764 | AF15: =SUM('법정동(2013)'!AF17,'법정동(2013)'!AF26) -> 33,331.00 | AG15: =SUM('법정동(2013)'!AG17,'법정동(2013)'!AG26) -> 33 | AH15: =SUM('법정동(2013)'!AH17,'법정동(2013)'!AH26) -> 0 | AI15: =SUM('법정동(2013)'!AI17,'법정동(2013)'!AI26) -> 0 | AJ15: =SUM('법정동(2013)'!AJ17,'법정동(2013)'!AJ26) -> 25,852.40 | AK15: =SUM('법정동(2013)'!AK17,'법정동(2013)'!AK26) -> 16 | AL15: =SUM('법정동(2013)'!AL17,'법정동(2013)'!AL26) -> 19,052.10 | AM15: =SUM('법정동(2013)'!AM17,'법정동(2013)'!AM26) -> 43 | AN15: =SUM('법정동(2013)'!AN17,'법정동(2013)'!AN26) -> 10.00 | AO15: =SUM('법정동(2013)'!AO17,'법정동(2013)'!AO26) -> 1 | AP15: =SUM('법정동(2013)'!AP17,'법정동(2013)'!AP26) -> 0 | AQ15: =SUM('법정동(2013)'!AQ17,'법정동(2013)'!AQ26) -> 0 | AR15: =SUM('법정동(2013)'!AR17,'법정동(2013)'!AR26) -> 12,938.00 | AS15: =SUM('법정동(2013)'!AS17,'법정동(2013)'!AS26) -> 16 | AT15: =SUM('법정동(2013)'!AT17,'법정동(2013)'!AT26) -> 2,315.40 | AU15: =SUM('법정동(2013)'!AU17,'법정동(2013)'!AU26) -> 2 | AV15: =SUM('법정동(2013)'!AV17,'법정동(2013)'!AV26) -> 310,227.00 | AW15: =SUM('법정동(2013)'!AW17,'법정동(2013)'!AW26) -> 14 | AX15: =SUM('법정동(2013)'!AX17,'법정동(2013)'!AX26) -> 0 | AY15: =SUM('법정동(2013)'!AY17,'법정동(2013)'!AY26) -> 0 | AZ15: =SUM('법정동(2013)'!AZ17,'법정동(2013)'!AZ26) -> 8,655.90 | BA15: =SUM('법정동(2013)'!BA17,'법정동(2013)'!BA26) -> 12 | BB15: =SUM('법정동(2013)'!BB17,'법정동(2013)'!BB26) -> 0 | BC15: =SUM('법정동(2013)'!BC17,'법정동(2013)'!BC26) -> 0 | BD15: =SUM('법정동(2013)'!BD17,'법정동(2013)'!BD26) -> 39,638.00 | BE15: =SUM('법정동(2013)'!BE17,'법정동(2013)'!BE26) -> 26 | BF15: =SUM('법정동(2013)'!BF17,'법정동(2013)'!BF26) -> 11,591.60 | BG15: =SUM('법정동(2013)'!BG17,'법정동(2013)'!BG26) -> 29
A16: 서강동 | B16: =SUM('법정동(2013)'!B18:B19) -> 655,394.5 | C16: =SUM('법정동(2013)'!C18:C19) -> 2,767 | D16: =SUM('법정동(2013)'!D18:D19) -> 79,595.00 | E16: =SUM('법정동(2013)'!E18:E19) -> 172 | F16: =SUM('법정동(2013)'!F18:F19) -> 27,350.00 | G16: =SUM('법정동(2013)'!G18:G19) -> 58 | H16: =SUM('법정동(2013)'!H18:H19) -> 0 | I16: =SUM('법정동(2013)'!I18:I19) -> 0 | J16: =SUM('법정동(2013)'!J18:J19) -> 0 | K16: =SUM('법정동(2013)'!K18:K19) -> 0 | L16: =SUM('법정동(2013)'!L18:L19) -> 156,344.00 | M16: =SUM('법정동(2013)'!M18:M19) -> 55 | N16: =SUM('법정동(2013)'!N18:N19) -> 0 | O16: =SUM('법정동(2013)'!O18:O19) -> 0 | P16: =SUM('법정동(2013)'!P18:P19) -> 0 | Q16: =SUM('법정동(2013)'!Q18:Q19) -> 0 | R16: =SUM('법정동(2013)'!R18:R19) -> 207,727.20 | S16: =SUM('법정동(2013)'!S18:S19) -> 1,783 | T16: =SUM('법정동(2013)'!T18:T19) -> 0 | U16: =SUM('법정동(2013)'!U18:U19) -> 0 | V16: =SUM('법정동(2013)'!V18:V19) -> 55,144.00 | W16: =SUM('법정동(2013)'!W18:W19) -> 3 | X16: =SUM('법정동(2013)'!X18:X19) -> 7,312.00 | Y16: =SUM('법정동(2013)'!Y18:Y19) -> 6 | Z16: =SUM('법정동(2013)'!Z18:Z19) -> 0 | AA16: =SUM('법정동(2013)'!AA18:AA19) -> 0 | AB16: =SUM('법정동(2013)'!AB18:AB19) -> 0 | AC16: =SUM('법정동(2013)'!AC18:AC19) -> 0 | AD16: =SUM('법정동(2013)'!AD18:AD19) -> 95,180.70 | AE16: =SUM('법정동(2013)'!AE18:AE19) -> 627 | AF16: =SUM('법정동(2013)'!AF18:AF19) -> 0 | AG16: =SUM('법정동(2013)'!AG18:AG19) -> 0 | AH16: =SUM('법정동(2013)'!AH18:AH19) -> 0 | AI16: =SUM('법정동(2013)'!AI18:AI19) -> 0 | AJ16: =SUM('법정동(2013)'!AJ18:AJ19) -> 8,724.00 | AK16: =SUM('법정동(2013)'!AK18:AK19) -> 4 | AL16: =SUM('법정동(2013)'!AL18:AL19) -> 4,157.00 | AM16: =SUM('법정동(2013)'!AM18:AM19) -> 26 | AN16: =SUM('법정동(2013)'!AN18:AN19) -> 0 | AO16: =SUM('법정동(2013)'!AO18:AO19) -> 0 | AP16: =SUM('법정동(2013)'!AP18:AP19) -> 0 | AQ16: =SUM('법정동(2013)'!AQ18:AQ19) -> 0 | AR16: =SUM('법정동(2013)'!AR18:AR19) -> 0 | AS16: =SUM('법정동(2013)'!AS18:AS19) -> 0 | AT16: =SUM('법정동(2013)'!AT18:AT19) -> 2,049.90 | AU16: =SUM('법정동(2013)'!AU18:AU19) -> 2 | AV16: =SUM('법정동(2013)'!AV18:AV19) -> 0 | AW16: =SUM('법정동(2013)'!AW18:AW19) -> 0 | AX16: =SUM('법정동(2013)'!AX18:AX19) -> 0 | AY16: =SUM('법정동(2013)'!AY18:AY19) -> 0 | AZ16: =SUM('법정동(2013)'!AZ18:AZ19) -> 8,250.00 | BA16: =SUM('법정동(2013)'!BA18:BA19) -> 7 | BB16: =SUM('법정동(2013)'!BB18:BB19) -> 0 | BC16: =SUM('법정동(2013)'!BC18:BC19) -> 0 | BD16: =SUM('법정동(2013)'!BD18:BD19) -> 0 | BE16: =SUM('법정동(2013)'!BE18:BE19) -> 0 | BF16: =SUM('법정동(2013)'!BF18:BF19) -> 3,560.70 | BG16: =SUM('법정동(2013)'!BG18:BG19) -> 24
A17: 대교동 | B17: =SUM('법정동(2013)'!B20:B21) -> 1,614,169.7 | C17: =SUM('법정동(2013)'!C20:C21) -> 4,807 | D17: =SUM('법정동(2013)'!D20:D21) -> 242,927.00 | E17: =SUM('법정동(2013)'!E20:E21) -> 527 | F17: =SUM('법정동(2013)'!F20:F21) -> 43,040.00 | G17: =SUM('법정동(2013)'!G20:G21) -> 102 | H17: =SUM('법정동(2013)'!H20:H21) -> 0 | I17: =SUM('법정동(2013)'!I20:I21) -> 0 | J17: =SUM('법정동(2013)'!J20:J21) -> 0 | K17: =SUM('법정동(2013)'!K20:K21) -> 0 | L17: =SUM('법정동(2013)'!L20:L21) -> 385,533.00 | M17: =SUM('법정동(2013)'!M20:M21) -> 95 | N17: =SUM('법정동(2013)'!N20:N21) -> 0 | O17: =SUM('법정동(2013)'!O20:O21) -> 0 | P17: =SUM('법정동(2013)'!P20:P21) -> 0 | Q17: =SUM('법정동(2013)'!Q20:Q21) -> 0 | R17: =SUM('법정동(2013)'!R20:R21) -> 546,175.10 | S17: =SUM('법정동(2013)'!S20:S21) -> 3,187 | T17: =SUM('법정동(2013)'!T20:T21) -> 353.10 | U17: =SUM('법정동(2013)'!U20:U21) -> 1 | V17: =SUM('법정동(2013)'!V20:V21) -> 33,929.00 | W17: =SUM('법정동(2013)'!W20:W21) -> 8 | X17: =SUM('법정동(2013)'!X20:X21) -> 3,693.10 | Y17: =SUM('법정동(2013)'!Y20:Y21) -> 7 | Z17: =SUM('법정동(2013)'!Z20:Z21) -> 2,234.60 | AA17: =SUM('법정동(2013)'!AA20:AA21) -> 4 | AB17: =SUM('법정동(2013)'!AB20:AB21) -> 1,297.10 | AC17: =SUM('법정동(2013)'!AC20:AC21) -> 4 | AD17: =SUM('법정동(2013)'!AD20:AD21) -> 284,670.70 | AE17: =SUM('법정동(2013)'!AE20:AE21) -> 793 | AF17: =SUM('법정동(2013)'!AF20:AF21) -> 0 | AG17: =SUM('법정동(2013)'!AG20:AG21) -> 0 | AH17: =SUM('법정동(2013)'!AH20:AH21) -> 273.00 | AI17: =SUM('법정동(2013)'!AI20:AI21) -> 4 | AJ17: =SUM('법정동(2013)'!AJ20:AJ21) -> 9,140.00 | AK17: =SUM('법정동(2013)'!AK20:AK21) -> 1 | AL17: =SUM('법정동(2013)'!AL20:AL21) -> 4,499.00 | AM17: =SUM('법정동(2013)'!AM20:AM21) -> 16 | AN17: =SUM('법정동(2013)'!AN20:AN21) -> 27.00 | AO17: =SUM('법정동(2013)'!AO20:AO21) -> 2 | AP17: =SUM('법정동(2013)'!AP20:AP21) -> 0 | AQ17: =SUM('법정동(2013)'!AQ20:AQ21) -> 0 | AR17: =SUM('법정동(2013)'!AR20:AR21) -> 283.00 | AS17: =SUM('법정동(2013)'!AS20:AS21) -> 2 | AT17: =SUM('법정동(2013)'!AT20:AT21) -> 0 | AU17: =SUM('법정동(2013)'!AU20:AU21) -> 0 | AV17: =SUM('법정동(2013)'!AV20:AV21) -> 0 | AW17: =SUM('법정동(2013)'!AW20:AW21) -> 0 | AX17: =SUM('법정동(2013)'!AX20:AX21) -> 0 | AY17: =SUM('법정동(2013)'!AY20:AY21) -> 0 | AZ17: =SUM('법정동(2013)'!AZ20:AZ21) -> 7,586.00 | BA17: =SUM('법정동(2013)'!BA20:BA21) -> 6 | BB17: =SUM('법정동(2013)'!BB20:BB21) -> 0 | BC17: =SUM('법정동(2013)'!BC20:BC21) -> 0 | BD17: =SUM('법정동(2013)'!BD20:BD21) -> 2,565.00 | BE17: =SUM('법정동(2013)'!BE20:BE21) -> 11 | BF17: =SUM('법정동(2013)'!BF20:BF21) -> 45,944.00 | BG17: =SUM('법정동(2013)'!BG20:BG21) -> 37
A18: 국 동 | B18: =SUM('법정동(2013)'!B22) -> 1,533,342.3 | C18: =SUM('법정동(2013)'!C22) -> 3,253 | D18: =SUM('법정동(2013)'!D22) -> 98,672.00 | E18: =SUM('법정동(2013)'!E22) -> 452 | F18: =SUM('법정동(2013)'!F22) -> 15,592.00 | G18: =SUM('법정동(2013)'!G22) -> 83 | H18: =SUM('법정동(2013)'!H22) -> 815.00 | I18: =SUM('법정동(2013)'!I22) -> 1 | J18: =SUM('법정동(2013)'!J22) -> 0 | K18: =SUM('법정동(2013)'!K22) -> 0 | L18: =SUM('법정동(2013)'!L22) -> 486,239.00 | M18: =SUM('법정동(2013)'!M22) -> 91 | N18: =SUM('법정동(2013)'!N22) -> 0 | O18: =SUM('법정동(2013)'!O22) -> 0 | P18: =SUM('법정동(2013)'!P22) -> 0 | Q18: =SUM('법정동(2013)'!Q22) -> 0 | R18: =SUM('법정동(2013)'!R22) -> 527,745.20 | S18: =SUM('법정동(2013)'!S22) -> 1,887 | T18: =SUM('법정동(2013)'!T22) -> 5,044.00 | U18: =SUM('법정동(2013)'!U22) -> 9 | V18: =SUM('법정동(2013)'!V22) -> 126,054.20 | W18: =SUM('법정동(2013)'!W22) -> 32 | X18: =SUM('법정동(2013)'!X22) -> 5,577.00 | Y18: =SUM('법정동(2013)'!Y22) -> 5 | Z18: =SUM('법정동(2013)'!Z22) -> 1,291.00 | AA18: =SUM('법정동(2013)'!AA22) -> 2 | AB18: =SUM('법정동(2013)'!AB22) -> 609.00 | AC18: =SUM('법정동(2013)'!AC22) -> 4 | AD18: =SUM('법정동(2013)'!AD22) -> 174,089.60 | AE18: =SUM('법정동(2013)'!AE22) -> 583 | AF18: =SUM('법정동(2013)'!AF22) -> 0 | AG18: =SUM('법정동(2013)'!AG22) -> 0 | AH18: =SUM('법정동(2013)'!AH22) -> 2,006.00 | AI18: =SUM('법정동(2013)'!AI22) -> 1 | AJ18: =SUM('법정동(2013)'!AJ22) -> 0 | AK18: =SUM('법정동(2013)'!AK22) -> 0 | AL18: =SUM('법정동(2013)'!AL22) -> 15,931.00 | AM18: =SUM('법정동(2013)'!AM22) -> 14 | AN18: =SUM('법정동(2013)'!AN22) -> 0 | AO18: =SUM('법정동(2013)'!AO22) -> 0 | AP18: =SUM('법정동(2013)'!AP22) -> 0 | AQ18: =SUM('법정동(2013)'!AQ22) -> 0 | AR18: =SUM('법정동(2013)'!AR22) -> 3,092.00 | AS18: =SUM('법정동(2013)'!AS22) -> 6 | AT18: =SUM('법정동(2013)'!AT22) -> 0 | AU18: =SUM('법정동(2013)'!AU22) -> 0 | AV18: =SUM('법정동(2013)'!AV22) -> 0 | AW18: =SUM('법정동(2013)'!AW22) -> 0 | AX18: =SUM('법정동(2013)'!AX22) -> 0 | AY18: =SUM('법정동(2013)'!AY22) -> 0 | AZ18: =SUM('법정동(2013)'!AZ22) -> 7,538.50 | BA18: =SUM('법정동(2013)'!BA22) -> 17 | BB18: =SUM('법정동(2013)'!BB22) -> 0 | BC18: =SUM('법정동(2013)'!BC22) -> 0 | BD18: =SUM('법정동(2013)'!BD22) -> 1,035.00 | BE18: =SUM('법정동(2013)'!BE22) -> 10 | BF18: =SUM('법정동(2013)'!BF22) -> 62,011.80 | BG18: =SUM('법정동(2013)'!BG22) -> 56
A19: 월호동 | B19: =SUM('법정동(2013)'!B23,'법정동(2013)'!B32) -> 6,797,563.5 | C19: =SUM('법정동(2013)'!C23,'법정동(2013)'!C32) -> 6,430 | D19: =SUM('법정동(2013)'!D23,'법정동(2013)'!D32) -> 1,737,922.00 | E19: =SUM('법정동(2013)'!E23,'법정동(2013)'!E32) -> 2,218 | F19: =SUM('법정동(2013)'!F23,'법정동(2013)'!F32) -> 278,116.00 | G19: =SUM('법정동(2013)'!G23,'법정동(2013)'!G32) -> 458 | H19: =SUM('법정동(2013)'!H23,'법정동(2013)'!H32) -> 0 | I19: =SUM('법정동(2013)'!I23,'법정동(2013)'!I32) -> 0 | J19: =SUM('법정동(2013)'!J23,'법정동(2013)'!J32) -> 0 | K19: =SUM('법정동(2013)'!K23,'법정동(2013)'!K32) -> 0 | L19: =SUM('법정동(2013)'!L23,'법정동(2013)'!L32) -> 2,930,499.00 | M19: =SUM('법정동(2013)'!M23,'법정동(2013)'!M32) -> 1,222 | N19: =SUM('법정동(2013)'!N23,'법정동(2013)'!N32) -> 0 | O19: =SUM('법정동(2013)'!O23,'법정동(2013)'!O32) -> 0 | P19: =SUM('법정동(2013)'!P23,'법정동(2013)'!P32) -> 0 | Q19: =SUM('법정동(2013)'!Q23,'법정동(2013)'!Q32) -> 0 | R19: =SUM('법정동(2013)'!R23,'법정동(2013)'!R32) -> 387,272.20 | S19: =SUM('법정동(2013)'!S23,'법정동(2013)'!S32) -> 1,231 | T19: =SUM('법정동(2013)'!T23,'법정동(2013)'!T32) -> 849,314.00 | U19: =SUM('법정동(2013)'!U23,'법정동(2013)'!U32) -> 124 | V19: =SUM('법정동(2013)'!V23,'법정동(2013)'!V32) -> 19,320.00 | W19: =SUM('법정동(2013)'!W23,'법정동(2013)'!W32) -> 3 | X19: =SUM('법정동(2013)'!X23,'법정동(2013)'!X32) -> 2,408.60 | Y19: =SUM('법정동(2013)'!Y23,'법정동(2013)'!Y32) -> 9 | Z19: =SUM('법정동(2013)'!Z23,'법정동(2013)'!Z32) -> 2,571.00 | AA19: =SUM('법정동(2013)'!AA23,'법정동(2013)'!AA32) -> 10 | AB19: =SUM('법정동(2013)'!AB23,'법정동(2013)'!AB32) -> 1,810.00 | AC19: =SUM('법정동(2013)'!AC23,'법정동(2013)'!AC32) -> 2 | AD19: =SUM('법정동(2013)'!AD23,'법정동(2013)'!AD32) -> 259,304.10 | AE19: =SUM('법정동(2013)'!AE23,'법정동(2013)'!AE32) -> 841 | AF19: =SUM('법정동(2013)'!AF23,'법정동(2013)'!AF32) -> 0 | AG19: =SUM('법정동(2013)'!AG23,'법정동(2013)'!AG32) -> 0 | AH19: =SUM('법정동(2013)'!AH23,'법정동(2013)'!AH32) -> 17,272.00 | AI19: =SUM('법정동(2013)'!AI23,'법정동(2013)'!AI32) -> 46 | AJ19: =SUM('법정동(2013)'!AJ23,'법정동(2013)'!AJ32) -> 1,220.00 | AK19: =SUM('법정동(2013)'!AK23,'법정동(2013)'!AK32) -> 5 | AL19: =SUM('법정동(2013)'!AL23,'법정동(2013)'!AL32) -> 45,561.00 | AM19: =SUM('법정동(2013)'!AM23,'법정동(2013)'!AM32) -> 21 | AN19: =SUM('법정동(2013)'!AN23,'법정동(2013)'!AN32) -> 2,473.00 | AO19: =SUM('법정동(2013)'!AO23,'법정동(2013)'!AO32) -> 2 | AP19: =SUM('법정동(2013)'!AP23,'법정동(2013)'!AP32) -> 1,601.00 | AQ19: =SUM('법정동(2013)'!AQ23,'법정동(2013)'!AQ32) -> 1 | AR19: =SUM('법정동(2013)'!AR23,'법정동(2013)'!AR32) -> 0 | AS19: =SUM('법정동(2013)'!AS23,'법정동(2013)'!AS32) -> 0 | AT19: =SUM('법정동(2013)'!AT23,'법정동(2013)'!AT32) -> 7,918.60 | AU19: =SUM('법정동(2013)'!AU23,'법정동(2013)'!AU32) -> 11 | AV19: =SUM('법정동(2013)'!AV23,'법정동(2013)'!AV32) -> 0 | AW19: =SUM('법정동(2013)'!AW23,'법정동(2013)'!AW32) -> 0 | AX19: =SUM('법정동(2013)'!AX23,'법정동(2013)'!AX32) -> 0 | AY19: =SUM('법정동(2013)'!AY23,'법정동(2013)'!AY32) -> 0 | AZ19: =SUM('법정동(2013)'!AZ23,'법정동(2013)'!AZ32) -> 10,386.00 | BA19: =SUM('법정동(2013)'!BA23,'법정동(2013)'!BA32) -> 11 | BB19: =SUM('법정동(2013)'!BB23,'법정동(2013)'!BB32) -> 0 | BC19: =SUM('법정동(2013)'!BC23,'법정동(2013)'!BC32) -> 0 | BD19: =SUM('법정동(2013)'!BD23,'법정동(2013)'!BD32) -> 18,366.00 | BE19: =SUM('법정동(2013)'!BE23,'법정동(2013)'!BE32) -> 53 | BF19: =SUM('법정동(2013)'!BF23,'법정동(2013)'!BF32) -> 224,229.00 | BG19: =SUM('법정동(2013)'!BG23,'법정동(2013)'!BG32) -> 162
A20: 여서동 | B20: =SUM('법정동(2013)'!B24) -> 2,575,399.9 | C20: =SUM('법정동(2013)'!C24) -> 1,920 | D20: =SUM('법정동(2013)'!D24) -> 204,480.00 | E20: =SUM('법정동(2013)'!E24) -> 278 | F20: =SUM('법정동(2013)'!F24) -> 116,419.00 | G20: =SUM('법정동(2013)'!G24) -> 189 | H20: =SUM('법정동(2013)'!H24) -> 0 | I20: =SUM('법정동(2013)'!I24) -> 0 | J20: =SUM('법정동(2013)'!J24) -> 0 | K20: =SUM('법정동(2013)'!K24) -> 0 | L20: =SUM('법정동(2013)'!L24) -> 1,223,736.00 | M20: =SUM('법정동(2013)'!M24) -> 291 | N20: =SUM('법정동(2013)'!N24) -> 0 | O20: =SUM('법정동(2013)'!O24) -> 0 | P20: =SUM('법정동(2013)'!P24) -> 0 | Q20: =SUM('법정동(2013)'!Q24) -> 0 | R20: =SUM('법정동(2013)'!R24) -> 562,622.20 | S20: =SUM('법정동(2013)'!S24) -> 751 | T20: =SUM('법정동(2013)'!T24) -> 0 | U20: =SUM('법정동(2013)'!U24) -> 0 | V20: =SUM('법정동(2013)'!V24) -> 58,011.00 | W20: =SUM('법정동(2013)'!W24) -> 4 | X20: =SUM('법정동(2013)'!X24) -> 15,531.60 | Y20: =SUM('법정동(2013)'!Y24) -> 15 | Z20: =SUM('법정동(2013)'!Z24) -> 1,488.00 | AA20: =SUM('법정동(2013)'!AA24) -> 1 | AB20: =SUM('법정동(2013)'!AB24) -> 884.00 | AC20: =SUM('법정동(2013)'!AC24) -> 1 | AD20: =SUM('법정동(2013)'!AD24) -> 291,248.50 | AE20: =SUM('법정동(2013)'!AE24) -> 281 | AF20: =SUM('법정동(2013)'!AF24) -> 0 | AG20: =SUM('법정동(2013)'!AG24) -> 0 | AH20: =SUM('법정동(2013)'!AH24) -> 0 | AI20: =SUM('법정동(2013)'!AI24) -> 0 | AJ20: =SUM('법정동(2013)'!AJ24) -> 0 | AK20: =SUM('법정동(2013)'!AK24) -> 0 | AL20: =SUM('법정동(2013)'!AL24) -> 15,119.90 | AM20: =SUM('법정동(2013)'!AM24) -> 20 | AN20: =SUM('법정동(2013)'!AN24) -> 958.00 | AO20: =SUM('법정동(2013)'!AO24) -> 2 | AP20: =SUM('법정동(2013)'!AP24) -> 0 | AQ20: =SUM('법정동(2013)'!AQ24) -> 0 | AR20: =SUM('법정동(2013)'!AR24) -> 11,855.00 | AS20: =SUM('법정동(2013)'!AS24) -> 5 | AT20: =SUM('법정동(2013)'!AT24) -> 19,406.80 | AU20: =SUM('법정동(2013)'!AU24) -> 7 | AV20: =SUM('법정동(2013)'!AV24) -> 9,361.00 | AW20: =SUM('법정동(2013)'!AW24) -> 5 | AX20: =SUM('법정동(2013)'!AX24) -> 0 | AY20: =SUM('법정동(2013)'!AY24) -> 0 | AZ20: =SUM('법정동(2013)'!AZ24) -> 15,908.40 | BA20: =SUM('법정동(2013)'!BA24) -> 22 | BB20: =SUM('법정동(2013)'!BB24) -> 0 | BC20: =SUM('법정동(2013)'!BC24) -> 0 | BD20: =SUM('법정동(2013)'!BD24) -> 2,630.00 | BE20: =SUM('법정동(2013)'!BE24) -> 8 | BF20: =SUM('법정동(2013)'!BF24) -> 25,740.50 | BG20: =SUM('법정동(2013)'!BG24) -> 40
A21: 문수동 | B21: =SUM('법정동(2013)'!B25) -> 2,244,118.3 | C21: =SUM('법정동(2013)'!C25) -> 3,187 | D21: =SUM('법정동(2013)'!D25) -> 175,919.00 | E21: =SUM('법정동(2013)'!E25) -> 321 | F21: =SUM('법정동(2013)'!F25) -> 34,182.00 | G21: =SUM('법정동(2013)'!G25) -> 95 | H21: =SUM('법정동(2013)'!H25) -> 0 | I21: =SUM('법정동(2013)'!I25) -> 0 | J21: =SUM('법정동(2013)'!J25) -> 0 | K21: =SUM('법정동(2013)'!K25) -> 0 | L21: =SUM('법정동(2013)'!L25) -> 836,075.70 | M21: =SUM('법정동(2013)'!M25) -> 325 | N21: =SUM('법정동(2013)'!N25) -> 0 | O21: =SUM('법정동(2013)'!O25) -> 0 | P21: =SUM('법정동(2013)'!P25) -> 0 | Q21: =SUM('법정동(2013)'!Q25) -> 0 | R21: =SUM('법정동(2013)'!R25) -> 715,330.50 | S21: =SUM('법정동(2013)'!S25) -> 1,891 | T21: =SUM('법정동(2013)'!T25) -> 0 | U21: =SUM('법정동(2013)'!U25) -> 0 | V21: =SUM('법정동(2013)'!V25) -> 122,894.60 | W21: =SUM('법정동(2013)'!W25) -> 10 | X21: =SUM('법정동(2013)'!X25) -> 13,515.40 | Y21: =SUM('법정동(2013)'!Y25) -> 44 | Z21: =SUM('법정동(2013)'!Z25) -> 1,109.10 | AA21: =SUM('법정동(2013)'!AA25) -> 2 | AB21: =SUM('법정동(2013)'!AB25) -> 205.00 | AC21: =SUM('법정동(2013)'!AC25) -> 1 | AD21: =SUM('법정동(2013)'!AD25) -> 225,509.90 | AE21: =SUM('법정동(2013)'!AE25) -> 367 | AF21: =SUM('법정동(2013)'!AF25) -> 0 | AG21: =SUM('법정동(2013)'!AG25) -> 0 | AH21: =SUM('법정동(2013)'!AH25) -> 0 | AI21: =SUM('법정동(2013)'!AI25) -> 0 | AJ21: =SUM('법정동(2013)'!AJ25) -> 8,513.00 | AK21: =SUM('법정동(2013)'!AK25) -> 5 | AL21: =SUM('법정동(2013)'!AL25) -> 9,438.40 | AM21: =SUM('법정동(2013)'!AM25) -> 13 | AN21: =SUM('법정동(2013)'!AN25) -> 0 | AO21: =SUM('법정동(2013)'!AO25) -> 0 | AP21: =SUM('법정동(2013)'!AP25) -> 0 | AQ21: =SUM('법정동(2013)'!AQ25) -> 0 | AR21: =SUM('법정동(2013)'!AR25) -> 31.00 | AS21: =SUM('법정동(2013)'!AS25) -> 1 | AT21: =SUM('법정동(2013)'!AT25) -> 54,362.10 | AU21: =SUM('법정동(2013)'!AU25) -> 21 | AV21: =SUM('법정동(2013)'!AV25) -> 0 | AW21: =SUM('법정동(2013)'!AW25) -> 0 | AX21: =SUM('법정동(2013)'!AX25) -> 0 | AY21: =SUM('법정동(2013)'!AY25) -> 0 | AZ21: =SUM('법정동(2013)'!AZ25) -> 25,861.00 | BA21: =SUM('법정동(2013)'!BA25) -> 15 | BB21: =SUM('법정동(2013)'!BB25) -> 0 | BC21: =SUM('법정동(2013)'!BC25) -> 0 | BD21: =SUM('법정동(2013)'!BD25) -> 3,861.00 | BE21: =SUM('법정동(2013)'!BE25) -> 19 | BF21: =SUM('법정동(2013)'!BF25) -> 17,310.60 | BG21: =SUM('법정동(2013)'!BG25) -> 57
A22: 미평동 | B22: =SUM('법정동(2013)'!B27) -> 3,089,016.9 | C22: =SUM('법정동(2013)'!C27) -> 2,688 | D22: =SUM('법정동(2013)'!D27) -> 142,659.00 | E22: =SUM('법정동(2013)'!E27) -> 329 | F22: =SUM('법정동(2013)'!F27) -> 97,075.00 | G22: =SUM('법정동(2013)'!G27) -> 235 | H22: =SUM('법정동(2013)'!H27) -> 0 | I22: =SUM('법정동(2013)'!I27) -> 0 | J22: =SUM('법정동(2013)'!J27) -> 0 | K22: =SUM('법정동(2013)'!K27) -> 0 | L22: =SUM('법정동(2013)'!L27) -> 1,767,325.00 | M22: =SUM('법정동(2013)'!M27) -> 209 | N22: =SUM('법정동(2013)'!N27) -> 0 | O22: =SUM('법정동(2013)'!O27) -> 0 | P22: =SUM('법정동(2013)'!P27) -> 0 | Q22: =SUM('법정동(2013)'!Q27) -> 0 | R22: =SUM('법정동(2013)'!R27) -> 470,726.10 | S22: =SUM('법정동(2013)'!S27) -> 1,169 | T22: =SUM('법정동(2013)'!T27) -> 1,501.00 | U22: =SUM('법정동(2013)'!U27) -> 3 | V22: =SUM('법정동(2013)'!V27) -> 64,631.10 | W22: =SUM('법정동(2013)'!W27) -> 10 | X22: =SUM('법정동(2013)'!X27) -> 5,010.80 | Y22: =SUM('법정동(2013)'!Y27) -> 14 | Z22: =SUM('법정동(2013)'!Z27) -> 1,804.20 | AA22: =SUM('법정동(2013)'!AA27) -> 3 | AB22: =SUM('법정동(2013)'!AB27) -> 177.40 | AC22: =SUM('법정동(2013)'!AC27) -> 1 | AD22: =SUM('법정동(2013)'!AD27) -> 284,889.40 | AE22: =SUM('법정동(2013)'!AE27) -> 528 | AF22: =SUM('법정동(2013)'!AF27) -> 53,203.00 | AG22: =SUM('법정동(2013)'!AG27) -> 33 | AH22: =SUM('법정동(2013)'!AH27) -> 0 | AI22: =SUM('법정동(2013)'!AI27) -> 0 | AJ22: =SUM('법정동(2013)'!AJ27) -> 9,529.40 | AK22: =SUM('법정동(2013)'!AK27) -> 3 | AL22: =SUM('법정동(2013)'!AL27) -> 25,651.00 | AM22: =SUM('법정동(2013)'!AM27) -> 50 | AN22: =SUM('법정동(2013)'!AN27) -> 0 | AO22: =SUM('법정동(2013)'!AO27) -> 0 | AP22: =SUM('법정동(2013)'!AP27) -> 0 | AQ22: =SUM('법정동(2013)'!AQ27) -> 0 | AR22: =SUM('법정동(2013)'!AR27) -> 91,230.50 | AS22: =SUM('법정동(2013)'!AS27) -> 57 | AT22: =SUM('법정동(2013)'!AT27) -> 16,700.40 | AU22: =SUM('법정동(2013)'!AU27) -> 10 | AV22: =SUM('법정동(2013)'!AV27) -> 0 | AW22: =SUM('법정동(2013)'!AW27) -> 0 | AX22: =SUM('법정동(2013)'!AX27) -> 0 | AY22: =SUM('법정동(2013)'!AY27) -> 0 | AZ22: =SUM('법정동(2013)'!AZ27) -> 8,992.40 | BA22: =SUM('법정동(2013)'!BA27) -> 9 | BB22: =SUM('법정동(2013)'!BB27) -> 0 | BC22: =SUM('법정동(2013)'!BC27) -> 0 | BD22: =SUM('법정동(2013)'!BD27) -> 5,712.00 | BE22: =SUM('법정동(2013)'!BE27) -> 7 | BF22: =SUM('법정동(2013)'!BF27) -> 42,199.20 | BG22: =SUM('법정동(2013)'!BG27) -> 18
A23: 둔덕동 | B23: =SUM('법정동(2013)'!B28) -> 4,076,115.1 | C23: =SUM('법정동(2013)'!C28) -> 2,323 | D23: =SUM('법정동(2013)'!D28) -> 178,315.00 | E23: =SUM('법정동(2013)'!E28) -> 288 | F23: =SUM('법정동(2013)'!F28) -> 425,547.00 | G23: =SUM('법정동(2013)'!G28) -> 481 | H23: =SUM('법정동(2013)'!H28) -> 0 | I23: =SUM('법정동(2013)'!I28) -> 0 | J23: =SUM('법정동(2013)'!J28) -> 0 | K23: =SUM('법정동(2013)'!K28) -> 0 | L23: =SUM('법정동(2013)'!L28) -> 2,181,263.00 | M23: =SUM('법정동(2013)'!M28) -> 332 | N23: =SUM('법정동(2013)'!N28) -> 0 | O23: =SUM('법정동(2013)'!O28) -> 0 | P23: =SUM('법정동(2013)'!P28) -> 0 | Q23: =SUM('법정동(2013)'!Q28) -> 0 | R23: =SUM('법정동(2013)'!R28) -> 475,434.90 | S23: =SUM('법정동(2013)'!S28) -> 648 | T23: =SUM('법정동(2013)'!T28) -> 362.00 | U23: =SUM('법정동(2013)'!U28) -> 1 | V23: =SUM('법정동(2013)'!V28) -> 722.00 | W23: =SUM('법정동(2013)'!W28) -> 1 | X23: =SUM('법정동(2013)'!X28) -> 2,599.70 | Y23: =SUM('법정동(2013)'!Y28) -> 11 | Z23: =SUM('법정동(2013)'!Z28) -> 10,143.90 | AA23: =SUM('법정동(2013)'!AA28) -> 8 | AB23: =SUM('법정동(2013)'!AB28) -> 6,380.70 | AC23: =SUM('법정동(2013)'!AC28) -> 9 | AD23: =SUM('법정동(2013)'!AD28) -> 383,843.60 | AE23: =SUM('법정동(2013)'!AE28) -> 414 | AF23: =SUM('법정동(2013)'!AF28) -> 22,933.00 | AG23: =SUM('법정동(2013)'!AG28) -> 33 | AH23: =SUM('법정동(2013)'!AH28) -> 0 | AI23: =SUM('법정동(2013)'!AI28) -> 0 | AJ23: =SUM('법정동(2013)'!AJ28) -> 9,119.10 | AK23: =SUM('법정동(2013)'!AK28) -> 3 | AL23: =SUM('법정동(2013)'!AL28) -> 21,254.00 | AM23: =SUM('법정동(2013)'!AM28) -> 11 | AN23: =SUM('법정동(2013)'!AN28) -> 0 | AO23: =SUM('법정동(2013)'!AO28) -> 0 | AP23: =SUM('법정동(2013)'!AP28) -> 0 | AQ23: =SUM('법정동(2013)'!AQ28) -> 0 | AR23: =SUM('법정동(2013)'!AR28) -> 72,838.00 | AS23: =SUM('법정동(2013)'!AS28) -> 4 | AT23: =SUM('법정동(2013)'!AT28) -> 18,073.40 | AU23: =SUM('법정동(2013)'!AU28) -> 8 | AV23: =SUM('법정동(2013)'!AV28) -> 166,279.00 | AW23: =SUM('법정동(2013)'!AW28) -> 6 | AX23: =SUM('법정동(2013)'!AX28) -> 0 | AY23: =SUM('법정동(2013)'!AY28) -> 0 | AZ23: =SUM('법정동(2013)'!AZ28) -> 14,763.30 | BA23: =SUM('법정동(2013)'!BA28) -> 10 | BB23: =SUM('법정동(2013)'!BB28) -> 0 | BC23: =SUM('법정동(2013)'!BC28) -> 0 | BD23: =SUM('법정동(2013)'!BD28) -> 2,675.00 | BE23: =SUM('법정동(2013)'!BE28) -> 8 | BF23: =SUM('법정동(2013)'!BF28) -> 83,568.50 | BG23: =SUM('법정동(2013)'!BG28) -> 47
A24: 만덕동 | B24: =SUM('법정동(2013)'!B29:B31) -> 15,981,076.6 | C24: =SUM('법정동(2013)'!C29:C31) -> 8,773 | D24: =SUM('법정동(2013)'!D29:D31) -> 1,643,378.00 | E24: =SUM('법정동(2013)'!E29:E31) -> 2,297 | F24: =SUM('법정동(2013)'!F29:F31) -> 931,145.00 | G24: =SUM('법정동(2013)'!G29:G31) -> 1,162 | H24: =SUM('법정동(2013)'!H29:H31) -> 0 | I24: =SUM('법정동(2013)'!I29:I31) -> 0 | J24: =SUM('법정동(2013)'!J29:J31) -> 0 | K24: =SUM('법정동(2013)'!K29:K31) -> 0 | L24: =SUM('법정동(2013)'!L29:L31) -> 10,619,138.00 | M24: =SUM('법정동(2013)'!M29:M31) -> 1,362 | N24: =SUM('법정동(2013)'!N29:N31) -> 0 | O24: =SUM('법정동(2013)'!O29:O31) -> 0 | P24: =SUM('법정동(2013)'!P29:P31) -> 0 | Q24: =SUM('법정동(2013)'!Q29:Q31) -> 0 | R24: =SUM('법정동(2013)'!R29:R31) -> 787,438.20 | S24: =SUM('법정동(2013)'!S29:S31) -> 1,727 | T24: =SUM('법정동(2013)'!T29:T31) -> 154,447.60 | U24: =SUM('법정동(2013)'!U29:U31) -> 86 | V24: =SUM('법정동(2013)'!V29:V31) -> 66,845.00 | W24: =SUM('법정동(2013)'!W29:W31) -> 8 | X24: =SUM('법정동(2013)'!X29:X31) -> 34,995.80 | Y24: =SUM('법정동(2013)'!Y29:Y31) -> 9 | Z24: =SUM('법정동(2013)'!Z29:Z31) -> 1,185.00 | AA24: =SUM('법정동(2013)'!AA29:AA31) -> 3 | AB24: =SUM('법정동(2013)'!AB29:AB31) -> 4,253.00 | AC24: =SUM('법정동(2013)'!AC29:AC31) -> 10 | AD24: =SUM('법정동(2013)'!AD29:AD31) -> 735,192.30 | AE24: =SUM('법정동(2013)'!AE29:AE31) -> 1,446 | AF24: =SUM('법정동(2013)'!AF29:AF31) -> 170,872.00 | AG24: =SUM('법정동(2013)'!AG29:AG31) -> 179 | AH24: =SUM('법정동(2013)'!AH29:AH31) -> 31,710.40 | AI24: =SUM('법정동(2013)'!AI29:AI31) -> 22 | AJ24: =SUM('법정동(2013)'!AJ29:AJ31) -> 19,770.90 | AK24: =SUM('법정동(2013)'!AK29:AK31) -> 9 | AL24: =SUM('법정동(2013)'!AL29:AL31) -> 145,709.80 | AM24: =SUM('법정동(2013)'!AM29:AM31) -> 114 | AN24: =SUM('법정동(2013)'!AN29:AN31) -> 104,581.00 | AO24: =SUM('법정동(2013)'!AO29:AO31) -> 21 | AP24: =SUM('법정동(2013)'!AP29:AP31) -> 0 | AQ24: =SUM('법정동(2013)'!AQ29:AQ31) -> 0 | AR24: =SUM('법정동(2013)'!AR29:AR31) -> 30,739.70 | AS24: =SUM('법정동(2013)'!AS29:AS31) -> 69 | AT24: =SUM('법정동(2013)'!AT29:AT31) -> 128,954.60 | AU24: =SUM('법정동(2013)'!AU29:AU31) -> 26 | AV24: =SUM('법정동(2013)'!AV29:AV31) -> 400.00 | AW24: =SUM('법정동(2013)'!AW29:AW31) -> 3 | AX24: =SUM('법정동(2013)'!AX29:AX31) -> 0 | AY24: =SUM('법정동(2013)'!AY29:AY31) -> 0 | AZ24: =SUM('법정동(2013)'!AZ29:AZ31) -> 19,884.80 | BA24: =SUM('법정동(2013)'!BA29:BA31) -> 20 | BB24: =SUM('법정동(2013)'!BB29:BB31) -> 0 | BC24: =SUM('법정동(2013)'!BC29:BC31) -> 0 | BD24: =SUM('법정동(2013)'!BD29:BD31) -> 46,059.00 | BE24: =SUM('법정동(2013)'!BE29:BE31) -> 92 | BF24: =SUM('법정동(2013)'!BF29:BF31) -> 304,376.50 | BG24: =SUM('법정동(2013)'!BG29:BG31) -> 108
A25: 쌍봉동 | B25: =SUM('법정동(2013)'!B33:B36) -> 7,165,960.9 | C25: =SUM('법정동(2013)'!C33:C36) -> 6,181 | D25: =SUM('법정동(2013)'!D33:D36) -> 517,090.00 | E25: =SUM('법정동(2013)'!E33:E36) -> 809 | F25: =SUM('법정동(2013)'!F33:F36) -> 375,985.00 | G25: =SUM('법정동(2013)'!G33:G36) -> 454 | H25: =SUM('법정동(2013)'!H33:H36) -> 3,826.00 | I25: =SUM('법정동(2013)'!I33:I36) -> 4 | J25: =SUM('법정동(2013)'!J33:J36) -> 0 | K25: =SUM('법정동(2013)'!K33:K36) -> 0 | L25: =SUM('법정동(2013)'!L33:L36) -> 2,801,197.20 | M25: =SUM('법정동(2013)'!M33:M36) -> 666 | N25: =SUM('법정동(2013)'!N33:N36) -> 0 | O25: =SUM('법정동(2013)'!O33:O36) -> 0 | P25: =SUM('법정동(2013)'!P33:P36) -> 0 | Q25: =SUM('법정동(2013)'!Q33:Q36) -> 0 | R25: =SUM('법정동(2013)'!R33:R36) -> 2,074,729.60 | S25: =SUM('법정동(2013)'!S33:S36) -> 3,225 | T25: =SUM('법정동(2013)'!T33:T36) -> 12,954.00 | U25: =SUM('법정동(2013)'!U33:U36) -> 11 | V25: =SUM('법정동(2013)'!V33:V36) -> 93,344.50 | W25: =SUM('법정동(2013)'!W33:W36) -> 9 | X25: =SUM('법정동(2013)'!X33:X36) -> 26,598.00 | Y25: =SUM('법정동(2013)'!Y33:Y36) -> 33 | Z25: =SUM('법정동(2013)'!Z33:Z36) -> 7,604.20 | AA25: =SUM('법정동(2013)'!AA33:AA36) -> 10 | AB25: =SUM('법정동(2013)'!AB33:AB36) -> 3,142.00 | AC25: =SUM('법정동(2013)'!AC33:AC36) -> 4 | AD25: =SUM('법정동(2013)'!AD33:AD36) -> 803,094.10 | AE25: =SUM('법정동(2013)'!AE33:AE36) -> 668 | AF25: =SUM('법정동(2013)'!AF33:AF36) -> 73,480.00 | AG25: =SUM('법정동(2013)'!AG33:AG36) -> 71 | AH25: =SUM('법정동(2013)'!AH33:AH36) -> 7,082.20 | AI25: =SUM('법정동(2013)'!AI33:AI36) -> 7 | AJ25: =SUM('법정동(2013)'!AJ33:AJ36) -> 6,362.00 | AK25: =SUM('법정동(2013)'!AK33:AK36) -> 16 | AL25: =SUM('법정동(2013)'!AL33:AL36) -> 26,441.50 | AM25: =SUM('법정동(2013)'!AM33:AM36) -> 38 | AN25: =SUM('법정동(2013)'!AN33:AN36) -> 11,688.50 | AO25: =SUM('법정동(2013)'!AO33:AO36) -> 4 | AP25: =SUM('법정동(2013)'!AP33:AP36) -> 0 | AQ25: =SUM('법정동(2013)'!AQ33:AQ36) -> 0 | AR25: =SUM('법정동(2013)'!AR33:AR36) -> 20,058.00 | AS25: =SUM('법정동(2013)'!AS33:AS36) -> 3 | AT25: =SUM('법정동(2013)'!AT33:AT36) -> 147,893.90 | AU25: =SUM('법정동(2013)'!AU33:AU36) -> 24 | AV25: =SUM('법정동(2013)'!AV33:AV36) -> 10,945.60 | AW25: =SUM('법정동(2013)'!AW33:AW36) -> 1 | AX25: =SUM('법정동(2013)'!AX33:AX36) -> 49,654.30 | AY25: =SUM('법정동(2013)'!AY33:AY36) -> 2 | AZ25: =SUM('법정동(2013)'!AZ33:AZ36) -> 22,115.10 | BA25: =SUM('법정동(2013)'!BA33:BA36) -> 19 | BB25: =SUM('법정동(2013)'!BB33:BB36) -> 0 | BC25: =SUM('법정동(2013)'!BC33:BC36) -> 0 | BD25: =SUM('법정동(2013)'!BD33:BD36) -> 33,381.00 | BE25: =SUM('법정동(2013)'!BE33:BE36) -> 56 | BF25: =SUM('법정동(2013)'!BF33:BF36) -> 37,294.20 | BG25: =SUM('법정동(2013)'!BG33:BG36) -> 47
A26: 시전동 | B26: =SUM('법정동(2013)'!B37:B39) -> 6,258,315.8 | C26: =SUM('법정동(2013)'!C37:C39) -> 6,293 | D26: =SUM('법정동(2013)'!D37:D39) -> 1,072,585.00 | E26: =SUM('법정동(2013)'!E37:E39) -> 1,347 | F26: =SUM('법정동(2013)'!F37:F39) -> 476,672.00 | G26: =SUM('법정동(2013)'!G37:G39) -> 746 | H26: =SUM('법정동(2013)'!H37:H39) -> 4,119.00 | I26: =SUM('법정동(2013)'!I37:I39) -> 4 | J26: =SUM('법정동(2013)'!J37:J39) -> 0 | K26: =SUM('법정동(2013)'!K37:K39) -> 0 | L26: =SUM('법정동(2013)'!L37:L39) -> 2,419,871.60 | M26: =SUM('법정동(2013)'!M37:M39) -> 954 | N26: =SUM('법정동(2013)'!N37:N39) -> 0 | O26: =SUM('법정동(2013)'!O37:O39) -> 0 | P26: =SUM('법정동(2013)'!P37:P39) -> 0 | Q26: =SUM('법정동(2013)'!Q37:Q39) -> 0 | R26: =SUM('법정동(2013)'!R37:R39) -> 1,084,796.70 | S26: =SUM('법정동(2013)'!S37:S39) -> 2,304 | T26: =SUM('법정동(2013)'!T37:T39) -> 0 | U26: =SUM('법정동(2013)'!U37:U39) -> 0 | V26: =SUM('법정동(2013)'!V37:V39) -> 64,545.00 | W26: =SUM('법정동(2013)'!W37:W39) -> 4 | X26: =SUM('법정동(2013)'!X37:X39) -> 24,849.30 | Y26: =SUM('법정동(2013)'!Y37:Y39) -> 20 | Z26: =SUM('법정동(2013)'!Z37:Z39) -> 4,565.20 | AA26: =SUM('법정동(2013)'!AA37:AA39) -> 5 | AB26: =SUM('법정동(2013)'!AB37:AB39) -> 350.00 | AC26: =SUM('법정동(2013)'!AC37:AC39) -> 1 | AD26: =SUM('법정동(2013)'!AD37:AD39) -> 585,185.30 | AE26: =SUM('법정동(2013)'!AE37:AE39) -> 694 | AF26: =SUM('법정동(2013)'!AF37:AF39) -> 0 | AG26: =SUM('법정동(2013)'!AG37:AG39) -> 0 | AH26: =SUM('법정동(2013)'!AH37:AH39) -> 1,881.60 | AI26: =SUM('법정동(2013)'!AI37:AI39) -> 6 | AJ26: =SUM('법정동(2013)'!AJ37:AJ39) -> 555.00 | AK26: =SUM('법정동(2013)'!AK37:AK39) -> 4 | AL26: =SUM('법정동(2013)'!AL37:AL39) -> 48,909.00 | AM26: =SUM('법정동(2013)'!AM37:AM39) -> 39 | AN26: =SUM('법정동(2013)'!AN37:AN39) -> 22,484.00 | AO26: =SUM('법정동(2013)'!AO37:AO39) -> 30 | AP26: =SUM('법정동(2013)'!AP37:AP39) -> 0 | AQ26: =SUM('법정동(2013)'!AQ37:AQ39) -> 0 | AR26: =SUM('법정동(2013)'!AR37:AR39) -> 3,742.10 | AS26: =SUM('법정동(2013)'!AS37:AS39) -> 13 | AT26: =SUM('법정동(2013)'!AT37:AT39) -> 175,196.10 | AU26: =SUM('법정동(2013)'!AU37:AU39) -> 40 | AV26: =SUM('법정동(2013)'!AV37:AV39) -> 157,345.00 | AW26: =SUM('법정동(2013)'!AW37:AW39) -> 4 | AX26: =SUM('법정동(2013)'!AX37:AX39) -> 0 | AY26: =SUM('법정동(2013)'!AY37:AY39) -> 0 | AZ26: =SUM('법정동(2013)'!AZ37:AZ39) -> 20,483.70 | BA26: =SUM('법정동(2013)'!BA37:BA39) -> 10 | BB26: =SUM('법정동(2013)'!BB37:BB39) -> 0 | BC26: =SUM('법정동(2013)'!BC37:BC39) -> 0 | BD26: =SUM('법정동(2013)'!BD37:BD39) -> 24,368.00 | BE26: =SUM('법정동(2013)'!BE37:BE39) -> 51 | BF26: =SUM('법정동(2013)'!BF37:BF39) -> 65,812.20 | BG26: =SUM('법정동(2013)'!BG37:BG39) -> 17
A27: 여천동 | B27: =SUM('법정동(2013)'!B40:B42) -> 7,531,089.6 | C27: =SUM('법정동(2013)'!C40:C42) -> 7,427 | D27: =SUM('법정동(2013)'!D40:D42) -> 813,624.00 | E27: =SUM('법정동(2013)'!E40:E42) -> 995 | F27: =SUM('법정동(2013)'!F40:F42) -> 1,248,736.00 | G27: =SUM('법정동(2013)'!G40:G42) -> 1,341 | H27: =SUM('법정동(2013)'!H40:H42) -> 17,444.00 | I27: =SUM('법정동(2013)'!I40:I42) -> 5 | J27: =SUM('법정동(2013)'!J40:J42) -> 3,663.00 | K27: =SUM('법정동(2013)'!K40:K42) -> 6 | L27: =SUM('법정동(2013)'!L40:L42) -> 2,471,977.50 | M27: =SUM('법정동(2013)'!M40:M42) -> 605 | N27: =SUM('법정동(2013)'!N40:N42) -> 0 | O27: =SUM('법정동(2013)'!O40:O42) -> 0 | P27: =SUM('법정동(2013)'!P40:P42) -> 0 | Q27: =SUM('법정동(2013)'!Q40:Q42) -> 0 | R27: =SUM('법정동(2013)'!R40:R42) -> 1,318,649.80 | S27: =SUM('법정동(2013)'!S40:S42) -> 3,184 | T27: =SUM('법정동(2013)'!T40:T42) -> 5,246.00 | U27: =SUM('법정동(2013)'!U40:U42) -> 3 | V27: =SUM('법정동(2013)'!V40:V42) -> 162,547.40 | W27: =SUM('법정동(2013)'!W40:W42) -> 8 | X27: =SUM('법정동(2013)'!X40:X42) -> 41,189.90 | Y27: =SUM('법정동(2013)'!Y40:Y42) -> 48 | Z27: =SUM('법정동(2013)'!Z40:Z42) -> 14,597.80 | AA27: =SUM('법정동(2013)'!AA40:AA42) -> 19 | AB27: =SUM('법정동(2013)'!AB40:AB42) -> 15,394.00 | AC27: =SUM('법정동(2013)'!AC40:AC42) -> 18 | AD27: =SUM('법정동(2013)'!AD40:AD42) -> 865,274.40 | AE27: =SUM('법정동(2013)'!AE40:AE42) -> 790 | AF27: =SUM('법정동(2013)'!AF40:AF42) -> 74,938.00 | AG27: =SUM('법정동(2013)'!AG40:AG42) -> 55 | AH27: =SUM('법정동(2013)'!AH40:AH42) -> 0 | AI27: =SUM('법정동(2013)'!AI40:AI42) -> 0 | AJ27: =SUM('법정동(2013)'!AJ40:AJ42) -> 87,631.00 | AK27: =SUM('법정동(2013)'!AK40:AK42) -> 53 | AL27: =SUM('법정동(2013)'!AL40:AL42) -> 89,829.90 | AM27: =SUM('법정동(2013)'!AM40:AM42) -> 164 | AN27: =SUM('법정동(2013)'!AN40:AN42) -> 23,888.00 | AO27: =SUM('법정동(2013)'!AO40:AO42) -> 17 | AP27: =SUM('법정동(2013)'!AP40:AP42) -> 1,016.00 | AQ27: =SUM('법정동(2013)'!AQ40:AQ42) -> 1 | AR27: =SUM('법정동(2013)'!AR40:AR42) -> 32,581.00 | AS27: =SUM('법정동(2013)'!AS40:AS42) -> 13 | AT27: =SUM('법정동(2013)'!AT40:AT42) -> 176,307.40 | AU27: =SUM('법정동(2013)'!AU40:AU42) -> 27 | AV27: =SUM('법정동(2013)'!AV40:AV42) -> 0 | AW27: =SUM('법정동(2013)'!AW40:AW42) -> 0 | AX27: =SUM('법정동(2013)'!AX40:AX42) -> 0 | AY27: =SUM('법정동(2013)'!AY40:AY42) -> 0 | AZ27: =SUM('법정동(2013)'!AZ40:AZ42) -> 20,634.40 | BA27: =SUM('법정동(2013)'!BA40:BA42) -> 14 | BB27: =SUM('법정동(2013)'!BB40:BB42) -> 6,450.00 | BC27: =SUM('법정동(2013)'!BC40:BC42) -> 2 | BD27: =SUM('법정동(2013)'!BD40:BD42) -> 14,863.00 | BE27: =SUM('법정동(2013)'!BE40:BE42) -> 28 | BF27: =SUM('법정동(2013)'!BF40:BF42) -> 24,607.10 | BG27: =SUM('법정동(2013)'!BG40:BG42) -> 31
A28: 주삼동 | B28: =SUM('법정동(2013)'!B43:B45) -> 11,528,111.4 | C28: =SUM('법정동(2013)'!C43:C45) -> 8,553 | D28: =SUM('법정동(2013)'!D43:D45) -> 1,079,574.00 | E28: =SUM('법정동(2013)'!E43:E45) -> 1,392 | F28: =SUM('법정동(2013)'!F43:F45) -> 2,045,940.40 | G28: =SUM('법정동(2013)'!G43:G45) -> 2,100 | H28: =SUM('법정동(2013)'!H43:H45) -> 3,307.00 | I28: =SUM('법정동(2013)'!I43:I45) -> 1 | J28: =SUM('법정동(2013)'!J43:J45) -> 6,533.00 | K28: =SUM('법정동(2013)'!K43:K45) -> 10 | L28: =SUM('법정동(2013)'!L43:L45) -> 5,479,807.00 | M28: =SUM('법정동(2013)'!M43:M45) -> 1,111 | N28: =SUM('법정동(2013)'!N43:N45) -> 0 | O28: =SUM('법정동(2013)'!O43:O45) -> 0 | P28: =SUM('법정동(2013)'!P43:P45) -> 0 | Q28: =SUM('법정동(2013)'!Q43:Q45) -> 0 | R28: =SUM('법정동(2013)'!R43:R45) -> 570,821.70 | S28: =SUM('법정동(2013)'!S43:S45) -> 994 | T28: =SUM('법정동(2013)'!T43:T45) -> 130,477.00 | U28: =SUM('법정동(2013)'!U43:U45) -> 49 | V28: =SUM('법정동(2013)'!V43:V45) -> 84,875.00 | W28: =SUM('법정동(2013)'!W43:W45) -> 3 | X28: =SUM('법정동(2013)'!X43:X45) -> 26,336.00 | Y28: =SUM('법정동(2013)'!Y43:Y45) -> 17 | Z28: =SUM('법정동(2013)'!Z43:Z45) -> 27,090.00 | AA28: =SUM('법정동(2013)'!AA43:AA45) -> 27 | AB28: =SUM('법정동(2013)'!AB43:AB45) -> 15,803.00 | AC28: =SUM('법정동(2013)'!AC43:AC45) -> 26 | AD28: =SUM('법정동(2013)'!AD43:AD45) -> 916,169.50 | AE28: =SUM('법정동(2013)'!AE43:AE45) -> 2,219 | AF28: =SUM('법정동(2013)'!AF43:AF45) -> 60,329.20 | AG28: =SUM('법정동(2013)'!AG43:AG45) -> 78 | AH28: =SUM('법정동(2013)'!AH43:AH45) -> 9,201.00 | AI28: =SUM('법정동(2013)'!AI43:AI45) -> 11 | AJ28: =SUM('법정동(2013)'!AJ43:AJ45) -> 109,024.00 | AK28: =SUM('법정동(2013)'!AK43:AK45) -> 58 | AL28: =SUM('법정동(2013)'!AL43:AL45) -> 201,840.00 | AM28: =SUM('법정동(2013)'!AM43:AM45) -> 231 | AN28: =SUM('법정동(2013)'!AN43:AN45) -> 119,944.00 | AO28: =SUM('법정동(2013)'!AO43:AO45) -> 58 | AP28: =SUM('법정동(2013)'!AP43:AP45) -> 0 | AQ28: =SUM('법정동(2013)'!AQ43:AQ45) -> 0 | AR28: =SUM('법정동(2013)'!AR43:AR45) -> 3,567.00 | AS28: =SUM('법정동(2013)'!AS43:AS45) -> 7 | AT28: =SUM('법정동(2013)'!AT43:AT45) -> 0 | AU28: =SUM('법정동(2013)'!AU43:AU45) -> 0 | AV28: =SUM('법정동(2013)'!AV43:AV45) -> 514,788.00 | AW28: =SUM('법정동(2013)'!AW43:AW45) -> 2 | AX28: =SUM('법정동(2013)'!AX43:AX45) -> 0 | AY28: =SUM('법정동(2013)'!AY43:AY45) -> 0 | AZ28: =SUM('법정동(2013)'!AZ43:AZ45) -> 9,549.00 | BA28: =SUM('법정동(2013)'!BA43:BA45) -> 7 | BB28: =SUM('법정동(2013)'!BB43:BB45) -> 0 | BC28: =SUM('법정동(2013)'!BC43:BC45) -> 0 | BD28: =SUM('법정동(2013)'!BD43:BD45) -> 11,926.00 | BE28: =SUM('법정동(2013)'!BE43:BE45) -> 18 | BF28: =SUM('법정동(2013)'!BF43:BF45) -> 101,209.60 | BG28: =SUM('법정동(2013)'!BG43:BG45) -> 134
A29: 삼일동 | B29: =SUM('법정동(2013)'!B46:B51,'법정동(2013)'!B53:B56) -> 68,211,778.8 | C29: =SUM('법정동(2013)'!C46:C51,'법정동(2013)'!C53:C56) -> 19,185 | D29: =SUM('법정동(2013)'!D46:D51,'법정동(2013)'!D53:D56) -> 2,845,900.00 | E29: =SUM('법정동(2013)'!E46:E51,'법정동(2013)'!E53:E56) -> 3,457 | F29: =SUM('법정동(2013)'!F46:F51,'법정동(2013)'!F53:F56) -> 3,188,639.50 | G29: =SUM('법정동(2013)'!G46:G51,'법정동(2013)'!G53:G56) -> 3,535 | H29: =SUM('법정동(2013)'!H46:H51,'법정동(2013)'!H53:H56) -> 36,339.00 | I29: =SUM('법정동(2013)'!I46:I51,'법정동(2013)'!I53:I56) -> 14 | J29: =SUM('법정동(2013)'!J46:J51,'법정동(2013)'!J53:J56) -> 7,471.00 | K29: =SUM('법정동(2013)'!K46:K51,'법정동(2013)'!K53:K56) -> 5 | L29: =SUM('법정동(2013)'!L46:L51,'법정동(2013)'!L53:L56) -> 38,751,444.70 | M29: =SUM('법정동(2013)'!M46:M51,'법정동(2013)'!M53:M56) -> 3,521 | N29: =SUM('법정동(2013)'!N46:N51,'법정동(2013)'!N53:N56) -> 0 | O29: =SUM('법정동(2013)'!O46:O51,'법정동(2013)'!O53:O56) -> 0 | P29: =SUM('법정동(2013)'!P46:P51,'법정동(2013)'!P53:P56) -> 0 | Q29: =SUM('법정동(2013)'!Q46:Q51,'법정동(2013)'!Q53:Q56) -> 0 | R29: =SUM('법정동(2013)'!R46:R51,'법정동(2013)'!R53:R56) -> 1,368,733.50 | S29: =SUM('법정동(2013)'!S46:S51,'법정동(2013)'!S53:S56) -> 2,110 | T29: =SUM('법정동(2013)'!T46:T51,'법정동(2013)'!T53:T56) -> 14,036,200.90 | U29: =SUM('법정동(2013)'!U46:U51,'법정동(2013)'!U53:U56) -> 709 | V29: =SUM('법정동(2013)'!V46:V51,'법정동(2013)'!V53:V56) -> 62,608.00 | W29: =SUM('법정동(2013)'!W46:W51,'법정동(2013)'!W53:W56) -> 12 | X29: =SUM('법정동(2013)'!X46:X51,'법정동(2013)'!X53:X56) -> 17,007.70 | Y29: =SUM('법정동(2013)'!Y46:Y51,'법정동(2013)'!Y53:Y56) -> 15 | Z29: =SUM('법정동(2013)'!Z46:Z51,'법정동(2013)'!Z53:Z56) -> 344,105.90 | AA29: =SUM('법정동(2013)'!AA46:AA51,'법정동(2013)'!AA53:AA56) -> 48 | AB29: =SUM('법정동(2013)'!AB46:AB51,'법정동(2013)'!AB53:AB56) -> 23,822.40 | AC29: =SUM('법정동(2013)'!AC46:AC51,'법정동(2013)'!AC53:AC56) -> 12 | AD29: =SUM('법정동(2013)'!AD46:AD51,'법정동(2013)'!AD53:AD56) -> 2,655,946.60 | AE29: =SUM('법정동(2013)'!AE46:AE51,'법정동(2013)'!AE53:AE56) -> 3,730 | AF29: =SUM('법정동(2013)'!AF46:AF51,'법정동(2013)'!AF53:AF56) -> 275,568.00 | AG29: =SUM('법정동(2013)'!AG46:AG51,'법정동(2013)'!AG53:AG56) -> 191 | AH29: =SUM('법정동(2013)'!AH46:AH51,'법정동(2013)'!AH53:AH56) -> 108,327.50 | AI29: =SUM('법정동(2013)'!AI46:AI51,'법정동(2013)'!AI53:AI56) -> 67 | AJ29: =SUM('법정동(2013)'!AJ46:AJ51,'법정동(2013)'!AJ53:AJ56) -> 902,431.00 | AK29: =SUM('법정동(2013)'!AK46:AK51,'법정동(2013)'!AK53:AK56) -> 327 | AL29: =SUM('법정동(2013)'!AL46:AL51,'법정동(2013)'!AL53:AL56) -> 332,308.40 | AM29: =SUM('법정동(2013)'!AM46:AM51,'법정동(2013)'!AM53:AM56) -> 351 | AN29: =SUM('법정동(2013)'!AN46:AN51,'법정동(2013)'!AN53:AN56) -> 201,243.00 | AO29: =SUM('법정동(2013)'!AO46:AO51,'법정동(2013)'!AO53:AO56) -> 187 | AP29: =SUM('법정동(2013)'!AP46:AP51,'법정동(2013)'!AP53:AP56) -> 0 | AQ29: =SUM('법정동(2013)'!AQ46:AQ51,'법정동(2013)'!AQ53:AQ56) -> 0 | AR29: =SUM('법정동(2013)'!AR46:AR51,'법정동(2013)'!AR53:AR56) -> 65,088.70 | AS29: =SUM('법정동(2013)'!AS46:AS51,'법정동(2013)'!AS53:AS56) -> 28 | AT29: =SUM('법정동(2013)'!AT46:AT51,'법정동(2013)'!AT53:AT56) -> 9,450.70 | AU29: =SUM('법정동(2013)'!AU46:AU51,'법정동(2013)'!AU53:AU56) -> 5 | AV29: =SUM('법정동(2013)'!AV46:AV51,'법정동(2013)'!AV53:AV56) -> 1,544.00 | AW29: =SUM('법정동(2013)'!AW46:AW51,'법정동(2013)'!AW53:AW56) -> 2 | AX29: =SUM('법정동(2013)'!AX46:AX51,'법정동(2013)'!AX53:AX56) -> 0 | AY29: =SUM('법정동(2013)'!AY46:AY51,'법정동(2013)'!AY53:AY56) -> 0 | AZ29: =SUM('법정동(2013)'!AZ46:AZ51,'법정동(2013)'!AZ53:AZ56) -> 37,095.00 | BA29: =SUM('법정동(2013)'!BA46:BA51,'법정동(2013)'!BA53:BA56) -> 29 | BB29: =SUM('법정동(2013)'!BB46:BB51,'법정동(2013)'!BB53:BB56) -> 0 | BC29: =SUM('법정동(2013)'!BC46:BC51,'법정동(2013)'!BC53:BC56) -> 0 | BD29: =SUM('법정동(2013)'!BD46:BD51,'법정동(2013)'!BD53:BD56) -> 86,698.00 | BE29: =SUM('법정동(2013)'!BE46:BE51,'법정동(2013)'!BE53:BE56) -> 108 | BF29: =SUM('법정동(2013)'!BF46:BF51,'법정동(2013)'!BF53:BF56) -> 2,853,805.30 | BG29: =SUM('법정동(2013)'!BG46:BG51,'법정동(2013)'!BG53:BG56) -> 722
A30: 묘도동 | B30: =SUM('법정동(2013)'!B52) -> 11,515,440.6 | C30: =SUM('법정동(2013)'!C52) -> 5,824 | D30: =SUM('법정동(2013)'!D52) -> 1,323,015.00 | E30: =SUM('법정동(2013)'!E52) -> 1,328 | F30: =SUM('법정동(2013)'!F52) -> 935,425.00 | G30: =SUM('법정동(2013)'!G52) -> 1,081 | H30: =SUM('법정동(2013)'!H52) -> 3,155.00 | I30: =SUM('법정동(2013)'!I52) -> 3 | J30: =SUM('법정동(2013)'!J52) -> 1,592.00 | K30: =SUM('법정동(2013)'!K52) -> 4 | L30: =SUM('법정동(2013)'!L52) -> 5,653,600.00 | M30: =SUM('법정동(2013)'!M52) -> 1,680 | N30: =SUM('법정동(2013)'!N52) -> 0 | O30: =SUM('법정동(2013)'!O52) -> 0 | P30: =SUM('법정동(2013)'!P52) -> 0 | Q30: =SUM('법정동(2013)'!Q52) -> 0 | R30: =SUM('법정동(2013)'!R52) -> 180,663.00 | S30: =SUM('법정동(2013)'!S52) -> 663 | T30: =SUM('법정동(2013)'!T52) -> 0 | U30: =SUM('법정동(2013)'!U52) -> 0 | V30: =SUM('법정동(2013)'!V52) -> 18,801.00 | W30: =SUM('법정동(2013)'!W52) -> 4 | X30: =SUM('법정동(2013)'!X52) -> 28.00 | Y30: =SUM('법정동(2013)'!Y52) -> 1 | Z30: =SUM('법정동(2013)'!Z52) -> 589.00 | AA30: =SUM('법정동(2013)'!AA52) -> 1 | AB30: =SUM('법정동(2013)'!AB52) -> 3,651.00 | AC30: =SUM('법정동(2013)'!AC52) -> 6 | AD30: =SUM('법정동(2013)'!AD52) -> 137,561.00 | AE30: =SUM('법정동(2013)'!AE52) -> 895 | AF30: =SUM('법정동(2013)'!AF52) -> 0 | AG30: =SUM('법정동(2013)'!AG52) -> 0 | AH30: =SUM('법정동(2013)'!AH52) -> 113,398.60 | AI30: =SUM('법정동(2013)'!AI52) -> 13 | AJ30: =SUM('법정동(2013)'!AJ52) -> 15,454.00 | AK30: =SUM('법정동(2013)'!AK52) -> 2 | AL30: =SUM('법정동(2013)'!AL52) -> 63,958.00 | AM30: =SUM('법정동(2013)'!AM52) -> 27 | AN30: =SUM('법정동(2013)'!AN52) -> 22,036.00 | AO30: =SUM('법정동(2013)'!AO52) -> 27 | AP30: =SUM('법정동(2013)'!AP52) -> 0 | AQ30: =SUM('법정동(2013)'!AQ52) -> 0 | AR30: =SUM('법정동(2013)'!AR52) -> 0 | AS30: =SUM('법정동(2013)'!AS52) -> 0 | AT30: =SUM('법정동(2013)'!AT52) -> 0 | AU30: =SUM('법정동(2013)'!AU52) -> 0 | AV30: =SUM('법정동(2013)'!AV52) -> 0 | AW30: =SUM('법정동(2013)'!AW52) -> 0 | AX30: =SUM('법정동(2013)'!AX52) -> 0 | AY30: =SUM('법정동(2013)'!AY52) -> 0 | AZ30: =SUM('법정동(2013)'!AZ52) -> 3,681.00 | BA30: =SUM('법정동(2013)'!BA52) -> 2 | BB30: =SUM('법정동(2013)'!BB52) -> 0 | BC30: =SUM('법정동(2013)'!BC52) -> 0 | BD30: =SUM('법정동(2013)'!BD52) -> 29,108.00 | BE30: =SUM('법정동(2013)'!BE52) -> 39 | BF30: =SUM('법정동(2013)'!BF52) -> 3,009,725.00 | BG30: =SUM('법정동(2013)'!BG52) -> 48

Sheet 법정동(2012)
A1: 여수시 지적통계 현황
A3: 기준일자 : 2013. 6. 30.
A4: 단위: 필지,㎡
A5: 구 분 | B5: 계 | D5: 전 | F5: 답 | H5: 과수원 | J5: 목장용지 | L5: 임야 | N5: 광천지 | P5: 염전 | R5: 대 | T5: 공장용지 | V5: 학교용지 | X5: 주차장 | Z5: 주유소용지 | AB5: 창고용지 | AD5: 도로 | AF5: 철도용지 | AH5: 제방 | AJ5: 하천 | AL5: 구거 | AN5: 유지 | AP5: 양어장 | AR5: 수도용지 | AT5: 공원 | AV5: 체육용지 | AX5: 유원지 | AZ5: 종교용지 | BB5: 사적지 | BD5: 묘지 | BF5: 잡종지
B6: 면 적 | C6: 지번수 | D6: 면 적 | E6: 지번수 | F6: 면 적 | G6: 지번수 | H6: 면 적 | I6: 지번수 | J6: 면 적 | K6: 지번수 | L6: 면 적 | M6: 지번수 | N6: 면 적 | O6: 지번수 | P6: 면 적 | Q6: 지번수 | R6: 면 적 | S6: 지번수 | T6: 면 적 | U6: 지번수 | V6: 면 적 | W6: 지번수 | X6: 면 적 | Y6: 지번수 | Z6: 면 적 | AA6: 지번수 | AB6: 면 적 | AC6: 지번수 | AD6: 면 적 | AE6: 지번수 | AF6: 면 적 | AG6: 지번수 | AH6: 면 적 | AI6: 지번수 | AJ6: 면 적 | AK6: 지번수 | AL6: 면 적 | AM6: 지번수 | AN6: 면 적 | AO6: 지번수 | AP6: 면 적 | AQ6: 지번수 | AR6: 면 적 | AS6: 지번수 | AT6: 면 적 | AU6: 지번수 | AV6: 면 적 | AW6: 지번수 | AX6: 면 적 | AY6: 지번수 | AZ6: 면 적 | BA6: 지번수 | BB6: 면 적 | BC6: 지번수 | BD6: 면 적 | BE6: 지번수 | BF6: 면 적 | BG6: 지번수
A7: 합 계 | B7: 503,831,583.2 | C7: 310,879 | D7: 67,411,592.9 | E7: 75,588 | F7: 42,166,086.5 | G7: 46,957 | H7: 561,624.0 | I7: 199 | J7: 1,855,900.0 | K7: 512 | L7: 307,268,635.4 | M7: 54,497 | N7: 0 | O7: 0 | P7: 10,562.0 | Q7: 6 | R7: 21,341,498.2 | S7: 66,617 | T7: 15,504,955.6 | U7: 1,146 | V7: 2,013,132.0 | W7: 388 | X7: 254,052.9 | Y7: 361 | Z7: 355,598.9 | AA7: 237 | AB7: 251,909.9 | AC7: 381 | AD7: 18,133,951.3 | AE7: 47,462 | AF7: 1,237,045.2 | AG7: 999 | AH7: 684,443.2 | AI7: 795 | AJ7: 2,413,103.1 | AK7: 940 | AL7: 4,627,161.3 | AM7: 4,730 | AN7: 2,923,010.9 | AO7: 1,445 | AP7: 217,999.1 | AQ7: 144 | AR7: 489,498.2 | AS7: 410 | AT7: 1,022,615.7 | AU7: 248 | AV7: 1,186,214.6 | AW7: 47 | AX7: 263,794.9 | AY7: 4 | AZ7: 412,284.8 | BA7: 438 | BB7: 20,795.0 | BC7: 15 | BD7: 1,815,152.0 | BE7: 1,945 | BF7: 9,388,965.6 | BG7: 4,368
A8: 종화동 | B8: 401,782.0 | C8: 1,680 | D8: 73,471.0 | E8: 224 | F8: 1,267.0 | G8: 12 | H8: 0 | I8: 0 | J8: 0 | K8: 0 | L8: 23,655.0 | M8: 51 | N8: 0 | O8: 0 | P8: 0 | Q8: 0 | R8: 111,914.0 | S8: 1,050 | T8: 0 | U8: 0 | V8: 16,641.0 | W8: 1 | X8: 60.0 | Y8: 1 | Z8: 0 | AA8: 0 | AB8: 177.0 | AC8: 1 | AD8: 65,423.0 | AE8: 271 | AF8: 0 | AG8: 0 | AH8: 2,678.0 | AI8: 8 | AJ8: 0 | AK8: 0 | AL8: 2,501.0 | AM8: 11 | AN8: 0 | AO8: 0 | AP8: 0 | AQ8: 0 | AR8: 985.0 | AS8: 2 | AT8: 84,607.0 | AU8: 15 | AV8: 0 | AW8: 0 | AX8: 0 | AY8: 0 | AZ8: 1,094.0 | BA8: 4 | BB8: 0 | BC8: 0 | BD8: 4,334.0 | BE8: 15 | BF8: 12,975.0 | BG8: 14
A9: 수정동 | B9: 640,903.0 | C9: 1,651 | D9: 44,111.0 | E9: 243 | F9: 0 | G9: 0 | H9: 0 | I9: 0 | J9: 0 | K9: 0 | L9: 133,215.0 | M9: 56 | N9: 0 | O9: 0 | P9: 0 | Q9: 0 | R9: 248,792.0 | S9: 1,007 | T9: 3,705.0 | U9: 4 | V9: 37,527.0 | W9: 2 | X9: 338.0 | Y9: 5 | Z9: 0 | AA9: 0 | AB9: 0 | AC9: 0 | AD9: 73,042.0 | AE9: 252 | AF9: 52,747.0 | AG9: 32 | AH9: 28,149.0 | AI9: 18 | AJ9: 0 | AK9: 0 | AL9: 0 | AM9: 0 | AN9: 0 | AO9: 0 | AP9: 0 | AQ9: 0 | AR9: 0 | AS9: 0 | AT9: 4,533.0 | AU9: 2 | AV9: 0 | AW9: 0 | AX9: 0 | AY9: 0 | AZ9: 0 | BA9: 0 | BB9: 0 | BC9: 0 | BD9: 1,128.0 | BE9: 5 | BF9: 13,616.0 | BG9: 25
A10: 공화동 | B10: 310,102.0 | C10: 1,821 | D10: 3,450.0 | E10: 38 | F10: 0 | G10: 0 | H10: 0 | I10: 0 | J10: 0 | K10: 0 | L10: 1,696.0 | M10: 3 | N10: 0 | O10: 0 | P10: 0 | Q10: 0 | R10: 137,749.0 | S10: 1,446 | T10: 0 | U10: 0 | V10: 51,531.0 | W10: 6 | X10: 2,169.0 | Y10: 4 | Z10: 1,141.0 | AA10: 4 | AB10: 0 | AC10: 0 | AD10: 65,248.0 | AE10: 228 | AF10: 37,199.0 | AG10: 60 | AH10: 0 | AI10: 0 | AJ10: 0 | AK10: 0 | AL10: 3,480.0 | AM10: 22 | AN10: 0 | AO10: 0 | AP10: 0 | AQ10: 0 | AR10: 0 | AS10: 0 | AT10: 0 | AU10: 0 | AV10: 0 | AW10: 0 | AX10: 0 | AY10: 0 | AZ10: 6,337.0 | BA10: 9 | BB10: 0 | BC10: 0 | BD10: 0 | BE10: 0 | BF10: 102.0 | BG10: 1
A11: 관문동 | B11: 248,473.0 | C11: 1,601 | D11: 4,579.0 | E11: 59 | F11: 221.0 | G11: 5 | H11: 0 | I11: 0 | J11: 0 | K11: 0 | L11: 5,774.0 | M11: 30 | N11: 0 | O11: 0 | P11: 0 | Q11: 0 | R11: 145,687.0 | S11: 1,243 | T11: 0 | U11: 0 | V11: 48,901.0 | W11: 6 | X11: 631.0 | Y11: 4 | Z11: 0 | AA11: 0 | AB11: 0 | AC11: 0 | AD11: 40,568.0 | AE11: 243 | AF11: 0 | AG11: 0 | AH11: 0 | AI11: 0 | AJ11: 0 | AK11: 0 | AL11: 139.0 | AM11: 4 | AN11: 0 | AO11: 0 | AP11: 0 | AQ11: 0 | AR11: 0 | AS11: 0 | AT11: 0 | AU11: 0 | AV11: 0 | AW11: 0 | AX11: 0 | AY11: 0 | AZ11: 1,704.0 | BA11: 4 | BB11: 0 | BC11: 0 | BD11: 0 | BE11: 0 | BF11: 269.0 | BG11: 3
A12: 고소동 | B12: 176,568.0 | C12: 1,319 | D12: 16,553.0 | E12: 100 | F12: 0 | G12: 0 | H12: 0 | I12: 0 | J12: 0 | K12: 0 | L12: 913.0 | M12: 8 | N12: 0 | O12: 0 | P12: 0 | Q12: 0 | R12: 116,686.0 | S12: 890 | T12: 0 | U12: 0 | V12: 0 | W12: 0 | X12: 324.0 | Y12: 2 | Z12: 0 | AA12: 0 | AB12: 0 | AC12: 0 | AD12: 35,649.0 | AE12: 305 | AF12: 0 | AG12: 0 | AH12: 0 | AI12: 0 | AJ12: 0 | AK12: 0 | AL12: 0 | AM12: 0 | AN12: 0 | AO12: 0 | AP12: 0 | AQ12: 0 | AR12: 671.0 | AS12: 1 | AT12: 0 | AU12: 0 | AV12: 0 | AW12: 0 | AX12: 0 | AY12: 0 | AZ12: 3,526.0 | BA12: 4 | BB12: 1,583.0 | BC12: 1 | BD12: 78.0 | BE12: 3 | BF12: 585.0 | BG12: 5
A13: 동산동 | B13: 279,543.0 | C13: 1,216 | D13: 32,423.0 | E13: 77 | F13: 2,765.0 | G13: 6 | H13: 0 | I13: 0 | J13: 0 | K13: 0 | L13: 125,910.0 | M13: 25 | N13: 0 | O13: 0 | P13: 0 | Q13: 0 | R13: 85,639.0 | S13: 924 | T13: 0 | U13: 0 | V13: 10,782.0 | W13: 1 | X13: 556.0 | Y13: 3 | Z13: 0 | AA13: 0 | AB13: 0 | AC13: 0 | AD13: 13,048.0 | AE13: 169 | AF13: 0 | AG13: 0 | AH13: 0 | AI13: 0 | AJ13: 0 | AK13: 0 | AL13: 2,655.0 | AM13: 3 | AN13: 0 | AO13: 0 | AP13: 0 | AQ13: 0 | AR13: 4,960.0 | AS13: 4 | AT13: 0 | AU13: 0 | AV13: 0 | AW13: 0 | AX13: 0 | AY13: 0 | AZ13: 769.0 | BA13: 3 | BB13: 0 | BC13: 0 | BD13: 0 | BE13: 0 | BF13: 36.0 | BG13: 1
A14: 중앙동 | B14: 159,282.0 | C14: 796 | D14: 52.0 | E14: 4 | F14: 0 | G14: 0 | H14: 0 | I14: 0 | J14: 0 | K14: 0 | L14: 20,706.0 | M14: 17 | N14: 0 | O14: 0 | P14: 0 | Q14: 0 | R14: 65,873.0 | S14: 583 | T14: 0 | U14: 0 | V14: 0 | W14: 0 | X14: 1,679.0 | Y14: 1 | Z14: 0 | AA14: 0 | AB14: 0 | AC14: 0 | AD14: 49,487.0 | AE14: 180 | AF14: 0 | AG14: 0 | AH14: 0 | AI14: 0 | AJ14: 0 | AK14: 0 | AL14: 0 | AM14: 0 | AN14: 0 | AO14: 0 | AP14: 0 | AQ14: 0 | AR14: 0 | AS14: 0 | AT14: 9,732.0 | AU14: 1 | AV14: 0 | AW14: 0 | AX14: 0 | AY14: 0 | AZ14: 0 | BA14: 0 | BB14: 0 | BC14: 0 | BD14: 0 | BE14: 0 | BF14: 11,753.0 | BG14: 10
A15: 교동 | B15: 166,086.2 | C15: 1,172 | D15: 0 | E15: 0 | F15: 0 | G15: 0 | H15: 0 | I15: 0 | J15: 0 | K15: 0 | L15: 0 | M15: 0 | N15: 0 | O15: 0 | P15: 0 | Q15: 0 | R15: 96,868.0 | S15: 1,081 | T15: 0 | U15: 0 | V15: 0 | W15: 0 | X15: 4,238.2 | Y15: 4 | Z15: 0 | AA15: 0 | AB15: 0 | AC15: 0 | AD15: 50,034.0 | AE15: 76 | AF15: 0 | AG15: 0 | AH15: 800.0 | AI15: 2 | AJ15: 9,005.0 | AK15: 1 | AL15: 445.0 | AM15: 5 | AN15: 0 | AO15: 0 | AP15: 0 | AQ15: 0 | AR15: 0 | AS15: 0 | AT15: 0 | AU15: 0 | AV15: 0 | AW15: 0 | AX15: 0 | AY15: 0 | AZ15: 0 | BA15: 0 | BB15: 0 | BC15: 0 | BD15: 0 | BE15: 0 | BF15: 4,696.0 | BG15: 3
A16: 군자동 | B16: 121,235.0 | C16: 639 | D16: 34,418.0 | E16: 74 | F16: 0 | G16: 0 | H16: 0 | I16: 0 | J16: 0 | K16: 0 | L16: 0 | M16: 0 | N16: 0 | O16: 0 | P16: 0 | Q16: 0 | R16: 53,813.0 | S16: 490 | T16: 0 | U16: 0 | V16: 7,308.0 | W16: 1 | X16: 827.0 | Y16: 4 | Z16: 0 | AA16: 0 | AB16: 0 | AC16: 0 | AD16: 14,973.0 | AE16: 57 | AF16: 0 | AG16: 0 | AH16: 0 | AI16: 0 | AJ16: 0 | AK16: 0 | AL16: 1,068.0 | AM16: 3 | AN16: 0 | AO16: 0 | AP16: 0 | AQ16: 0 | AR16: 363.0 | AS16: 2 | AT16: 0 | AU16: 0 | AV16: 0 | AW16: 0 | AX16: 0 | AY16: 0 | AZ16: 2,650.0 | BA16: 2 | BB16: 5,642.0 | BC16: 4 | BD16: 0 | BE16: 0 | BF16: 173.0 | BG16: 2
A17: 충무동 | B17: 144,556.0 | C17: 997 | D17: 2,822.0 | E17: 21 | F17: 2,141.0 | G17: 12 | H17: 0 | I17: 0 | J17: 0 | K17: 0 | L17: 0 | M17: 0 | N17: 0 | O17: 0 | P17: 0 | Q17: 0 | R17: 93,901.0 | S17: 837 | T17: 0 | U17: 0 | V17: 0 | W17: 0 | X17: 1,470.0 | Y17: 5 | Z17: 0 | AA17: 0 | AB17: 0 | AC17: 0 | AD17: 36,048.0 | AE17: 103 | AF17: 0 | AG17: 0 | AH17: 0 | AI17: 0 | AJ17: 5,576.0 | AK17: 2 | AL17: 271.0 | AM17: 1 | AN17: 0 | AO17: 0 | AP17: 0 | AQ17: 0 | AR17: 0 | AS17: 0 | AT17: 0 | AU17: 0 | AV17: 0 | AW17: 0 | AX17: 0 | AY17: 0 | AZ17: 1,799.0 | BA17: 10 | BB17: 0 | BC17: 0 | BD17: 0 | BE17: 0 | BF17: 528.0 | BG17: 6
A18: 연등동 | B18: 1,083,737.5 | C18: 2,151 | D18: 194,112.0 | E18: 419 | F18: 43,758.0 | G18: 70 | H18: 0 | I18: 0 | J18: 0 | K18: 0 | L18: 447,669.8 | M18: 157 | N18: 0 | O18: 0 | P18: 0 | Q18: 0 | R18: 160,891.1 | S18: 1,137 | T18: 696.7 | U18: 1 | V18: 14,194.0 | W18: 2 | X18: 321.0 | Y18: 1 | Z18: 1,946.1 | AA18: 7 | AB18: 2,638.4 | AC18: 3 | AD18: 150,875.0 | AE18: 283 | AF18: 0 | AG18: 0 | AH18: 0 | AI18: 0 | AJ18: 14,522.0 | AK18: 21 | AL18: 32,734.4 | AM18: 22 | AN18: 0 | AO18: 0 | AP18: 0 | AQ18: 0 | AR18: 1,826.1 | AS18: 2 | AT18: 991.9 | AU18: 1 | AV18: 0 | AW18: 0 | AX18: 0 | AY18: 0 | AZ18: 4,986.0 | BA18: 5 | BB18: 76.0 | BC18: 1 | BD18: 5,021.0 | BE18: 9 | BF18: 6,478.0 | BG18: 10
A19: 광무동 | B19: 1,266,131.4 | C19: 2,927 | D19: 224,345.0 | E19: 437 | F19: 6,722.0 | G19: 36 | H19: 0 | I19: 0 | J19: 0 | K19: 0 | L19: 624,305.0 | M19: 95 | N19: 0 | O19: 0 | P19: 0 | Q19: 0 | R19: 233,524.4 | S19: 1,799 | T19: 0 | U19: 0 | V19: 19,814.0 | W19: 5 | X19: 2,331.0 | Y19: 4 | Z19: 695.8 | AA19: 1 | AB19: 0 | AC19: 0 | AD19: 122,068.7 | AE19: 476 | AF19: 0 | AG19: 0 | AH19: 0 | AI19: 0 | AJ19: 8,810.0 | AK19: 10 | AL19: 3,739.9 | AM19: 10 | AN19: 0 | AO19: 0 | AP19: 0 | AQ19: 0 | AR19: 3,837.0 | AS19: 11 | AT19: 616.0 | AU19: 1 | AV19: 0 | AW19: 0 | AX19: 0 | AY19: 0 | AZ19: 5,548.0 | BA19: 9 | BB19: 0 | BC19: 0 | BD19: 4,347.0 | BE19: 16 | BF19: 5,427.6 | BG19: 17
A20: 서교동 | B20: 169,257.0 | C20: 1,160 | D20: 136.0 | E20: 2 | F20: 378.0 | G20: 7 | H20: 0 | I20: 0 | J20: 0 | K20: 0 | L20: 0 | M20: 0 | N20: 0 | O20: 0 | P20: 0 | Q20: 0 | R20: 85,306.0 | S20: 863 | T20: 0 | U20: 0 | V20: 19,165.0 | W20: 1 | X20: 6,734.0 | Y20: 4 | Z20: 0 | AA20: 0 | AB20: 0 | AC20: 0 | AD20: 42,923.0 | AE20: 262 | AF20: 0 | AG20: 0 | AH20: 0 | AI20: 0 | AJ20: 8,724.0 | AK20: 4 | AL20: 753.0 | AM20: 13 | AN20: 0 | AO20: 0 | AP20: 0 | AQ20: 0 | AR20: 0 | AS20: 0 | AT20: 143.0 | AU20: 1 | AV20: 0 | AW20: 0 | AX20: 0 | AY20: 0 | AZ20: 4,598.0 | BA20: 2 | BB20: 0 | BC20: 0 | BD20: 0 | BE20: 0 | BF20: 397.0 | BG20: 1
A21: 봉강동 | B21: 486,137.5 | C21: 1,610 | D21: 79,548.0 | E21: 170 | F21: 26,972.0 | G21: 51 | H21: 0 | I21: 0 | J21: 0 | K21: 0 | L21: 156,344.0 | M21: 55 | N21: 0 | O21: 0 | P21: 0 | Q21: 0 | R21: 122,433.2 | S21: 924 | T21: 0 | U21: 0 | V21: 35,979.0 | W21: 2 | X21: 578.0 | Y21: 2 | Z21: 0 | AA21: 0 | AB21: 0 | AC21: 0 | AD21: 52,156.7 | AE21: 364 | AF21: 0 | AG21: 0 | AH21: 0 | AI21: 0 | AJ21: 0 | AK21: 0 | AL21: 3,404.0 | AM21: 13 | AN21: 0 | AO21: 0 | AP21: 0 | AQ21: 0 | AR21: 0 | AS21: 0 | AT21: 1,906.9 | AU21: 1 | AV21: 0 | AW21: 0 | AX21: 0 | AY21: 0 | AZ21: 3,652.0 | BA21: 5 | BB21: 0 | BC21: 0 | BD21: 0 | BE21: 0 | BF21: 3,163.7 | BG21: 23
A22: 봉산동 | B22: 1,204,875.7 | C22: 2,888 | D22: 147,302.0 | E22: 304 | F22: 43,663.0 | G22: 100 | H22: 0 | I22: 0 | J22: 0 | K22: 0 | L22: 352,775.0 | M22: 61 | N22: 0 | O22: 0 | P22: 0 | Q22: 0 | R22: 413,726.3 | S22: 1,931 | T22: 353.1 | U22: 1 | V22: 29,460.0 | W22: 6 | X22: 107.1 | Y22: 1 | Z22: 1,618.4 | AA22: 3 | AB22: 1,297.1 | AC22: 4 | AD22: 185,038.7 | AE22: 445 | AF22: 0 | AG22: 0 | AH22: 0 | AI22: 0 | AJ22: 0 | AK22: 0 | AL22: 3,904.0 | AM22: 10 | AN22: 27.0 | AO22: 2 | AP22: 0 | AQ22: 0 | AR22: 0 | AS22: 0 | AT22: 0 | AU22: 0 | AV22: 0 | AW22: 0 | AX22: 0 | AY22: 0 | AZ22: 7,586.0 | BA22: 6 | BB22: 0 | BC22: 0 | BD22: 2,507.0 | BE22: 9 | BF22: 15,511.0 | BG22: 5
A23: 남산동 | B23: 400,212.0 | C23: 1,898 | D23: 95,675.0 | E23: 211 | F23: 126.0 | G23: 4 | H23: 0 | I23: 0 | J23: 0 | K23: 0 | L23: 32,758.0 | M23: 30 | N23: 0 | O23: 0 | P23: 0 | Q23: 0 | R23: 133,543.0 | S23: 1,262 | T23: 0 | U23: 0 | V23: 4,469.0 | W23: 2 | X23: 2,110.0 | Y23: 5 | Z23: 0 | AA23: 0 | AB23: 0 | AC23: 0 | AD23: 99,707.0 | AE23: 340 | AF23: 0 | AG23: 0 | AH23: 273.0 | AI23: 4 | AJ23: 9,140.0 | AK23: 1 | AL23: 595.0 | AM23: 6 | AN23: 0 | AO23: 0 | AP23: 0 | AQ23: 0 | AR23: 283.0 | AS23: 2 | AT23: 0 | AU23: 0 | AV23: 0 | AW23: 0 | AX23: 0 | AY23: 0 | AZ23: 0 | BA23: 0 | BB23: 0 | BC23: 0 | BD23: 58.0 | BE23: 2 | BF23: 21,475.0 | BG23: 29
A24: 국동 | B24: 1,533,308.3 | C24: 3,250 | D24: 107,621.0 | E24: 493 | F24: 15,729.0 | G24: 84 | H24: 815.0 | I24: 1 | J24: 0 | K24: 0 | L24: 488,434.0 | M24: 110 | N24: 0 | O24: 0 | P24: 0 | Q24: 0 | R24: 531,604.2 | S24: 1,935 | T24: 5,044.0 | U24: 9 | V24: 125,146.2 | W24: 32 | X24: 5,979.0 | Y24: 4 | Z24: 420.0 | AA24: 1 | AB24: 609.0 | AC24: 4 | AD24: 160,572.6 | AE24: 473 | AF24: 0 | AG24: 0 | AH24: 2,006.0 | AI24: 1 | AJ24: 0 | AK24: 0 | AL24: 15,931.0 | AM24: 14 | AN24: 0 | AO24: 0 | AP24: 0 | AQ24: 0 | AR24: 3,092.0 | AS24: 6 | AT24: 0 | AU24: 0 | AV24: 0 | AW24: 0 | AX24: 0 | AY24: 0 | AZ24: 7,076.5 | BA24: 14 | BB24: 0 | BC24: 0 | BD24: 1,035.0 | BE24: 10 | BF24: 62,193.8 | BG24: 59
A25: 신월동 | B25: 3,711,729.5 | C25: 2,627 | D25: 615,874.0 | E25: 869 | F25: 121,231.0 | G25: 203 | H25: 0 | I25: 0 | J25: 0 | K25: 0 | L25: 1,407,166.0 | M25: 326 | N25: 0 | O25: 0 | P25: 0 | Q25: 0 | R25: 240,604.5 | S25: 509 | T25: 844,847.0 | U25: 121 | V25: 7,970.0 | W25: 1 | X25: 1,587.0 | Y25: 1 | Z25: 2,571.0 | AA25: 10 | AB25: 1,810.0 | AC25: 2 | AD25: 200,439.0 | AE25: 402 | AF25: 0 | AG25: 0 | AH25: 5,811.0 | AI25: 16 | AJ25: 0 | AK25: 0 | AL25: 45,454.0 | AM25: 20 | AN25: 0 | AO25: 0 | AP25: 0 | AQ25: 0 | AR25: 0 | AS25: 0 | AT25: 0 | AU25: 0 | AV25: 0 | AW25: 0 | AX25: 0 | AY25: 0 | AZ25: 8,822.0 | BA25: 9 | BB25: 0 | BC25: 0 | BD25: 6,008.0 | BE25: 26 | BF25: 201,535.0 | BG25: 112
A26: 여서동 | B26: 2,575,399.9 | C26: 1,908 | D26: 204,480.0 | E26: 276 | F26: 116,419.0 | G26: 188 | H26: 0 | I26: 0 | J26: 0 | K26: 0 | L26: 1,223,736.0 | M26: 284 | N26: 0 | O26: 0 | P26: 0 | Q26: 0 | R26: 562,616.9 | S26: 751 | T26: 0 | U26: 0 | V26: 58,011.0 | W26: 4 | X26: 15,531.6 | Y26: 15 | Z26: 1,488.0 | AA26: 1 | AB26: 884.0 | AC26: 1 | AD26: 291,253.8 | AE26: 279 | AF26: 0 | AG26: 0 | AH26: 0 | AI26: 0 | AJ26: 0 | AK26: 0 | AL26: 15,119.9 | AM26: 20 | AN26: 958.0 | AO26: 2 | AP26: 0 | AQ26: 0 | AR26: 11,855.0 | AS26: 5 | AT26: 19,406.8 | AU26: 7 | AV26: 9,361.0 | AW26: 5 | AX26: 0 | AY26: 0 | AZ26: 15,908.4 | BA26: 22 | BB26: 0 | BC26: 0 | BD26: 2,630.0 | BE26: 8 | BF26: 25,740.5 | BG26: 40
A27: 문수동 | B27: 2,244,609.3 | C27: 3,215 | D27: 177,192.0 | E27: 329 | F27: 35,111.0 | G27: 96 | H27: 0 | I27: 0 | J27: 0 | K27: 0 | L27: 836,566.7 | M27: 324 | N27: 0 | O27: 0 | P27: 0 | Q27: 0 | R27: 714,845.5 | S27: 1,903 | T27: 0 | U27: 0 | V27: 122,894.6 | W27: 10 | X27: 13,688.4 | Y27: 55 | Z27: 1,109.1 | AA27: 2 | AB27: 205.0 | AC27: 1 | AD27: 223,619.9 | AE27: 364 | AF27: 0 | AG27: 0 | AH27: 0 | AI27: 0 | AJ27: 8,513.0 | AK27: 5 | AL27: 9,438.4 | AM27: 13 | AN27: 0 | AO27: 0 | AP27: 0 | AQ27: 0 | AR27: 31.0 | AS27: 1 | AT27: 54,362.1 | AU27: 21 | AV27: 0 | AW27: 0 | AX27: 0 | AY27: 0 | AZ27: 25,861.0 | BA27: 15 | BB27: 0 | BC27: 0 | BD27: 3,861.0 | BE27: 19 | BF27: 17,310.6 | BG27: 57
A28: 오림동 | B28: 2,130,079.7 | C28: 1,640 | D28: 150,620.0 | E28: 265 | F28: 58,336.0 | G28: 112 | H28: 0 | I28: 0 | J28: 0 | K28: 0 | L28: 1,139,109.0 | M28: 294 | N28: 0 | O28: 0 | P28: 0 | Q28: 0 | R28: 176,766.6 | S28: 550 | T28: 895.0 | U28: 1 | V28: 25,821.0 | W28: 2 | X28: 65.3 | Y28: 1 | Z28: 2,939.8 | AA28: 8 | AB28: 894.0 | AC28: 2 | AD28: 143,222.1 | AE28: 287 | AF28: 33,331.0 | AG28: 33 | AH28: 0 | AI28: 0 | AJ28: 17,042.4 | AK28: 6 | AL28: 15,437.2 | AM28: 33 | AN28: 10.0 | AO28: 1 | AP28: 0 | AQ28: 0 | AR28: 9,101.0 | AS28: 5 | AT28: 1,699.4 | AU28: 1 | AV28: 310,227.0 | AW28: 14 | AX28: 0 | AY28: 0 | AZ28: 3,107.9 | BA28: 3 | BB28: 0 | BC28: 0 | BD28: 35,291.0 | BE28: 10 | BF28: 6,164.0 | BG28: 12
A29: 미평동 | B29: 3,089,016.9 | C29: 2,722 | D29: 148,751.0 | E29: 352 | F29: 102,764.0 | G29: 237 | H29: 0 | I29: 0 | J29: 0 | K29: 0 | L29: 1,834,922.0 | M29: 229 | N29: 0 | O29: 0 | P29: 0 | Q29: 0 | R29: 465,875.5 | S29: 1,158 | T29: 1,501.0 | U29: 3 | V29: 64,631.1 | W29: 10 | X29: 3,550.8 | Y29: 11 | Z29: 1,804.2 | AA29: 3 | AB29: 177.4 | AC29: 1 | AD29: 195,839.4 | AE29: 523 | AF29: 53,203.0 | AG29: 33 | AH29: 0 | AI29: 0 | AJ29: 9,529.4 | AK29: 3 | AL29: 25,760.0 | AM29: 52 | AN29: 0 | AO29: 0 | AP29: 0 | AQ29: 0 | AR29: 106,673.5 | AS29: 62 | AT29: 16,700.4 | AU29: 10 | AV29: 0 | AW29: 0 | AX29: 0 | AY29: 0 | AZ29: 8,992.4 | BA29: 9 | BB29: 0 | BC29: 0 | BD29: 5,712.0 | BE29: 7 | BF29: 42,629.8 | BG29: 19
A30: 둔덕동 | B30: 4,076,115.1 | C30: 2,397 | D30: 183,604.0 | E30: 305 | F30: 428,387.0 | G30: 490 | H30: 0 | I30: 0 | J30: 0 | K30: 0 | L30: 2,322,711.0 | M30: 399 | N30: 0 | O30: 0 | P30: 0 | Q30: 0 | R30: 466,098.7 | S30: 649 | T30: 362.0 | U30: 1 | V30: 0 | W30: 0 | X30: 1,073.9 | Y30: 3 | Z30: 10,143.9 | AA30: 8 | AB30: 6,380.7 | AC30: 9 | AD30: 246,103.6 | AE30: 400 | AF30: 22,933.0 | AG30: 33 | AH30: 0 | AI30: 0 | AJ30: 9,119.1 | AK30: 3 | AL30: 21,297.0 | AM30: 13 | AN30: 0 | AO30: 0 | AP30: 0 | AQ30: 0 | AR30: 72,838.0 | AS30: 4 | AT30: 18,073.4 | AU30: 8 | AV30: 166,279.0 | AW30: 6 | AX30: 0 | AY30: 0 | AZ30: 14,763.3 | BA30: 10 | BB30: 0 | BC30: 0 | BD30: 2,675.0 | BE30: 8 | BF30: 83,272.5 | BG30: 48
A31: 오천동 | B31: 5,624,952.8 | C31: 1,841 | D31: 459,787.0 | E31: 545 | F31: 231,614.0 | G31: 298 | H31: 0 | I31: 0 | J31: 0 | K31: 0 | L31: 4,445,624.0 | M31: 310 | N31: 0 | O31: 0 | P31: 0 | Q31: 0 | R31: 76,887.0 | S31: 265 | T31: 91,590.6 | U31: 54 | V31: 0 | W31: 0 | X31: 25.0 | Y31: 1 | Z31: 0 | AA31: 0 | AB31: 288.0 | AC31: 1 | AD31: 116,523.0 | AE31: 253 | AF31: 0 | AG31: 0 | AH31: 18,477.0 | AI31: 13 | AJ31: 5,346.3 | AK31: 3 | AL31: 52,699.9 | AM31: 36 | AN31: 104,581.0 | AO31: 21 | AP31: 0 | AQ31: 0 | AR31: 12,219.0 | AS31: 23 | AT31: 0 | AU31: 0 | AV31: 0 | AW31: 0 | AX31: 0 | AY31: 0 | AZ31: 1,566.0 | BA31: 1 | BB31: 0 | BC31: 0 | BD31: 3,628.0 | BE31: 10 | BF31: 4,097.0 | BG31: 7
A32: 만흥동 | B32: 7,434,177.5 | C32: 3,929 | D32: 882,655.0 | E32: 1,049 | F32: 636,419.0 | G32: 721 | H32: 0 | I32: 0 | J32: 0 | K32: 0 | L32: 5,219,767.0 | M32: 742 | N32: 0 | O32: 0 | P32: 0 | Q32: 0 | R32: 135,520.0 | S32: 396 | T32: 45,135.0 | U32: 22 | V32: 11,073.0 | W32: 1 | X32: 2,793.0 | Y32: 3 | Z32: 1,185.0 | AA32: 2 | AB32: 3,299.0 | AC32: 5 | AD32: 150,341.6 | AE32: 704 | AF32: 109,086.0 | AG32: 73 | AH32: 927.0 | AI32: 3 | AJ32: 7,761.0 | AK32: 5 | AL32: 72,261.9 | AM32: 59 | AN32: 0 | AO32: 0 | AP32: 0 | AQ32: 0 | AR32: 9,147.0 | AS32: 35 | AT32: 0 | AU32: 0 | AV32: 0 | AW32: 0 | AX32: 0 | AY32: 0 | AZ32: 3,841.0 | BA32: 3 | BB32: 0 | BC32: 0 | BD32: 21,332.0 | BE32: 47 | BF32: 121,634.0 | BG32: 59
A33: 덕충동 | B33: 2,920,826.1 | C33: 4,745 | D33: 528,131.0 | E33: 1,129 | F33: 94,060.0 | G33: 209 | H33: 0 | I33: 0 | J33: 0 | K33: 0 | L33: 1,141,427.0 | M33: 404 | N33: 0 | O33: 0 | P33: 0 | Q33: 0 | R33: 499,627.0 | S33: 1,913 | T33: 27,182.0 | U33: 13 | V33: 56,349.0 | W33: 21 | X33: 0 | Y33: 0 | Z33: 0 | AA33: 0 | AB33: 429.0 | AC33: 2 | AD33: 123,827.0 | AE33: 698 | AF33: 183,895.0 | AG33: 177 | AH33: 23,473.4 | AI33: 19 | AJ33: 0 | AK33: 0 | AL33: 31,153.0 | AM33: 42 | AN33: 0 | AO33: 0 | AP33: 0 | AQ33: 0 | AR33: 8,065.0 | AS33: 12 | AT33: 0 | AU33: 0 | AV33: 9,615.0 | AW33: 5 | AX33: 0 | AY33: 0 | AZ33: 11,572.0 | BA33: 17 | BB33: 0 | BC33: 0 | BD33: 23,924.0 | BE33: 47 | BF33: 158,096.7 | BG33: 37
A34: 경호동 | B34: 3,078,917.0 | C34: 3,721 | D34: 1,126,228.0 | E34: 1,266 | F34: 158,586.0 | G34: 262 | H34: 0 | I34: 0 | J34: 0 | K34: 0 | L34: 1,523,689.0 | M34: 842 | N34: 0 | O34: 0 | P34: 0 | Q34: 0 | R34: 144,495.7 | S34: 715 | T34: 0 | U34: 0 | V34: 11,350.0 | W34: 2 | X34: 821.6 | Y34: 8 | Z34: 0 | AA34: 0 | AB34: 0 | AC34: 0 | AD34: 55,768.1 | AE34: 504 | AF34: 0 | AG34: 0 | AH34: 11,391.0 | AI34: 27 | AJ34: 1,220.0 | AK34: 5 | AL34: 107.0 | AM34: 1 | AN34: 2,473.0 | AO34: 2 | AP34: 1,601.0 | AQ34: 1 | AR34: 0 | AS34: 0 | AT34: 7,918.6 | AU34: 11 | AV34: 0 | AW34: 0 | AX34: 0 | AY34: 0 | AZ34: 1,145.0 | BA34: 2 | BB34: 0 | BC34: 0 | BD34: 12,358.0 | BE34: 27 | BF34: 19,765.0 | BG34: 46
A35: 학동 | B35: 1,429,258.9 | C35: 1,772 | D35: 7,488.0 | E35: 30 | F35: 646.0 | G35: 8 | H35: 0 | I35: 0 | J35: 0 | K35: 0 | L35: 79,011.2 | M35: 34 | N35: 0 | O35: 0 | P35: 0 | Q35: 0 | R35: 802,301.6 | S35: 1,498 | T35: 0 | U35: 0 | V35: 23,943.0 | W35: 2 | X35: 10,098.3 | Y35: 15 | Z35: 2,820.0 | AA35: 5 | AB35: 299.0 | AC35: 1 | AD35: 360,485.9 | AE35: 148 | AF35: 0 | AG35: 0 | AH35: 0 | AI35: 0 | AJ35: 0 | AK35: 0 | AL35: 830.7 | AM35: 9 | AN35: 7,506.5 | AO35: 1 | AP35: 0 | AQ35: 0 | AR35: 0 | AS35: 0 | AT35: 119,956.8 | AU35: 14 | AV35: 10,945.6 | AW35: 1 | AX35: 66.0 | AY35: 1 | AZ35: 1,125.0 | BA35: 1 | BB35: 0 | BC35: 0 | BD35: 0 | BE35: 0 | BF35: 1,735.3 | BG35: 4
A36: 학용동 | B36: 966,619.0 | C36: 574 | D36: 129,040.0 | E36: 235 | F36: 11,542.0 | G36: 26 | H36: 3,486.0 | I36: 3 | J36: 0 | K36: 0 | L36: 672,245.0 | M36: 145 | N36: 0 | O36: 0 | P36: 0 | Q36: 0 | R36: 2,737.0 | S36: 6 | T36: 0 | U36: 0 | V36: 0 | W36: 0 | X36: 0 | Y36: 0 | Z36: 3,215.0 | AA36: 3 | AB36: 0 | AC36: 0 | AD36: 21,192.0 | AE36: 35 | AF36: 73,480.0 | AG36: 71 | AH36: 0 | AI36: 0 | AJ36: 5,158.0 | AK36: 12 | AL36: 3,960.0 | AM36: 9 | AN36: 0 | AO36: 0 | AP36: 0 | AQ36: 0 | AR36: 20,058.0 | AS36: 3 | AT36: 2,489.0 | AU36: 5 | AV36: 0 | AW36: 0 | AX36: 0 | AY36: 0 | AZ36: 0 | BA36: 0 | BB36: 0 | BC36: 0 | BD36: 18,017.0 | BE36: 21 | BF36: 0 | BG36: 0
A37: 안산동 | B37: 1,468,379.8 | C37: 1,537 | D37: 53,240.0 | E37: 124 | F37: 23,047.0 | G37: 46 | H37: 0 | I37: 0 | J37: 0 | K37: 0 | L37: 523,049.6 | M37: 155 | N37: 0 | O37: 0 | P37: 0 | Q37: 0 | R37: 587,550.3 | S37: 1,038 | T37: 0 | U37: 0 | V37: 38,644.1 | W37: 4 | X37: 2,048.1 | Y37: 4 | Z37: 440.2 | AA37: 2 | AB37: 363.0 | AC37: 1 | AD37: 196,547.1 | AE37: 131 | AF37: 0 | AG37: 0 | AH37: 1,296.4 | AI37: 1 | AJ37: 1,060.0 | AK37: 2 | AL37: 4,498.8 | AM37: 10 | AN37: 0 | AO37: 0 | AP37: 0 | AQ37: 0 | AR37: 0 | AS37: 0 | AT37: 21,255.1 | AU37: 3 | AV37: 0 | AW37: 0 | AX37: 0 | AY37: 0 | AZ37: 14,502.1 | BA37: 12 | BB37: 0 | BC37: 0 | BD37: 317.0 | BE37: 1 | BF37: 521.0 | BG37: 3
A38: 소호동 | B38: 3,293,988.2 | C38: 2,295 | D38: 333,660.0 | E38: 434 | F38: 343,752.0 | G38: 381 | H38: 0 | I38: 0 | J38: 0 | K38: 0 | L38: 1,536,782.4 | M38: 337 | N38: 0 | O38: 0 | P38: 0 | Q38: 0 | R38: 683,117.5 | S38: 694 | T38: 12,954.0 | U38: 11 | V38: 30,757.4 | W38: 3 | X38: 14,374.8 | Y38: 13 | Z38: 1,526.0 | AA38: 1 | AB38: 3,470.0 | AC38: 3 | AD38: 195,636.1 | AE38: 314 | AF38: 0 | AG38: 0 | AH38: 5,785.8 | AI38: 6 | AJ38: 144.0 | AK38: 2 | AL38: 17,152.0 | AM38: 10 | AN38: 4,182.0 | AO38: 3 | AP38: 0 | AQ38: 0 | AR38: 0 | AS38: 0 | AT38: 4,193.0 | AU38: 2 | AV38: 0 | AW38: 0 | AX38: 49,588.3 | AY38: 1 | AZ38: 6,488.0 | BA38: 6 | BB38: 0 | BC38: 0 | BD38: 15,387.0 | BE38: 34 | BF38: 35,037.9 | BG38: 40
A39: 시전동 | B39: 1,852,629.4 | C39: 949 | D39: 271,818.0 | E39: 316 | F39: 89,758.0 | G39: 114 | H39: 0 | I39: 0 | J39: 0 | K39: 0 | L39: 1,206,622.0 | M39: 312 | N39: 0 | O39: 0 | P39: 0 | Q39: 0 | R39: 38,328.4 | S39: 58 | T39: 0 | U39: 0 | V39: 0 | W39: 0 | X39: 0 | Y39: 0 | Z39: 3,904.0 | AA39: 4 | AB39: 0 | AC39: 0 | AD39: 42,392.0 | AE39: 91 | AF39: 0 | AG39: 0 | AH39: 0 | AI39: 0 | AJ39: 177.0 | AK39: 2 | AL39: 14,482.0 | AM39: 18 | AN39: 0 | AO39: 0 | AP39: 0 | AQ39: 0 | AR39: 9.0 | AS39: 1 | AT39: 0 | AU39: 0 | AV39: 157,345.0 | AW39: 4 | AX39: 0 | AY39: 0 | AZ39: 13,946.0 | BA39: 3 | BB39: 0 | BC39: 0 | BD39: 8,810.0 | BE39: 22 | BF39: 5,038.0 | BG39: 4
A40: 신기동 | B40: 984,004.0 | C40: 1,488 | D40: 0 | E40: 0 | F40: 0 | G40: 0 | H40: 0 | I40: 0 | J40: 0 | K40: 0 | L40: 43,922.6 | M40: 15 | N40: 0 | O40: 0 | P40: 0 | Q40: 0 | R40: 615,853.8 | S40: 1,402 | T40: 0 | U40: 0 | V40: 34,096.3 | W40: 2 | X40: 2,812.0 | Y40: 10 | Z40: 661.2 | AA40: 1 | AB40: 0 | AC40: 0 | AD40: 261,986.2 | AE40: 42 | AF40: 0 | AG40: 0 | AH40: 0 | AI40: 0 | AJ40: 0 | AK40: 0 | AL40: 0 | AM40: 0 | AN40: 0 | AO40: 0 | AP40: 0 | AQ40: 0 | AR40: 0 | AS40: 0 | AT40: 19,675.2 | AU40: 11 | AV40: 0 | AW40: 0 | AX40: 0 | AY40: 0 | AZ40: 4,996.7 | BA40: 5 | BB40: 0 | BC40: 0 | BD40: 0 | BE40: 0 | BF40: 0 | BG40: 0
A41: 웅천동 | B41: 3,423,661.0 | C41: 3,759 | D41: 801,604.0 | E41: 1,028 | F41: 401,828.0 | G41: 631 | H41: 4,119.0 | I41: 4 | J41: 0 | K41: 0 | L41: 1,169,609.0 | M41: 592 | N41: 0 | O41: 0 | P41: 0 | Q41: 0 | R41: 415,610.9 | S41: 780 | T41: 0 | U41: 0 | V41: 30,448.7 | W41: 2 | X41: 21,649.5 | Y41: 9 | Z41: 0 | AA41: 0 | AB41: 350.0 | AC41: 1 | AD41: 282,049.1 | AE41: 574 | AF41: 0 | AG41: 0 | AH41: 1,881.6 | AI41: 6 | AJ41: 378.0 | AK41: 2 | AL41: 35,951.0 | AM41: 17 | AN41: 22,484.0 | AO41: 30 | AP41: 0 | AQ41: 0 | AR41: 3,733.1 | AS41: 12 | AT41: 155,520.9 | AU41: 29 | AV41: 0 | AW41: 0 | AX41: 0 | AY41: 0 | AZ41: 1,541.0 | BA41: 2 | BB41: 0 | BC41: 0 | BD41: 15,558.0 | BE41: 29 | BF41: 59,345.2 | BG41: 11
A42: 선원동 | B42: 2,552,218.3 | C42: 2,765 | D42: 278,140.0 | E42: 374 | F42: 330,607.0 | G42: 346 | H42: 5,341.0 | I42: 4 | J42: 0 | K42: 0 | L42: 720,399.0 | M42: 298 | N42: 0 | O42: 0 | P42: 0 | Q42: 0 | R42: 659,164.2 | S42: 1,348 | T42: 2,149.0 | U42: 1 | V42: 79,321.7 | W42: 4 | X42: 12,717.8 | Y42: 15 | Z42: 2,654.1 | AA42: 7 | AB42: 7,924.0 | AC42: 4 | AD42: 328,770.4 | AE42: 253 | AF42: 46,158.0 | AG42: 32 | AH42: 0 | AI42: 0 | AJ42: 23,299.0 | AK42: 5 | AL42: 29,266.8 | AM42: 45 | AN42: 20.0 | AO42: 1 | AP42: 0 | AQ42: 0 | AR42: 0 | AS42: 0 | AT42: 5,252.0 | AU42: 5 | AV42: 0 | AW42: 0 | AX42: 0 | AY42: 0 | AZ42: 10,177.2 | BA42: 6 | BB42: 0 | BC42: 0 | BD42: 8,373.0 | BE42: 13 | BF42: 2,484.1 | BG42: 4
A43: 여천동 | B43: 2,390,511.0 | C43: 1,871 | D43: 327,268.0 | E43: 371 | F43: 717,540.0 | G43: 696 | H43: 0 | I43: 0 | J43: 1,905.0 | K43: 4 | L43: 911,889.0 | M43: 95 | N43: 0 | O43: 0 | P43: 0 | Q43: 0 | R43: 73,999.0 | S43: 179 | T43: 3,097.0 | U43: 2 | V43: 0 | W43: 0 | X43: 5,579.0 | Y43: 11 | Z43: 6,626.0 | AA43: 8 | AB43: 6,062.0 | AC43: 12 | AD43: 149,428.0 | AE43: 308 | AF43: 0 | AG43: 0 | AH43: 0 | AI43: 0 | AJ43: 49,578.0 | AK43: 41 | AL43: 51,312.0 | AM43: 82 | AN43: 23,868.0 | AO43: 16 | AP43: 1,016.0 | AQ43: 1 | AR43: 30,576.0 | AS43: 9 | AT43: 0 | AU43: 0 | AV43: 0 | AW43: 0 | AX43: 0 | AY43: 0 | AZ43: 9,967.0 | BA43: 6 | BB43: 6,450.0 | BC43: 2 | BD43: 2,113.0 | BE43: 9 | BF43: 12,238.0 | BG43: 19
A44: 화장동 | B44: 2,588,444.3 | C44: 2,693 | D44: 207,080.0 | E44: 248 | F44: 211,861.0 | G44: 236 | H44: 12,103.0 | I44: 1 | J44: 1,758.0 | K44: 2 | L44: 842,751.5 | M44: 210 | N44: 0 | O44: 0 | P44: 0 | Q44: 0 | R44: 578,568.0 | S44: 1,651 | T44: 0 | U44: 0 | V44: 83,225.7 | W44: 4 | X44: 20,120.4 | Y44: 18 | Z44: 5,317.7 | AA44: 3 | AB44: 2,100.3 | AC44: 3 | AD44: 387,055.0 | AE44: 218 | AF44: 29,028.0 | AG44: 21 | AH44: 0 | AI44: 0 | AJ44: 14,754.0 | AK44: 7 | AL44: 9,251.1 | AM44: 31 | AN44: 0 | AO44: 0 | AP44: 0 | AQ44: 0 | AR44: 2,005.0 | AS44: 4 | AT44: 171,055.4 | AU44: 22 | AV44: 0 | AW44: 0 | AX44: 0 | AY44: 0 | AZ44: 490.2 | BA44: 2 | BB44: 0 | BC44: 0 | BD44: 4,377.0 | BE44: 6 | BF44: 5,543.0 | BG44: 6
A45: 주삼동 | B45: 3,678,414.4 | C45: 3,278 | D45: 440,652.0 | E45: 518 | F45: 1,012,492.0 | G45: 969 | H45: 0 | I45: 0 | J45: 3,794.0 | K45: 6 | L45: 1,368,817.0 | M45: 394 | N45: 0 | O45: 0 | P45: 0 | Q45: 0 | R45: 161,694.0 | S45: 364 | T45: 119,119.8 | U45: 48 | V45: 22,025.0 | W45: 1 | X45: 6,191.0 | Y45: 5 | Z45: 13,248.0 | AA45: 10 | AB45: 4,772.0 | AC45: 4 | AD45: 351,644.0 | AE45: 801 | AF45: 11,899.0 | AG45: 14 | AH45: 4,129.0 | AI45: 7 | AJ45: 10,347.0 | AK45: 9 | AL45: 83,853.0 | AM45: 56 | AN45: 4,734.0 | AO45: 9 | AP45: 0 | AQ45: 0 | AR45: 0 | AS45: 0 | AT45: 0 | AU45: 0 | AV45: 6,682.0 | AW45: 1 | AX45: 0 | AY45: 0 | AZ45: 0 | BA45: 0 | BB45: 0 | BC45: 0 | BD45: 7,583.0 | BE45: 5 | BF45: 44,738.6 | BG45: 57
A46: 봉계동 | B46: 5,348,445.0 | C46: 2,642 | D46: 361,858.0 | E46: 458 | F46: 375,494.0 | G46: 409 | H46: 0 | I46: 0 | J46: 993.0 | K46: 1 | L46: 3,292,902.0 | M46: 508 | N46: 0 | O46: 0 | P46: 0 | Q46: 0 | R46: 302,017.0 | S46: 413 | T46: 10,163.0 | U46: 5 | V46: 62,850.0 | W46: 1 | X46: 5,386.0 | Y46: 5 | Z46: 5,879.0 | AA46: 7 | AB46: 8,281.0 | AC46: 15 | AD46: 211,751.0 | AE46: 676 | AF46: 0 | AG46: 0 | AH46: 536.0 | AI46: 1 | AJ46: 5,447.0 | AK46: 8 | AL46: 68,612.0 | AM46: 51 | AN46: 92,036.0 | AO46: 35 | AP46: 0 | AQ46: 0 | AR46: 0 | AS46: 0 | AT46: 0 | AU46: 0 | AV46: 508,106.0 | AW46: 1 | AX46: 0 | AY46: 0 | AZ46: 9,549.0 | BA46: 7 | BB46: 0 | BC46: 0 | BD46: 1,452.0 | BE46: 3 | BF46: 25,133.0 | BG46: 38
A47: 해산동 | B47: 2,500,698.0 | C47: 2,600 | D47: 345,261.0 | E47: 522 | F47: 697,404.5 | G47: 775 | H47: 3,307.0 | I47: 1 | J47: 3,681.0 | K47: 6 | L47: 883,761.0 | M47: 259 | N47: 0 | O47: 0 | P47: 0 | Q47: 0 | R47: 83,605.3 | S47: 218 | T47: 0 | U47: 0 | V47: 0 | W47: 0 | X47: 4,614.0 | Y47: 4 | Z47: 9,509.0 | AA47: 15 | AB47: 5,300.0 | AC47: 6 | AD47: 210,783.0 | AE47: 483 | AF47: 48,437.2 | AG47: 61 | AH47: 4,536.0 | AI47: 3 | AJ47: 93,230.0 | AK47: 40 | AL47: 49,405.0 | AM47: 122 | AN47: 23,174.0 | AO47: 14 | AP47: 0 | AQ47: 0 | AR47: 3,567.0 | AS47: 7 | AT47: 0 | AU47: 0 | AV47: 0 | AW47: 0 | AX47: 0 | AY47: 0 | AZ47: 0 | BA47: 0 | BB47: 0 | BC47: 0 | BD47: 2,589.0 | BE47: 10 | BF47: 28,534.0 | BG47: 54
A48: 화치동 | B48: 5,909,274.2 | C48: 890 | D48: 108,739.0 | E48: 102 | F48: 129,529.5 | G48: 128 | H48: 0 | I48: 0 | J48: 0 | K48: 0 | L48: 1,627,957.6 | M48: 254 | N48: 0 | O48: 0 | P48: 0 | Q48: 0 | R48: 180,722.9 | S48: 42 | T48: 2,961,485.5 | U48: 150 | V48: 0 | W48: 0 | X48: 3,683.0 | Y48: 12 | Z48: 769.9 | AA48: 1 | AB48: 11,159.4 | AC48: 2 | AD48: 378,784.4 | AE48: 72 | AF48: 4,905.0 | AG48: 4 | AH48: 15,948.8 | AI48: 13 | AJ48: 349,539.6 | AK48: 13 | AL48: 27,892.6 | AM48: 52 | AN48: 2,313.0 | AO48: 5 | AP48: 0 | AQ48: 0 | AR48: 13,143.0 | AS48: 10 | AT48: 0 | AU48: 0 | AV48: 0 | AW48: 0 | AX48: 0 | AY48: 0 | AZ48: 0 | BA48: 0 | BB48: 0 | BC48: 0 | BD48: 11,217.0 | BE48: 3 | BF48: 81,484.0 | BG48: 27
A49: 월하동 | B49: 2,833,869.4 | C49: 645 | D49: 67,819.0 | E49: 113 | F49: 12,052.0 | G49: 32 | H49: 0 | I49: 0 | J49: 0 | K49: 0 | L49: 830,326.5 | M49: 104 | N49: 0 | O49: 0 | P49: 0 | Q49: 0 | R49: 60,256.3 | S49: 48 | T49: 1,482,244.6 | U49: 75 | V49: 0 | W49: 0 | X49: 999.9 | Y49: 1 | Z49: 3,085.0 | AA49: 10 | AB49: 4,004.0 | AC49: 2 | AD49: 171,473.8 | AE49: 163 | AF49: 29,456.0 | AG49: 6 | AH49: 0 | AI49: 0 | AJ49: 44,367.0 | AK49: 13 | AL49: 29,379.9 | AM49: 25 | AN49: 0 | AO49: 0 | AP49: 0 | AQ49: 0 | AR49: 7,282.0 | AS49: 2 | AT49: 0 | AU49: 0 | AV49: 0 | AW49: 0 | AX49: 0 | AY49: 0 | AZ49: 0 | BA49: 0 | BB49: 0 | BC49: 0 | BD49: 0 | BE49: 0 | BF49: 91,123.4 | BG49: 51
A50: 평여동 | B50: 6,851,431.4 | C50: 746 | D50: 44,453.0 | E50: 69 | F50: 31,569.0 | G50: 67 | H50: 0 | I50: 0 | J50: 0 | K50: 0 | L50: 4,416,435.1 | M50: 346 | N50: 0 | O50: 0 | P50: 0 | Q50: 0 | R50: 16,459.7 | S50: 34 | T50: 1,860,078.2 | U50: 47 | V50: 0 | W50: 0 | X50: 0 | Y50: 0 | Z50: 2,739.0 | AA50: 2 | AB50: 0 | AC50: 0 | AD50: 146,042.0 | AE50: 53 | AF50: 69,282.0 | AG50: 13 | AH50: 0 | AI50: 0 | AJ50: 52,523.4 | AK50: 13 | AL50: 33,233.8 | AM50: 24 | AN50: 64,841.0 | AO50: 30 | AP50: 0 | AQ50: 0 | AR50: 28,134.0 | AS50: 4 | AT50: 4,556.2 | AU50: 1 | AV50: 0 | AW50: 0 | AX50: 0 | AY50: 0 | AZ50: 0 | BA50: 0 | BB50: 0 | BC50: 0 | BD50: 24.0 | BE50: 1 | BF50: 81,061.0 | BG50: 42
A51: 중흥동 | B51: 10,558,103.4 | C51: 2,820 | D51: 239,022.0 | E51: 398 | F51: 104,182.0 | G51: 203 | H51: 8,766.0 | I51: 3 | J51: 250.0 | K51: 1 | L51: 5,880,057.4 | M51: 448 | N51: 0 | O51: 0 | P51: 0 | Q51: 0 | R51: 423,656.7 | S51: 654 | T51: 2,704,909.4 | U51: 120 | V51: 27,075.0 | W51: 6 | X51: 4,867.8 | Y51: 2 | Z51: 9,239.0 | AA51: 7 | AB51: 5,826.0 | AC51: 3 | AD51: 450,475.5 | AE51: 588 | AF51: 94,802.0 | AG51: 99 | AH51: 15,591.9 | AI51: 11 | AJ51: 109,471.0 | AK51: 54 | AL51: 30,956.0 | AM51: 41 | AN51: 14,022.0 | AO51: 21 | AP51: 0 | AQ51: 0 | AR51: 10,112.2 | AS51: 7 | AT51: 2,216.8 | AU51: 1 | AV51: 1,544.0 | AW51: 2 | AX51: 0 | AY51: 0 | AZ51: 28,905.0 | BA51: 15 | BB51: 0 | BC51: 0 | BD51: 24,262.0 | BE51: 18 | BF51: 367,893.7 | BG51: 118
A52: 적량동 | B52: 4,922,794.0 | C52: 1,175 | D52: 271,545.0 | E52: 290 | F52: 184,490.0 | G52: 228 | H52: 5,808.0 | I52: 3 | J52: 0 | K52: 0 | L52: 2,181,333.8 | M52: 315 | N52: 0 | O52: 0 | P52: 0 | Q52: 0 | R52: 18,697.0 | S52: 62 | T52: 1,956,874.0 | U52: 38 | V52: 9,924.0 | W52: 2 | X52: 0 | Y52: 0 | Z52: 0 | AA52: 0 | AB52: 0 | AC52: 0 | AD52: 120,166.0 | AE52: 103 | AF52: 29,159.0 | AG52: 14 | AH52: 5,315.7 | AI52: 2 | AJ52: 25,378.0 | AK52: 15 | AL52: 25,658.7 | AM52: 23 | AN52: 42,003.0 | AO52: 37 | AP52: 0 | AQ52: 0 | AR52: 0 | AS52: 0 | AT52: 0 | AU52: 0 | AV52: 0 | AW52: 0 | AX52: 0 | AY52: 0 | AZ52: 290.0 | BA52: 1 | BB52: 0 | BC52: 0 | BD52: 3,358.0 | BE52: 5 | BF52: 42,793.8 | BG52: 37
A53: 월내동 | B53: 5,489,304.2 | C53: 1,199 | D53: 208,839.0 | E53: 207 | F53: 185,570.0 | G53: 202 | H53: 0 | I53: 0 | J53: 0 | K53: 0 | L53: 2,244,506.9 | M53: 274 | N53: 0 | O53: 0 | P53: 0 | Q53: 0 | R53: 105,946.0 | S53: 25 | T53: 1,808,320.9 | U53: 56 | V53: 1,103.0 | W53: 1 | X53: 0 | Y53: 0 | Z53: 0 | AA53: 0 | AB53: 0 | AC53: 0 | AD53: 190,052.2 | AE53: 167 | AF53: 44,995.0 | AG53: 54 | AH53: 14,333.0 | AI53: 7 | AJ53: 10,172.0 | AK53: 23 | AL53: 37,258.4 | AM53: 54 | AN53: 11,926.0 | AO53: 15 | AP53: 0 | AQ53: 0 | AR53: 0 | AS53: 0 | AT53: 0 | AU53: 0 | AV53: 0 | AW53: 0 | AX53: 0 | AY53: 0 | AZ53: 0 | BA53: 0 | BB53: 0 | BC53: 0 | BD53: 3,705.0 | BE53: 18 | BF53: 622,576.8 | BG53: 96
A54: 묘도동 | B54: 11,515,745.6 | C54: 5,574 | D54: 1,325,083.0 | E54: 1,307 | F54: 935,770.0 | G54: 1,047 | H54: 6,702.0 | I54: 4 | J54: 1,592.0 | K54: 4 | L54: 5,657,933.0 | M54: 1,578 | N54: 0 | O54: 0 | P54: 0 | Q54: 0 | R54: 178,015.0 | S54: 638 | T54: 0 | U54: 0 | V54: 18,801.0 | W54: 2 | X54: 28.0 | Y54: 1 | Z54: 589.0 | AA54: 1 | AB54: 2,160.0 | AC54: 5 | AD54: 131,712.0 | AE54: 829 | AF54: 0 | AG54: 0 | AH54: 113,398.6 | AI54: 13 | AJ54: 15,454.0 | AK54: 2 | AL54: 63,958.0 | AM54: 27 | AN54: 22,036.0 | AO54: 27 | AP54: 0 | AQ54: 0 | AR54: 0 | AS54: 0 | AT54: 0 | AU54: 0 | AV54: 0 | AW54: 0 | AX54: 0 | AY54: 0 | AZ54: 3,681.0 | BA54: 2 | BB54: 0 | BC54: 0 | BD54: 29,108.0 | BE54: 39 | BF54: 3,009,725.0 | BG54: 48
A55: 낙포동 | B55: 8,320,417.1 | C55: 1,812 | D55: 344,879.0 | E55: 387 | F55: 164,816.0 | G55: 221 | H55: 0 | I55: 0 | J55: 0 | K55: 0 | L55: 4,616,374.6 | M55: 371 | N55: 0 | O55: 0 | P55: 0 | Q55: 0 | R55: 121,035.4 | S55: 40 | T55: 1,091,433.7 | U55: 195 | V55: 0 | W55: 0 | X55: 0 | Y55: 0 | Z55: 180,944.8 | AA55: 16 | AB55: 0 | AC55: 0 | AD55: 289,227.8 | AE55: 177 | AF55: 2,969.0 | AG55: 1 | AH55: 55,471.0 | AI55: 22 | AJ55: 101,731.0 | AK55: 33 | AL55: 21,570.0 | AM55: 50 | AN55: 15,887.0 | AO55: 2 | AP55: 0 | AQ55: 0 | AR55: 6,417.5 | AS55: 5 | AT55: 0 | AU55: 0 | AV55: 0 | AW55: 0 | AX55: 0 | AY55: 0 | AZ55: 264.0 | BA55: 1 | BB55: 0 | BC55: 0 | BD55: 3,588.0 | BE55: 10 | BF55: 1,303,808.3 | BG55: 281
A56: 신덕동 | B56: 5,662,690.5 | C56: 1,799 | D56: 271,099.0 | E56: 374 | F56: 235,672.0 | G56: 248 | H56: 11,302.0 | I56: 4 | J56: 0 | K56: 0 | L56: 4,626,761.0 | M56: 406 | N56: 0 | O56: 0 | P56: 0 | Q56: 0 | R56: 57,599.0 | S56: 233 | T56: 0 | U56: 0 | V56: 4,555.0 | W56: 1 | X56: 2,843.0 | Y56: 2 | Z56: 0 | AA56: 0 | AB56: 0 | AC56: 0 | AD56: 237,526.4 | AE56: 449 | AF56: 0 | AG56: 0 | AH56: 1,518.1 | AI56: 2 | AJ56: 56,441.0 | AK56: 32 | AL56: 1,084.0 | AM56: 5 | AN56: 7,634.0 | AO56: 17 | AP56: 0 | AQ56: 0 | AR56: 0 | AS56: 0 | AT56: 0 | AU56: 0 | AV56: 0 | AW56: 0 | AX56: 0 | AY56: 0 | AZ56: 1,185.0 | BA56: 1 | BB56: 0 | BC56: 0 | BD56: 7,123.0 | BE56: 12 | BF56: 140,348.0 | BG56: 13
A57: 상암동 | B57: 6,715,664.0 | C57: 4,259 | D57: 717,420.0 | E57: 861 | F57: 1,179,841.0 | G57: 1,299 | H57: 2,815.0 | I57: 3 | J57: 0 | K57: 0 | L57: 4,210,958.0 | M57: 413 | N57: 0 | O57: 0 | P57: 0 | Q57: 0 | R57: 201,948.0 | S57: 578 | T57: 6,313.0 | U57: 8 | V57: 20,017.0 | W57: 3 | X57: 1,302.0 | Y57: 4 | Z57: 3,690.0 | AA57: 3 | AB57: 1,650.0 | AC57: 6 | AD57: 166,626.0 | AE57: 859 | AF57: 0 | AG57: 0 | AH57: 149.0 | AI57: 1 | AJ57: 78,697.0 | AK57: 65 | AL57: 55,493.0 | AM57: 52 | AN57: 28,805.0 | AO57: 39 | AP57: 0 | AQ57: 0 | AR57: 0 | AS57: 0 | AT57: 0 | AU57: 0 | AV57: 0 | AW57: 0 | AX57: 0 | AY57: 0 | AZ57: 3,165.0 | BA57: 6 | BB57: 0 | BC57: 0 | BD57: 11,617.0 | BE57: 21 | BF57: 25,158.0 | BG57: 38
A58: 호명동 | B58: 10,858,968.0 | C58: 3,792 | D58: 695,973.0 | E58: 767 | F58: 1,091,199.0 | G58: 1,058 | H58: 0 | I58: 0 | J58: 7,221.0 | K58: 4 | L58: 8,435,699.0 | M58: 674 | N58: 0 | O58: 0 | P58: 0 | Q58: 0 | R58: 151,860.0 | S58: 366 | T58: 0 | U58: 0 | V58: 0 | W58: 0 | X58: 0 | Y58: 0 | Z58: 1,477.0 | AA58: 3 | AB58: 2,504.0 | AC58: 4 | AD58: 253,918.0 | AE58: 759 | AF58: 0 | AG58: 0 | AH58: 0 | AI58: 0 | AJ58: 79,666.0 | AK58: 66 | AL58: 69,419.0 | AM58: 24 | AN58: 25,005.0 | AO58: 29 | AP58: 0 | AQ58: 0 | AR58: 0 | AS58: 0 | AT58: 0 | AU58: 0 | AV58: 0 | AW58: 0 | AX58: 0 | AY58: 0 | AZ58: 2,634.0 | BA58: 3 | BB58: 0 | BC58: 0 | BD58: 22,113.0 | BE58: 20 | BF58: 20,280.0 | BG58: 15
A59: 돌산읍 군내리 | B59: 3,829,814.0 | C59: 3,440 | D59: 1,071,799.0 | E59: 1,258 | F59: 69,060.0 | G59: 137 | H59: 3,389.0 | I59: 2 | J59: 0 | K59: 0 | L59: 2,255,085.0 | M59: 643 | N59: 0 | O59: 0 | P59: 0 | Q59: 0 | R59: 133,999.0 | S59: 706 | T59: 3,276.0 | U59: 3 | V59: 50,877.0 | W59: 9 | X59: 0 | Y59: 0 | Z59: 947.0 | AA59: 4 | AB59: 840.0 | AC59: 3 | AD59: 114,004.0 | AE59: 438 | AF59: 0 | AG59: 0 | AH59: 3,736.0 | AI59: 19 | AJ59: 3,154.0 | AK59: 4 | AL59: 33,389.0 | AM59: 48 | AN59: 4,553.0 | AO59: 13 | AP59: 18,436.0 | AQ59: 7 | AR59: 0 | AS59: 0 | AT59: 0 | AU59: 0 | AV59: 0 | AW59: 0 | AX59: 0 | AY59: 0 | AZ59: 5,981.0 | BA59: 9 | BB59: 883.0 | BC59: 4 | BD59: 19,273.0 | BE59: 39 | BF59: 37,133.0 | BG59: 94
A60: 돌산읍 신복리 | B60: 8,279,205.4 | C60: 4,198 | D60: 1,003,311.0 | E60: 913 | F60: 607,698.0 | G60: 750 | H60: 0 | I60: 0 | J60: 16,201.0 | K60: 8 | L60: 5,963,636.0 | M60: 759 | N60: 0 | O60: 0 | P60: 0 | Q60: 0 | R60: 112,370.0 | S60: 492 | T60: 10,525.0 | U60: 5 | V60: 11,467.0 | W60: 1 | X60: 0 | Y60: 0 | Z60: 0 | AA60: 0 | AB60: 6,258.0 | AC60: 12 | AD60: 170,739.7 | AE60: 856 | AF60: 0 | AG60: 0 | AH60: 23,510.9 | AI60: 38 | AJ60: 3,568.0 | AK60: 16 | AL60: 73,212.0 | AM60: 79 | AN60: 113,200.0 | AO60: 160 | AP60: 37,282.0 | AQ60: 19 | AR60: 99.0 | AS60: 1 | AT60: 0 | AU60: 0 | AV60: 0 | AW60: 0 | AX60: 0 | AY60: 0 | AZ60: 7,667.0 | BA60: 4 | BB60: 0 | BC60: 0 | BD60: 66,317.0 | BE60: 22 | BF60: 52,143.8 | BG60: 63
A61: 돌산읍 금성리 | B61: 5,509,983.0 | C61: 2,429 | D61: 836,066.0 | E61: 871 | F61: 55,012.0 | G61: 132 | H61: 0 | I61: 0 | J61: 0 | K61: 0 | L61: 4,332,379.0 | M61: 607 | N61: 0 | O61: 0 | P61: 0 | Q61: 0 | R61: 79,434.0 | S61: 344 | T61: 0 | U61: 0 | V61: 6,963.0 | W61: 1 | X61: 0 | Y61: 0 | Z61: 0 | AA61: 0 | AB61: 740.0 | AC61: 2 | AD61: 151,455.0 | AE61: 399 | AF61: 0 | AG61: 0 | AH61: 2,067.0 | AI61: 5 | AJ61: 1,852.0 | AK61: 11 | AL61: 14,698.0 | AM61: 10 | AN61: 149.0 | AO61: 1 | AP61: 3,627.0 | AQ61: 6 | AR61: 0 | AS61: 0 | AT61: 0 | AU61: 0 | AV61: 0 | AW61: 0 | AX61: 0 | AY61: 0 | AZ61: 796.0 | BA61: 2 | BB61: 0 | BC61: 0 | BD61: 7,022.0 | BE61: 12 | BF61: 17,723.0 | BG61: 26
A62: 돌산읍 율림리 | B62: 7,064,933.0 | C62: 3,103 | D62: 770,278.0 | E62: 928 | F62: 69,651.0 | G62: 134 | H62: 0 | I62: 0 | J62: 1,140.0 | K62: 1 | L62: 5,749,940.0 | M62: 742 | N62: 0 | O62: 0 | P62: 0 | Q62: 0 | R62: 123,961.0 | S62: 420 | T62: 0 | U62: 0 | V62: 6,136.0 | W62: 8 | X62: 435.0 | Y62: 2 | Z62: 796.0 | AA62: 1 | AB62: 6,325.0 | AC62: 5 | AD62: 199,326.0 | AE62: 756 | AF62: 0 | AG62: 0 | AH62: 1,292.0 | AI62: 4 | AJ62: 442.0 | AK62: 7 | AL62: 51,592.0 | AM62: 38 | AN62: 0 | AO62: 0 | AP62: 23,086.0 | AQ62: 6 | AR62: 0 | AS62: 0 | AT62: 0 | AU62: 0 | AV62: 0 | AW62: 0 | AX62: 0 | AY62: 0 | AZ62: 860.0 | BA62: 2 | BB62: 0 | BC62: 0 | BD62: 8,182.0 | BE62: 9 | BF62: 51,491.0 | BG62: 40
A63: 돌산읍 죽포리 | B63: 5,934,440.0 | C63: 4,931 | D63: 1,072,403.0 | E63: 1,245 | F63: 797,219.0 | G63: 1,073 | H63: 0 | I63: 0 | J63: 11,612.0 | K63: 3 | L63: 3,514,459.0 | M63: 520 | N63: 0 | O63: 0 | P63: 0 | Q63: 0 | R63: 170,709.0 | S63: 617 | T63: 3,760.0 | U63: 2 | V63: 16,300.0 | W63: 3 | X63: 0 | Y63: 0 | Z63: 1,221.0 | AA63: 4 | AB63: 4,027.0 | AC63: 9 | AD63: 172,162.0 | AE63: 1,184 | AF63: 0 | AG63: 0 | AH63: 4,534.0 | AI63: 12 | AJ63: 14,195.0 | AK63: 9 | AL63: 72,158.0 | AM63: 134 | AN63: 2,379.0 | AO63: 3 | AP63: 4,713.0 | AQ63: 5 | AR63: 0 | AS63: 0 | AT63: 0 | AU63: 0 | AV63: 0 | AW63: 0 | AX63: 0 | AY63: 0 | AZ63: 1,781.0 | BA63: 2 | BB63: 0 | BC63: 0 | BD63: 25,252.0 | BE63: 51 | BF63: 45,556.0 | BG63: 55
A64: 돌산읍 서덕리 | B64: 4,662,579.0 | C64: 3,257 | D64: 731,343.0 | E64: 856 | F64: 495,527.0 | G64: 719 | H64: 0 | I64: 0 | J64: 119,707.0 | K64: 12 | L64: 2,955,267.0 | M64: 571 | N64: 0 | O64: 0 | P64: 0 | Q64: 0 | R64: 64,623.0 | S64: 261 | T64: 2,118.0 | U64: 1 | V64: 0 | W64: 0 | X64: 0 | Y64: 0 | Z64: 0 | AA64: 0 | AB64: 1,020.0 | AC64: 2 | AD64: 69,794.0 | AE64: 585 | AF64: 0 | AG64: 0 | AH64: 25,372.0 | AI64: 69 | AJ64: 105.0 | AK64: 4 | AL64: 39,026.0 | AM64: 69 | AN64: 125,530.0 | AO64: 61 | AP64: 0 | AQ64: 0 | AR64: 734.0 | AS64: 1 | AT64: 0 | AU64: 0 | AV64: 0 | AW64: 0 | AX64: 0 | AY64: 0 | AZ64: 632.0 | BA64: 2 | BB64: 0 | BC64: 0 | BD64: 25,844.0 | BE64: 28 | BF64: 5,937.0 | BG64: 16
A65: 돌산읍 금봉리 | B65: 8,263,068.0 | C65: 5,095 | D65: 1,256,613.0 | E65: 1,346 | F65: 763,025.0 | G65: 982 | H65: 5,767.0 | I65: 4 | J65: 10,002.0 | K65: 2 | L65: 5,663,150.0 | M65: 973 | N65: 0 | O65: 0 | P65: 0 | Q65: 0 | R65: 162,550.0 | S65: 518 | T65: 3,239.0 | U65: 2 | V65: 9,668.0 | W65: 7 | X65: 0 | Y65: 0 | Z65: 0 | AA65: 0 | AB65: 3,597.0 | AC65: 8 | AD65: 166,724.0 | AE65: 871 | AF65: 0 | AG65: 0 | AH65: 2,744.0 | AI65: 4 | AJ65: 771.0 | AK65: 9 | AL65: 83,341.0 | AM65: 64 | AN65: 15,733.0 | AO65: 36 | AP65: 21,622.0 | AQ65: 14 | AR65: 0 | AS65: 0 | AT65: 0 | AU65: 0 | AV65: 0 | AW65: 0 | AX65: 0 | AY65: 0 | AZ65: 3,791.0 | BA65: 4 | BB65: 0 | BC65: 0 | BD65: 26,883.0 | BE65: 27 | BF65: 63,848.0 | BG65: 224
A66: 돌산읍 둔전리 | B66: 5,390,743.2 | C66: 3,726 | D66: 684,072.0 | E66: 829 | F66: 916,295.0 | G66: 875 | H66: 6,852.0 | I66: 2 | J66: 33,087.0 | K66: 9 | L66: 3,270,817.0 | M66: 598 | N66: 0 | O66: 0 | P66: 0 | Q66: 0 | R66: 105,934.0 | S66: 326 | T66: 4,188.0 | U66: 3 | V66: 26,614.0 | W66: 9 | X66: 0 | Y66: 0 | Z66: 0 | AA66: 0 | AB66: 2,679.0 | AC66: 7 | AD66: 173,072.9 | AE66: 893 | AF66: 0 | AG66: 0 | AH66: 0 | AI66: 0 | AJ66: 545.0 | AK66: 3 | AL66: 113,591.2 | AM66: 93 | AN66: 27,550.0 | AO66: 36 | AP66: 3,253.1 | AQ66: 4 | AR66: 0 | AS66: 0 | AT66: 0 | AU66: 0 | AV66: 0 | AW66: 0 | AX66: 0 | AY66: 0 | AZ66: 980.0 | BA66: 2 | BB66: 0 | BC66: 0 | BD66: 5,621.0 | BE66: 16 | BF66: 15,592.0 | BG66: 21
A67: 돌산읍 평사리 | B67: 15,228,035.9 | C67: 8,272 | D67: 1,805,009.0 | E67: 1,850 | F67: 747,884.2 | G67: 976 | H67: 75,756.0 | I67: 13 | J67: 813,335.0 | K67: 26 | L67: 10,530,056.0 | M67: 2,049 | N67: 0 | O67: 0 | P67: 0 | Q67: 0 | R67: 348,362.0 | S67: 969 | T67: 6,958.0 | U67: 12 | V67: 13,092.0 | W67: 3 | X67: 2,297.0 | Y67: 6 | Z67: 2,515.0 | AA67: 3 | AB67: 7,234.0 | AC67: 13 | AD67: 448,939.0 | AE67: 1,843 | AF67: 0 | AG67: 0 | AH67: 18,673.0 | AI67: 24 | AJ67: 34,879.3 | AK67: 24 | AL67: 59,005.8 | AM67: 118 | AN67: 116,024.0 | AO67: 19 | AP67: 0 | AQ67: 0 | AR67: 0 | AS67: 0 | AT67: 0 | AU67: 0 | AV67: 0 | AW67: 0 | AX67: 38,544.6 | AY67: 1 | AZ67: 19,021.0 | BA67: 10 | BB67: 0 | BC67: 0 | BD67: 26,972.0 | BE67: 27 | BF67: 113,479.0 | BG67: 286
A68: 돌산읍 우두리 | B68: 7,766,896.1 | C68: 6,875 | D68: 1,293,489.7 | E68: 1,394 | F68: 512,261.0 | G68: 634 | H68: 4,699.0 | I68: 4 | J68: 2,124.0 | K68: 2 | L68: 4,011,442.0 | M68: 1,529 | N68: 0 | O68: 0 | P68: 0 | Q68: 0 | R68: 868,856.9 | S68: 2,309 | T68: 15,123.0 | U68: 8 | V68: 37,447.5 | W68: 4 | X68: 4,358.6 | Y68: 5 | Z68: 1,981.0 | AA68: 4 | AB68: 12,260.6 | AC68: 15 | AD68: 513,484.1 | AE68: 623 | AF68: 0 | AG68: 0 | AH68: 12,894.4 | AI68: 16 | AJ68: 0 | AK68: 0 | AL68: 36,651.0 | AM68: 37 | AN68: 22,150.0 | AO68: 24 | AP68: 6,892.0 | AQ68: 7 | AR68: 0 | AS68: 0 | AT68: 56,646.3 | AU68: 12 | AV68: 0 | AW68: 0 | AX68: 175,596.0 | AY68: 1 | AZ68: 16,061.8 | BA68: 10 | BB68: 0 | BC68: 0 | BD68: 8,708.0 | BE68: 22 | BF68: 153,769.2 | BG68: 215
A69: 소라면 덕양리 | B69: 6,254,296.3 | C69: 5,391 | D69: 877,658.0 | E69: 1,242 | F69: 910,814.8 | G69: 1,022 | H69: 0 | I69: 0 | J69: 5,926.0 | K69: 12 | L69: 3,192,985.0 | M69: 519 | N69: 0 | O69: 0 | P69: 0 | Q69: 0 | R69: 359,261.0 | S69: 1,226 | T69: 10,468.0 | U69: 6 | V69: 35,902.0 | W69: 8 | X69: 5,398.0 | Y69: 7 | Z69: 12,192.0 | AA69: 15 | AB69: 13,110.0 | AC69: 17 | AD69: 414,781.7 | AE69: 1,013 | AF69: 64,766.0 | AG69: 32 | AH69: 7,630.0 | AI69: 3 | AJ69: 124,055.0 | AK69: 26 | AL69: 120,829.8 | AM69: 114 | AN69: 21,372.0 | AO69: 1 | AP69: 0 | AQ69: 0 | AR69: 3,552.0 | AS69: 25 | AT69: 1,111.0 | AU69: 1 | AV69: 0 | AW69: 0 | AX69: 0 | AY69: 0 | AZ69: 7,592.0 | BA69: 11 | BB69: 0 | BC69: 0 | BD69: 11,159.0 | BE69: 14 | BF69: 53,733.0 | BG69: 77
A70: 소라면 죽림리 | B70: 4,051,657.8 | C70: 3,274 | D70: 518,011.0 | E70: 708 | F70: 589,149.8 | G70: 686 | H70: 1,653.0 | I70: 5 | J70: 6,724.0 | K70: 3 | L70: 1,735,972.0 | M70: 860 | N70: 0 | O70: 0 | P70: 0 | Q70: 0 | R70: 365,399.1 | S70: 477 | T70: 229.0 | U70: 1 | V70: 19,658.7 | W70: 2 | X70: 7,168.1 | Y70: 11 | Z70: 675.7 | AA70: 1 | AB70: 200.0 | AC70: 1 | AD70: 309,146.5 | AE70: 382 | AF70: 0 | AG70: 0 | AH70: 0 | AI70: 0 | AJ70: 14,425.0 | AK70: 8 | AL70: 39,893.8 | AM70: 24 | AN70: 263,646.0 | AO70: 16 | AP70: 0 | AQ70: 0 | AR70: 0 | AS70: 0 | AT70: 144,569.8 | AU70: 51 | AV70: 6,110.0 | AW70: 8 | AX70: 0 | AY70: 0 | AZ70: 6,224.3 | BA70: 3 | BB70: 0 | BC70: 0 | BD70: 13,542.0 | BE70: 21 | BF70: 9,260.0 | BG70: 6
A71: 소라면 관기리 | B71: 4,106,636.9 | C71: 4,053 | D71: 626,159.2 | E71: 802 | F71: 1,814,939.7 | G71: 1,480 | H71: 0 | I71: 0 | J71: 0 | K71: 0 | L71: 1,121,501.0 | M71: 725 | N71: 0 | O71: 0 | P71: 0 | Q71: 0 | R71: 123,011.0 | S71: 332 | T71: 0 | U71: 0 | V71: 10,598.0 | W71: 2 | X71: 0 | Y71: 0 | Z71: 3,407.0 | AA71: 2 | AB71: 2,230.0 | AC71: 3 | AD71: 190,989.4 | AE71: 582 | AF71: 0 | AG71: 0 | AH71: 8,113.4 | AI71: 3 | AJ71: 63,689.5 | AK71: 18 | AL71: 99,370.7 | AM71: 67 | AN71: 14,736.0 | AO71: 1 | AP71: 0 | AQ71: 0 | AR71: 0 | AS71: 0 | AT71: 0 | AU71: 0 | AV71: 0 | AW71: 0 | AX71: 0 | AY71: 0 | AZ71: 2,112.0 | BA71: 2 | BB71: 0 | BC71: 0 | BD71: 14,832.0 | BE71: 25 | BF71: 10,948.0 | BG71: 9
A72: 소라면 현천리 | B72: 5,576,890.6 | C72: 2,959 | D72: 756,033.0 | E72: 753 | F72: 1,264,058.4 | G72: 737 | H72: 0 | I72: 0 | J72: 9,881.0 | K72: 11 | L72: 2,778,804.0 | M72: 478 | N72: 0 | O72: 0 | P72: 0 | Q72: 0 | R72: 160,565.0 | S72: 331 | T72: 2,736.0 | U72: 2 | V72: 9,141.0 | W72: 1 | X72: 0 | Y72: 0 | Z72: 0 | AA72: 0 | AB72: 3,308.0 | AC72: 9 | AD72: 183,521.2 | AE72: 483 | AF72: 0 | AG72: 0 | AH72: 19,477.2 | AI72: 7 | AJ72: 38,076.0 | AK72: 8 | AL72: 107,108.2 | AM72: 81 | AN72: 211,411.6 | AO72: 9 | AP72: 0 | AQ72: 0 | AR72: 0 | AS72: 0 | AT72: 0 | AU72: 0 | AV72: 0 | AW72: 0 | AX72: 0 | AY72: 0 | AZ72: 3,682.0 | BA72: 5 | BB72: 0 | BC72: 0 | BD72: 14,807.0 | BE72: 17 | BF72: 14,281.0 | BG72: 27
A73: 소라면 복산리 | B73: 10,021,830.4 | C73: 6,026 | D73: 1,649,513.0 | E73: 1,559 | F73: 1,426,910.9 | G73: 1,158 | H73: 22,480.0 | I73: 3 | J73: 87,134.0 | K73: 32 | L73: 5,719,653.0 | M73: 1,176 | N73: 0 | O73: 0 | P73: 0 | Q73: 0 | R73: 224,341.0 | S73: 552 | T73: 20,996.0 | U73: 7 | V73: 14,027.0 | W73: 2 | X73: 11,330.0 | Y73: 10 | Z73: 4,215.0 | AA73: 3 | AB73: 17,443.0 | AC73: 17 | AD73: 361,034.1 | AE73: 1,211 | AF73: 0 | AG73: 0 | AH73: 11,412.0 | AI73: 16 | AJ73: 52,341.0 | AK73: 1 | AL73: 158,443.4 | AM73: 103 | AN73: 114,331.0 | AO73: 62 | AP73: 1,375.0 | AQ73: 1 | AR73: 0 | AS73: 0 | AT73: 0 | AU73: 0 | AV73: 0 | AW73: 0 | AX73: 0 | AY73: 0 | AZ73: 4,486.0 | BA73: 6 | BB73: 0 | BC73: 0 | BD73: 55,922.0 | BE73: 53 | BF73: 64,443.0 | BG73: 54
A74: 소라면 사곡리 | B74: 6,362,535.0 | C74: 3,454 | D74: 1,017,120.0 | E74: 989 | F74: 487,291.0 | G74: 601 | H74: 0 | I74: 0 | J74: 42,091.0 | K74: 22 | L74: 4,247,444.0 | M74: 650 | N74: 0 | O74: 0 | P74: 0 | Q74: 0 | R74: 150,532.0 | S74: 397 | T74: 2,082.0 | U74: 2 | V74: 6,591.0 | W74: 1 | X74: 1,096.0 | Y74: 2 | Z74: 3,590.0 | AA74: 5 | AB74: 1,621.0 | AC74: 4 | AD74: 255,806.0 | AE74: 665 | AF74: 0 | AG74: 0 | AH74: 3,338.0 | AI74: 6 | AJ74: 0 | AK74: 0 | AL74: 91,805.0 | AM74: 44 | AN74: 19,679.0 | AO74: 22 | AP74: 0 | AQ74: 0 | AR74: 0 | AS74: 0 | AT74: 0 | AU74: 0 | AV74: 0 | AW74: 0 | AX74: 0 | AY74: 0 | AZ74: 821.0 | BA74: 2 | BB74: 0 | BC74: 0 | BD74: 9,582.0 | BE74: 12 | BF74: 22,046.0 | BG74: 30
A75: 소라면 봉두리 | B75: 13,498,860.0 | C75: 3,403 | D75: 672,596.0 | E75: 643 | F75: 840,605.0 | G75: 750 | H75: 11,874.0 | I75: 4 | J75: 6,946.0 | K75: 7 | L75: 11,089,304.0 | M75: 850 | N75: 0 | O75: 0 | P75: 0 | Q75: 0 | R75: 104,358.0 | S75: 275 | T75: 7,922.0 | U75: 3 | V75: 6,193.0 | W75: 1 | X75: 984.0 | Y75: 2 | Z75: 0 | AA75: 0 | AB75: 5,331.0 | AC75: 11 | AD75: 229,391.0 | AE75: 677 | AF75: 0 | AG75: 0 | AH75: 0 | AI75: 0 | AJ75: 116,321.0 | AK75: 10 | AL75: 99,855.0 | AM75: 78 | AN75: 41,720.0 | AO75: 12 | AP75: 0 | AQ75: 0 | AR75: 0 | AS75: 0 | AT75: 0 | AU75: 0 | AV75: 0 | AW75: 0 | AX75: 0 | AY75: 0 | AZ75: 46.0 | BA75: 1 | BB75: 0 | BC75: 0 | BD75: 221,487.0 | BE75: 27 | BF75: 43,927.0 | BG75: 52
A76: 소라면 대포리 | B76: 10,604,852.2 | C76: 5,664 | D76: 755,597.0 | E76: 1,165 | F76: 2,452,053.8 | G76: 1,683 | H76: 0 | I76: 0 | J76: 378.0 | K76: 2 | L76: 5,685,908.0 | M76: 582 | N76: 0 | O76: 0 | P76: 0 | Q76: 0 | R76: 249,159.0 | S76: 701 | T76: 6,738.0 | U76: 5 | V76: 0 | W76: 0 | X76: 10,559.0 | Y76: 7 | Z76: 8,162.0 | AA76: 10 | AB76: 8,473.0 | AC76: 15 | AD76: 341,327.4 | AE76: 893 | AF76: 30,194.0 | AG76: 25 | AH76: 13,561.0 | AI76: 3 | AJ76: 384,368.0 | AK76: 49 | AL76: 232,086.2 | AM76: 328 | AN76: 264,724.0 | AO76: 64 | AP76: 0 | AQ76: 0 | AR76: 21,162.8 | AS76: 34 | AT76: 0 | AU76: 0 | AV76: 0 | AW76: 0 | AX76: 0 | AY76: 0 | AZ76: 4,225.0 | BA76: 7 | BB76: 0 | BC76: 0 | BD76: 7,437.0 | BE76: 15 | BF76: 128,739.0 | BG76: 76
A77: 율촌면 조화리 | B77: 2,963,269.8 | C77: 3,685 | D77: 383,933.0 | E77: 571 | F77: 985,254.0 | G77: 1,297 | H77: 30,833.0 | I77: 18 | J77: 2,898.0 | K77: 2 | L77: 253,815.0 | M77: 145 | N77: 0 | O77: 0 | P77: 0 | Q77: 0 | R77: 211,196.0 | S77: 747 | T77: 87,593.9 | U77: 6 | V77: 30,494.0 | W77: 4 | X77: 2,056.0 | Y77: 4 | Z77: 7,590.0 | AA77: 10 | AB77: 7,086.0 | AC77: 11 | AD77: 258,270.0 | AE77: 600 | AF77: 60,135.0 | AG77: 31 | AH77: 15,512.0 | AI77: 6 | AJ77: 31,101.0 | AK77: 4 | AL77: 75,122.3 | AM77: 81 | AN77: 72,259.0 | AO77: 17 | AP77: 2,992.0 | AQ77: 2 | AR77: 28,341.0 | AS77: 47 | AT77: 82,695.5 | AU77: 7 | AV77: 0 | AW77: 0 | AX77: 0 | AY77: 0 | AZ77: 7,727.0 | BA77: 4 | BB77: 0 | BC77: 0 | BD77: 14,826.0 | BE77: 12 | BF77: 311,540.1 | BG77: 59
A78: 율촌면 월산리 | B78: 4,433,313.7 | C78: 4,152 | D78: 512,000.0 | E78: 607 | F78: 929,242.0 | G78: 1,156 | H78: 58,546.0 | I78: 18 | J78: 4,665.0 | K78: 4 | L78: 2,299,944.7 | M78: 888 | N78: 0 | O78: 0 | P78: 0 | Q78: 0 | R78: 263,682.6 | S78: 539 | T78: 10,477.0 | U78: 5 | V78: 7,621.0 | W78: 2 | X78: 1,020.7 | Y78: 2 | Z78: 1,445.0 | AA78: 3 | AB78: 5,978.0 | AC78: 4 | AD78: 209,515.8 | AE78: 715 | AF78: 0 | AG78: 0 | AH78: 0 | AI78: 0 | AJ78: 18,988.0 | AK78: 10 | AL78: 73,468.0 | AM78: 140 | AN78: 1,528.0 | AO78: 6 | AP78: 0 | AQ78: 0 | AR78: 0 | AS78: 0 | AT78: 9,716.8 | AU78: 3 | AV78: 0 | AW78: 0 | AX78: 0 | AY78: 0 | AZ78: 4,634.0 | BA78: 6 | BB78: 0 | BC78: 0 | BD78: 2,184.0 | BE78: 10 | BF78: 18,657.1 | BG78: 34
A79: 율촌면 산수리 | B79: 5,323,496.0 | C79: 3,747 | D79: 497,755.0 | E79: 603 | F79: 1,068,212.0 | G79: 1,050 | H79: 9,349.0 | I79: 2 | J79: 18,129.0 | K79: 17 | L79: 3,253,011.0 | M79: 913 | N79: 0 | O79: 0 | P79: 0 | Q79: 0 | R79: 151,201.0 | S79: 394 | T79: 1,200.0 | U79: 1 | V79: 8,387.0 | W79: 3 | X79: 0 | Y79: 0 | Z79: 0 | AA79: 0 | AB79: 0 | AC79: 0 | AD79: 141,406.0 | AE79: 624 | AF79: 0 | AG79: 0 | AH79: 0 | AI79: 0 | AJ79: 10,955.0 | AK79: 4 | AL79: 112,127.0 | AM79: 71 | AN79: 25,680.0 | AO79: 25 | AP79: 0 | AQ79: 0 | AR79: 0 | AS79: 0 | AT79: 0 | AU79: 0 | AV79: 0 | AW79: 0 | AX79: 0 | AY79: 0 | AZ79: 2,870.0 | BA79: 4 | BB79: 0 | BC79: 0 | BD79: 5,314.0 | BE79: 13 | BF79: 17,900.0 | BG79: 23
A80: 율촌면 가장리 | B80: 9,705,370.7 | C80: 4,406 | D80: 821,048.0 | E80: 732 | F80: 1,565,498.0 | G80: 1,261 | H80: 32,100.0 | I80: 5 | J80: 212,239.0 | K80: 36 | L80: 6,335,180.4 | M80: 1,015 | N80: 0 | O80: 0 | P80: 0 | Q80: 0 | R80: 169,745.9 | S80: 381 | T80: 0 | U80: 0 | V80: 8,505.0 | W80: 3 | X80: 1,278.0 | Y80: 1 | Z80: 0 | AA80: 0 | AB80: 516.0 | AC80: 1 | AD80: 208,103.0 | AE80: 696 | AF80: 0 | AG80: 0 | AH80: 0 | AI80: 0 | AJ80: 61,605.0 | AK80: 18 | AL80: 198,676.0 | AM80: 181 | AN80: 51,340.0 | AO80: 34 | AP80: 0 | AQ80: 0 | AR80: 0 | AS80: 0 | AT80: 1,015.4 | AU80: 1 | AV80: 0 | AW80: 0 | AX80: 0 | AY80: 0 | AZ80: 3,845.0 | BA80: 5 | BB80: 0 | BC80: 0 | BD80: 16,248.0 | BE80: 17 | BF80: 18,428.0 | BG80: 19
A81: 율촌면 봉전리 | B81: 4,091,423.0 | C81: 2,179 | D81: 614,607.0 | E81: 641 | F81: 363,972.0 | G81: 355 | H81: 0 | I81: 0 | J81: 2,789.0 | K81: 2 | L81: 2,792,460.0 | M81: 491 | N81: 0 | O81: 0 | P81: 1,937.0 | Q81: 4 | R81: 65,602.0 | S81: 181 | T81: 7,693.0 | U81: 2 | V81: 0 | W81: 0 | X81: 0 | Y81: 0 | Z81: 0 | AA81: 0 | AB81: 1,166.0 | AC81: 3 | AD81: 92,273.0 | AE81: 394 | AF81: 0 | AG81: 0 | AH81: 4,488.0 | AI81: 6 | AJ81: 777.0 | AK81: 1 | AL81: 34,686.0 | AM81: 20 | AN81: 16,514.0 | AO81: 9 | AP81: 0 | AQ81: 0 | AR81: 0 | AS81: 0 | AT81: 0 | AU81: 0 | AV81: 0 | AW81: 0 | AX81: 0 | AY81: 0 | AZ81: 1,740.0 | BA81: 5 | BB81: 0 | BC81: 0 | BD81: 17,603.0 | BE81: 40 | BF81: 73,116.0 | BG81: 25
A82: 율촌면 반월리 | B82: 2,277,936.0 | C82: 1,307 | D82: 320,434.0 | E82: 337 | F82: 306,616.0 | G82: 290 | H82: 0 | I82: 0 | J82: 5,573.0 | K82: 2 | L82: 1,450,667.0 | M82: 243 | N82: 0 | O82: 0 | P82: 0 | Q82: 0 | R82: 46,049.0 | S82: 146 | T82: 0 | U82: 0 | V82: 0 | W82: 0 | X82: 0 | Y82: 0 | Z82: 618.0 | AA82: 1 | AB82: 306.0 | AC82: 2 | AD82: 56,822.0 | AE82: 214 | AF82: 0 | AG82: 0 | AH82: 1,679.0 | AI82: 2 | AJ82: 0 | AK82: 0 | AL82: 53,541.0 | AM82: 22 | AN82: 23,227.0 | AO82: 18 | AP82: 0 | AQ82: 0 | AR82: 0 | AS82: 0 | AT82: 0 | AU82: 0 | AV82: 0 | AW82: 0 | AX82: 0 | AY82: 0 | AZ82: 607.0 | BA82: 1 | BB82: 0 | BC82: 0 | BD82: 6,884.0 | BE82: 17 | BF82: 4,913.0 | BG82: 12
A83: 율촌면 취적리 | B83: 7,664,729.0 | C83: 4,194 | D83: 794,126.0 | E83: 861 | F83: 981,027.0 | G83: 1,052 | H83: 4,732.0 | I83: 1 | J83: 601.0 | K83: 1 | L83: 5,025,741.0 | M83: 697 | N83: 0 | O83: 0 | P83: 0 | Q83: 0 | R83: 210,976.0 | S83: 449 | T83: 13,496.0 | U83: 5 | V83: 0 | W83: 0 | X83: 2,421.0 | Y83: 6 | Z83: 11,117.0 | AA83: 5 | AB83: 1,403.0 | AC83: 2 | AD83: 256,699.0 | AE83: 769 | AF83: 50,963.0 | AG83: 49 | AH83: 3,356.0 | AI83: 4 | AJ83: 7,481.0 | AK83: 12 | AL83: 121,532.0 | AM83: 122 | AN83: 41,915.0 | AO83: 41 | AP83: 0 | AQ83: 0 | AR83: 36,531.0 | AS83: 34 | AT83: 0 | AU83: 0 | AV83: 0 | AW83: 0 | AX83: 0 | AY83: 0 | AZ83: 0 | BA83: 0 | BB83: 0 | BC83: 0 | BD83: 28,898.0 | BE83: 31 | BF83: 71,714.0 | BG83: 53
A84: 율촌면 신풍리 | B84: 6,263,260.6 | C84: 4,903 | D84: 572,502.0 | E84: 756 | F84: 1,411,029.0 | G84: 1,344 | H84: 79,424.0 | I84: 31 | J84: 91,478.0 | K84: 158 | L84: 2,541,365.8 | M84: 487 | N84: 0 | O84: 0 | P84: 0 | Q84: 0 | R84: 408,439.6 | S84: 799 | T84: 20,943.0 | U84: 11 | V84: 15,992.0 | W84: 3 | X84: 3,143.0 | Y84: 2 | Z84: 1,840.0 | AA84: 1 | AB84: 4,952.0 | AC84: 8 | AD84: 219,206.8 | AE84: 863 | AF84: 54,023.0 | AG84: 31 | AH84: 7,114.0 | AI84: 6 | AJ84: 52,152.0 | AK84: 13 | AL84: 163,272.0 | AM84: 134 | AN84: 108,889.0 | AO84: 41 | AP84: 0 | AQ84: 0 | AR84: 25,685.0 | AS84: 22 | AT84: 0 | AU84: 0 | AV84: 0 | AW84: 0 | AX84: 0 | AY84: 0 | AZ84: 3,814.0 | BA84: 4 | BB84: 0 | BC84: 0 | BD84: 18,554.0 | BE84: 18 | BF84: 459,442.4 | BG84: 171
A85: 율촌면 상봉리 | B85: 3,343,665.0 | C85: 1,919 | D85: 443,083.0 | E85: 444 | F85: 358,629.0 | G85: 361 | H85: 1,693.0 | I85: 1 | J85: 27,928.0 | K85: 16 | L85: 2,175,694.0 | M85: 363 | N85: 0 | O85: 0 | P85: 0 | Q85: 0 | R85: 78,760.0 | S85: 185 | T85: 7,369.0 | U85: 2 | V85: 12,729.0 | W85: 2 | X85: 1,358.0 | Y85: 1 | Z85: 331.0 | AA85: 1 | AB85: 7,942.0 | AC85: 10 | AD85: 143,253.0 | AE85: 460 | AF85: 0 | AG85: 0 | AH85: 1,263.0 | AI85: 2 | AJ85: 869.0 | AK85: 1 | AL85: 61,606.0 | AM85: 48 | AN85: 0 | AO85: 0 | AP85: 0 | AQ85: 0 | AR85: 0 | AS85: 0 | AT85: 0 | AU85: 0 | AV85: 0 | AW85: 0 | AX85: 0 | AY85: 0 | AZ85: 3,436.0 | BA85: 2 | BB85: 0 | BC85: 0 | BD85: 12,055.0 | BE85: 7 | BF85: 5,667.0 | BG85: 13
A86: 율촌면 여동리 | B86: 1,038,472.0 | C86: 846 | D86: 226,722.0 | E86: 332 | F86: 16,175.0 | G86: 45 | H86: 14,883.0 | I86: 2 | J86: 1,011.0 | K86: 1 | L86: 723,461.0 | M86: 241 | N86: 0 | O86: 0 | P86: 0 | Q86: 0 | R86: 28,318.0 | S86: 161 | T86: 0 | U86: 0 | V86: 7,128.0 | W86: 5 | X86: 0 | Y86: 0 | Z86: 0 | AA86: 0 | AB86: 0 | AC86: 0 | AD86: 14,908.0 | AE86: 45 | AF86: 0 | AG86: 0 | AH86: 483.0 | AI86: 5 | AJ86: 0 | AK86: 0 | AL86: 836.0 | AM86: 1 | AN86: 0 | AO86: 0 | AP86: 0 | AQ86: 0 | AR86: 0 | AS86: 0 | AT86: 0 | AU86: 0 | AV86: 0 | AW86: 0 | AX86: 0 | AY86: 0 | AZ86: 0 | BA86: 0 | BB86: 0 | BC86: 0 | BD86: 2,585.0 | BE86: 1 | BF86: 1,962.0 | BG86: 7
A87: 화양면 나진리 | B87: 5,832,309.8 | C87: 3,026 | D87: 590,439.0 | E87: 606 | F87: 433,438.4 | G87: 409 | H87: 9,693.0 | I87: 3 | J87: 6,456.0 | K87: 8 | L87: 4,249,327.0 | M87: 836 | N87: 0 | O87: 0 | P87: 0 | Q87: 0 | R87: 141,574.0 | S87: 344 | T87: 46,586.0 | U87: 17 | V87: 30,464.0 | W87: 11 | X87: 0 | Y87: 0 | Z87: 0 | AA87: 0 | AB87: 2,886.0 | AC87: 3 | AD87: 187,523.7 | AE87: 642 | AF87: 0 | AG87: 0 | AH87: 2,307.0 | AI87: 12 | AJ87: 393.0 | AK87: 1 | AL87: 66,371.9 | AM87: 74 | AN87: 11,023.8 | AO87: 10 | AP87: 654.0 | AQ87: 1 | AR87: 0 | AS87: 0 | AT87: 0 | AU87: 0 | AV87: 0 | AW87: 0 | AX87: 0 | AY87: 0 | AZ87: 6,921.0 | BA87: 10 | BB87: 0 | BC87: 0 | BD87: 6,108.0 | BE87: 8 | BF87: 40,144.0 | BG87: 31
A88: 화양면 용주리 | B88: 4,529,539.0 | C88: 3,558 | D88: 1,234,400.0 | E88: 1,157 | F88: 569,350.0 | G88: 413 | H88: 14,075.0 | I88: 24 | J88: 26,913.0 | K88: 5 | L88: 2,110,550.0 | M88: 558 | N88: 0 | O88: 0 | P88: 0 | Q88: 0 | R88: 168,423.0 | S88: 538 | T88: 39,150.0 | U88: 17 | V88: 10,482.0 | W88: 2 | X88: 0 | Y88: 0 | Z88: 1,123.0 | AA88: 1 | AB88: 8,911.0 | AC88: 12 | AD88: 161,924.0 | AE88: 680 | AF88: 0 | AG88: 0 | AH88: 8,892.0 | AI88: 11 | AJ88: 8,213.0 | AK88: 8 | AL88: 47,340.0 | AM88: 21 | AN88: 19,287.0 | AO88: 12 | AP88: 7,590.0 | AQ88: 4 | AR88: 0 | AS88: 0 | AT88: 0 | AU88: 0 | AV88: 0 | AW88: 0 | AX88: 0 | AY88: 0 | AZ88: 4,604.0 | BA88: 5 | BB88: 6,161.0 | BC88: 3 | BD88: 26,285.0 | BE88: 31 | BF88: 55,866.0 | BG88: 56
A89: 화양면 창무리 | B89: 3,959,236.3 | C89: 2,425 | D89: 814,198.0 | E89: 737 | F89: 389,407.0 | G89: 321 | H89: 0 | I89: 0 | J89: 11,610.0 | K89: 4 | L89: 2,226,582.0 | M89: 380 | N89: 0 | O89: 0 | P89: 0 | Q89: 0 | R89: 97,810.0 | S89: 282 | T89: 9,573.0 | U89: 5 | V89: 0 | W89: 0 | X89: 5,356.0 | Y89: 4 | Z89: 2,997.0 | AA89: 2 | AB89: 4,362.0 | AC89: 8 | AD89: 104,317.7 | AE89: 583 | AF89: 0 | AG89: 0 | AH89: 3,438.0 | AI89: 1 | AJ89: 28,449.7 | AK89: 20 | AL89: 47,551.4 | AM89: 41 | AN89: 194,774.0 | AO89: 4 | AP89: 0 | AQ89: 0 | AR89: 0 | AS89: 0 | AT89: 0 | AU89: 0 | AV89: 0 | AW89: 0 | AX89: 0 | AY89: 0 | AZ89: 1,103.0 | BA89: 5 | BB89: 0 | BC89: 0 | BD89: 5,902.0 | BE89: 3 | BF89: 11,805.5 | BG89: 25
A90: 화양면 이천리 | B90: 3,554,225.0 | C90: 2,054 | D90: 781,160.0 | E90: 762 | F90: 112,439.0 | G90: 173 | H90: 5,891.0 | I90: 2 | J90: 1,761.0 | K90: 1 | L90: 2,342,205.0 | M90: 411 | N90: 0 | O90: 0 | P90: 0 | Q90: 0 | R90: 110,944.0 | S90: 302 | T90: 444.0 | U90: 1 | V90: 9,352.0 | W90: 6 | X90: 1,265.0 | Y90: 2 | Z90: 0 | AA90: 0 | AB90: 1,054.0 | AC90: 2 | AD90: 145,175.0 | AE90: 329 | AF90: 0 | AG90: 0 | AH90: 4,742.0 | AI90: 14 | AJ90: 0 | AK90: 0 | AL90: 19,164.0 | AM90: 22 | AN90: 3,481.0 | AO90: 2 | AP90: 0 | AQ90: 0 | AR90: 0 | AS90: 0 | AT90: 0 | AU90: 0 | AV90: 0 | AW90: 0 | AX90: 0 | AY90: 0 | AZ90: 992.0 | BA90: 1 | BB90: 0 | BC90: 0 | BD90: 1,478.0 | BE90: 4 | BF90: 12,678.0 | BG90: 20
A91: 화양면 옥적리 | B91: 11,946,359.3 | C91: 4,830 | D91: 1,452,669.0 | E91: 1,360 | F91: 1,289,314.6 | G91: 1,169 | H91: 56,059.0 | I91: 9 | J91: 31,798.0 | K91: 6 | L91: 8,307,404.0 | M91: 937 | N91: 0 | O91: 0 | P91: 0 | Q91: 0 | R91: 122,663.0 | S91: 340 | T91: 8,050.0 | U91: 2 | V91: 30.0 | W91: 1 | X91: 2,538.0 | Y91: 3 | Z91: 0 | AA91: 0 | AB91: 4,276.0 | AC91: 9 | AD91: 246,155.2 | AE91: 711 | AF91: 0 | AG91: 0 | AH91: 8,921.0 | AI91: 5 | AJ91: 60,004.4 | AK91: 16 | AL91: 165,909.1 | AM91: 129 | AN91: 161,919.0 | AO91: 100 | AP91: 0 | AQ91: 0 | AR91: 0 | AS91: 0 | AT91: 0 | AU91: 0 | AV91: 0 | AW91: 0 | AX91: 0 | AY91: 0 | AZ91: 1,692.0 | BA91: 2 | BB91: 0 | BC91: 0 | BD91: 16,448.0 | BE91: 11 | BF91: 10,509.0 | BG91: 20
A92: 화양면 화동리 | B92: 7,418,739.7 | C92: 4,093 | D92: 1,061,889.0 | E92: 1,038 | F92: 870,417.4 | G92: 829 | H92: 1,850.0 | I92: 2 | J92: 12,543.0 | K92: 4 | L92: 4,741,482.8 | M92: 743 | N92: 0 | O92: 0 | P92: 0 | Q92: 0 | R92: 124,210.5 | S92: 419 | T92: 101,598.2 | U92: 22 | V92: 33,365.0 | W92: 4 | X92: 1,088.0 | Y92: 1 | Z92: 1,811.0 | AA92: 1 | AB92: 5,578.0 | AC92: 11 | AD92: 203,990.5 | AE92: 678 | AF92: 0 | AG92: 0 | AH92: 0 | AI92: 0 | AJ92: 3,568.0 | AK92: 10 | AL92: 132,195.1 | AM92: 244 | AN92: 79,538.0 | AO92: 36 | AP92: 0 | AQ92: 0 | AR92: 0 | AS92: 0 | AT92: 0 | AU92: 0 | AV92: 0 | AW92: 0 | AX92: 0 | AY92: 0 | AZ92: 2,095.0 | BA92: 5 | BB92: 0 | BC92: 0 | BD92: 22,954.0 | BE92: 17 | BF92: 18,566.2 | BG92: 29
A93: 화양면 서촌리 | B93: 6,225,655.7 | C93: 3,229 | D93: 950,276.0 | E93: 872 | F93: 714,583.0 | G93: 695 | H93: 10,611.0 | I93: 2 | J93: 16,806.0 | K93: 12 | L93: 4,164,673.0 | M93: 554 | N93: 0 | O93: 0 | P93: 0 | Q93: 0 | R93: 87,824.0 | S93: 318 | T93: 2,921.0 | U93: 1 | V93: 0 | W93: 0 | X93: 0 | Y93: 0 | Z93: 0 | AA93: 0 | AB93: 1,029.0 | AC93: 3 | AD93: 116,568.6 | AE93: 579 | AF93: 0 | AG93: 0 | AH93: 2,298.0 | AI93: 1 | AJ93: 1,736.0 | AK93: 10 | AL93: 105,848.1 | AM93: 137 | AN93: 18,192.0 | AO93: 14 | AP93: 0 | AQ93: 0 | AR93: 0 | AS93: 0 | AT93: 0 | AU93: 0 | AV93: 0 | AW93: 0 | AX93: 0 | AY93: 0 | AZ93: 1,718.0 | BA93: 5 | BB93: 0 | BC93: 0 | BD93: 12,032.0 | BE93: 12 | BF93: 18,540.0 | BG93: 14
A94: 화양면 이목리 | B94: 8,996,418.0 | C94: 4,867 | D94: 1,076,318.0 | E94: 1,015 | F94: 640,809.0 | G94: 990 | H94: 0 | I94: 0 | J94: 44,312.0 | K94: 7 | L94: 6,728,975.0 | M94: 1,533 | N94: 0 | O94: 0 | P94: 0 | Q94: 0 | R94: 151,683.0 | S94: 427 | T94: 0 | U94: 0 | V94: 5,586.0 | W94: 7 | X94: 0 | Y94: 0 | Z94: 0 | AA94: 0 | AB94: 958.0 | AC94: 3 | AD94: 237,170.0 | AE94: 771 | AF94: 0 | AG94: 0 | AH94: 2,730.0 | AI94: 16 | AJ94: 205.0 | AK94: 2 | AL94: 67,408.0 | AM94: 35 | AN94: 10,156.0 | AO94: 8 | AP94: 0 | AQ94: 0 | AR94: 0 | AS94: 0 | AT94: 0 | AU94: 0 | AV94: 0 | AW94: 0 | AX94: 0 | AY94: 0 | AZ94: 1,344.0 | BA94: 3 | BB94: 0 | BC94: 0 | BD94: 13,686.0 | BE94: 20 | BF94: 15,078.0 | BG94: 30
A95: 화양면 장수리 | B95: 5,244,893.0 | C95: 3,653 | D95: 1,165,702.0 | E95: 1,172 | F95: 302,255.0 | G95: 513 | H95: 2,420.0 | I95: 1 | J95: 12,255.0 | K95: 10 | L95: 3,354,857.0 | M95: 814 | N95: 0 | O95: 0 | P95: 0 | Q95: 0 | R95: 127,613.0 | S95: 425 | T95: 0 | U95: 0 | V95: 21,516.0 | W95: 5 | X95: 0 | Y95: 0 | Z95: 0 | AA95: 0 | AB95: 1,209.0 | AC95: 5 | AD95: 194,753.0 | AE95: 597 | AF95: 0 | AG95: 0 | AH95: 7,575.0 | AI95: 18 | AJ95: 0 | AK95: 0 | AL95: 22,675.0 | AM95: 29 | AN95: 0 | AO95: 0 | AP95: 1,524.0 | AQ95: 2 | AR95: 0 | AS95: 0 | AT95: 0 | AU95: 0 | AV95: 0 | AW95: 0 | AX95: 0 | AY95: 0 | AZ95: 0 | BA95: 0 | BB95: 0 | BC95: 0 | BD95: 14,373.0 | BE95: 24 | BF95: 16,166.0 | BG95: 38
A96: 화양면 안포리 | B96: 12,416,745.3 | C96: 6,735 | D96: 1,562,306.0 | E96: 1,734 | F96: 798,864.5 | G96: 1,100 | H96: 29,555.0 | I96: 7 | J96: 51,637.0 | K96: 26 | L96: 9,135,644.0 | M96: 1,786 | N96: 0 | O96: 0 | P96: 0 | Q96: 0 | R96: 201,328.0 | S96: 613 | T96: 7,050.0 | U96: 1 | V96: 6,792.0 | W96: 2 | X96: 0 | Y96: 0 | Z96: 1,629.0 | AA96: 1 | AB96: 8,225.0 | AC96: 14 | AD96: 358,877.9 | AE96: 1,096 | AF96: 0 | AG96: 0 | AH96: 7,422.0 | AI96: 19 | AJ96: 393.0 | AK96: 2 | AL96: 95,720.9 | AM96: 108 | AN96: 66,302.0 | AO96: 83 | AP96: 20,344.0 | AQ96: 13 | AR96: 0 | AS96: 0 | AT96: 0 | AU96: 0 | AV96: 0 | AW96: 0 | AX96: 0 | AY96: 0 | AZ96: 3,533.0 | BA96: 5 | BB96: 0 | BC96: 0 | BD96: 16,871.0 | BE96: 31 | BF96: 44,251.0 | BG96: 94
A97: 남면 우학리 | B97: 4,513,342.0 | C97: 2,759 | D97: 1,232,503.0 | E97: 929 | F97: 236,364.0 | G97: 481 | H97: 0 | I97: 0 | J97: 0 | K97: 0 | L97: 2,686,018.0 | M97: 520 | N97: 0 | O97: 0 | P97: 0 | Q97: 0 | R97: 88,407.0 | S97: 337 | T97: 0 | U97: 0 | V97: 33,393.0 | W97: 6 | X97: 0 | Y97: 0 | Z97: 0 | AA97: 0 | AB97: 0 | AC97: 0 | AD97: 152,025.0 | AE97: 416 | AF97: 0 | AG97: 0 | AH97: 1,925.0 | AI97: 8 | AJ97: 0 | AK97: 0 | AL97: 26,106.0 | AM97: 20 | AN97: 0 | AO97: 0 | AP97: 4,524.0 | AQ97: 3 | AR97: 926.0 | AS97: 3 | AT97: 0 | AU97: 0 | AV97: 0 | AW97: 0 | AX97: 0 | AY97: 0 | AZ97: 1,523.0 | BA97: 3 | BB97: 0 | BC97: 0 | BD97: 27,528.0 | BE97: 5 | BF97: 22,100.0 | BG97: 28
A98: 남면 심장리 | B98: 4,435,606.0 | C98: 2,506 | D98: 1,418,176.0 | E98: 952 | F98: 123,199.0 | G98: 308 | H98: 0 | I98: 0 | J98: 0 | K98: 0 | L98: 2,625,292.0 | M98: 421 | N98: 0 | O98: 0 | P98: 0 | Q98: 0 | R98: 94,942.0 | S98: 395 | T98: 0 | U98: 0 | V98: 4,663.0 | W98: 2 | X98: 0 | Y98: 0 | Z98: 0 | AA98: 0 | AB98: 243.0 | AC98: 1 | AD98: 113,254.0 | AE98: 315 | AF98: 0 | AG98: 0 | AH98: 4,234.0 | AI98: 15 | AJ98: 403.0 | AK98: 1 | AL98: 15,465.0 | AM98: 15 | AN98: 582.0 | AO98: 1 | AP98: 8,684.0 | AQ98: 10 | AR98: 0 | AS98: 0 | AT98: 0 | AU98: 0 | AV98: 0 | AW98: 0 | AX98: 0 | AY98: 0 | AZ98: 232.0 | BA98: 1 | BB98: 0 | BC98: 0 | BD98: 16,265.0 | BE98: 15 | BF98: 9,972.0 | BG98: 54
A99: 남면 두모리 | B99: 11,121,624.0 | C99: 3,549 | D99: 1,265,170.0 | E99: 1,068 | F99: 441,976.0 | G99: 924 | H99: 0 | I99: 0 | J99: 0 | K99: 0 | L99: 9,093,029.0 | M99: 693 | N99: 0 | O99: 0 | P99: 0 | Q99: 0 | R99: 64,393.0 | S99: 242 | T99: 0 | U99: 0 | V99: 5,557.0 | W99: 5 | X99: 0 | Y99: 0 | Z99: 0 | AA99: 0 | AB99: 465.0 | AC99: 2 | AD99: 174,590.0 | AE99: 471 | AF99: 0 | AG99: 0 | AH99: 3,155.0 | AI99: 9 | AJ99: 12,780.0 | AK99: 43 | AL99: 18,015.0 | AM99: 17 | AN99: 29,746.0 | AO99: 40 | AP99: 400.0 | AQ99: 1 | AR99: 1,484.0 | AS99: 2 | AT99: 0 | AU99: 0 | AV99: 0 | AW99: 0 | AX99: 0 | AY99: 0 | AZ99: 694.0 | BA99: 1 | BB99: 0 | BC99: 0 | BD99: 1,200.0 | BE99: 3 | BF99: 8,970.0 | BG99: 28
A100: 남면 유송리 | B100: 7,687,592.0 | C100: 3,228 | D100: 1,658,659.0 | E100: 1,369 | F100: 166,441.0 | G100: 426 | H100: 0 | I100: 0 | J100: 0 | K100: 0 | L100: 5,615,712.0 | M100: 717 | N100: 0 | O100: 0 | P100: 0 | Q100: 0 | R100: 85,048.0 | S100: 361 | T100: 0 | U100: 0 | V100: 8,244.0 | W100: 4 | X100: 0 | Y100: 0 | Z100: 0 | AA100: 0 | AB100: 192.0 | AC100: 1 | AD100: 94,257.0 | AE100: 261 | AF100: 0 | AG100: 0 | AH100: 7,454.0 | AI100: 20 | AJ100: 1,015.0 | AK100: 3 | AL100: 23,784.0 | AM100: 29 | AN100: 531.0 | AO100: 1 | AP100: 0 | AQ100: 0 | AR100: 0 | AS100: 0 | AT100: 0 | AU100: 0 | AV100: 0 | AW100: 0 | AX100: 0 | AY100: 0 | AZ100: 317.0 | BA100: 2 | BB100: 0 | BC100: 0 | BD100: 12,476.0 | BE100: 3 | BF100: 13,462.0 | BG100: 31
A101: 남면 안도리 | B101: 3,744,925.0 | C101: 2,543 | D101: 1,132,053.0 | E101: 1,212 | F101: 55,180.0 | G101: 151 | H101: 0 | I101: 0 | J101: 0 | K101: 0 | L101: 2,339,321.0 | M101: 564 | N101: 0 | O101: 0 | P101: 0 | Q101: 0 | R101: 89,868.0 | S101: 380 | T101: 0 | U101: 0 | V101: 5,182.0 | W101: 6 | X101: 0 | Y101: 0 | Z101: 0 | AA101: 0 | AB101: 0 | AC101: 0 | AD101: 43,878.0 | AE101: 142 | AF101: 0 | AG101: 0 | AH101: 4,513.0 | AI101: 5 | AJ101: 390.0 | AK101: 1 | AL101: 17,466.0 | AM101: 17 | AN101: 0 | AO101: 0 | AP101: 0 | AQ101: 0 | AR101: 0 | AS101: 0 | AT101: 0 | AU101: 0 | AV101: 0 | AW101: 0 | AX101: 0 | AY101: 0 | AZ101: 231.0 | BA101: 1 | BB101: 0 | BC101: 0 | BD101: 20,261.0 | BE101: 40 | BF101: 36,582.0 | BG101: 24
A102: 남면 연도리 | B102: 7,048,625.0 | C102: 3,420 | D102: 1,147,653.0 | E102: 1,367 | F102: 269,156.0 | G102: 618 | H102: 0 | I102: 0 | J102: 598.0 | K102: 1 | L102: 5,319,650.0 | M102: 708 | N102: 0 | O102: 0 | P102: 0 | Q102: 0 | R102: 102,140.0 | S102: 462 | T102: 0 | U102: 0 | V102: 11,875.0 | W102: 8 | X102: 0 | Y102: 0 | Z102: 0 | AA102: 0 | AB102: 0 | AC102: 0 | AD102: 110,429.0 | AE102: 146 | AF102: 0 | AG102: 0 | AH102: 2,692.0 | AI102: 8 | AJ102: 0 | AK102: 0 | AL102: 21,744.0 | AM102: 30 | AN102: 0 | AO102: 0 | AP102: 8,408.0 | AQ102: 2 | AR102: 0 | AS102: 0 | AT102: 0 | AU102: 0 | AV102: 0 | AW102: 0 | AX102: 0 | AY102: 0 | AZ102: 0 | BA102: 0 | BB102: 0 | BC102: 0 | BD102: 38,318.0 | BE102: 36 | BF102: 15,962.0 | BG102: 34
A103: 남면 두라리 | B103: 1,328,286.0 | C103: 923 | D103: 401,238.0 | E103: 471 | F103: 19,540.0 | G103: 59 | H103: 0 | I103: 0 | J103: 0 | K103: 0 | L103: 844,553.0 | M103: 209 | N103: 0 | O103: 0 | P103: 0 | Q103: 0 | R103: 29,367.0 | S103: 119 | T103: 0 | U103: 0 | V103: 6,844.0 | W103: 4 | X103: 0 | Y103: 0 | Z103: 0 | AA103: 0 | AB103: 0 | AC103: 0 | AD103: 18,156.0 | AE103: 31 | AF103: 0 | AG103: 0 | AH103: 1,233.0 | AI103: 5 | AJ103: 0 | AK103: 0 | AL103: 886.0 | AM103: 2 | AN103: 1,025.0 | AO103: 3 | AP103: 195.0 | AQ103: 1 | AR103: 0 | AS103: 0 | AT103: 0 | AU103: 0 | AV103: 0 | AW103: 0 | AX103: 0 | AY103: 0 | AZ103: 1,037.0 | BA103: 1 | BB103: 0 | BC103: 0 | BD103: 1,164.0 | BE103: 4 | BF103: 3,048.0 | BG103: 14
A104: 남면 화태리 | B104: 2,189,331.0 | C104: 1,800 | D104: 646,913.0 | E104: 700 | F104: 116,502.0 | G104: 227 | H104: 0 | I104: 0 | J104: 0 | K104: 0 | L104: 1,263,594.0 | M104: 448 | N104: 0 | O104: 0 | P104: 0 | Q104: 0 | R104: 59,062.0 | S104: 240 | T104: 0 | U104: 0 | V104: 12,637.0 | W104: 4 | X104: 0 | Y104: 0 | Z104: 0 | AA104: 0 | AB104: 0 | AC104: 0 | AD104: 52,653.0 | AE104: 110 | AF104: 0 | AG104: 0 | AH104: 6,159.0 | AI104: 19 | AJ104: 0 | AK104: 0 | AL104: 4,965.0 | AM104: 9 | AN104: 6,712.0 | AO104: 9 | AP104: 2,923.0 | AQ104: 3 | AR104: 0 | AS104: 0 | AT104: 0 | AU104: 0 | AV104: 0 | AW104: 0 | AX104: 0 | AY104: 0 | AZ104: 544.0 | BA104: 4 | BB104: 0 | BC104: 0 | BD104: 6,354.0 | BE104: 8 | BF104: 10,313.0 | BG104: 19
A105: 남면 횡간리 | B105: 431,660.0 | C105: 525 | D105: 263,932.0 | E105: 308 | F105: 7,482.0 | G105: 21 | H105: 0 | I105: 0 | J105: 0 | K105: 0 | L105: 114,747.0 | M105: 32 | N105: 0 | O105: 0 | P105: 0 | Q105: 0 | R105: 19,294.0 | S105: 104 | T105: 0 | U105: 0 | V105: 4,408.0 | W105: 4 | X105: 0 | Y105: 0 | Z105: 0 | AA105: 0 | AB105: 0 | AC105: 0 | AD105: 8,244.0 | AE105: 9 | AF105: 0 | AG105: 0 | AH105: 1,599.0 | AI105: 7 | AJ105: 129.0 | AK105: 1 | AL105: 254.0 | AM105: 1 | AN105: 43.0 | AO105: 1 | AP105: 0 | AQ105: 0 | AR105: 0 | AS105: 0 | AT105: 0 | AU105: 0 | AV105: 0 | AW105: 0 | AX105: 0 | AY105: 0 | AZ105: 128.0 | BA105: 1 | BB105: 0 | BC105: 0 | BD105: 2,942.0 | BE105: 13 | BF105: 8,458.0 | BG105: 23
A106: 화정면 백야리 | B106: 3,057,979.0 | C106: 2,078 | D106: 885,167.0 | E106: 850 | F106: 157,883.0 | G106: 210 | H106: 0 | I106: 0 | J106: 1,208.0 | K106: 1 | L106: 1,836,412.0 | M106: 463 | N106: 0 | O106: 0 | P106: 0 | Q106: 0 | R106: 82,143.0 | S106: 263 | T106: 0 | U106: 0 | V106: 16,874.0 | W106: 4 | X106: 0 | Y106: 0 | Z106: 0 | AA106: 0 | AB106: 0 | AC106: 0 | AD106: 46,984.0 | AE106: 247 | AF106: 0 | AG106: 0 | AH106: 3,313.0 | AI106: 11 | AJ106: 0 | AK106: 0 | AL106: 1,706.0 | AM106: 2 | AN106: 1,513.0 | AO106: 2 | AP106: 5,452.0 | AQ106: 2 | AR106: 0 | AS106: 0 | AT106: 0 | AU106: 0 | AV106: 0 | AW106: 0 | AX106: 0 | AY106: 0 | AZ106: 1,892.0 | BA106: 4 | BB106: 0 | BC106: 0 | BD106: 4,530.0 | BE106: 4 | BF106: 12,902.0 | BG106: 15
A107: 화정면 월호리 | B107: 2,023,140.0 | C107: 1,046 | D107: 639,572.0 | E107: 516 | F107: 41,547.0 | G107: 80 | H107: 0 | I107: 0 | J107: 0 | K107: 0 | L107: 1,254,387.0 | M107: 240 | N107: 0 | O107: 0 | P107: 0 | Q107: 0 | R107: 36,971.0 | S107: 135 | T107: 0 | U107: 0 | V107: 7,999.0 | W107: 3 | X107: 0 | Y107: 0 | Z107: 0 | AA107: 0 | AB107: 0 | AC107: 0 | AD107: 21,946.0 | AE107: 34 | AF107: 0 | AG107: 0 | AH107: 1,909.0 | AI107: 10 | AJ107: 0 | AK107: 0 | AL107: 2,956.0 | AM107: 6 | AN107: 40.0 | AO107: 1 | AP107: 1,561.0 | AQ107: 3 | AR107: 0 | AS107: 0 | AT107: 0 | AU107: 0 | AV107: 0 | AW107: 0 | AX107: 0 | AY107: 0 | AZ107: 0 | BA107: 0 | BB107: 0 | BC107: 0 | BD107: 1,818.0 | BE107: 4 | BF107: 12,434.0 | BG107: 14
A108: 화정면 개도리 | B108: 9,728,737.0 | C108: 4,560 | D108: 1,575,347.0 | E108: 1,497 | F108: 463,100.0 | G108: 464 | H108: 0 | I108: 0 | J108: 0 | K108: 0 | L108: 7,090,308.0 | M108: 1,351 | N108: 0 | O108: 0 | P108: 0 | Q108: 0 | R108: 135,703.0 | S108: 511 | T108: 0 | U108: 0 | V108: 19,803.0 | W108: 4 | X108: 0 | Y108: 0 | Z108: 0 | AA108: 0 | AB108: 0 | AC108: 0 | AD108: 214,861.0 | AE108: 574 | AF108: 0 | AG108: 0 | AH108: 21,970.0 | AI108: 17 | AJ108: 0 | AK108: 0 | AL108: 86,466.0 | AM108: 50 | AN108: 63,652.0 | AO108: 19 | AP108: 19,921.0 | AQ108: 17 | AR108: 0 | AS108: 0 | AT108: 0 | AU108: 0 | AV108: 0 | AW108: 0 | AX108: 0 | AY108: 0 | AZ108: 1,336.0 | BA108: 4 | BB108: 0 | BC108: 0 | BD108: 4,439.0 | BE108: 10 | BF108: 31,831.0 | BG108: 42
A109: 화정면 제도리 | B109: 1,098,088.0 | C109: 807 | D109: 366,730.0 | E109: 307 | F109: 51,007.0 | G109: 80 | H109: 0 | I109: 0 | J109: 1,719.0 | K109: 2 | L109: 603,017.0 | M109: 162 | N109: 0 | O109: 0 | P109: 0 | Q109: 0 | R109: 34,166.0 | S109: 104 | T109: 0 | U109: 0 | V109: 81.0 | W109: 3 | X109: 0 | Y109: 0 | Z109: 0 | AA109: 0 | AB109: 0 | AC109: 0 | AD109: 16,816.0 | AE109: 109 | AF109: 0 | AG109: 0 | AH109: 2,932.0 | AI109: 9 | AJ109: 0 | AK109: 0 | AL109: 4,572.0 | AM109: 3 | AN109: 1,842.0 | AO109: 1 | AP109: 0 | AQ109: 0 | AR109: 0 | AS109: 0 | AT109: 0 | AU109: 0 | AV109: 0 | AW109: 0 | AX109: 0 | AY109: 0 | AZ109: 0 | BA109: 0 | BB109: 0 | BC109: 0 | BD109: 3,114.0 | BE109: 10 | BF109: 12,092.0 | BG109: 17
A110: 화정면 상화리 | B110: 672,426.0 | C110: 577 | D110: 301,408.0 | E110: 342 | F110: 5,980.0 | G110: 17 | H110: 0 | I110: 0 | J110: 0 | K110: 0 | L110: 325,737.0 | M110: 109 | N110: 0 | O110: 0 | P110: 0 | Q110: 0 | R110: 20,999.0 | S110: 82 | T110: 0 | U110: 0 | V110: 54.0 | W110: 1 | X110: 0 | Y110: 0 | Z110: 0 | AA110: 0 | AB110: 0 | AC110: 0 | AD110: 11,087.0 | AE110: 10 | AF110: 0 | AG110: 0 | AH110: 1,519.0 | AI110: 4 | AJ110: 0 | AK110: 0 | AL110: 0 | AM110: 0 | AN110: 0 | AO110: 0 | AP110: 0 | AQ110: 0 | AR110: 0 | AS110: 0 | AT110: 0 | AU110: 0 | AV110: 0 | AW110: 0 | AX110: 0 | AY110: 0 | AZ110: 1,117.0 | BA110: 1 | BB110: 0 | BC110: 0 | BD110: 2,446.0 | BE110: 8 | BF110: 2,079.0 | BG110: 3
A111: 화정면 하화리 | B111: 673,278.0 | C111: 533 | D111: 257,834.0 | E111: 290 | F111: 2,435.0 | G111: 15 | H111: 0 | I111: 0 | J111: 0 | K111: 0 | L111: 369,876.0 | M111: 116 | N111: 0 | O111: 0 | P111: 0 | Q111: 0 | R111: 15,997.0 | S111: 63 | T111: 0 | U111: 0 | V111: 1,908.0 | W111: 3 | X111: 0 | Y111: 0 | Z111: 0 | AA111: 0 | AB111: 0 | AC111: 0 | AD111: 4,531.0 | AE111: 12 | AF111: 0 | AG111: 0 | AH111: 606.0 | AI111: 5 | AJ111: 0 | AK111: 0 | AL111: 9,045.0 | AM111: 8 | AN111: 0 | AO111: 0 | AP111: 0 | AQ111: 0 | AR111: 0 | AS111: 0 | AT111: 0 | AU111: 0 | AV111: 0 | AW111: 0 | AX111: 0 | AY111: 0 | AZ111: 0 | BA111: 0 | BB111: 0 | BC111: 0 | BD111: 7,061.0 | BE111: 13 | BF111: 3,985.0 | BG111: 8
A112: 화정면 낭도리 | B112: 5,609,605.0 | C112: 3,250 | D112: 1,444,518.0 | E112: 1,574 | F112: 155,524.0 | G112: 209 | H112: 1,895.0 | I112: 2 | J112: 0 | K112: 0 | L112: 3,711,525.0 | M112: 747 | N112: 0 | O112: 0 | P112: 8,625.0 | Q112: 2 | R112: 71,825.0 | S112: 357 | T112: 0 | U112: 0 | V112: 31,317.0 | W112: 12 | X112: 0 | Y112: 0 | Z112: 0 | AA112: 0 | AB112: 395.0 | AC112: 1 | AD112: 57,290.0 | AE112: 212 | AF112: 0 | AG112: 0 | AH112: 10,962.0 | AI112: 17 | AJ112: 11,323.0 | AK112: 5 | AL112: 25,833.0 | AM112: 27 | AN112: 7,590.0 | AO112: 3 | AP112: 0 | AQ112: 0 | AR112: 0 | AS112: 0 | AT112: 0 | AU112: 0 | AV112: 0 | AW112: 0 | AX112: 0 | AY112: 0 | AZ112: 753.0 | BA112: 2 | BB112: 0 | BC112: 0 | BD112: 20,087.0 | BE112: 37 | BF112: 50,143.0 | BG112: 43
A113: 화정면 조발리 | B113: 1,942,452.0 | C113: 953 | D113: 344,423.0 | E113: 409 | F113: 17,238.0 | G113: 32 | H113: 0 | I113: 0 | J113: 0 | K113: 0 | L113: 1,534,152.0 | M113: 332 | N113: 0 | O113: 0 | P113: 0 | Q113: 0 | R113: 23,495.0 | S113: 119 | T113: 0 | U113: 0 | V113: 2,465.0 | W113: 5 | X113: 0 | Y113: 0 | Z113: 0 | AA113: 0 | AB113: 0 | AC113: 0 | AD113: 13,072.0 | AE113: 26 | AF113: 0 | AG113: 0 | AH113: 616.0 | AI113: 6 | AJ113: 0 | AK113: 0 | AL113: 1,074.0 | AM113: 5 | AN113: 0 | AO113: 0 | AP113: 0 | AQ113: 0 | AR113: 0 | AS113: 0 | AT113: 0 | AU113: 0 | AV113: 0 | AW113: 0 | AX113: 0 | AY113: 0 | AZ113: 0 | BA113: 0 | BB113: 0 | BC113: 0 | BD113: 3,102.0 | BE113: 9 | BF113: 2,815.0 | BG113: 10
A114: 화정면 적금리 | B114: 855,046.0 | C114: 1,185 | D114: 556,292.0 | E114: 790 | F114: 17,487.0 | G114: 24 | H114: 0 | I114: 0 | J114: 0 | K114: 0 | L114: 157,636.0 | M114: 66 | N114: 0 | O114: 0 | P114: 0 | Q114: 0 | R114: 48,700.0 | S114: 186 | T114: 0 | U114: 0 | V114: 4,543.0 | W114: 5 | X114: 0 | Y114: 0 | Z114: 0 | AA114: 0 | AB114: 0 | AC114: 0 | AD114: 18,639.0 | AE114: 11 | AF114: 0 | AG114: 0 | AH114: 1,318.0 | AI114: 5 | AJ114: 4,642.0 | AK114: 11 | AL114: 790.0 | AM114: 1 | AN114: 0 | AO114: 0 | AP114: 0 | AQ114: 0 | AR114: 0 | AS114: 0 | AT114: 0 | AU114: 0 | AV114: 0 | AW114: 0 | AX114: 0 | AY114: 0 | AZ114: 0 | BA114: 0 | BB114: 0 | BC114: 0 | BD114: 40,152.0 | BE114: 72 | BF114: 4,847.0 | BG114: 14
A115: 화정면 여자리 | B115: 694,640.0 | C115: 848 | D115: 369,615.0 | E115: 420 | F115: 7,848.0 | G115: 10 | H115: 0 | I115: 0 | J115: 0 | K115: 0 | L115: 216,788.0 | M115: 109 | N115: 0 | O115: 0 | P115: 0 | Q115: 0 | R115: 42,977.0 | S115: 183 | T115: 0 | U115: 0 | V115: 8,451.0 | W115: 2 | X115: 0 | Y115: 0 | Z115: 0 | AA115: 0 | AB115: 0 | AC115: 0 | AD115: 25,108.0 | AE115: 52 | AF115: 0 | AG115: 0 | AH115: 2,998.0 | AI115: 10 | AJ115: 0 | AK115: 0 | AL115: 1,656.0 | AM115: 1 | AN115: 0 | AO115: 0 | AP115: 0 | AQ115: 0 | AR115: 0 | AS115: 0 | AT115: 0 | AU115: 0 | AV115: 0 | AW115: 0 | AX115: 0 | AY115: 0 | AZ115: 1,273.0 | BA115: 1 | BB115: 0 | BC115: 0 | BD115: 11,587.0 | BE115: 44 | BF115: 6,339.0 | BG115: 16
A116: 삼산면 거문리 | B116: 932,449.0 | C116: 678 | D116: 106,739.0 | E116: 158 | F116: 0 | G116: 0 | H116: 0 | I116: 0 | J116: 0 | K116: 0 | L116: 737,137.0 | M116: 123 | N116: 0 | O116: 0 | P116: 0 | Q116: 0 | R116: 43,913.0 | S116: 346 | T116: 0 | U116: 0 | V116: 6,338.0 | W116: 2 | X116: 0 | Y116: 0 | Z116: 0 | AA116: 0 | AB116: 0 | AC116: 0 | AD116: 14,164.0 | AE116: 29 | AF116: 0 | AG116: 0 | AH116: 4,275.0 | AI116: 5 | AJ116: 0 | AK116: 0 | AL116: 0 | AM116: 0 | AN116: 0 | AO116: 0 | AP116: 0 | AQ116: 0 | AR116: 0 | AS116: 0 | AT116: 0 | AU116: 0 | AV116: 0 | AW116: 0 | AX116: 0 | AY116: 0 | AZ116: 208.0 | BA116: 1 | BB116: 0 | BC116: 0 | BD116: 641.0 | BE116: 2 | BF116: 19,034.0 | BG116: 12
A117: 삼산면 덕촌리 | B117: 3,849,842.0 | C117: 2,537 | D117: 571,774.0 | E117: 803 | F117: 22,013.0 | G117: 89 | H117: 981.0 | I117: 1 | J117: 0 | K117: 0 | L117: 2,795,389.0 | M117: 1,101 | N117: 0 | O117: 0 | P117: 0 | Q117: 0 | R117: 89,725.0 | S117: 381 | T117: 0 | U117: 0 | V117: 17,072.0 | W117: 3 | X117: 0 | Y117: 0 | Z117: 0 | AA117: 0 | AB117: 612.0 | AC117: 3 | AD117: 52,240.0 | AE117: 93 | AF117: 0 | AG117: 0 | AH117: 1,687.0 | AI117: 3 | AJ117: 1,127.0 | AK117: 6 | AL117: 6,576.0 | AM117: 5 | AN117: 1,404.0 | AO117: 2 | AP117: 0 | AQ117: 0 | AR117: 0 | AS117: 0 | AT117: 0 | AU117: 0 | AV117: 0 | AW117: 0 | AX117: 0 | AY117: 0 | AZ117: 0 | BA117: 0 | BB117: 0 | BC117: 0 | BD117: 268,109.0 | BE117: 37 | BF117: 21,133.0 | BG117: 10
A118: 삼산면 서도리 | B118: 3,430,497.0 | C118: 2,494 | D118: 738,496.0 | E118: 1,075 | F118: 28,626.0 | G118: 93 | H118: 0 | I118: 0 | J118: 0 | K118: 0 | L118: 2,426,864.0 | M118: 691 | N118: 0 | O118: 0 | P118: 0 | Q118: 0 | R118: 72,413.0 | S118: 374 | T118: 0 | U118: 0 | V118: 7,708.0 | W118: 6 | X118: 0 | Y118: 0 | Z118: 0 | AA118: 0 | AB118: 0 | AC118: 0 | AD118: 45,816.0 | AE118: 84 | AF118: 0 | AG118: 0 | AH118: 2,707.0 | AI118: 6 | AJ118: 0 | AK118: 0 | AL118: 6,271.0 | AM118: 5 | AN118: 122.0 | AO118: 1 | AP118: 3,702.0 | AQ118: 4 | AR118: 0 | AS118: 0 | AT118: 0 | AU118: 0 | AV118: 0 | AW118: 0 | AX118: 0 | AY118: 0 | AZ118: 539.0 | BA118: 4 | BB118: 0 | BC118: 0 | BD118: 56,987.0 | BE118: 116 | BF118: 40,246.0 | BG118: 35
A119: 삼산면 동도리 | B119: 4,567,629.0 | C119: 2,618 | D119: 874,710.0 | E119: 1,130 | F119: 6,382.0 | G119: 27 | H119: 0 | I119: 0 | J119: 0 | K119: 0 | L119: 3,447,411.0 | M119: 910 | N119: 0 | O119: 0 | P119: 0 | Q119: 0 | R119: 65,178.0 | S119: 336 | T119: 0 | U119: 0 | V119: 7,242.0 | W119: 5 | X119: 0 | Y119: 0 | Z119: 0 | AA119: 0 | AB119: 0 | AC119: 0 | AD119: 36,381.0 | AE119: 44 | AF119: 0 | AG119: 0 | AH119: 11,599.0 | AI119: 10 | AJ119: 0 | AK119: 0 | AL119: 12,089.0 | AM119: 9 | AN119: 1,878.0 | AO119: 1 | AP119: 6,222.0 | AQ119: 5 | AR119: 0 | AS119: 0 | AT119: 0 | AU119: 0 | AV119: 0 | AW119: 0 | AX119: 0 | AY119: 0 | AZ119: 225.0 | BA119: 1 | BB119: 0 | BC119: 0 | BD119: 81,359.0 | BE119: 105 | BF119: 16,953.0 | BG119: 35
A120: 삼산면 초도리 | B120: 8,557,710.0 | C120: 3,729 | D120: 1,646,213.0 | E120: 1,571 | F120: 188,330.0 | G120: 348 | H120: 0 | I120: 0 | J120: 61,489.0 | K120: 5 | L120: 6,281,750.0 | M120: 982 | N120: 0 | O120: 0 | P120: 0 | Q120: 0 | R120: 121,933.0 | S120: 414 | T120: 0 | U120: 0 | V120: 23,337.0 | W120: 5 | X120: 0 | Y120: 0 | Z120: 0 | AA120: 0 | AB120: 156.0 | AC120: 1 | AD120: 164,616.0 | AE120: 357 | AF120: 0 | AG120: 0 | AH120: 7,593.0 | AI120: 13 | AJ120: 0 | AK120: 0 | AL120: 10,019.0 | AM120: 8 | AN120: 0 | AO120: 0 | AP120: 0 | AQ120: 0 | AR120: 0 | AS120: 0 | AT120: 0 | AU120: 0 | AV120: 0 | AW120: 0 | AX120: 0 | AY120: 0 | AZ120: 793.0 | BA120: 2 | BB120: 0 | BC120: 0 | BD120: 12,496.0 | BE120: 1 | BF120: 38,985.0 | BG120: 22
A121: 삼산면 손죽리 | B121: 6,207,214.0 | C121: 1,920 | D121: 903,900.0 | E121: 998 | F121: 41,528.0 | G121: 119 | H121: 0 | I121: 0 | J121: 20,002.0 | K121: 1 | L121: 5,058,512.0 | M121: 428 | N121: 0 | O121: 0 | P121: 0 | Q121: 0 | R121: 85,341.0 | S121: 300 | T121: 0 | U121: 0 | V121: 10,215.0 | W121: 4 | X121: 0 | Y121: 0 | Z121: 0 | AA121: 0 | AB121: 0 | AC121: 0 | AD121: 60,781.0 | AE121: 33 | AF121: 0 | AG121: 0 | AH121: 1,024.0 | AI121: 5 | AJ121: 297.0 | AK121: 2 | AL121: 13,491.0 | AM121: 8 | AN121: 893.0 | AO121: 1 | AP121: 0 | AQ121: 0 | AR121: 0 | AS121: 0 | AT121: 0 | AU121: 0 | AV121: 0 | AW121: 0 | AX121: 0 | AY121: 0 | AZ121: 198.0 | BA121: 1 | BB121: 0 | BC121: 0 | BD121: 3,968.0 | BE121: 4 | BF121: 7,064.0 | BG121: 16

Sheet 행정동(2012)
A1: 구 분 | B1: 합 계 | D1: 전 | F1: 답 | H1: 과수원 | J1: 목장용지 | L1: 임야 | N1: 광천지 | P1: 염전 | R1: 대 | T1: 공장용지 | V1: 학교용지 | X1: 주차장 | Z1: 주유소용지 | AB1: 창고용지 | AD1: 도로 | AF1: 철도용지 | AH1: 제방 | AJ1: 하천 | AL1: 구거 | AN1: 유지 | AP1: 양어장 | AR1: 수도용지 | AT1: 공원 | AV1: 체육용지 | AX1: 유원지 | AZ1: 종교용지 | BB1: 사적지 | BD1: 묘지 | BF1: 잡종지
B2: 면 적 | C2: 지번수 | D2: 면 적 | E2: 지번수 | F2: 면 적 | G2: 지번수 | H2: 면 적 | I2: 지번수 | J2: 면 적 | K2: 지번수 | L2: 면 적 | M2: 지번수 | N2: 면 적 | O2: 지번수 | P2: 면 적 | Q2: 지번수 | R2: 면 적 | S2: 지번수 | T2: 면 적 | U2: 지번수 | V2: 면 적 | W2: 지번수 | X2: 면 적 | Y2: 지번수 | Z2: 면 적 | AA2: 지번수 | AB2: 면 적 | AC2: 지번수 | AD2: 면 적 | AE2: 지번수 | AF2: 면 적 | AG2: 지번수 | AH2: 면 적 | AI2: 지번수 | AJ2: 면 적 | AK2: 지번수 | AL2: 면 적 | AM2: 지번수 | AN2: 면 적 | AO2: 지번수 | AP2: 면 적 | AQ2: 지번수 | AR2: 면 적 | AS2: 지번수 | AT2: 면 적 | AU2: 지번수 | AV2: 면 적 | AW2: 지번수 | AX2: 면 적 | AY2: 지번수 | AZ2: 면 적 | BA2: 지번수 | BB2: 면 적 | BC2: 지번수 | BD2: 면 적 | BE2: 지번수 | BF2: 면 적 | BG2: 지번수
A3: 합 계 | B3: =SUM(B4:B30) -> 503,831,583.20 | C3: =SUM(C4:C30) -> 310,879 | D3: 67,411,592.90 | E3: 75,588 | F3: 42,166,086.50 | G3: 46,957 | H3: 561,624.00 | I3: 199 | J3: 1,855,900.00 | K3: 512 | L3: 307,268,635.40 | M3: 54,497 | N3: 0 | O3: 0 | P3: 10,562.00 | Q3: 6 | R3: 21,341,498.20 | S3: 66,617 | T3: 15,504,955.60 | U3: 1,146 | V3: 2,013,132.00 | W3: 388 | X3: 254,052.90 | Y3: 361 | Z3: 355,598.90 | AA3: 237 | AB3: 251,909.90 | AC3: 381 | AD3: 18,133,951.30 | AE3: 47,462 | AF3: 1,237,045.20 | AG3: 999 | AH3: 684,443.20 | AI3: 795 | AJ3: 2,413,103.10 | AK3: 940 | AL3: 4,627,161.30 | AM3: 4,730 | AN3: 2,923,010.90 | AO3: 1,445 | AP3: 217,999.10 | AQ3: 144 | AR3: 489,498.20 | AS3: 410 | AT3: 1,022,615.70 | AU3: 248 | AV3: 1,186,214.60 | AW3: 47 | AX3: 263,794.90 | AY3: 4 | AZ3: 412,284.80 | BA3: 438 | BB3: 20,795.00 | BC3: 15 | BD3: 1,815,152.00 | BE3: 1,945 | BF3: 9,388,965.60 | BG3: 4,368
A4: 돌산읍 | B4: =SUM('법정동(2012)'!B59:B68) -> 71,929,697.60 | C4: =SUM('법정동(2012)'!C59:C68) -> 45,326 | D4: =SUM('법정동(2012)'!D59:D68) -> 10,524,383.70 | E4: =SUM('법정동(2012)'!E59:E68) -> 11,490 | F4: =SUM('법정동(2012)'!F59:F68) -> 5,033,632.20 | G4: =SUM('법정동(2012)'!G59:G68) -> 6,412 | H4: =SUM('법정동(2012)'!H59:H68) -> 96,463.00 | I4: =SUM('법정동(2012)'!I59:I68) -> 25 | J4: =SUM('법정동(2012)'!J59:J68) -> 1,007,208.00 | K4: =SUM('법정동(2012)'!K59:K68) -> 63 | L4: =SUM('법정동(2012)'!L59:L68) -> 48,246,231.00 | M4: =SUM('법정동(2012)'!M59:M68) -> 8,991 | N4: =SUM('법정동(2012)'!N59:N68) -> 0 | O4: =SUM('법정동(2012)'!O59:O68) -> 0 | P4: =SUM('법정동(2012)'!P59:P68) -> 0 | Q4: =SUM('법정동(2012)'!Q59:Q68) -> 0 | R4: =SUM('법정동(2012)'!R59:R68) -> 2,170,798.90 | S4: =SUM('법정동(2012)'!S59:S68) -> 6,962 | T4: =SUM('법정동(2012)'!T59:T68) -> 49,187.00 | U4: =SUM('법정동(2012)'!U59:U68) -> 36 | V4: =SUM('법정동(2012)'!V59:V68) -> 178,564.50 | W4: =SUM('법정동(2012)'!W59:W68) -> 45 | X4: =SUM('법정동(2012)'!X59:X68) -> 7,090.60 | Y4: =SUM('법정동(2012)'!Y59:Y68) -> 13 | Z4: =SUM('법정동(2012)'!Z59:Z68) -> 7,460.00 | AA4: =SUM('법정동(2012)'!AA59:AA68) -> 16 | AB4: =SUM('법정동(2012)'!AB59:AB68) -> 44,980.60 | AC4: =SUM('법정동(2012)'!AC59:AC68) -> 76 | AD4: =SUM('법정동(2012)'!AD59:AD68) -> 2,179,700.70 | AE4: =SUM('법정동(2012)'!AE59:AE68) -> 8,448 | AF4: =SUM('법정동(2012)'!AF59:AF68) -> 0 | AG4: =SUM('법정동(2012)'!AG59:AG68) -> 0 | AH4: =SUM('법정동(2012)'!AH59:AH68) -> 94,823.30 | AI4: =SUM('법정동(2012)'!AI59:AI68) -> 191 | AJ4: =SUM('법정동(2012)'!AJ59:AJ68) -> 59,511.30 | AK4: =SUM('법정동(2012)'!AK59:AK68) -> 87 | AL4: =SUM('법정동(2012)'!AL59:AL68) -> 576,664.00 | AM4: =SUM('법정동(2012)'!AM59:AM68) -> 690 | AN4: =SUM('법정동(2012)'!AN59:AN68) -> 427,268.00 | AO4: =SUM('법정동(2012)'!AO59:AO68) -> 353 | AP4: =SUM('법정동(2012)'!AP59:AP68) -> 118,911.10 | AQ4: =SUM('법정동(2012)'!AQ59:AQ68) -> 68 | AR4: =SUM('법정동(2012)'!AR59:AR68) -> 833.00 | AS4: =SUM('법정동(2012)'!AS59:AS68) -> 2 | AT4: =SUM('법정동(2012)'!AT59:AT68) -> 56,646.30 | AU4: =SUM('법정동(2012)'!AU59:AU68) -> 12 | AV4: =SUM('법정동(2012)'!AV59:AV68) -> 0 | AW4: =SUM('법정동(2012)'!AW59:AW68) -> 0 | AX4: =SUM('법정동(2012)'!AX59:AX68) -> 214,140.60 | AY4: =SUM('법정동(2012)'!AY59:AY68) -> 2 | AZ4: =SUM('법정동(2012)'!AZ59:AZ68) -> 57,570.80 | BA4: =SUM('법정동(2012)'!BA59:BA68) -> 47 | BB4: =SUM('법정동(2012)'!BB59:BB68) -> 883.00 | BC4: =SUM('법정동(2012)'!BC59:BC68) -> 4 | BD4: =SUM('법정동(2012)'!BD59:BD68) -> 220,074.00 | BE4: =SUM('법정동(2012)'!BE59:BE68) -> 253 | BF4: =SUM('법정동(2012)'!BF59:BF68) -> 556,672.00 | BG4: =SUM('법정동(2012)'!BG59:BG68) -> 1,040
A5: 소라면 | B5: =SUM('법정동(2012)'!B69:B76) -> 60,477,559.20 | C5: =SUM('법정동(2012)'!C69:C76) -> 34,224 | D5: =SUM('법정동(2012)'!D69:D76) -> 6,872,687.20 | E5: =SUM('법정동(2012)'!E69:E76) -> 7,861 | F5: =SUM('법정동(2012)'!F69:F76) -> 9,785,823.40 | G5: =SUM('법정동(2012)'!G69:G76) -> 8,117 | H5: =SUM('법정동(2012)'!H69:H76) -> 36,007.00 | I5: =SUM('법정동(2012)'!I69:I76) -> 12 | J5: =SUM('법정동(2012)'!J69:J76) -> 159,080.00 | K5: =SUM('법정동(2012)'!K69:K76) -> 89 | L5: =SUM('법정동(2012)'!L69:L76) -> 35,571,571.00 | M5: =SUM('법정동(2012)'!M69:M76) -> 5,840 | N5: =SUM('법정동(2012)'!N69:N76) -> 0 | O5: =SUM('법정동(2012)'!O69:O76) -> 0 | P5: =SUM('법정동(2012)'!P69:P76) -> 0 | Q5: =SUM('법정동(2012)'!Q69:Q76) -> 0 | R5: =SUM('법정동(2012)'!R69:R76) -> 1,736,626.10 | S5: =SUM('법정동(2012)'!S69:S76) -> 4,291 | T5: =SUM('법정동(2012)'!T69:T76) -> 51,171.00 | U5: =SUM('법정동(2012)'!U69:U76) -> 26 | V5: =SUM('법정동(2012)'!V69:V76) -> 102,110.70 | W5: =SUM('법정동(2012)'!W69:W76) -> 17 | X5: =SUM('법정동(2012)'!X69:X76) -> 36,535.10 | Y5: =SUM('법정동(2012)'!Y69:Y76) -> 39 | Z5: =SUM('법정동(2012)'!Z69:Z76) -> 32,241.70 | AA5: =SUM('법정동(2012)'!AA69:AA76) -> 36 | AB5: =SUM('법정동(2012)'!AB69:AB76) -> 51,716.00 | AC5: =SUM('법정동(2012)'!AC69:AC76) -> 77 | AD5: =SUM('법정동(2012)'!AD69:AD76) -> 2,285,997.30 | AE5: =SUM('법정동(2012)'!AE69:AE76) -> 5,906 | AF5: =SUM('법정동(2012)'!AF69:AF76) -> 94,960.00 | AG5: =SUM('법정동(2012)'!AG69:AG76) -> 57 | AH5: =SUM('법정동(2012)'!AH69:AH76) -> 63,531.60 | AI5: =SUM('법정동(2012)'!AI69:AI76) -> 38 | AJ5: =SUM('법정동(2012)'!AJ69:AJ76) -> 793,275.50 | AK5: =SUM('법정동(2012)'!AK69:AK76) -> 120 | AL5: =SUM('법정동(2012)'!AL69:AL76) -> 949,392.10 | AM5: =SUM('법정동(2012)'!AM69:AM76) -> 839 | AN5: =SUM('법정동(2012)'!AN69:AN76) -> 951,619.60 | AO5: =SUM('법정동(2012)'!AO69:AO76) -> 187 | AP5: =SUM('법정동(2012)'!AP69:AP76) -> 1,375.00 | AQ5: =SUM('법정동(2012)'!AQ69:AQ76) -> 1 | AR5: =SUM('법정동(2012)'!AR69:AR76) -> 24,714.80 | AS5: =SUM('법정동(2012)'!AS69:AS76) -> 59 | AT5: =SUM('법정동(2012)'!AT69:AT76) -> 145,680.80 | AU5: =SUM('법정동(2012)'!AU69:AU76) -> 52 | AV5: =SUM('법정동(2012)'!AV69:AV76) -> 6,110.00 | AW5: =SUM('법정동(2012)'!AW69:AW76) -> 8 | AX5: =SUM('법정동(2012)'!AX69:AX76) -> 0 | AY5: =SUM('법정동(2012)'!AY69:AY76) -> 0 | AZ5: =SUM('법정동(2012)'!AZ69:AZ76) -> 29,188.30 | BA5: =SUM('법정동(2012)'!BA69:BA76) -> 37 | BB5: =SUM('법정동(2012)'!BB69:BB76) -> 0 | BC5: =SUM('법정동(2012)'!BC69:BC76) -> 0 | BD5: =SUM('법정동(2012)'!BD69:BD76) -> 348,768.00 | BE5: =SUM('법정동(2012)'!BE69:BE76) -> 184 | BF5: =SUM('법정동(2012)'!BF69:BF76) -> 347,377.00 | BG5: =SUM('법정동(2012)'!BG69:BG76) -> 331
A6: 율촌면 | B6: =SUM('법정동(2012)'!B77:B86) -> 47,104,935.80 | C6: =SUM('법정동(2012)'!C77:C86) -> 31,338 | D6: =SUM('법정동(2012)'!D77:D86) -> 5,186,210.00 | E6: =SUM('법정동(2012)'!E77:E86) -> 5,884 | F6: =SUM('법정동(2012)'!F77:F86) -> 7,985,654.00 | G6: =SUM('법정동(2012)'!G77:G86) -> 8,211 | H6: =SUM('법정동(2012)'!H77:H86) -> 231,560.00 | I6: =SUM('법정동(2012)'!I77:I86) -> 78 | J6: =SUM('법정동(2012)'!J77:J86) -> 367,311.00 | K6: =SUM('법정동(2012)'!K77:K86) -> 239 | L6: =SUM('법정동(2012)'!L77:L86) -> 26,851,339.90 | M6: =SUM('법정동(2012)'!M77:M86) -> 5,483 | N6: =SUM('법정동(2012)'!N77:N86) -> 0 | O6: =SUM('법정동(2012)'!O77:O86) -> 0 | P6: =SUM('법정동(2012)'!P77:P86) -> 1,937.00 | Q6: =SUM('법정동(2012)'!Q77:Q86) -> 4 | R6: =SUM('법정동(2012)'!R77:R86) -> 1,633,970.10 | S6: =SUM('법정동(2012)'!S77:S86) -> 3,982 | T6: =SUM('법정동(2012)'!T77:T86) -> 148,771.90 | U6: =SUM('법정동(2012)'!U77:U86) -> 32 | V6: =SUM('법정동(2012)'!V77:V86) -> 90,856.00 | W6: =SUM('법정동(2012)'!W77:W86) -> 22 | X6: =SUM('법정동(2012)'!X77:X86) -> 11,276.70 | Y6: =SUM('법정동(2012)'!Y77:Y86) -> 16 | Z6: =SUM('법정동(2012)'!Z77:Z86) -> 22,941.00 | AA6: =SUM('법정동(2012)'!AA77:AA86) -> 21 | AB6: =SUM('법정동(2012)'!AB77:AB86) -> 29,349.00 | AC6: =SUM('법정동(2012)'!AC77:AC86) -> 41 | AD6: =SUM('법정동(2012)'!AD77:AD86) -> 1,600,456.60 | AE6: =SUM('법정동(2012)'!AE77:AE86) -> 5,380 | AF6: =SUM('법정동(2012)'!AF77:AF86) -> 165,121.00 | AG6: =SUM('법정동(2012)'!AG77:AG86) -> 111 | AH6: =SUM('법정동(2012)'!AH77:AH86) -> 33,895.00 | AI6: =SUM('법정동(2012)'!AI77:AI86) -> 31 | AJ6: =SUM('법정동(2012)'!AJ77:AJ86) -> 183,928.00 | AK6: =SUM('법정동(2012)'!AK77:AK86) -> 63 | AL6: =SUM('법정동(2012)'!AL77:AL86) -> 894,866.30 | AM6: =SUM('법정동(2012)'!AM77:AM86) -> 820 | AN6: =SUM('법정동(2012)'!AN77:AN86) -> 341,352.00 | AO6: =SUM('법정동(2012)'!AO77:AO86) -> 191 | AP6: =SUM('법정동(2012)'!AP77:AP86) -> 2,992.00 | AQ6: =SUM('법정동(2012)'!AQ77:AQ86) -> 2 | AR6: =SUM('법정동(2012)'!AR77:AR86) -> 90,557.00 | AS6: =SUM('법정동(2012)'!AS77:AS86) -> 103 | AT6: =SUM('법정동(2012)'!AT77:AT86) -> 93,427.70 | AU6: =SUM('법정동(2012)'!AU77:AU86) -> 11 | AV6: =SUM('법정동(2012)'!AV77:AV86) -> 0 | AW6: =SUM('법정동(2012)'!AW77:AW86) -> 0 | AX6: =SUM('법정동(2012)'!AX77:AX86) -> 0 | AY6: =SUM('법정동(2012)'!AY77:AY86) -> 0 | AZ6: =SUM('법정동(2012)'!AZ77:AZ86) -> 28,673.00 | BA6: =SUM('법정동(2012)'!BA77:BA86) -> 31 | BB6: =SUM('법정동(2012)'!BB77:BB86) -> 0 | BC6: =SUM('법정동(2012)'!BC77:BC86) -> 0 | BD6: =SUM('법정동(2012)'!BD77:BD86) -> 125,151.00 | BE6: =SUM('법정동(2012)'!BE77:BE86) -> 166 | BF6: =SUM('법정동(2012)'!BF77:BF86) -> 983,339.60 | BG6: =SUM('법정동(2012)'!BG77:BG86) -> 416
A7: 화양면 | B7: =SUM('법정동(2012)'!B87:B96) -> 70,124,121.10 | C7: =SUM('법정동(2012)'!C87:C96) -> 38,470 | D7: =SUM('법정동(2012)'!D87:D96) -> 10,689,357.00 | E7: =SUM('법정동(2012)'!E87:E96) -> 10,453 | F7: =SUM('법정동(2012)'!F87:F96) -> 6,120,877.90 | G7: =SUM('법정동(2012)'!G87:G96) -> 6,612 | H7: =SUM('법정동(2012)'!H87:H96) -> 130,154.00 | I7: =SUM('법정동(2012)'!I87:I96) -> 50 | J7: =SUM('법정동(2012)'!J87:J96) -> 216,091.00 | K7: =SUM('법정동(2012)'!K87:K96) -> 83 | L7: =SUM('법정동(2012)'!L87:L96) -> 47,361,699.80 | M7: =SUM('법정동(2012)'!M87:M96) -> 8,552 | N7: =SUM('법정동(2012)'!N87:N96) -> 0 | O7: =SUM('법정동(2012)'!O87:O96) -> 0 | P7: =SUM('법정동(2012)'!P87:P96) -> 0 | Q7: =SUM('법정동(2012)'!Q87:Q96) -> 0 | R7: =SUM('법정동(2012)'!R87:R96) -> 1,334,072.50 | S7: =SUM('법정동(2012)'!S87:S96) -> 4,008 | T7: =SUM('법정동(2012)'!T87:T96) -> 215,372.20 | U7: =SUM('법정동(2012)'!U87:U96) -> 66 | V7: =SUM('법정동(2012)'!V87:V96) -> 117,587.00 | W7: =SUM('법정동(2012)'!W87:W96) -> 38 | X7: =SUM('법정동(2012)'!X87:X96) -> 10,247.00 | Y7: =SUM('법정동(2012)'!Y87:Y96) -> 10 | Z7: =SUM('법정동(2012)'!Z87:Z96) -> 7,560.00 | AA7: =SUM('법정동(2012)'!AA87:AA96) -> 5 | AB7: =SUM('법정동(2012)'!AB87:AB96) -> 38,488.00 | AC7: =SUM('법정동(2012)'!AC87:AC96) -> 70 | AD7: =SUM('법정동(2012)'!AD87:AD96) -> 1,956,455.60 | AE7: =SUM('법정동(2012)'!AE87:AE96) -> 6,666 | AF7: =SUM('법정동(2012)'!AF87:AF96) -> 0 | AG7: =SUM('법정동(2012)'!AG87:AG96) -> 0 | AH7: =SUM('법정동(2012)'!AH87:AH96) -> 48,325.00 | AI7: =SUM('법정동(2012)'!AI87:AI96) -> 97 | AJ7: =SUM('법정동(2012)'!AJ87:AJ96) -> 102,962.10 | AK7: =SUM('법정동(2012)'!AK87:AK96) -> 69 | AL7: =SUM('법정동(2012)'!AL87:AL96) -> 770,183.50 | AM7: =SUM('법정동(2012)'!AM87:AM96) -> 840 | AN7: =SUM('법정동(2012)'!AN87:AN96) -> 564,672.80 | AO7: =SUM('법정동(2012)'!AO87:AO96) -> 269 | AP7: =SUM('법정동(2012)'!AP87:AP96) -> 30,112.00 | AQ7: =SUM('법정동(2012)'!AQ87:AQ96) -> 20 | AR7: =SUM('법정동(2012)'!AR87:AR96) -> 0 | AS7: =SUM('법정동(2012)'!AS87:AS96) -> 0 | AT7: =SUM('법정동(2012)'!AT87:AT96) -> 0 | AU7: =SUM('법정동(2012)'!AU87:AU96) -> 0 | AV7: =SUM('법정동(2012)'!AV87:AV96) -> 0 | AW7: =SUM('법정동(2012)'!AW87:AW96) -> 0 | AX7: =SUM('법정동(2012)'!AX87:AX96) -> 0 | AY7: =SUM('법정동(2012)'!AY87:AY96) -> 0 | AZ7: =SUM('법정동(2012)'!AZ87:AZ96) -> 24,002.00 | BA7: =SUM('법정동(2012)'!BA87:BA96) -> 41 | BB7: =SUM('법정동(2012)'!BB87:BB96) -> 6,161.00 | BC7: =SUM('법정동(2012)'!BC87:BC96) -> 3 | BD7: =SUM('법정동(2012)'!BD87:BD96) -> 136,137.00 | BE7: =SUM('법정동(2012)'!BE87:BE96) -> 161 | BF7: =SUM('법정동(2012)'!BF87:BF96) -> 243,603.70 | BG7: =SUM('법정동(2012)'!BG87:BG96) -> 357
A8: 남 면 | B8: =SUM('법정동(2012)'!B97:B105) -> 42,500,991.00 | C8: =SUM('법정동(2012)'!C97:C105) -> 21,253 | D8: =SUM('법정동(2012)'!D97:D105) -> 9,166,297.00 | E8: =SUM('법정동(2012)'!E97:E105) -> 8,376 | F8: =SUM('법정동(2012)'!F97:F105) -> 1,435,840.00 | G8: =SUM('법정동(2012)'!G97:G105) -> 3,215 | H8: =SUM('법정동(2012)'!H97:H105) -> 0 | I8: =SUM('법정동(2012)'!I97:I105) -> 0 | J8: =SUM('법정동(2012)'!J97:J105) -> 598.00 | K8: =SUM('법정동(2012)'!K97:K105) -> 1 | L8: =SUM('법정동(2012)'!L97:L105) -> 29,901,916.00 | M8: =SUM('법정동(2012)'!M97:M105) -> 4,312 | N8: =SUM('법정동(2012)'!N97:N105) -> 0 | O8: =SUM('법정동(2012)'!O97:O105) -> 0 | P8: =SUM('법정동(2012)'!P97:P105) -> 0 | Q8: =SUM('법정동(2012)'!Q97:Q105) -> 0 | R8: =SUM('법정동(2012)'!R97:R105) -> 632,521.00 | S8: =SUM('법정동(2012)'!S97:S105) -> 2,640 | T8: =SUM('법정동(2012)'!T97:T105) -> 0 | U8: =SUM('법정동(2012)'!U97:U105) -> 0 | V8: =SUM('법정동(2012)'!V97:V105) -> 92,803.00 | W8: =SUM('법정동(2012)'!W97:W105) -> 43 | X8: =SUM('법정동(2012)'!X97:X105) -> 0 | Y8: =SUM('법정동(2012)'!Y97:Y105) -> 0 | Z8: =SUM('법정동(2012)'!Z97:Z105) -> 0 | AA8: =SUM('법정동(2012)'!AA97:AA105) -> 0 | AB8: =SUM('법정동(2012)'!AB97:AB105) -> 900.00 | AC8: =SUM('법정동(2012)'!AC97:AC105) -> 4 | AD8: =SUM('법정동(2012)'!AD97:AD105) -> 767,486.00 | AE8: =SUM('법정동(2012)'!AE97:AE105) -> 1,901 | AF8: =SUM('법정동(2012)'!AF97:AF105) -> 0 | AG8: =SUM('법정동(2012)'!AG97:AG105) -> 0 | AH8: =SUM('법정동(2012)'!AH97:AH105) -> 32,964.00 | AI8: =SUM('법정동(2012)'!AI97:AI105) -> 96 | AJ8: =SUM('법정동(2012)'!AJ97:AJ105) -> 14,717.00 | AK8: =SUM('법정동(2012)'!AK97:AK105) -> 49 | AL8: =SUM('법정동(2012)'!AL97:AL105) -> 128,685.00 | AM8: =SUM('법정동(2012)'!AM97:AM105) -> 140 | AN8: =SUM('법정동(2012)'!AN97:AN105) -> 38,639.00 | AO8: =SUM('법정동(2012)'!AO97:AO105) -> 55 | AP8: =SUM('법정동(2012)'!AP97:AP105) -> 25,134.00 | AQ8: =SUM('법정동(2012)'!AQ97:AQ105) -> 20 | AR8: =SUM('법정동(2012)'!AR97:AR105) -> 2,410.00 | AS8: =SUM('법정동(2012)'!AS97:AS105) -> 5 | AT8: =SUM('법정동(2012)'!AT97:AT105) -> 0 | AU8: =SUM('법정동(2012)'!AU97:AU105) -> 0 | AV8: =SUM('법정동(2012)'!AV97:AV105) -> 0 | AW8: =SUM('법정동(2012)'!AW97:AW105) -> 0 | AX8: =SUM('법정동(2012)'!AX97:AX105) -> 0 | AY8: =SUM('법정동(2012)'!AY97:AY105) -> 0 | AZ8: =SUM('법정동(2012)'!AZ97:AZ105) -> 4,706.00 | BA8: =SUM('법정동(2012)'!BA97:BA105) -> 14 | BB8: =SUM('법정동(2012)'!BB97:BB105) -> 0 | BC8: =SUM('법정동(2012)'!BC97:BC105) -> 0 | BD8: =SUM('법정동(2012)'!BD97:BD105) -> 126,508.00 | BE8: =SUM('법정동(2012)'!BE97:BE105) -> 127 | BF8: =SUM('법정동(2012)'!BF97:BF105) -> 128,867.00 | BG8: =SUM('법정동(2012)'!BG97:BG105) -> 255
A9: 화정면 | B9: =SUM('법정동(2012)'!B106:B115) -> 26,355,391.00 | C9: =SUM('법정동(2012)'!C106:C115) -> 15,837 | D9: =SUM('법정동(2012)'!D106:D115) -> 6,740,906.00 | E9: =SUM('법정동(2012)'!E106:E115) -> 6,995 | F9: =SUM('법정동(2012)'!F106:F115) -> 920,049.00 | G9: =SUM('법정동(2012)'!G106:G115) -> 1,141 | H9: =SUM('법정동(2012)'!H106:H115) -> 1,895.00 | I9: =SUM('법정동(2012)'!I106:I115) -> 2 | J9: =SUM('법정동(2012)'!J106:J115) -> 2,927.00 | K9: =SUM('법정동(2012)'!K106:K115) -> 3 | L9: =SUM('법정동(2012)'!L106:L115) -> 17,099,838.00 | M9: =SUM('법정동(2012)'!M106:M115) -> 3,695 | N9: =SUM('법정동(2012)'!N106:N115) -> 0 | O9: =SUM('법정동(2012)'!O106:O115) -> 0 | P9: =SUM('법정동(2012)'!P106:P115) -> 8,625.00 | Q9: =SUM('법정동(2012)'!Q106:Q115) -> 2 | R9: =SUM('법정동(2012)'!R106:R115) -> 512,976.00 | S9: =SUM('법정동(2012)'!S106:S115) -> 2,003 | T9: =SUM('법정동(2012)'!T106:T115) -> 0 | U9: =SUM('법정동(2012)'!U106:U115) -> 0 | V9: =SUM('법정동(2012)'!V106:V115) -> 93,495.00 | W9: =SUM('법정동(2012)'!W106:W115) -> 42 | X9: =SUM('법정동(2012)'!X106:X115) -> 0 | Y9: =SUM('법정동(2012)'!Y106:Y115) -> 0 | Z9: =SUM('법정동(2012)'!Z106:Z115) -> 0 | AA9: =SUM('법정동(2012)'!AA106:AA115) -> 0 | AB9: =SUM('법정동(2012)'!AB106:AB115) -> 395.00 | AC9: =SUM('법정동(2012)'!AC106:AC115) -> 1 | AD9: =SUM('법정동(2012)'!AD106:AD115) -> 430,334.00 | AE9: =SUM('법정동(2012)'!AE106:AE115) -> 1,287 | AF9: =SUM('법정동(2012)'!AF106:AF115) -> 0 | AG9: =SUM('법정동(2012)'!AG106:AG115) -> 0 | AH9: =SUM('법정동(2012)'!AH106:AH115) -> 48,143.00 | AI9: =SUM('법정동(2012)'!AI106:AI115) -> 94 | AJ9: =SUM('법정동(2012)'!AJ106:AJ115) -> 15,965.00 | AK9: =SUM('법정동(2012)'!AK106:AK115) -> 16 | AL9: =SUM('법정동(2012)'!AL106:AL115) -> 134,098.00 | AM9: =SUM('법정동(2012)'!AM106:AM115) -> 103 | AN9: =SUM('법정동(2012)'!AN106:AN115) -> 74,637.00 | AO9: =SUM('법정동(2012)'!AO106:AO115) -> 26 | AP9: =SUM('법정동(2012)'!AP106:AP115) -> 26,934.00 | AQ9: =SUM('법정동(2012)'!AQ106:AQ115) -> 22 | AR9: =SUM('법정동(2012)'!AR106:AR115) -> 0 | AS9: =SUM('법정동(2012)'!AS106:AS115) -> 0 | AT9: =SUM('법정동(2012)'!AT106:AT115) -> 0 | AU9: =SUM('법정동(2012)'!AU106:AU115) -> 0 | AV9: =SUM('법정동(2012)'!AV106:AV115) -> 0 | AW9: =SUM('법정동(2012)'!AW106:AW115) -> 0 | AX9: =SUM('법정동(2012)'!AX106:AX115) -> 0 | AY9: =SUM('법정동(2012)'!AY106:AY115) -> 0 | AZ9: =SUM('법정동(2012)'!AZ106:AZ115) -> 6,371.00 | BA9: =SUM('법정동(2012)'!BA106:BA115) -> 12 | BB9: =SUM('법정동(2012)'!BB106:BB115) -> 0 | BC9: =SUM('법정동(2012)'!BC106:BC115) -> 0 | BD9: =SUM('법정동(2012)'!BD106:BD115) -> 98,336.00 | BE9: =SUM('법정동(2012)'!BE106:BE115) -> 211 | BF9: =SUM('법정동(2012)'!BF106:BF115) -> 139,467.00 | BG9: =SUM('법정동(2012)'!BG106:BG115) -> 182
A10: 삼산면 | B10: =SUM('법정동(2012)'!B116:B121) -> 27,545,341.00 | C10: =SUM('법정동(2012)'!C116:C121) -> 13,976 | D10: =SUM('법정동(2012)'!D116:D121) -> 4,841,832.00 | E10: =SUM('법정동(2012)'!E116:E121) -> 5,735 | F10: =SUM('법정동(2012)'!F116:F121) -> 286,879.00 | G10: =SUM('법정동(2012)'!G116:G121) -> 676 | H10: =SUM('법정동(2012)'!H116:H121) -> 981.00 | I10: =SUM('법정동(2012)'!I116:I121) -> 1 | J10: =SUM('법정동(2012)'!J116:J121) -> 81,491.00 | K10: =SUM('법정동(2012)'!K116:K121) -> 6 | L10: =SUM('법정동(2012)'!L116:L121) -> 20,747,063.00 | M10: =SUM('법정동(2012)'!M116:M121) -> 4,235 | N10: =SUM('법정동(2012)'!N116:N121) -> 0 | O10: =SUM('법정동(2012)'!O116:O121) -> 0 | P10: =SUM('법정동(2012)'!P116:P121) -> 0 | Q10: =SUM('법정동(2012)'!Q116:Q121) -> 0 | R10: =SUM('법정동(2012)'!R116:R121) -> 478,503.00 | S10: =SUM('법정동(2012)'!S116:S121) -> 2,151 | T10: =SUM('법정동(2012)'!T116:T121) -> 0 | U10: =SUM('법정동(2012)'!U116:U121) -> 0 | V10: =SUM('법정동(2012)'!V116:V121) -> 71,912.00 | W10: =SUM('법정동(2012)'!W116:W121) -> 25 | X10: =SUM('법정동(2012)'!X116:X121) -> 0 | Y10: =SUM('법정동(2012)'!Y116:Y121) -> 0 | Z10: =SUM('법정동(2012)'!Z116:Z121) -> 0 | AA10: =SUM('법정동(2012)'!AA116:AA121) -> 0 | AB10: =SUM('법정동(2012)'!AB116:AB121) -> 768.00 | AC10: =SUM('법정동(2012)'!AC116:AC121) -> 4 | AD10: =SUM('법정동(2012)'!AD116:AD121) -> 373,998.00 | AE10: =SUM('법정동(2012)'!AE116:AE121) -> 640 | AF10: =SUM('법정동(2012)'!AF116:AF121) -> 0 | AG10: =SUM('법정동(2012)'!AG116:AG121) -> 0 | AH10: =SUM('법정동(2012)'!AH116:AH121) -> 28,885.00 | AI10: =SUM('법정동(2012)'!AI116:AI121) -> 42 | AJ10: =SUM('법정동(2012)'!AJ116:AJ121) -> 1,424.00 | AK10: =SUM('법정동(2012)'!AK116:AK121) -> 8 | AL10: =SUM('법정동(2012)'!AL116:AL121) -> 48,446.00 | AM10: =SUM('법정동(2012)'!AM116:AM121) -> 35 | AN10: =SUM('법정동(2012)'!AN116:AN121) -> 4,297.00 | AO10: =SUM('법정동(2012)'!AO116:AO121) -> 5 | AP10: =SUM('법정동(2012)'!AP116:AP121) -> 9,924.00 | AQ10: =SUM('법정동(2012)'!AQ116:AQ121) -> 9 | AR10: =SUM('법정동(2012)'!AR116:AR121) -> 0 | AS10: =SUM('법정동(2012)'!AS116:AS121) -> 0 | AT10: =SUM('법정동(2012)'!AT116:AT121) -> 0 | AU10: =SUM('법정동(2012)'!AU116:AU121) -> 0 | AV10: =SUM('법정동(2012)'!AV116:AV121) -> 0 | AW10: =SUM('법정동(2012)'!AW116:AW121) -> 0 | AX10: =SUM('법정동(2012)'!AX116:AX121) -> 0 | AY10: =SUM('법정동(2012)'!AY116:AY121) -> 0 | AZ10: =SUM('법정동(2012)'!AZ116:AZ121) -> 1,963.00 | BA10: =SUM('법정동(2012)'!BA116:BA121) -> 9 | BB10: =SUM('법정동(2012)'!BB116:BB121) -> 0 | BC10: =SUM('법정동(2012)'!BC116:BC121) -> 0 | BD10: =SUM('법정동(2012)'!BD116:BD121) -> 423,560.00 | BE10: =SUM('법정동(2012)'!BE116:BE121) -> 265 | BF10: =SUM('법정동(2012)'!BF116:BF121) -> 143,415.00 | BG10: =SUM('법정동(2012)'!BG116:BG121) -> 130
A11: 동문동 | B11: =SUM('법정동(2012)'!B8,'법정동(2012)'!B11,'법정동(2012)'!B13) -> 929,798.00 | C11: =SUM('법정동(2012)'!C8,'법정동(2012)'!C11,'법정동(2012)'!C13) -> 4,497 | D11: =SUM('법정동(2012)'!D8,'법정동(2012)'!D11,'법정동(2012)'!D13) -> 110,473.00 | E11: =SUM('법정동(2012)'!E8,'법정동(2012)'!E11,'법정동(2012)'!E13) -> 360 | F11: =SUM('법정동(2012)'!F8,'법정동(2012)'!F11,'법정동(2012)'!F13) -> 4,253.00 | G11: =SUM('법정동(2012)'!G8,'법정동(2012)'!G11,'법정동(2012)'!G13) -> 23 | H11: =SUM('법정동(2012)'!H8,'법정동(2012)'!H11,'법정동(2012)'!H13) -> 0 | I11: =SUM('법정동(2012)'!I8,'법정동(2012)'!I11,'법정동(2012)'!I13) -> 0 | J11: =SUM('법정동(2012)'!J8,'법정동(2012)'!J11,'법정동(2012)'!J13) -> 0 | K11: =SUM('법정동(2012)'!K8,'법정동(2012)'!K11,'법정동(2012)'!K13) -> 0 | L11: =SUM('법정동(2012)'!L8,'법정동(2012)'!L11,'법정동(2012)'!L13) -> 155,339.00 | M11: =SUM('법정동(2012)'!M8,'법정동(2012)'!M11,'법정동(2012)'!M13) -> 106 | N11: =SUM('법정동(2012)'!N8,'법정동(2012)'!N11,'법정동(2012)'!N13) -> 0 | O11: =SUM('법정동(2012)'!O8,'법정동(2012)'!O11,'법정동(2012)'!O13) -> 0 | P11: =SUM('법정동(2012)'!P8,'법정동(2012)'!P11,'법정동(2012)'!P13) -> 0 | Q11: =SUM('법정동(2012)'!Q8,'법정동(2012)'!Q11,'법정동(2012)'!Q13) -> 0 | R11: =SUM('법정동(2012)'!R8,'법정동(2012)'!R11,'법정동(2012)'!R13) -> 343,240.00 | S11: =SUM('법정동(2012)'!S8,'법정동(2012)'!S11,'법정동(2012)'!S13) -> 3,217 | T11: =SUM('법정동(2012)'!T8,'법정동(2012)'!T11,'법정동(2012)'!T13) -> 0 | U11: =SUM('법정동(2012)'!U8,'법정동(2012)'!U11,'법정동(2012)'!U13) -> 0 | V11: =SUM('법정동(2012)'!V8,'법정동(2012)'!V11,'법정동(2012)'!V13) -> 76,324.00 | W11: =SUM('법정동(2012)'!W8,'법정동(2012)'!W11,'법정동(2012)'!W13) -> 8 | X11: =SUM('법정동(2012)'!X8,'법정동(2012)'!X11,'법정동(2012)'!X13) -> 1,247.00 | Y11: =SUM('법정동(2012)'!Y8,'법정동(2012)'!Y11,'법정동(2012)'!Y13) -> 8 | Z11: =SUM('법정동(2012)'!Z8,'법정동(2012)'!Z11,'법정동(2012)'!Z13) -> 0 | AA11: =SUM('법정동(2012)'!AA8,'법정동(2012)'!AA11,'법정동(2012)'!AA13) -> 0 | AB11: =SUM('법정동(2012)'!AB8,'법정동(2012)'!AB11,'법정동(2012)'!AB13) -> 177.00 | AC11: =SUM('법정동(2012)'!AC8,'법정동(2012)'!AC11,'법정동(2012)'!AC13) -> 1 | AD11: =SUM('법정동(2012)'!AD8,'법정동(2012)'!AD11,'법정동(2012)'!AD13) -> 119,039.00 | AE11: =SUM('법정동(2012)'!AE8,'법정동(2012)'!AE11,'법정동(2012)'!AE13) -> 683 | AF11: =SUM('법정동(2012)'!AF8,'법정동(2012)'!AF11,'법정동(2012)'!AF13) -> 0 | AG11: =SUM('법정동(2012)'!AG8,'법정동(2012)'!AG11,'법정동(2012)'!AG13) -> 0 | AH11: =SUM('법정동(2012)'!AH8,'법정동(2012)'!AH11,'법정동(2012)'!AH13) -> 2,678.00 | AI11: =SUM('법정동(2012)'!AI8,'법정동(2012)'!AI11,'법정동(2012)'!AI13) -> 8 | AJ11: =SUM('법정동(2012)'!AJ8,'법정동(2012)'!AJ11,'법정동(2012)'!AJ13) -> 0 | AK11: =SUM('법정동(2012)'!AK8,'법정동(2012)'!AK11,'법정동(2012)'!AK13) -> 0 | AL11: =SUM('법정동(2012)'!AL8,'법정동(2012)'!AL11,'법정동(2012)'!AL13) -> 5,295.00 | AM11: =SUM('법정동(2012)'!AM8,'법정동(2012)'!AM11,'법정동(2012)'!AM13) -> 18 | AN11: =SUM('법정동(2012)'!AN8,'법정동(2012)'!AN11,'법정동(2012)'!AN13) -> 0 | AO11: =SUM('법정동(2012)'!AO8,'법정동(2012)'!AO11,'법정동(2012)'!AO13) -> 0 | AP11: =SUM('법정동(2012)'!AP8,'법정동(2012)'!AP11,'법정동(2012)'!AP13) -> 0 | AQ11: =SUM('법정동(2012)'!AQ8,'법정동(2012)'!AQ11,'법정동(2012)'!AQ13) -> 0 | AR11: =SUM('법정동(2012)'!AR8,'법정동(2012)'!AR11,'법정동(2012)'!AR13) -> 5,945.00 | AS11: =SUM('법정동(2012)'!AS8,'법정동(2012)'!AS11,'법정동(2012)'!AS13) -> 6 | AT11: =SUM('법정동(2012)'!AT8,'법정동(2012)'!AT11,'법정동(2012)'!AT13) -> 84,607.00 | AU11: =SUM('법정동(2012)'!AU8,'법정동(2012)'!AU11,'법정동(2012)'!AU13) -> 15 | AV11: =SUM('법정동(2012)'!AV8,'법정동(2012)'!AV11,'법정동(2012)'!AV13) -> 0 | AW11: =SUM('법정동(2012)'!AW8,'법정동(2012)'!AW11,'법정동(2012)'!AW13) -> 0 | AX11: =SUM('법정동(2012)'!AX8,'법정동(2012)'!AX11,'법정동(2012)'!AX13) -> 0 | AY11: =SUM('법정동(2012)'!AY8,'법정동(2012)'!AY11,'법정동(2012)'!AY13) -> 0 | AZ11: =SUM('법정동(2012)'!AZ8,'법정동(2012)'!AZ11,'법정동(2012)'!AZ13) -> 3,567.00 | BA11: =SUM('법정동(2012)'!BA8,'법정동(2012)'!BA11,'법정동(2012)'!BA13) -> 11 | BB11: =SUM('법정동(2012)'!BB8,'법정동(2012)'!BB11,'법정동(2012)'!BB13) -> 0 | BC11: =SUM('법정동(2012)'!BC8,'법정동(2012)'!BC11,'법정동(2012)'!BC13) -> 0 | BD11: =SUM('법정동(2012)'!BD8,'법정동(2012)'!BD11,'법정동(2012)'!BD13) -> 4,334.00 | BE11: =SUM('법정동(2012)'!BE8,'법정동(2012)'!BE11,'법정동(2012)'!BE13) -> 15 | BF11: =SUM('법정동(2012)'!BF8,'법정동(2012)'!BF11,'법정동(2012)'!BF13) -> 13,280.00 | BG11: =SUM('법정동(2012)'!BG8,'법정동(2012)'!BG11,'법정동(2012)'!BG13) -> 18
A12: 한려동 | B12: =SUM('법정동(2012)'!B9:B10) -> 951,005.00 | C12: =SUM('법정동(2012)'!C9:C10) -> 3,472 | D12: =SUM('법정동(2012)'!D9:D10) -> 47,561.00 | E12: =SUM('법정동(2012)'!E9:E10) -> 281 | F12: =SUM('법정동(2012)'!F9:F10) -> 0 | G12: =SUM('법정동(2012)'!G9:G10) -> 0 | H12: =SUM('법정동(2012)'!H9:H10) -> 0 | I12: =SUM('법정동(2012)'!I9:I10) -> 0 | J12: =SUM('법정동(2012)'!J9:J10) -> 0 | K12: =SUM('법정동(2012)'!K9:K10) -> 0 | L12: =SUM('법정동(2012)'!L9:L10) -> 134,911.00 | M12: =SUM('법정동(2012)'!M9:M10) -> 59 | N12: =SUM('법정동(2012)'!N9:N10) -> 0 | O12: =SUM('법정동(2012)'!O9:O10) -> 0 | P12: =SUM('법정동(2012)'!P9:P10) -> 0 | Q12: =SUM('법정동(2012)'!Q9:Q10) -> 0 | R12: =SUM('법정동(2012)'!R9:R10) -> 386,541.00 | S12: =SUM('법정동(2012)'!S9:S10) -> 2,453 | T12: =SUM('법정동(2012)'!T9:T10) -> 3,705.00 | U12: =SUM('법정동(2012)'!U9:U10) -> 4 | V12: =SUM('법정동(2012)'!V9:V10) -> 89,058.00 | W12: =SUM('법정동(2012)'!W9:W10) -> 8 | X12: =SUM('법정동(2012)'!X9:X10) -> 2,507.00 | Y12: =SUM('법정동(2012)'!Y9:Y10) -> 9 | Z12: =SUM('법정동(2012)'!Z9:Z10) -> 1,141.00 | AA12: =SUM('법정동(2012)'!AA9:AA10) -> 4 | AB12: =SUM('법정동(2012)'!AB9:AB10) -> 0 | AC12: =SUM('법정동(2012)'!AC9:AC10) -> 0 | AD12: =SUM('법정동(2012)'!AD9:AD10) -> 138,290.00 | AE12: =SUM('법정동(2012)'!AE9:AE10) -> 480 | AF12: =SUM('법정동(2012)'!AF9:AF10) -> 89,946.00 | AG12: =SUM('법정동(2012)'!AG9:AG10) -> 92 | AH12: =SUM('법정동(2012)'!AH9:AH10) -> 28,149.00 | AI12: =SUM('법정동(2012)'!AI9:AI10) -> 18 | AJ12: =SUM('법정동(2012)'!AJ9:AJ10) -> 0 | AK12: =SUM('법정동(2012)'!AK9:AK10) -> 0 | AL12: =SUM('법정동(2012)'!AL9:AL10) -> 3,480.00 | AM12: =SUM('법정동(2012)'!AM9:AM10) -> 22 | AN12: =SUM('법정동(2012)'!AN9:AN10) -> 0 | AO12: =SUM('법정동(2012)'!AO9:AO10) -> 0 | AP12: =SUM('법정동(2012)'!AP9:AP10) -> 0 | AQ12: =SUM('법정동(2012)'!AQ9:AQ10) -> 0 | AR12: =SUM('법정동(2012)'!AR9:AR10) -> 0 | AS12: =SUM('법정동(2012)'!AS9:AS10) -> 0 | AT12: =SUM('법정동(2012)'!AT9:AT10) -> 4,533.00 | AU12: =SUM('법정동(2012)'!AU9:AU10) -> 2 | AV12: =SUM('법정동(2012)'!AV9:AV10) -> 0 | AW12: =SUM('법정동(2012)'!AW9:AW10) -> 0 | AX12: =SUM('법정동(2012)'!AX9:AX10) -> 0 | AY12: =SUM('법정동(2012)'!AY9:AY10) -> 0 | AZ12: =SUM('법정동(2012)'!AZ9:AZ10) -> 6,337.00 | BA12: =SUM('법정동(2012)'!BA9:BA10) -> 9 | BB12: =SUM('법정동(2012)'!BB9:BB10) -> 0 | BC12: =SUM('법정동(2012)'!BC9:BC10) -> 0 | BD12: =SUM('법정동(2012)'!BD9:BD10) -> 1,128.00 | BE12: =SUM('법정동(2012)'!BE9:BE10) -> 5 | BF12: =SUM('법정동(2012)'!BF9:BF10) -> 13,718.00 | BG12: =SUM('법정동(2012)'!BG9:BG10) -> 26
A13: 중앙동 | B13: =SUM('법정동(2012)'!B12,'법정동(2012)'!B14:B15) -> 501,936.20 | C13: =SUM('법정동(2012)'!C12,'법정동(2012)'!C14:C15) -> 3,287 | D13: =SUM('법정동(2012)'!D12,'법정동(2012)'!D14:D15) -> 16,605.00 | E13: =SUM('법정동(2012)'!E12,'법정동(2012)'!E14:E15) -> 104 | F13: =SUM('법정동(2012)'!F12,'법정동(2012)'!F14:F15) -> 0 | G13: =SUM('법정동(2012)'!G12,'법정동(2012)'!G14:G15) -> 0 | H13: =SUM('법정동(2012)'!H12,'법정동(2012)'!H14:H15) -> 0 | I13: =SUM('법정동(2012)'!I12,'법정동(2012)'!I14:I15) -> 0 | J13: =SUM('법정동(2012)'!J12,'법정동(2012)'!J14:J15) -> 0 | K13: =SUM('법정동(2012)'!K12,'법정동(2012)'!K14:K15) -> 0 | L13: =SUM('법정동(2012)'!L12,'법정동(2012)'!L14:L15) -> 21,619.00 | M13: =SUM('법정동(2012)'!M12,'법정동(2012)'!M14:M15) -> 25 | N13: =SUM('법정동(2012)'!N12,'법정동(2012)'!N14:N15) -> 0 | O13: =SUM('법정동(2012)'!O12,'법정동(2012)'!O14:O15) -> 0 | P13: =SUM('법정동(2012)'!P12,'법정동(2012)'!P14:P15) -> 0 | Q13: =SUM('법정동(2012)'!Q12,'법정동(2012)'!Q14:Q15) -> 0 | R13: =SUM('법정동(2012)'!R12,'법정동(2012)'!R14:R15) -> 279,427.00 | S13: =SUM('법정동(2012)'!S12,'법정동(2012)'!S14:S15) -> 2,554 | T13: =SUM('법정동(2012)'!T12,'법정동(2012)'!T14:T15) -> 0 | U13: =SUM('법정동(2012)'!U12,'법정동(2012)'!U14:U15) -> 0 | V13: =SUM('법정동(2012)'!V12,'법정동(2012)'!V14:V15) -> 0 | W13: =SUM('법정동(2012)'!W12,'법정동(2012)'!W14:W15) -> 0 | X13: =SUM('법정동(2012)'!X12,'법정동(2012)'!X14:X15) -> 6,241.20 | Y13: =SUM('법정동(2012)'!Y12,'법정동(2012)'!Y14:Y15) -> 7 | Z13: =SUM('법정동(2012)'!Z12,'법정동(2012)'!Z14:Z15) -> 0 | AA13: =SUM('법정동(2012)'!AA12,'법정동(2012)'!AA14:AA15) -> 0 | AB13: =SUM('법정동(2012)'!AB12,'법정동(2012)'!AB14:AB15) -> 0 | AC13: =SUM('법정동(2012)'!AC12,'법정동(2012)'!AC14:AC15) -> 0 | AD13: =SUM('법정동(2012)'!AD12,'법정동(2012)'!AD14:AD15) -> 135,170.00 | AE13: =SUM('법정동(2012)'!AE12,'법정동(2012)'!AE14:AE15) -> 561 | AF13: =SUM('법정동(2012)'!AF12,'법정동(2012)'!AF14:AF15) -> 0 | AG13: =SUM('법정동(2012)'!AG12,'법정동(2012)'!AG14:AG15) -> 0 | AH13: =SUM('법정동(2012)'!AH12,'법정동(2012)'!AH14:AH15) -> 800.00 | AI13: =SUM('법정동(2012)'!AI12,'법정동(2012)'!AI14:AI15) -> 2 | AJ13: =SUM('법정동(2012)'!AJ12,'법정동(2012)'!AJ14:AJ15) -> 9,005.00 | AK13: =SUM('법정동(2012)'!AK12,'법정동(2012)'!AK14:AK15) -> 1 | AL13: =SUM('법정동(2012)'!AL12,'법정동(2012)'!AL14:AL15) -> 445.00 | AM13: =SUM('법정동(2012)'!AM12,'법정동(2012)'!AM14:AM15) -> 5 | AN13: =SUM('법정동(2012)'!AN12,'법정동(2012)'!AN14:AN15) -> 0 | AO13: =SUM('법정동(2012)'!AO12,'법정동(2012)'!AO14:AO15) -> 0 | AP13: =SUM('법정동(2012)'!AP12,'법정동(2012)'!AP14:AP15) -> 0 | AQ13: =SUM('법정동(2012)'!AQ12,'법정동(2012)'!AQ14:AQ15) -> 0 | AR13: =SUM('법정동(2012)'!AR12,'법정동(2012)'!AR14:AR15) -> 671.00 | AS13: =SUM('법정동(2012)'!AS12,'법정동(2012)'!AS14:AS15) -> 1 | AT13: =SUM('법정동(2012)'!AT12,'법정동(2012)'!AT14:AT15) -> 9,732.00 | AU13: =SUM('법정동(2012)'!AU12,'법정동(2012)'!AU14:AU15) -> 1 | AV13: =SUM('법정동(2012)'!AV12,'법정동(2012)'!AV14:AV15) -> 0 | AW13: =SUM('법정동(2012)'!AW12,'법정동(2012)'!AW14:AW15) -> 0 | AX13: =SUM('법정동(2012)'!AX12,'법정동(2012)'!AX14:AX15) -> 0 | AY13: =SUM('법정동(2012)'!AY12,'법정동(2012)'!AY14:AY15) -> 0 | AZ13: =SUM('법정동(2012)'!AZ12,'법정동(2012)'!AZ14:AZ15) -> 3,526.00 | BA13: =SUM('법정동(2012)'!BA12,'법정동(2012)'!BA14:BA15) -> 4 | BB13: =SUM('법정동(2012)'!BB12,'법정동(2012)'!BB14:BB15) -> 1,583.00 | BC13: =SUM('법정동(2012)'!BC12,'법정동(2012)'!BC14:BC15) -> 1 | BD13: =SUM('법정동(2012)'!BD12,'법정동(2012)'!BD14:BD15) -> 78.00 | BE13: =SUM('법정동(2012)'!BE12,'법정동(2012)'!BE14:BE15) -> 3 | BF13: =SUM('법정동(2012)'!BF12,'법정동(2012)'!BF14:BF15) -> 17,034.00 | BG13: =SUM('법정동(2012)'!BG12,'법정동(2012)'!BG14:BG15) -> 18
A14: 충무동 | B14: =SUM('법정동(2012)'!B16:B18) -> 1,349,528.50 | C14: =SUM('법정동(2012)'!C16:C18) -> 3,787 | D14: =SUM('법정동(2012)'!D16:D18) -> 231,352.00 | E14: =SUM('법정동(2012)'!E16:E18) -> 514 | F14: =SUM('법정동(2012)'!F16:F18) -> 45,899.00 | G14: =SUM('법정동(2012)'!G16:G18) -> 82 | H14: =SUM('법정동(2012)'!H16:H18) -> 0 | I14: =SUM('법정동(2012)'!I16:I18) -> 0 | J14: =SUM('법정동(2012)'!J16:J18) -> 0 | K14: =SUM('법정동(2012)'!K16:K18) -> 0 | L14: =SUM('법정동(2012)'!L16:L18) -> 447,669.80 | M14: =SUM('법정동(2012)'!M16:M18) -> 157 | N14: =SUM('법정동(2012)'!N16:N18) -> 0 | O14: =SUM('법정동(2012)'!O16:O18) -> 0 | P14: =SUM('법정동(2012)'!P16:P18) -> 0 | Q14: =SUM('법정동(2012)'!Q16:Q18) -> 0 | R14: =SUM('법정동(2012)'!R16:R18) -> 308,605.10 | S14: =SUM('법정동(2012)'!S16:S18) -> 2,464 | T14: =SUM('법정동(2012)'!T16:T18) -> 696.70 | U14: =SUM('법정동(2012)'!U16:U18) -> 1 | V14: =SUM('법정동(2012)'!V16:V18) -> 21,502.00 | W14: =SUM('법정동(2012)'!W16:W18) -> 3 | X14: =SUM('법정동(2012)'!X16:X18) -> 2,618.00 | Y14: =SUM('법정동(2012)'!Y16:Y18) -> 10 | Z14: =SUM('법정동(2012)'!Z16:Z18) -> 1,946.10 | AA14: =SUM('법정동(2012)'!AA16:AA18) -> 7 | AB14: =SUM('법정동(2012)'!AB16:AB18) -> 2,638.40 | AC14: =SUM('법정동(2012)'!AC16:AC18) -> 3 | AD14: =SUM('법정동(2012)'!AD16:AD18) -> 201,896.00 | AE14: =SUM('법정동(2012)'!AE16:AE18) -> 443 | AF14: =SUM('법정동(2012)'!AF16:AF18) -> 0 | AG14: =SUM('법정동(2012)'!AG16:AG18) -> 0 | AH14: =SUM('법정동(2012)'!AH16:AH18) -> 0 | AI14: =SUM('법정동(2012)'!AI16:AI18) -> 0 | AJ14: =SUM('법정동(2012)'!AJ16:AJ18) -> 20,098.00 | AK14: =SUM('법정동(2012)'!AK16:AK18) -> 23 | AL14: =SUM('법정동(2012)'!AL16:AL18) -> 34,073.40 | AM14: =SUM('법정동(2012)'!AM16:AM18) -> 26 | AN14: =SUM('법정동(2012)'!AN16:AN18) -> 0 | AO14: =SUM('법정동(2012)'!AO16:AO18) -> 0 | AP14: =SUM('법정동(2012)'!AP16:AP18) -> 0 | AQ14: =SUM('법정동(2012)'!AQ16:AQ18) -> 0 | AR14: =SUM('법정동(2012)'!AR16:AR18) -> 2,189.10 | AS14: =SUM('법정동(2012)'!AS16:AS18) -> 4 | AT14: =SUM('법정동(2012)'!AT16:AT18) -> 991.90 | AU14: =SUM('법정동(2012)'!AU16:AU18) -> 1 | AV14: =SUM('법정동(2012)'!AV16:AV18) -> 0 | AW14: =SUM('법정동(2012)'!AW16:AW18) -> 0 | AX14: =SUM('법정동(2012)'!AX16:AX18) -> 0 | AY14: =SUM('법정동(2012)'!AY16:AY18) -> 0 | AZ14: =SUM('법정동(2012)'!AZ16:AZ18) -> 9,435.00 | BA14: =SUM('법정동(2012)'!BA16:BA18) -> 17 | BB14: =SUM('법정동(2012)'!BB16:BB18) -> 5,718.00 | BC14: =SUM('법정동(2012)'!BC16:BC18) -> 5 | BD14: =SUM('법정동(2012)'!BD16:BD18) -> 5,021.00 | BE14: =SUM('법정동(2012)'!BE16:BE18) -> 9 | BF14: =SUM('법정동(2012)'!BF16:BF18) -> 7,179.00 | BG14: =SUM('법정동(2012)'!BG16:BG18) -> 18
A15: 광림동 | B15: =SUM('법정동(2012)'!B19,'법정동(2012)'!B28) -> 3,396,211.10 | C15: =SUM('법정동(2012)'!C19,'법정동(2012)'!C28) -> 4,567 | D15: =SUM('법정동(2012)'!D19,'법정동(2012)'!D28) -> 374,965.00 | E15: =SUM('법정동(2012)'!E19,'법정동(2012)'!E28) -> 702 | F15: =SUM('법정동(2012)'!F19,'법정동(2012)'!F28) -> 65,058.00 | G15: =SUM('법정동(2012)'!G19,'법정동(2012)'!G28) -> 148 | H15: =SUM('법정동(2012)'!H19,'법정동(2012)'!H28) -> 0 | I15: =SUM('법정동(2012)'!I19,'법정동(2012)'!I28) -> 0 | J15: =SUM('법정동(2012)'!J19,'법정동(2012)'!J28) -> 0 | K15: =SUM('법정동(2012)'!K19,'법정동(2012)'!K28) -> 0 | L15: =SUM('법정동(2012)'!L19,'법정동(2012)'!L28) -> 1,763,414.00 | M15: =SUM('법정동(2012)'!M19,'법정동(2012)'!M28) -> 389 | N15: =SUM('법정동(2012)'!N19,'법정동(2012)'!N28) -> 0 | O15: =SUM('법정동(2012)'!O19,'법정동(2012)'!O28) -> 0 | P15: =SUM('법정동(2012)'!P19,'법정동(2012)'!P28) -> 0 | Q15: =SUM('법정동(2012)'!Q19,'법정동(2012)'!Q28) -> 0 | R15: =SUM('법정동(2012)'!R19,'법정동(2012)'!R28) -> 410,291.00 | S15: =SUM('법정동(2012)'!S19,'법정동(2012)'!S28) -> 2,349 | T15: =SUM('법정동(2012)'!T19,'법정동(2012)'!T28) -> 895.00 | U15: =SUM('법정동(2012)'!U19,'법정동(2012)'!U28) -> 1 | V15: =SUM('법정동(2012)'!V19,'법정동(2012)'!V28) -> 45,635.00 | W15: =SUM('법정동(2012)'!W19,'법정동(2012)'!W28) -> 7 | X15: =SUM('법정동(2012)'!X19,'법정동(2012)'!X28) -> 2,396.30 | Y15: =SUM('법정동(2012)'!Y19,'법정동(2012)'!Y28) -> 5 | Z15: =SUM('법정동(2012)'!Z19,'법정동(2012)'!Z28) -> 3,635.60 | AA15: =SUM('법정동(2012)'!AA19,'법정동(2012)'!AA28) -> 9 | AB15: =SUM('법정동(2012)'!AB19,'법정동(2012)'!AB28) -> 894.00 | AC15: =SUM('법정동(2012)'!AC19,'법정동(2012)'!AC28) -> 2 | AD15: =SUM('법정동(2012)'!AD19,'법정동(2012)'!AD28) -> 265,290.80 | AE15: =SUM('법정동(2012)'!AE19,'법정동(2012)'!AE28) -> 763 | AF15: =SUM('법정동(2012)'!AF19,'법정동(2012)'!AF28) -> 33,331.00 | AG15: =SUM('법정동(2012)'!AG19,'법정동(2012)'!AG28) -> 33 | AH15: =SUM('법정동(2012)'!AH19,'법정동(2012)'!AH28) -> 0 | AI15: =SUM('법정동(2012)'!AI19,'법정동(2012)'!AI28) -> 0 | AJ15: =SUM('법정동(2012)'!AJ19,'법정동(2012)'!AJ28) -> 25,852.40 | AK15: =SUM('법정동(2012)'!AK19,'법정동(2012)'!AK28) -> 16 | AL15: =SUM('법정동(2012)'!AL19,'법정동(2012)'!AL28) -> 19,177.10 | AM15: =SUM('법정동(2012)'!AM19,'법정동(2012)'!AM28) -> 43 | AN15: =SUM('법정동(2012)'!AN19,'법정동(2012)'!AN28) -> 10.00 | AO15: =SUM('법정동(2012)'!AO19,'법정동(2012)'!AO28) -> 1 | AP15: =SUM('법정동(2012)'!AP19,'법정동(2012)'!AP28) -> 0 | AQ15: =SUM('법정동(2012)'!AQ19,'법정동(2012)'!AQ28) -> 0 | AR15: =SUM('법정동(2012)'!AR19,'법정동(2012)'!AR28) -> 12,938.00 | AS15: =SUM('법정동(2012)'!AS19,'법정동(2012)'!AS28) -> 16 | AT15: =SUM('법정동(2012)'!AT19,'법정동(2012)'!AT28) -> 2,315.40 | AU15: =SUM('법정동(2012)'!AU19,'법정동(2012)'!AU28) -> 2 | AV15: =SUM('법정동(2012)'!AV19,'법정동(2012)'!AV28) -> 310,227.00 | AW15: =SUM('법정동(2012)'!AW19,'법정동(2012)'!AW28) -> 14 | AX15: =SUM('법정동(2012)'!AX19,'법정동(2012)'!AX28) -> 0 | AY15: =SUM('법정동(2012)'!AY19,'법정동(2012)'!AY28) -> 0 | AZ15: =SUM('법정동(2012)'!AZ19,'법정동(2012)'!AZ28) -> 8,655.90 | BA15: =SUM('법정동(2012)'!BA19,'법정동(2012)'!BA28) -> 12 | BB15: =SUM('법정동(2012)'!BB19,'법정동(2012)'!BB28) -> 0 | BC15: =SUM('법정동(2012)'!BC19,'법정동(2012)'!BC28) -> 0 | BD15: =SUM('법정동(2012)'!BD19,'법정동(2012)'!BD28) -> 39,638.00 | BE15: =SUM('법정동(2012)'!BE19,'법정동(2012)'!BE28) -> 26 | BF15: =SUM('법정동(2012)'!BF19,'법정동(2012)'!BF28) -> 11,591.60 | BG15: =SUM('법정동(2012)'!BG19,'법정동(2012)'!BG28) -> 29
A16: 서강동 | B16: =SUM('법정동(2012)'!B20:B21) -> 655,394.50 | C16: =SUM('법정동(2012)'!C20:C21) -> 2,770 | D16: =SUM('법정동(2012)'!D20:D21) -> 79,684.00 | E16: =SUM('법정동(2012)'!E20:E21) -> 172 | F16: =SUM('법정동(2012)'!F20:F21) -> 27,350.00 | G16: =SUM('법정동(2012)'!G20:G21) -> 58 | H16: =SUM('법정동(2012)'!H20:H21) -> 0 | I16: =SUM('법정동(2012)'!I20:I21) -> 0 | J16: =SUM('법정동(2012)'!J20:J21) -> 0 | K16: =SUM('법정동(2012)'!K20:K21) -> 0 | L16: =SUM('법정동(2012)'!L20:L21) -> 156,344.00 | M16: =SUM('법정동(2012)'!M20:M21) -> 55 | N16: =SUM('법정동(2012)'!N20:N21) -> 0 | O16: =SUM('법정동(2012)'!O20:O21) -> 0 | P16: =SUM('법정동(2012)'!P20:P21) -> 0 | Q16: =SUM('법정동(2012)'!Q20:Q21) -> 0 | R16: =SUM('법정동(2012)'!R20:R21) -> 207,739.20 | S16: =SUM('법정동(2012)'!S20:S21) -> 1,787 | T16: =SUM('법정동(2012)'!T20:T21) -> 0 | U16: =SUM('법정동(2012)'!U20:U21) -> 0 | V16: =SUM('법정동(2012)'!V20:V21) -> 55,144.00 | W16: =SUM('법정동(2012)'!W20:W21) -> 3 | X16: =SUM('법정동(2012)'!X20:X21) -> 7,312.00 | Y16: =SUM('법정동(2012)'!Y20:Y21) -> 6 | Z16: =SUM('법정동(2012)'!Z20:Z21) -> 0 | AA16: =SUM('법정동(2012)'!AA20:AA21) -> 0 | AB16: =SUM('법정동(2012)'!AB20:AB21) -> 0 | AC16: =SUM('법정동(2012)'!AC20:AC21) -> 0 | AD16: =SUM('법정동(2012)'!AD20:AD21) -> 95,079.70 | AE16: =SUM('법정동(2012)'!AE20:AE21) -> 626 | AF16: =SUM('법정동(2012)'!AF20:AF21) -> 0 | AG16: =SUM('법정동(2012)'!AG20:AG21) -> 0 | AH16: =SUM('법정동(2012)'!AH20:AH21) -> 0 | AI16: =SUM('법정동(2012)'!AI20:AI21) -> 0 | AJ16: =SUM('법정동(2012)'!AJ20:AJ21) -> 8,724.00 | AK16: =SUM('법정동(2012)'!AK20:AK21) -> 4 | AL16: =SUM('법정동(2012)'!AL20:AL21) -> 4,157.00 | AM16: =SUM('법정동(2012)'!AM20:AM21) -> 26 | AN16: =SUM('법정동(2012)'!AN20:AN21) -> 0 | AO16: =SUM('법정동(2012)'!AO20:AO21) -> 0 | AP16: =SUM('법정동(2012)'!AP20:AP21) -> 0 | AQ16: =SUM('법정동(2012)'!AQ20:AQ21) -> 0 | AR16: =SUM('법정동(2012)'!AR20:AR21) -> 0 | AS16: =SUM('법정동(2012)'!AS20:AS21) -> 0 | AT16: =SUM('법정동(2012)'!AT20:AT21) -> 2,049.90 | AU16: =SUM('법정동(2012)'!AU20:AU21) -> 2 | AV16: =SUM('법정동(2012)'!AV20:AV21) -> 0 | AW16: =SUM('법정동(2012)'!AW20:AW21) -> 0 | AX16: =SUM('법정동(2012)'!AX20:AX21) -> 0 | AY16: =SUM('법정동(2012)'!AY20:AY21) -> 0 | AZ16: =SUM('법정동(2012)'!AZ20:AZ21) -> 8,250.00 | BA16: =SUM('법정동(2012)'!BA20:BA21) -> 7 | BB16: =SUM('법정동(2012)'!BB20:BB21) -> 0 | BC16: =SUM('법정동(2012)'!BC20:BC21) -> 0 | BD16: =SUM('법정동(2012)'!BD20:BD21) -> 0 | BE16: =SUM('법정동(2012)'!BE20:BE21) -> 0 | BF16: =SUM('법정동(2012)'!BF20:BF21) -> 3,560.70 | BG16: =SUM('법정동(2012)'!BG20:BG21) -> 24
A17: 대교동 | B17: =SUM('법정동(2012)'!B22:B23) -> 1,605,087.70 | C17: =SUM('법정동(2012)'!C22:C23) -> 4,786 | D17: =SUM('법정동(2012)'!D22:D23) -> 242,977.00 | E17: =SUM('법정동(2012)'!E22:E23) -> 515 | F17: =SUM('법정동(2012)'!F22:F23) -> 43,789.00 | G17: =SUM('법정동(2012)'!G22:G23) -> 104 | H17: =SUM('법정동(2012)'!H22:H23) -> 0 | I17: =SUM('법정동(2012)'!I22:I23) -> 0 | J17: =SUM('법정동(2012)'!J22:J23) -> 0 | K17: =SUM('법정동(2012)'!K22:K23) -> 0 | L17: =SUM('법정동(2012)'!L22:L23) -> 385,533.00 | M17: =SUM('법정동(2012)'!M22:M23) -> 91 | N17: =SUM('법정동(2012)'!N22:N23) -> 0 | O17: =SUM('법정동(2012)'!O22:O23) -> 0 | P17: =SUM('법정동(2012)'!P22:P23) -> 0 | Q17: =SUM('법정동(2012)'!Q22:Q23) -> 0 | R17: =SUM('법정동(2012)'!R22:R23) -> 547,269.30 | S17: =SUM('법정동(2012)'!S22:S23) -> 3,193 | T17: =SUM('법정동(2012)'!T22:T23) -> 353.10 | U17: =SUM('법정동(2012)'!U22:U23) -> 1 | V17: =SUM('법정동(2012)'!V22:V23) -> 33,929.00 | W17: =SUM('법정동(2012)'!W22:W23) -> 8 | X17: =SUM('법정동(2012)'!X22:X23) -> 2,217.10 | Y17: =SUM('법정동(2012)'!Y22:Y23) -> 6 | Z17: =SUM('법정동(2012)'!Z22:Z23) -> 1,618.40 | AA17: =SUM('법정동(2012)'!AA22:AA23) -> 3 | AB17: =SUM('법정동(2012)'!AB22:AB23) -> 1,297.10 | AC17: =SUM('법정동(2012)'!AC22:AC23) -> 4 | AD17: =SUM('법정동(2012)'!AD22:AD23) -> 284,745.70 | AE17: =SUM('법정동(2012)'!AE22:AE23) -> 785 | AF17: =SUM('법정동(2012)'!AF22:AF23) -> 0 | AG17: =SUM('법정동(2012)'!AG22:AG23) -> 0 | AH17: =SUM('법정동(2012)'!AH22:AH23) -> 273.00 | AI17: =SUM('법정동(2012)'!AI22:AI23) -> 4 | AJ17: =SUM('법정동(2012)'!AJ22:AJ23) -> 9,140.00 | AK17: =SUM('법정동(2012)'!AK22:AK23) -> 1 | AL17: =SUM('법정동(2012)'!AL22:AL23) -> 4,499.00 | AM17: =SUM('법정동(2012)'!AM22:AM23) -> 16 | AN17: =SUM('법정동(2012)'!AN22:AN23) -> 27.00 | AO17: =SUM('법정동(2012)'!AO22:AO23) -> 2 | AP17: =SUM('법정동(2012)'!AP22:AP23) -> 0 | AQ17: =SUM('법정동(2012)'!AQ22:AQ23) -> 0 | AR17: =SUM('법정동(2012)'!AR22:AR23) -> 283.00 | AS17: =SUM('법정동(2012)'!AS22:AS23) -> 2 | AT17: =SUM('법정동(2012)'!AT22:AT23) -> 0 | AU17: =SUM('법정동(2012)'!AU22:AU23) -> 0 | AV17: =SUM('법정동(2012)'!AV22:AV23) -> 0 | AW17: =SUM('법정동(2012)'!AW22:AW23) -> 0 | AX17: =SUM('법정동(2012)'!AX22:AX23) -> 0 | AY17: =SUM('법정동(2012)'!AY22:AY23) -> 0 | AZ17: =SUM('법정동(2012)'!AZ22:AZ23) -> 7,586.00 | BA17: =SUM('법정동(2012)'!BA22:BA23) -> 6 | BB17: =SUM('법정동(2012)'!BB22:BB23) -> 0 | BC17: =SUM('법정동(2012)'!BC22:BC23) -> 0 | BD17: =SUM('법정동(2012)'!BD22:BD23) -> 2,565.00 | BE17: =SUM('법정동(2012)'!BE22:BE23) -> 11 | BF17: =SUM('법정동(2012)'!BF22:BF23) -> 36,986.00 | BG17: =SUM('법정동(2012)'!BG22:BG23) -> 34
A18: 국 동 | B18: =SUM('법정동(2012)'!B24) -> 1,533,308.30 | C18: =SUM('법정동(2012)'!C24) -> 3,250 | D18: =SUM('법정동(2012)'!D24) -> 107,621.00 | E18: =SUM('법정동(2012)'!E24) -> 493 | F18: =SUM('법정동(2012)'!F24) -> 15,729.00 | G18: =SUM('법정동(2012)'!G24) -> 84 | H18: =SUM('법정동(2012)'!H24) -> 815.00 | I18: =SUM('법정동(2012)'!I24) -> 1 | J18: =SUM('법정동(2012)'!J24) -> 0 | K18: =SUM('법정동(2012)'!K24) -> 0 | L18: =SUM('법정동(2012)'!L24) -> 488,434.00 | M18: =SUM('법정동(2012)'!M24) -> 110 | N18: =SUM('법정동(2012)'!N24) -> 0 | O18: =SUM('법정동(2012)'!O24) -> 0 | P18: =SUM('법정동(2012)'!P24) -> 0 | Q18: =SUM('법정동(2012)'!Q24) -> 0 | R18: =SUM('법정동(2012)'!R24) -> 531,604.20 | S18: =SUM('법정동(2012)'!S24) -> 1,935 | T18: =SUM('법정동(2012)'!T24) -> 5,044.00 | U18: =SUM('법정동(2012)'!U24) -> 9 | V18: =SUM('법정동(2012)'!V24) -> 125,146.20 | W18: =SUM('법정동(2012)'!W24) -> 32 | X18: =SUM('법정동(2012)'!X24) -> 5,979.00 | Y18: =SUM('법정동(2012)'!Y24) -> 4 | Z18: =SUM('법정동(2012)'!Z24) -> 420.00 | AA18: =SUM('법정동(2012)'!AA24) -> 1 | AB18: =SUM('법정동(2012)'!AB24) -> 609.00 | AC18: =SUM('법정동(2012)'!AC24) -> 4 | AD18: =SUM('법정동(2012)'!AD24) -> 160,572.60 | AE18: =SUM('법정동(2012)'!AE24) -> 473 | AF18: =SUM('법정동(2012)'!AF24) -> 0 | AG18: =SUM('법정동(2012)'!AG24) -> 0 | AH18: =SUM('법정동(2012)'!AH24) -> 2,006.00 | AI18: =SUM('법정동(2012)'!AI24) -> 1 | AJ18: =SUM('법정동(2012)'!AJ24) -> 0 | AK18: =SUM('법정동(2012)'!AK24) -> 0 | AL18: =SUM('법정동(2012)'!AL24) -> 15,931.00 | AM18: =SUM('법정동(2012)'!AM24) -> 14 | AN18: =SUM('법정동(2012)'!AN24) -> 0 | AO18: =SUM('법정동(2012)'!AO24) -> 0 | AP18: =SUM('법정동(2012)'!AP24) -> 0 | AQ18: =SUM('법정동(2012)'!AQ24) -> 0 | AR18: =SUM('법정동(2012)'!AR24) -> 3,092.00 | AS18: =SUM('법정동(2012)'!AS24) -> 6 | AT18: =SUM('법정동(2012)'!AT24) -> 0 | AU18: =SUM('법정동(2012)'!AU24) -> 0 | AV18: =SUM('법정동(2012)'!AV24) -> 0 | AW18: =SUM('법정동(2012)'!AW24) -> 0 | AX18: =SUM('법정동(2012)'!AX24) -> 0 | AY18: =SUM('법정동(2012)'!AY24) -> 0 | AZ18: =SUM('법정동(2012)'!AZ24) -> 7,076.50 | BA18: =SUM('법정동(2012)'!BA24) -> 14 | BB18: =SUM('법정동(2012)'!BB24) -> 0 | BC18: =SUM('법정동(2012)'!BC24) -> 0 | BD18: =SUM('법정동(2012)'!BD24) -> 1,035.00 | BE18: =SUM('법정동(2012)'!BE24) -> 10 | BF18: =SUM('법정동(2012)'!BF24) -> 62,193.80 | BG18: =SUM('법정동(2012)'!BG24) -> 59
A19: 월호동 | B19: =SUM('법정동(2012)'!B25,'법정동(2012)'!B34) -> 6,790,646.50 | C19: =SUM('법정동(2012)'!C25,'법정동(2012)'!C34) -> 6,348 | D19: =SUM('법정동(2012)'!D25,'법정동(2012)'!D34) -> 1,742,102.00 | E19: =SUM('법정동(2012)'!E25,'법정동(2012)'!E34) -> 2,135 | F19: =SUM('법정동(2012)'!F25,'법정동(2012)'!F34) -> 279,817.00 | G19: =SUM('법정동(2012)'!G25,'법정동(2012)'!G34) -> 465 | H19: =SUM('법정동(2012)'!H25,'법정동(2012)'!H34) -> 0 | I19: =SUM('법정동(2012)'!I25,'법정동(2012)'!I34) -> 0 | J19: =SUM('법정동(2012)'!J25,'법정동(2012)'!J34) -> 0 | K19: =SUM('법정동(2012)'!K25,'법정동(2012)'!K34) -> 0 | L19: =SUM('법정동(2012)'!L25,'법정동(2012)'!L34) -> 2,930,855.00 | M19: =SUM('법정동(2012)'!M25,'법정동(2012)'!M34) -> 1,168 | N19: =SUM('법정동(2012)'!N25,'법정동(2012)'!N34) -> 0 | O19: =SUM('법정동(2012)'!O25,'법정동(2012)'!O34) -> 0 | P19: =SUM('법정동(2012)'!P25,'법정동(2012)'!P34) -> 0 | Q19: =SUM('법정동(2012)'!Q25,'법정동(2012)'!Q34) -> 0 | R19: =SUM('법정동(2012)'!R25,'법정동(2012)'!R34) -> 385,100.20 | S19: =SUM('법정동(2012)'!S25,'법정동(2012)'!S34) -> 1,224 | T19: =SUM('법정동(2012)'!T25,'법정동(2012)'!T34) -> 844,847.00 | U19: =SUM('법정동(2012)'!U25,'법정동(2012)'!U34) -> 121 | V19: =SUM('법정동(2012)'!V25,'법정동(2012)'!V34) -> 19,320.00 | W19: =SUM('법정동(2012)'!W25,'법정동(2012)'!W34) -> 3 | X19: =SUM('법정동(2012)'!X25,'법정동(2012)'!X34) -> 2,408.60 | Y19: =SUM('법정동(2012)'!Y25,'법정동(2012)'!Y34) -> 9 | Z19: =SUM('법정동(2012)'!Z25,'법정동(2012)'!Z34) -> 2,571.00 | AA19: =SUM('법정동(2012)'!AA25,'법정동(2012)'!AA34) -> 10 | AB19: =SUM('법정동(2012)'!AB25,'법정동(2012)'!AB34) -> 1,810.00 | AC19: =SUM('법정동(2012)'!AC25,'법정동(2012)'!AC34) -> 2 | AD19: =SUM('법정동(2012)'!AD25,'법정동(2012)'!AD34) -> 256,207.10 | AE19: =SUM('법정동(2012)'!AE25,'법정동(2012)'!AE34) -> 906 | AF19: =SUM('법정동(2012)'!AF25,'법정동(2012)'!AF34) -> 0 | AG19: =SUM('법정동(2012)'!AG25,'법정동(2012)'!AG34) -> 0 | AH19: =SUM('법정동(2012)'!AH25,'법정동(2012)'!AH34) -> 17,202.00 | AI19: =SUM('법정동(2012)'!AI25,'법정동(2012)'!AI34) -> 43 | AJ19: =SUM('법정동(2012)'!AJ25,'법정동(2012)'!AJ34) -> 1,220.00 | AK19: =SUM('법정동(2012)'!AK25,'법정동(2012)'!AK34) -> 5 | AL19: =SUM('법정동(2012)'!AL25,'법정동(2012)'!AL34) -> 45,561.00 | AM19: =SUM('법정동(2012)'!AM25,'법정동(2012)'!AM34) -> 21 | AN19: =SUM('법정동(2012)'!AN25,'법정동(2012)'!AN34) -> 2,473.00 | AO19: =SUM('법정동(2012)'!AO25,'법정동(2012)'!AO34) -> 2 | AP19: =SUM('법정동(2012)'!AP25,'법정동(2012)'!AP34) -> 1,601.00 | AQ19: =SUM('법정동(2012)'!AQ25,'법정동(2012)'!AQ34) -> 1 | AR19: =SUM('법정동(2012)'!AR25,'법정동(2012)'!AR34) -> 0 | AS19: =SUM('법정동(2012)'!AS25,'법정동(2012)'!AS34) -> 0 | AT19: =SUM('법정동(2012)'!AT25,'법정동(2012)'!AT34) -> 7,918.60 | AU19: =SUM('법정동(2012)'!AU25,'법정동(2012)'!AU34) -> 11 | AV19: =SUM('법정동(2012)'!AV25,'법정동(2012)'!AV34) -> 0 | AW19: =SUM('법정동(2012)'!AW25,'법정동(2012)'!AW34) -> 0 | AX19: =SUM('법정동(2012)'!AX25,'법정동(2012)'!AX34) -> 0 | AY19: =SUM('법정동(2012)'!AY25,'법정동(2012)'!AY34) -> 0 | AZ19: =SUM('법정동(2012)'!AZ25,'법정동(2012)'!AZ34) -> 9,967.00 | BA19: =SUM('법정동(2012)'!BA25,'법정동(2012)'!BA34) -> 11 | BB19: =SUM('법정동(2012)'!BB25,'법정동(2012)'!BB34) -> 0 | BC19: =SUM('법정동(2012)'!BC25,'법정동(2012)'!BC34) -> 0 | BD19: =SUM('법정동(2012)'!BD25,'법정동(2012)'!BD34) -> 18,366.00 | BE19: =SUM('법정동(2012)'!BE25,'법정동(2012)'!BE34) -> 53 | BF19: =SUM('법정동(2012)'!BF25,'법정동(2012)'!BF34) -> 221,300.00 | BG19: =SUM('법정동(2012)'!BG25,'법정동(2012)'!BG34) -> 158
A20: 여서동 | B20: =SUM('법정동(2012)'!B26) -> 2,575,399.90 | C20: =SUM('법정동(2012)'!C26) -> 1,908 | D20: =SUM('법정동(2012)'!D26) -> 204,480.00 | E20: =SUM('법정동(2012)'!E26) -> 276 | F20: =SUM('법정동(2012)'!F26) -> 116,419.00 | G20: =SUM('법정동(2012)'!G26) -> 188 | H20: =SUM('법정동(2012)'!H26) -> 0 | I20: =SUM('법정동(2012)'!I26) -> 0 | J20: =SUM('법정동(2012)'!J26) -> 0 | K20: =SUM('법정동(2012)'!K26) -> 0 | L20: =SUM('법정동(2012)'!L26) -> 1,223,736.00 | M20: =SUM('법정동(2012)'!M26) -> 284 | N20: =SUM('법정동(2012)'!N26) -> 0 | O20: =SUM('법정동(2012)'!O26) -> 0 | P20: =SUM('법정동(2012)'!P26) -> 0 | Q20: =SUM('법정동(2012)'!Q26) -> 0 | R20: =SUM('법정동(2012)'!R26) -> 562,616.90 | S20: =SUM('법정동(2012)'!S26) -> 751 | T20: =SUM('법정동(2012)'!T26) -> 0 | U20: =SUM('법정동(2012)'!U26) -> 0 | V20: =SUM('법정동(2012)'!V26) -> 58,011.00 | W20: =SUM('법정동(2012)'!W26) -> 4 | X20: =SUM('법정동(2012)'!X26) -> 15,531.60 | Y20: =SUM('법정동(2012)'!Y26) -> 15 | Z20: =SUM('법정동(2012)'!Z26) -> 1,488.00 | AA20: =SUM('법정동(2012)'!AA26) -> 1 | AB20: =SUM('법정동(2012)'!AB26) -> 884.00 | AC20: =SUM('법정동(2012)'!AC26) -> 1 | AD20: =SUM('법정동(2012)'!AD26) -> 291,253.80 | AE20: =SUM('법정동(2012)'!AE26) -> 279 | AF20: =SUM('법정동(2012)'!AF26) -> 0 | AG20: =SUM('법정동(2012)'!AG26) -> 0 | AH20: =SUM('법정동(2012)'!AH26) -> 0 | AI20: =SUM('법정동(2012)'!AI26) -> 0 | AJ20: =SUM('법정동(2012)'!AJ26) -> 0 | AK20: =SUM('법정동(2012)'!AK26) -> 0 | AL20: =SUM('법정동(2012)'!AL26) -> 15,119.90 | AM20: =SUM('법정동(2012)'!AM26) -> 20 | AN20: =SUM('법정동(2012)'!AN26) -> 958.00 | AO20: =SUM('법정동(2012)'!AO26) -> 2 | AP20: =SUM('법정동(2012)'!AP26) -> 0 | AQ20: =SUM('법정동(2012)'!AQ26) -> 0 | AR20: =SUM('법정동(2012)'!AR26) -> 11,855.00 | AS20: =SUM('법정동(2012)'!AS26) -> 5 | AT20: =SUM('법정동(2012)'!AT26) -> 19,406.80 | AU20: =SUM('법정동(2012)'!AU26) -> 7 | AV20: =SUM('법정동(2012)'!AV26) -> 9,361.00 | AW20: =SUM('법정동(2012)'!AW26) -> 5 | AX20: =SUM('법정동(2012)'!AX26) -> 0 | AY20: =SUM('법정동(2012)'!AY26) -> 0 | AZ20: =SUM('법정동(2012)'!AZ26) -> 15,908.40 | BA20: =SUM('법정동(2012)'!BA26) -> 22 | BB20: =SUM('법정동(2012)'!BB26) -> 0 | BC20: =SUM('법정동(2012)'!BC26) -> 0 | BD20: =SUM('법정동(2012)'!BD26) -> 2,630.00 | BE20: =SUM('법정동(2012)'!BE26) -> 8 | BF20: =SUM('법정동(2012)'!BF26) -> 25,740.50 | BG20: =SUM('법정동(2012)'!BG26) -> 40
A21: 문수동 | B21: =SUM('법정동(2012)'!B27) -> 2,244,609.30 | C21: =SUM('법정동(2012)'!C27) -> 3,215 | D21: =SUM('법정동(2012)'!D27) -> 177,192.00 | E21: =SUM('법정동(2012)'!E27) -> 329 | F21: =SUM('법정동(2012)'!F27) -> 35,111.00 | G21: =SUM('법정동(2012)'!G27) -> 96 | H21: =SUM('법정동(2012)'!H27) -> 0 | I21: =SUM('법정동(2012)'!I27) -> 0 | J21: =SUM('법정동(2012)'!J27) -> 0 | K21: =SUM('법정동(2012)'!K27) -> 0 | L21: =SUM('법정동(2012)'!L27) -> 836,566.70 | M21: =SUM('법정동(2012)'!M27) -> 324 | N21: =SUM('법정동(2012)'!N27) -> 0 | O21: =SUM('법정동(2012)'!O27) -> 0 | P21: =SUM('법정동(2012)'!P27) -> 0 | Q21: =SUM('법정동(2012)'!Q27) -> 0 | R21: =SUM('법정동(2012)'!R27) -> 714,845.50 | S21: =SUM('법정동(2012)'!S27) -> 1,903 | T21: =SUM('법정동(2012)'!T27) -> 0 | U21: =SUM('법정동(2012)'!U27) -> 0 | V21: =SUM('법정동(2012)'!V27) -> 122,894.60 | W21: =SUM('법정동(2012)'!W27) -> 10 | X21: =SUM('법정동(2012)'!X27) -> 13,688.40 | Y21: =SUM('법정동(2012)'!Y27) -> 55 | Z21: =SUM('법정동(2012)'!Z27) -> 1,109.10 | AA21: =SUM('법정동(2012)'!AA27) -> 2 | AB21: =SUM('법정동(2012)'!AB27) -> 205.00 | AC21: =SUM('법정동(2012)'!AC27) -> 1 | AD21: =SUM('법정동(2012)'!AD27) -> 223,619.90 | AE21: =SUM('법정동(2012)'!AE27) -> 364 | AF21: =SUM('법정동(2012)'!AF27) -> 0 | AG21: =SUM('법정동(2012)'!AG27) -> 0 | AH21: =SUM('법정동(2012)'!AH27) -> 0 | AI21: =SUM('법정동(2012)'!AI27) -> 0 | AJ21: =SUM('법정동(2012)'!AJ27) -> 8,513.00 | AK21: =SUM('법정동(2012)'!AK27) -> 5 | AL21: =SUM('법정동(2012)'!AL27) -> 9,438.40 | AM21: =SUM('법정동(2012)'!AM27) -> 13 | AN21: =SUM('법정동(2012)'!AN27) -> 0 | AO21: =SUM('법정동(2012)'!AO27) -> 0 | AP21: =SUM('법정동(2012)'!AP27) -> 0 | AQ21: =SUM('법정동(2012)'!AQ27) -> 0 | AR21: =SUM('법정동(2012)'!AR27) -> 31.00 | AS21: =SUM('법정동(2012)'!AS27) -> 1 | AT21: =SUM('법정동(2012)'!AT27) -> 54,362.10 | AU21: =SUM('법정동(2012)'!AU27) -> 21 | AV21: =SUM('법정동(2012)'!AV27) -> 0 | AW21: =SUM('법정동(2012)'!AW27) -> 0 | AX21: =SUM('법정동(2012)'!AX27) -> 0 | AY21: =SUM('법정동(2012)'!AY27) -> 0 | AZ21: =SUM('법정동(2012)'!AZ27) -> 25,861.00 | BA21: =SUM('법정동(2012)'!BA27) -> 15 | BB21: =SUM('법정동(2012)'!BB27) -> 0 | BC21: =SUM('법정동(2012)'!BC27) -> 0 | BD21: =SUM('법정동(2012)'!BD27) -> 3,861.00 | BE21: =SUM('법정동(2012)'!BE27) -> 19 | BF21: =SUM('법정동(2012)'!BF27) -> 17,310.60 | BG21: =SUM('법정동(2012)'!BG27) -> 57
A22: 미평동 | B22: =SUM('법정동(2012)'!B29) -> 3,089,016.90 | C22: =SUM('법정동(2012)'!C29) -> 2,722 | D22: =SUM('법정동(2012)'!D29) -> 148,751.00 | E22: =SUM('법정동(2012)'!E29) -> 352 | F22: =SUM('법정동(2012)'!F29) -> 102,764.00 | G22: =SUM('법정동(2012)'!G29) -> 237 | H22: =SUM('법정동(2012)'!H29) -> 0 | I22: =SUM('법정동(2012)'!I29) -> 0 | J22: =SUM('법정동(2012)'!J29) -> 0 | K22: =SUM('법정동(2012)'!K29) -> 0 | L22: =SUM('법정동(2012)'!L29) -> 1,834,922.00 | M22: =SUM('법정동(2012)'!M29) -> 229 | N22: =SUM('법정동(2012)'!N29) -> 0 | O22: =SUM('법정동(2012)'!O29) -> 0 | P22: =SUM('법정동(2012)'!P29) -> 0 | Q22: =SUM('법정동(2012)'!Q29) -> 0 | R22: =SUM('법정동(2012)'!R29) -> 465,875.50 | S22: =SUM('법정동(2012)'!S29) -> 1,158 | T22: =SUM('법정동(2012)'!T29) -> 1,501.00 | U22: =SUM('법정동(2012)'!U29) -> 3 | V22: =SUM('법정동(2012)'!V29) -> 64,631.10 | W22: =SUM('법정동(2012)'!W29) -> 10 | X22: =SUM('법정동(2012)'!X29) -> 3,550.80 | Y22: =SUM('법정동(2012)'!Y29) -> 11 | Z22: =SUM('법정동(2012)'!Z29) -> 1,804.20 | AA22: =SUM('법정동(2012)'!AA29) -> 3 | AB22: =SUM('법정동(2012)'!AB29) -> 177.40 | AC22: =SUM('법정동(2012)'!AC29) -> 1 | AD22: =SUM('법정동(2012)'!AD29) -> 195,839.40 | AE22: =SUM('법정동(2012)'!AE29) -> 523 | AF22: =SUM('법정동(2012)'!AF29) -> 53,203.00 | AG22: =SUM('법정동(2012)'!AG29) -> 33 | AH22: =SUM('법정동(2012)'!AH29) -> 0 | AI22: =SUM('법정동(2012)'!AI29) -> 0 | AJ22: =SUM('법정동(2012)'!AJ29) -> 9,529.40 | AK22: =SUM('법정동(2012)'!AK29) -> 3 | AL22: =SUM('법정동(2012)'!AL29) -> 25,760.00 | AM22: =SUM('법정동(2012)'!AM29) -> 52 | AN22: =SUM('법정동(2012)'!AN29) -> 0 | AO22: =SUM('법정동(2012)'!AO29) -> 0 | AP22: =SUM('법정동(2012)'!AP29) -> 0 | AQ22: =SUM('법정동(2012)'!AQ29) -> 0 | AR22: =SUM('법정동(2012)'!AR29) -> 106,673.50 | AS22: =SUM('법정동(2012)'!AS29) -> 62 | AT22: =SUM('법정동(2012)'!AT29) -> 16,700.40 | AU22: =SUM('법정동(2012)'!AU29) -> 10 | AV22: =SUM('법정동(2012)'!AV29) -> 0 | AW22: =SUM('법정동(2012)'!AW29) -> 0 | AX22: =SUM('법정동(2012)'!AX29) -> 0 | AY22: =SUM('법정동(2012)'!AY29) -> 0 | AZ22: =SUM('법정동(2012)'!AZ29) -> 8,992.40 | BA22: =SUM('법정동(2012)'!BA29) -> 9 | BB22: =SUM('법정동(2012)'!BB29) -> 0 | BC22: =SUM('법정동(2012)'!BC29) -> 0 | BD22: =SUM('법정동(2012)'!BD29) -> 5,712.00 | BE22: =SUM('법정동(2012)'!BE29) -> 7 | BF22: =SUM('법정동(2012)'!BF29) -> 42,629.80 | BG22: =SUM('법정동(2012)'!BG29) -> 19
A23: 둔덕동 | B23: =SUM('법정동(2012)'!B30) -> 4,076,115.10 | C23: =SUM('법정동(2012)'!C30) -> 2,397 | D23: =SUM('법정동(2012)'!D30) -> 183,604.00 | E23: =SUM('법정동(2012)'!E30) -> 305 | F23: =SUM('법정동(2012)'!F30) -> 428,387.00 | G23: =SUM('법정동(2012)'!G30) -> 490 | H23: =SUM('법정동(2012)'!H30) -> 0 | I23: =SUM('법정동(2012)'!I30) -> 0 | J23: =SUM('법정동(2012)'!J30) -> 0 | K23: =SUM('법정동(2012)'!K30) -> 0 | L23: =SUM('법정동(2012)'!L30) -> 2,322,711.00 | M23: =SUM('법정동(2012)'!M30) -> 399 | N23: =SUM('법정동(2012)'!N30) -> 0 | O23: =SUM('법정동(2012)'!O30) -> 0 | P23: =SUM('법정동(2012)'!P30) -> 0 | Q23: =SUM('법정동(2012)'!Q30) -> 0 | R23: =SUM('법정동(2012)'!R30) -> 466,098.70 | S23: =SUM('법정동(2012)'!S30) -> 649 | T23: =SUM('법정동(2012)'!T30) -> 362.00 | U23: =SUM('법정동(2012)'!U30) -> 1 | V23: =SUM('법정동(2012)'!V30) -> 0 | W23: =SUM('법정동(2012)'!W30) -> 0 | X23: =SUM('법정동(2012)'!X30) -> 1,073.90 | Y23: =SUM('법정동(2012)'!Y30) -> 3 | Z23: =SUM('법정동(2012)'!Z30) -> 10,143.90 | AA23: =SUM('법정동(2012)'!AA30) -> 8 | AB23: =SUM('법정동(2012)'!AB30) -> 6,380.70 | AC23: =SUM('법정동(2012)'!AC30) -> 9 | AD23: =SUM('법정동(2012)'!AD30) -> 246,103.60 | AE23: =SUM('법정동(2012)'!AE30) -> 400 | AF23: =SUM('법정동(2012)'!AF30) -> 22,933.00 | AG23: =SUM('법정동(2012)'!AG30) -> 33 | AH23: =SUM('법정동(2012)'!AH30) -> 0 | AI23: =SUM('법정동(2012)'!AI30) -> 0 | AJ23: =SUM('법정동(2012)'!AJ30) -> 9,119.10 | AK23: =SUM('법정동(2012)'!AK30) -> 3 | AL23: =SUM('법정동(2012)'!AL30) -> 21,297.00 | AM23: =SUM('법정동(2012)'!AM30) -> 13 | AN23: =SUM('법정동(2012)'!AN30) -> 0 | AO23: =SUM('법정동(2012)'!AO30) -> 0 | AP23: =SUM('법정동(2012)'!AP30) -> 0 | AQ23: =SUM('법정동(2012)'!AQ30) -> 0 | AR23: =SUM('법정동(2012)'!AR30) -> 72,838.00 | AS23: =SUM('법정동(2012)'!AS30) -> 4 | AT23: =SUM('법정동(2012)'!AT30) -> 18,073.40 | AU23: =SUM('법정동(2012)'!AU30) -> 8 | AV23: =SUM('법정동(2012)'!AV30) -> 166,279.00 | AW23: =SUM('법정동(2012)'!AW30) -> 6 | AX23: =SUM('법정동(2012)'!AX30) -> 0 | AY23: =SUM('법정동(2012)'!AY30) -> 0 | AZ23: =SUM('법정동(2012)'!AZ30) -> 14,763.30 | BA23: =SUM('법정동(2012)'!BA30) -> 10 | BB23: =SUM('법정동(2012)'!BB30) -> 0 | BC23: =SUM('법정동(2012)'!BC30) -> 0 | BD23: =SUM('법정동(2012)'!BD30) -> 2,675.00 | BE23: =SUM('법정동(2012)'!BE30) -> 8 | BF23: =SUM('법정동(2012)'!BF30) -> 83,272.50 | BG23: =SUM('법정동(2012)'!BG30) -> 48
A24: 만덕동 | B24: =SUM('법정동(2012)'!B31:B33) -> 15,979,956.40 | C24: =SUM('법정동(2012)'!C31:C33) -> 10,515 | D24: =SUM('법정동(2012)'!D31:D33) -> 1,870,573.00 | E24: =SUM('법정동(2012)'!E31:E33) -> 2,723 | F24: =SUM('법정동(2012)'!F31:F33) -> 962,093.00 | G24: =SUM('법정동(2012)'!G31:G33) -> 1,228 | H24: =SUM('법정동(2012)'!H31:H33) -> 0 | I24: =SUM('법정동(2012)'!I31:I33) -> 0 | J24: =SUM('법정동(2012)'!J31:J33) -> 0 | K24: =SUM('법정동(2012)'!K31:K33) -> 0 | L24: =SUM('법정동(2012)'!L31:L33) -> 10,806,818.00 | M24: =SUM('법정동(2012)'!M31:M33) -> 1,456 | N24: =SUM('법정동(2012)'!N31:N33) -> 0 | O24: =SUM('법정동(2012)'!O31:O33) -> 0 | P24: =SUM('법정동(2012)'!P31:P33) -> 0 | Q24: =SUM('법정동(2012)'!Q31:Q33) -> 0 | R24: =SUM('법정동(2012)'!R31:R33) -> 712,034.00 | S24: =SUM('법정동(2012)'!S31:S33) -> 2,574 | T24: =SUM('법정동(2012)'!T31:T33) -> 163,907.60 | U24: =SUM('법정동(2012)'!U31:U33) -> 89 | V24: =SUM('법정동(2012)'!V31:V33) -> 67,422.00 | W24: =SUM('법정동(2012)'!W31:W33) -> 22 | X24: =SUM('법정동(2012)'!X31:X33) -> 2,818.00 | Y24: =SUM('법정동(2012)'!Y31:Y33) -> 4 | Z24: =SUM('법정동(2012)'!Z31:Z33) -> 1,185.00 | AA24: =SUM('법정동(2012)'!AA31:AA33) -> 2 | AB24: =SUM('법정동(2012)'!AB31:AB33) -> 4,016.00 | AC24: =SUM('법정동(2012)'!AC31:AC33) -> 8 | AD24: =SUM('법정동(2012)'!AD31:AD33) -> 390,691.60 | AE24: =SUM('법정동(2012)'!AE31:AE33) -> 1,655 | AF24: =SUM('법정동(2012)'!AF31:AF33) -> 292,981.00 | AG24: =SUM('법정동(2012)'!AG31:AG33) -> 250 | AH24: =SUM('법정동(2012)'!AH31:AH33) -> 42,877.40 | AI24: =SUM('법정동(2012)'!AI31:AI33) -> 35 | AJ24: =SUM('법정동(2012)'!AJ31:AJ33) -> 13,107.30 | AK24: =SUM('법정동(2012)'!AK31:AK33) -> 8 | AL24: =SUM('법정동(2012)'!AL31:AL33) -> 156,114.80 | AM24: =SUM('법정동(2012)'!AM31:AM33) -> 137 | AN24: =SUM('법정동(2012)'!AN31:AN33) -> 104,581.00 | AO24: =SUM('법정동(2012)'!AO31:AO33) -> 21 | AP24: =SUM('법정동(2012)'!AP31:AP33) -> 0 | AQ24: =SUM('법정동(2012)'!AQ31:AQ33) -> 0 | AR24: =SUM('법정동(2012)'!AR31:AR33) -> 29,431.00 | AS24: =SUM('법정동(2012)'!AS31:AS33) -> 70 | AT24: =SUM('법정동(2012)'!AT31:AT33) -> 0 | AU24: =SUM('법정동(2012)'!AU31:AU33) -> 0 | AV24: =SUM('법정동(2012)'!AV31:AV33) -> 9,615.00 | AW24: =SUM('법정동(2012)'!AW31:AW33) -> 5 | AX24: =SUM('법정동(2012)'!AX31:AX33) -> 0 | AY24: =SUM('법정동(2012)'!AY31:AY33) -> 0 | AZ24: =SUM('법정동(2012)'!AZ31:AZ33) -> 16,979.00 | BA24: =SUM('법정동(2012)'!BA31:BA33) -> 21 | BB24: =SUM('법정동(2012)'!BB31:BB33) -> 0 | BC24: =SUM('법정동(2012)'!BC31:BC33) -> 0 | BD24: =SUM('법정동(2012)'!BD31:BD33) -> 48,884.00 | BE24: =SUM('법정동(2012)'!BE31:BE33) -> 104 | BF24: =SUM('법정동(2012)'!BF31:BF33) -> 283,827.70 | BG24: =SUM('법정동(2012)'!BG31:BG33) -> 103
A25: 쌍봉동 | B25: =SUM('법정동(2012)'!B35:B38) -> 7,158,245.90 | C25: =SUM('법정동(2012)'!C35:C38) -> 6,178 | D25: =SUM('법정동(2012)'!D35:D38) -> 523,428.00 | E25: =SUM('법정동(2012)'!E35:E38) -> 823 | F25: =SUM('법정동(2012)'!F35:F38) -> 378,987.00 | G25: =SUM('법정동(2012)'!G35:G38) -> 461 | H25: =SUM('법정동(2012)'!H35:H38) -> 3,486.00 | I25: =SUM('법정동(2012)'!I35:I38) -> 3 | J25: =SUM('법정동(2012)'!J35:J38) -> 0 | K25: =SUM('법정동(2012)'!K35:K38) -> 0 | L25: =SUM('법정동(2012)'!L35:L38) -> 2,811,088.20 | M25: =SUM('법정동(2012)'!M35:M38) -> 671 | N25: =SUM('법정동(2012)'!N35:N38) -> 0 | O25: =SUM('법정동(2012)'!O35:O38) -> 0 | P25: =SUM('법정동(2012)'!P35:P38) -> 0 | Q25: =SUM('법정동(2012)'!Q35:Q38) -> 0 | R25: =SUM('법정동(2012)'!R35:R38) -> 2,075,706.40 | S25: =SUM('법정동(2012)'!S35:S38) -> 3,236 | T25: =SUM('법정동(2012)'!T35:T38) -> 12,954.00 | U25: =SUM('법정동(2012)'!U35:U38) -> 11 | V25: =SUM('법정동(2012)'!V35:V38) -> 93,344.50 | W25: =SUM('법정동(2012)'!W35:W38) -> 9 | X25: =SUM('법정동(2012)'!X35:X38) -> 26,521.20 | Y25: =SUM('법정동(2012)'!Y35:Y38) -> 32 | Z25: =SUM('법정동(2012)'!Z35:Z38) -> 8,001.20 | AA25: =SUM('법정동(2012)'!AA35:AA38) -> 11 | AB25: =SUM('법정동(2012)'!AB35:AB38) -> 4,132.00 | AC25: =SUM('법정동(2012)'!AC35:AC38) -> 5 | AD25: =SUM('법정동(2012)'!AD35:AD38) -> 773,861.10 | AE25: =SUM('법정동(2012)'!AE35:AE38) -> 628 | AF25: =SUM('법정동(2012)'!AF35:AF38) -> 73,480.00 | AG25: =SUM('법정동(2012)'!AG35:AG38) -> 71 | AH25: =SUM('법정동(2012)'!AH35:AH38) -> 7,082.20 | AI25: =SUM('법정동(2012)'!AI35:AI38) -> 7 | AJ25: =SUM('법정동(2012)'!AJ35:AJ38) -> 6,362.00 | AK25: =SUM('법정동(2012)'!AK35:AK38) -> 16 | AL25: =SUM('법정동(2012)'!AL35:AL38) -> 26,441.50 | AM25: =SUM('법정동(2012)'!AM35:AM38) -> 38 | AN25: =SUM('법정동(2012)'!AN35:AN38) -> 11,688.50 | AO25: =SUM('법정동(2012)'!AO35:AO38) -> 4 | AP25: =SUM('법정동(2012)'!AP35:AP38) -> 0 | AQ25: =SUM('법정동(2012)'!AQ35:AQ38) -> 0 | AR25: =SUM('법정동(2012)'!AR35:AR38) -> 20,058.00 | AS25: =SUM('법정동(2012)'!AS35:AS38) -> 3 | AT25: =SUM('법정동(2012)'!AT35:AT38) -> 147,893.90 | AU25: =SUM('법정동(2012)'!AU35:AU38) -> 24 | AV25: =SUM('법정동(2012)'!AV35:AV38) -> 10,945.60 | AW25: =SUM('법정동(2012)'!AW35:AW38) -> 1 | AX25: =SUM('법정동(2012)'!AX35:AX38) -> 49,654.30 | AY25: =SUM('법정동(2012)'!AY35:AY38) -> 2 | AZ25: =SUM('법정동(2012)'!AZ35:AZ38) -> 22,115.10 | BA25: =SUM('법정동(2012)'!BA35:BA38) -> 19 | BB25: =SUM('법정동(2012)'!BB35:BB38) -> 0 | BC25: =SUM('법정동(2012)'!BC35:BC38) -> 0 | BD25: =SUM('법정동(2012)'!BD35:BD38) -> 33,721.00 | BE25: =SUM('법정동(2012)'!BE35:BE38) -> 56 | BF25: =SUM('법정동(2012)'!BF35:BF38) -> 37,294.20 | BG25: =SUM('법정동(2012)'!BG35:BG38) -> 47
